Workbook

Sheet Calculator
B2: Samsung Horticulture Lighting Calculator
B3: LED PKG | C3: Color | D3: # LEDs | E3: CCT [K] | F3: CRI | G3: Rank | H3: Current [mA] | I3: Tj [°C] | J3: VF [V] | K3: Electrical Power [W] | L3: Optical Power [W] | M3: PPF [μmol/s] | N3: BPF [μmol/s] | O3: YPF [μmol/s] | P3: DIN [μmol/s]
B4: LM301H | D4: 20 | E4: 1 | F4: 1 | H4: 1 | I4: 1 | J4: =Graph_Data!AA6 -> 54.4 | K4: =Graph_Data!AA6*Graph_Data!AA5/1000 -> 3.536 | L4: =SUM(Graph_Data!AA11:AA411) -> 2.154128204 | M4: =Graph_Data!AA7 -> 10.08702276 | N4: =Graph_Data!AA8 -> 10.46371485 | O4: =Graph_Data!AA9 -> 9.191527625 | P4: =Graph_Data!AA10 -> 6.464174454 | S4: -1
B5: LM301H | D5: 20 | J5: =Graph_Data!AB6 -> 54.4 | K5: =Graph_Data!AB6*Graph_Data!AB5/1000 -> 3.536 | L5: =SUM(Graph_Data!AB11:AB411) -> 2.357380828 | M5: =Graph_Data!AB7 -> 10.61513779 | N5: =Graph_Data!AB8 -> 10.89071564 | O5: =Graph_Data!AB9 -> 9.287467124 | P5: =Graph_Data!AB10 -> 6.885801491
B6: LM301D | D6: 0 | J6: =Graph_Data!AC6 -> 0 | K6: =Graph_Data!AC6*Graph_Data!AC5/1000 -> 0 | L6: =SUM(Graph_Data!AC11:AC411) -> 0 | M6: =Graph_Data!AC7 -> 0 | N6: =Graph_Data!AC8 -> 0 | O6: =Graph_Data!AC9 -> 0 | P6: =Graph_Data!AC10 -> 0
B7: LM301D | D7: 0 | J7: =Graph_Data!AD6 -> 0 | K7: =Graph_Data!AD6*Graph_Data!AD5/1000 -> 0 | L7: =SUM(Graph_Data!AD11:AD411) -> 0 | M7: =Graph_Data!AD7 -> 0 | N7: =Graph_Data!AD8 -> 0 | O7: =Graph_Data!AD9 -> 0 | P7: =Graph_Data!AD10 -> 0
B8: LM561H | D8: 0 | J8: =Graph_Data!AE6 -> 0 | K8: =Graph_Data!AE6*Graph_Data!AE5/1000 -> 0 | L8: =SUM(Graph_Data!AE11:AE411) -> 0 | M8: =Graph_Data!AE7 -> 0 | N8: =Graph_Data!AE8 -> 0 | O8: =Graph_Data!AE9 -> 0 | P8: =Graph_Data!AE10 -> 0
B9: LM561H | D9: 0 | J9: =Graph_Data!AF6 -> 0 | K9: =Graph_Data!AF6*Graph_Data!AF5/1000 -> 0 | L9: =SUM(Graph_Data!AF11:AF411) -> 0 | M9: =Graph_Data!AF7 -> 0 | N9: =Graph_Data!AF8 -> 0 | O9: =Graph_Data!AF9 -> 0 | P9: =Graph_Data!AF10 -> 0
B10: LH241H (CSP) | D10: 0 | J10: =Graph_Data!AG6 -> 0 | K10: =Graph_Data!AG6*Graph_Data!AG5/1000 -> 0 | L10: =SUM(Graph_Data!AG11:AG411) -> 0 | M10: =Graph_Data!AG7 -> 0 | N10: =Graph_Data!AG8 -> 0 | O10: =Graph_Data!AG9 -> 0 | P10: =Graph_Data!AG10 -> 0
B11: LH241H (CSP) | D11: 0 | J11: =Graph_Data!AH6 -> 0 | K11: =Graph_Data!AH6*Graph_Data!AH5/1000 -> 0 | L11: =SUM(Graph_Data!AH11:AH411) -> 0 | M11: =Graph_Data!AH7 -> 0 | N11: =Graph_Data!AH8 -> 0 | O11: =Graph_Data!AH9 -> 0 | P11: =Graph_Data!AH10 -> 0
B12: LH281H (CSP) | D12: 0 | J12: =Graph_Data!AI6 -> 0 | K12: =Graph_Data!AI6*Graph_Data!AI5/1000 -> 0 | L12: =SUM(Graph_Data!AI11:AI411) -> 0 | M12: =Graph_Data!AI7 -> 0 | N12: =Graph_Data!AI8 -> 0 | O12: =Graph_Data!AI9 -> 0 | P12: =Graph_Data!AI10 -> 0
B13: LH281H (CSP) | D13: 0 | J13: =Graph_Data!AJ6 -> 0 | K13: =Graph_Data!AJ6*Graph_Data!AJ5/1000 -> 0 | L13: =SUM(Graph_Data!AJ11:AJ411) -> 0 | M13: =Graph_Data!AJ7 -> 0 | N13: =Graph_Data!AJ8 -> 0 | O13: =Graph_Data!AJ9 -> 0 | P13: =Graph_Data!AJ10 -> 0
B14: LH351H-B | D14: 0 | J14: =Graph_Data!AK6 -> 0 | K14: =Graph_Data!AK6*Graph_Data!AK5/1000 -> 0 | L14: =SUM(Graph_Data!AK11:AK411) -> 0 | M14: =Graph_Data!AK7 -> 0 | N14: =Graph_Data!AK8 -> 0 | O14: =Graph_Data!AK9 -> 0 | P14: =Graph_Data!AK10 -> 0
B15: LH351H-B | D15: 0 | J15: =Graph_Data!AL6 -> 0 | K15: =Graph_Data!AL6*Graph_Data!AL5/1000 -> 0 | L15: =SUM(Graph_Data!AL11:AL411) -> 0 | M15: =Graph_Data!AL7 -> 0 | N15: =Graph_Data!AL8 -> 0 | O15: =Graph_Data!AL9 -> 0 | P15: =Graph_Data!AL10 -> 0
B16: LH351H-C | D16: 0 | J16: =Graph_Data!AM6 -> 0 | K16: =Graph_Data!AM6*Graph_Data!AM5/1000 -> 0 | L16: =SUM(Graph_Data!AM11:AM411) -> 0 | M16: =Graph_Data!AM7 -> 0 | N16: =Graph_Data!AM8 -> 0 | O16: =Graph_Data!AM9 -> 0 | P16: =Graph_Data!AM10 -> 0
B17: LH351H-C | D17: 0 | J17: =Graph_Data!AN6 -> 0 | K17: =Graph_Data!AN6*Graph_Data!AN5/1000 -> 0 | L17: =SUM(Graph_Data!AN11:AN411) -> 0 | M17: =Graph_Data!AN7 -> 0 | N17: =Graph_Data!AN8 -> 0 | O17: =Graph_Data!AN9 -> 0 | P17: =Graph_Data!AN10 -> 0
B18: LH351H-D | D18: 0 | J18: =Graph_Data!AO6 -> 0 | K18: =Graph_Data!AO6*Graph_Data!AO5/1000 -> 0 | L18: =SUM(Graph_Data!AO11:AO411) -> 0 | M18: =Graph_Data!AO7 -> 0 | N18: =Graph_Data!AO8 -> 0 | O18: =Graph_Data!AO9 -> 0 | P18: =Graph_Data!AO10 -> 0
B19: LH351H-D | D19: 0 | J19: =Graph_Data!AP6 -> 0 | K19: =Graph_Data!AP6*Graph_Data!AP5/1000 -> 0 | L19: =SUM(Graph_Data!AP11:AP411) -> 0 | M19: =Graph_Data!AP7 -> 0 | N19: =Graph_Data!AP8 -> 0 | O19: =Graph_Data!AP9 -> 0 | P19: =Graph_Data!AP10 -> 0
B20: LH351H (450nm) V2 | D20: 0 | E20: - | F20: - | G20: - | J20: =Graph_Data!AQ6 -> 0 | K20: =Graph_Data!AQ6*Graph_Data!AQ5/1000 -> 0 | L20: =SUM(Graph_Data!AQ11:AQ411) -> 0 | M20: =Graph_Data!AQ7 -> 0 | N20: =Graph_Data!AQ8 -> 0 | O20: =Graph_Data!AQ9 -> 0 | P20: =Graph_Data!AQ10 -> 0 | S20: 5
B21: LH351H (630nm) | D21: 0 | E21: - | F21: - | G21: - | J21: =Graph_Data!AR6 -> 0 | K21: =Graph_Data!AR6*Graph_Data!AR5/1000 -> 0 | L21: =SUM(Graph_Data!AR11:AR411) -> 0 | M21: =Graph_Data!AR7 -> 0 | N21: =Graph_Data!AR8 -> 0 | O21: =Graph_Data!AR9 -> 0 | P21: =Graph_Data!AR10 -> 0 | S21: 3
B22: LH351H (660nm) | D22: 0 | E22: - | F22: - | G22: - | J22: =Graph_Data!AS6 -> 0 | K22: =Graph_Data!AS6*Graph_Data!AS5/1000 -> 0 | L22: =SUM(Graph_Data!AS11:AS411) -> 0 | M22: =Graph_Data!AS7 -> 0 | N22: =Graph_Data!AS8 -> 0 | O22: =Graph_Data!AS9 -> 0 | P22: =Graph_Data!AS10 -> 0 | S22: 3
B23: LH351H (660nm) V2 | D23: 3 | E23: - | F23: - | G23: - | J23: =Graph_Data!AT6 -> 6.0414459 | K23: =Graph_Data!AT6*Graph_Data!AT5/1000 -> 2.114506065 | L23: =SUM(Graph_Data!AT11:AT411) -> 1.452514409 | M23: =Graph_Data!AT7 -> 7.88748288 | N23: =Graph_Data!AT8 -> 7.896945839 | O23: =Graph_Data!AT9 -> 7.528895979 | P23: =Graph_Data!AT10 -> 6.396466155
B24: LH351H (730nm) | D24: 0 | E24: - | F24: - | G24: - | J24: =Graph_Data!AU6 -> 0 | K24: =Graph_Data!AU6*Graph_Data!AU5/1000 -> 0 | L24: =SUM(Graph_Data!AU11:AU411) -> 0 | M24: =Graph_Data!AU7 -> 0 | N24: =Graph_Data!AU8 -> 0 | O24: =Graph_Data!AU9 -> 0 | P24: =Graph_Data!AU10 -> 0 | S24: 1
B25: TOTAL | D25: =SUM(D4:D24) -> 43 | J25: =SUM(J4:J24) -> 114.8414459 | K25: 9.186506065 | L25: =SUM(L4:L24) -> 5.964023442 | M25: 28.58964343 | N25: =SUM(N4:N24) -> 29.25137634 | O25: =SUM(O4:O24) -> 26.00789073 | P25: =SUM(P4:P24) -> 19.7464421
AZ67: 1

Sheet SpectrumData
B2: Horticulture Spectrum Data
B3: Wavelength [nm] | C3: SPD | D3: PPF | E3: BPF | F3: YPF | G3: DIN
B4: 380 | C4: =Graph_Data!Z11 -> 7.927131612e-05 | D4: =Graph_Data!CS11 -> 0 | E4: =Graph_Data!CT11 -> 0.0002520761517 | F4: =Graph_Data!CU11 -> 0.0001205491176 | G4: =Graph_Data!CV11 -> 0
B5: 381 | C5: =Graph_Data!Z12 -> 7.562531519e-05 | D5: =Graph_Data!CS12 -> 0 | E5: =Graph_Data!CT12 -> 0.0002411150216 | F5: =Graph_Data!CU12 -> 0.0001176694351 | G5: =Graph_Data!CV12 -> 0
B6: 382 | C6: =Graph_Data!Z13 -> 9.739916364e-05 | D6: =Graph_Data!CS13 -> 0 | E6: =Graph_Data!CT13 -> 0.0003113513014 | F6: =Graph_Data!CU13 -> 0.0001549962821 | G6: =Graph_Data!CV13 -> 0
B7: 383 | C7: =Graph_Data!Z14 -> 8.897587758e-05 | D7: =Graph_Data!CS14 -> 0 | E7: =Graph_Data!CT14 -> 0.0002851695491 | F7: =Graph_Data!CU14 -> 0.0001447563406 | G7: =Graph_Data!CV14 -> 0
B8: 384 | C8: =Graph_Data!Z15 -> 9.777292276e-05 | D8: =Graph_Data!CS15 -> 0 | E8: =Graph_Data!CT15 -> 0.0003141824464 | F8: =Graph_Data!CU15 -> 0.0001625649098 | G8: =Graph_Data!CV15 -> 1.956268613e-06
B9: 385 | C9: =Graph_Data!Z16 -> 9.022451205e-05 | D9: =Graph_Data!CS16 -> 0 | E9: =Graph_Data!CT16 -> 0.0002906814823 | F9: =Graph_Data!CU16 -> 0.0001532528004 | G9: =Graph_Data!CV16 -> 1.017613997e-05
B10: 386 | C10: =Graph_Data!Z17 -> 7.696373591e-05 | D10: =Graph_Data!CS17 -> 0 | E10: =Graph_Data!CT17 -> 0.0002486025277 | F10: =Graph_Data!CU17 -> 0.000133503535 | G10: =Graph_Data!CV17 -> 1.585815785e-05
B11: 387 | C11: =Graph_Data!Z18 -> 0.000108658613 | D11: =Graph_Data!CS18 -> 0 | E11: =Graph_Data!CT18 -> 0.0003518902362 | F11: =Graph_Data!CU18 -> 0.0001924216746 | G11: =Graph_Data!CV18 -> 3.257466936e-05
B12: 388 | C12: =Graph_Data!Z19 -> 8.427315279e-05 | D12: =Graph_Data!CS19 -> 0 | E12: =Graph_Data!CT19 -> 0.0002736232911 | F12: =Graph_Data!CU19 -> 0.000152167111 | G12: =Graph_Data!CV19 -> 3.320469942e-05
B13: 389 | C13: =Graph_Data!Z20 -> 9.612477831e-05 | D13: =Graph_Data!CS20 -> 0 | E13: =Graph_Data!CT20 -> 0.0003129082742 | F13: =Graph_Data!CU20 -> 0.000176625769 | G13: =Graph_Data!CV20 -> 4.697792349e-05
B14: 390 | C14: =Graph_Data!Z21 -> 8.459179113e-05 | D14: =Graph_Data!CS21 -> 0 | E14: =Graph_Data!CT21 -> 0.0002760736279 | F14: =Graph_Data!CU21 -> 0.0001581352502 | G14: =Graph_Data!CV21 -> 4.93963733e-05
B15: 391 | C15: =Graph_Data!Z22 -> 8.871472435e-05 | D15: =Graph_Data!CS22 -> 0 | E15: =Graph_Data!CT22 -> 0.0002902716085 | F15: =Graph_Data!CU22 -> 0.0001686904745 | G15: =Graph_Data!CV22 -> 6.029114608e-05
B16: 392 | C16: =Graph_Data!Z23 -> 0.0001002921371 | D16: =Graph_Data!CS23 -> 0 | E16: =Graph_Data!CT23 -> 0.0003289917803 | F16: =Graph_Data!CU23 -> 0.0001939383516 | G16: =Graph_Data!CV23 -> 7.780237941e-05
B17: 393 | C17: =Graph_Data!Z24 -> 9.833271868e-05 | D17: =Graph_Data!CS24 -> 0 | E17: =Graph_Data!CT24 -> 0.0003233870999 | F17: =Graph_Data!CU24 -> 0.0001933298632 | G17: =Graph_Data!CV24 -> 8.578445595e-05
B18: 394 | C18: =Graph_Data!Z25 -> 0.0001171525133 | D18: =Graph_Data!CS25 -> 0 | E18: =Graph_Data!CT25 -> 0.0003862601694 | F18: =Graph_Data!CU25 -> 0.0002341408719 | G18: =Graph_Data!CV25 -> 0.0001135797927
B19: 395 | C19: =Graph_Data!Z26 -> 0.000109690066 | D19: =Graph_Data!CS26 -> 0 | E19: =Graph_Data!CT26 -> 0.0003625738584 | F19: =Graph_Data!CU26 -> 0.0002228052617 | G19: =Graph_Data!CV26 -> 0.000117050193
B20: 396 | C20: =Graph_Data!Z27 -> 0.0001044889571 | D20: =Graph_Data!CS27 -> 0 | E20: =Graph_Data!CT27 -> 0.0003462562931 | F20: =Graph_Data!CU27 -> 0.0002155916333 | G20: =Graph_Data!CV27 -> 0.0001217515846
B21: 397 | C21: =Graph_Data!Z28 -> 8.081971165e-05 | D21: =Graph_Data!CS28 -> 0 | E21: =Graph_Data!CT28 -> 0.0002684972847 | F21: =Graph_Data!CU28 -> 0.0001690783786 | G21: =Graph_Data!CV28 -> 0.0001021374596
B22: 398 | C22: =Graph_Data!Z29 -> 9.843350949e-05 | D22: =Graph_Data!CS29 -> 0 | E22: =Graph_Data!CT29 -> 0.0003278371278 | F22: =Graph_Data!CU29 -> 0.0002087653717 | G22: =Graph_Data!CV29 -> 0.0001341461674
B23: 399 | C23: =Graph_Data!Z30 -> 8.086586173e-05 | D23: =Graph_Data!CS30 -> 0 | E23: =Graph_Data!CT30 -> 0.000270004007 | F23: =Graph_Data!CU30 -> 0.00017385045 | G23: =Graph_Data!CV30 -> 0.0001182527742
B24: 400 | C24: =Graph_Data!Z31 -> 9.792464872e-05 | D24: =Graph_Data!CS31 -> 0.000327781251 | E24: =Graph_Data!CT31 -> 0.000327781251 | F24: =Graph_Data!CU31 -> 0.000213371172 | G24: =Graph_Data!CV31 -> 0.0001529912671
B25: 401 | C25: =Graph_Data!Z32 -> 0.0001107584034 | D25: =Graph_Data!CS32 -> 0.0003716662742 | E25: =Graph_Data!CT32 -> 0.0003716662742 | F25: =Graph_Data!CU32 -> 0.0002445716467 | G25: =Graph_Data!CV32 -> 0.0001841715685
B26: 402 | C26: =Graph_Data!Z33 -> 0.0001019434177 | D26: =Graph_Data!CS33 -> 0.0003429393634 | E26: =Graph_Data!CT33 -> 0.0003429393634 | F26: =Graph_Data!CU33 -> 0.0002280944576 | G26: =Graph_Data!CV33 -> 0.0001798102527
B27: 403 | C27: =Graph_Data!Z34 -> 0.0001081594302 | D27: =Graph_Data!CS34 -> 0.0003647552333 | E27: =Graph_Data!CT34 -> 0.0003647552333 | F27: =Graph_Data!CU34 -> 0.0002451888325 | G27: =Graph_Data!CV34 -> 0.0002017469102
B28: 404 | C28: =Graph_Data!Z35 -> 0.0001184676443 | D28: =Graph_Data!CS35 -> 0.0004005098601 | E28: =Graph_Data!CT35 -> 0.0004005098601 | F28: =Graph_Data!CU35 -> 0.0002713670577 | G28: =Graph_Data!CV35 -> 0.00023305008
B29: 405 | C29: =Graph_Data!Z36 -> 0.0001271285188 | D29: =Graph_Data!CS36 -> 0.0004308539758 | E29: =Graph_Data!CT36 -> 0.0004308539758 | F29: =Graph_Data!CU36 -> 0.0002936989371 | G29: =Graph_Data!CV36 -> 0.0002614638213
B30: 406 | C30: =Graph_Data!Z37 -> 0.0001217197009 | D30: =Graph_Data!CS37 -> 0.0004135414107 | E30: =Graph_Data!CT37 -> 0.0004135414107 | F30: =Graph_Data!CU37 -> 0.0002835984286 | G30: =Graph_Data!CV37 -> 0.000261282451
B31: 407 | C31: =Graph_Data!Z38 -> 0.0001324251496 | D31: =Graph_Data!CS38 -> 0.0004510212207 | E31: =Graph_Data!CT38 -> 0.0004510212207 | F31: =Graph_Data!CU38 -> 0.000311156383 | G31: =Graph_Data!CV38 -> 0.0002962278903
B32: 408 | C32: =Graph_Data!Z39 -> 0.000136840519 | D32: =Graph_Data!CS39 -> 0.0004672044499 | E32: =Graph_Data!CT39 -> 0.0004672044499 | F32: =Graph_Data!CU39 -> 0.0003242426914 | G32: =Graph_Data!CV39 -> 0.0003232740595
B33: 409 | C33: =Graph_Data!Z40 -> 0.0001532593663 | D33: =Graph_Data!CS40 -> 0.0005245446093 | E33: =Graph_Data!CT40 -> 0.0005245446093 | F33: =Graph_Data!CU40 -> 0.0003661945581 | G33: =Graph_Data!CV40 -> 0.0003819797663
B34: 410 | C34: =Graph_Data!Z41 -> 0.0001654960884 | D34: =Graph_Data!CS41 -> 0.0005678108474 | E34: =Graph_Data!CT41 -> 0.0005678108474 | F34: =Graph_Data!CU41 -> 0.000398734947 | G34: =Graph_Data!CV41 -> 0.0004241562845
B35: 411 | C35: =Graph_Data!Z42 -> 0.0001980449358 | D35: =Graph_Data!CS42 -> 0.0006811419969 | E35: =Graph_Data!CT42 -> 0.0006811419969 | F35: =Graph_Data!CU42 -> 0.0004811205626 | G35: =Graph_Data!CV42 -> 0.0005216071746
B36: 412 | C36: =Graph_Data!Z43 -> 0.0002052119582 | D36: =Graph_Data!CS43 -> 0.0007075090108 | E36: =Graph_Data!CT43 -> 0.0007075090108 | F36: =Graph_Data!CU43 -> 0.0005026830297 | G36: =Graph_Data!CV43 -> 0.0005550931261
B37: 413 | C37: =Graph_Data!Z44 -> 0.0002588324264 | D37: =Graph_Data!CS44 -> 0.0008945421933 | E37: =Graph_Data!CT44 -> 0.0008945421933 | F37: =Graph_Data!CU44 -> 0.0006392935239 | G37: =Graph_Data!CV44 -> 0.0007186525141
B38: 414 | C38: =Graph_Data!Z45 -> 0.00028059163 | D38: =Graph_Data!CS45 -> 0.0009720915048 | E38: =Graph_Data!CT45 -> 0.0009720915048 | F38: =Graph_Data!CU45 -> 0.0006987520108 | G38: =Graph_Data!CV45 -> 0.0007994258751
B39: 415 | C39: =Graph_Data!Z46 -> 0.0003088035295 | D39: =Graph_Data!CS46 -> 0.001072413931 | E39: =Graph_Data!CT46 -> 0.001072413931 | F39: =Graph_Data!CU46 -> 0.0007753295342 | G39: =Graph_Data!CV46 -> 0.0009022965191
B40: 416 | C40: =Graph_Data!Z47 -> 0.0003774535833 | D40: =Graph_Data!CS47 -> 0.001313980675 | E40: =Graph_Data!CT47 -> 0.001313980675 | F40: =Graph_Data!CU47 -> 0.0009554334541 | G40: =Graph_Data!CV47 -> 0.001130512417
B41: 417 | C41: =Graph_Data!Z48 -> 0.0004137864103 | D41: =Graph_Data!CS48 -> 0.001443924126 | E41: =Graph_Data!CT48 -> 0.001443924126 | F41: =Graph_Data!CU48 -> 0.001055930162 | G41: =Graph_Data!CV48 -> 0.001269196659
B42: 418 | C42: =Graph_Data!Z49 -> 0.0005023240307 | D42: =Graph_Data!CS49 -> 0.00175708322 | E42: =Graph_Data!CT49 -> 0.00175708322 | F42: =Graph_Data!CU49 -> 0.001290567083 | G42: =Graph_Data!CV49 -> 0.001571235834
B43: 419 | C43: =Graph_Data!Z50 -> 0.0006137279364 | D43: =Graph_Data!CS50 -> 0.002151899627 | E43: =Graph_Data!CT50 -> 0.002151899627 | F43: =Graph_Data!CU50 -> 0.001586135088 | G43: =Graph_Data!CV50 -> 0.001957105499
B44: 420 | C44: =Graph_Data!Z51 -> 0.0006464703849 | D44: =Graph_Data!CS51 -> 0.002272113487 | E44: =Graph_Data!CT51 -> 0.002272113487 | F44: =Graph_Data!CU51 -> 0.00168063236 | G44: =Graph_Data!CV51 -> 0.002101060661
B45: 421 | C45: =Graph_Data!Z52 -> 0.0007956557605 | D45: =Graph_Data!CS52 -> 0.002803105232 | E45: =Graph_Data!CT52 -> 0.002803105232 | F45: =Graph_Data!CU52 -> 0.00208066092 | G45: =Graph_Data!CV52 -> 0.002634877052
B46: 422 | C46: =Graph_Data!Z53 -> 0.0009425899229 | D46: =Graph_Data!CS53 -> 0.003328643912 | E46: =Graph_Data!CT53 -> 0.003328643912 | F46: =Graph_Data!CU53 -> 0.002479377033 | G46: =Graph_Data!CV53 -> 0.003180169705
B47: 423 | C47: =Graph_Data!Z54 -> 0.001047104147 | D47: =Graph_Data!CS54 -> 0.003706485808 | E47: =Graph_Data!CT54 -> 0.003706485808 | F47: =Graph_Data!CU54 -> 0.002770423937 | G47: =Graph_Data!CV54 -> 0.003598274616
B48: 424 | C48: =Graph_Data!Z55 -> 0.001262038679 | D48: =Graph_Data!CS55 -> 0.004477861086 | E48: =Graph_Data!CT55 -> 0.004477861086 | F48: =Graph_Data!CU55 -> 0.003357880861 | G48: =Graph_Data!CV55 -> 0.004389787869
B49: 425 | C49: =Graph_Data!Z56 -> 0.001375072021 | D49: =Graph_Data!CS56 -> 0.004890423505 | E49: =Graph_Data!CT56 -> 0.004890423505 | F49: =Graph_Data!CU56 -> 0.003676160691 | G49: =Graph_Data!CV56 -> 0.004821626322
B50: 426 | C50: =Graph_Data!Z57 -> 0.00163350716 | D50: =Graph_Data!CS57 -> 0.005823213809 | E50: =Graph_Data!CT57 -> 0.005823213809 | F50: =Graph_Data!CU57 -> 0.004387948832 | G50: =Graph_Data!CV57 -> 0.005773850595
B51: 427 | C51: =Graph_Data!Z58 -> 0.001966914007 | D51: =Graph_Data!CS58 -> 0.007028219925 | E51: =Graph_Data!CT58 -> 0.007028219925 | F51: =Graph_Data!CU58 -> 0.005308758892 | G51: =Graph_Data!CV58 -> 0.007008005956
B52: 428 | C52: =Graph_Data!Z59 -> 0.002130277431 | D52: =Graph_Data!CS59 -> 0.007629780256 | E52: =Graph_Data!CT59 -> 0.007629780256 | F52: =Graph_Data!CU59 -> 0.005777040717 | G52: =Graph_Data!CV59 -> 0.007629780256
B53: 429 | C53: =Graph_Data!Z60 -> 0.002535830635 | D53: =Graph_Data!CS60 -> 0.00910352588 | E53: =Graph_Data!CT60 -> 0.00910352588 | F53: =Graph_Data!CU60 -> 0.006909494211 | G53: =Graph_Data!CV60 -> 0.009092685287
B54: 430 | C54: =Graph_Data!Z61 -> 0.003060671456 | D54: =Graph_Data!CS61 -> 0.01101329478 | E54: =Graph_Data!CT61 -> 0.01101329478 | F54: =Graph_Data!CU61 -> 0.008379057841 | G54: =Graph_Data!CV61 -> 0.0109869541
B55: 431 | C55: =Graph_Data!Z62 -> 0.003279469268 | D55: =Graph_Data!CS62 -> 0.01182804397 | E55: =Graph_Data!CT62 -> 0.01182804397 | F55: =Graph_Data!CU62 -> 0.009020468486 | G55: =Graph_Data!CV62 -> 0.01178555029
B56: 432 | C56: =Graph_Data!Z63 -> 0.003895419973 | D56: =Graph_Data!CS63 -> 0.01408218768 | E56: =Graph_Data!CT63 -> 0.01408218768 | F56: =Graph_Data!CU63 -> 0.01076519879 | G56: =Graph_Data!CV63 -> 0.01401468436
B57: 433 | C57: =Graph_Data!Z64 -> 0.00423839525 | D57: =Graph_Data!CS64 -> 0.01535753258 | E57: =Graph_Data!CT64 -> 0.01535753258 | F57: =Graph_Data!CU64 -> 0.011765805 | G57: =Graph_Data!CV64 -> 0.01526547293
B58: 434 | C58: =Graph_Data!Z65 -> 0.004942425249 | D58: =Graph_Data!CS65 -> 0.01794989588 | E58: =Graph_Data!CT65 -> 0.01794989588 | F58: =Graph_Data!CU65 -> 0.01376428531 | G58: =Graph_Data!CV65 -> 0.01782074039
B59: 435 | C59: =Graph_Data!Z66 -> 0.005793874839 | D59: =Graph_Data!CS66 -> 0.0210906741 | E59: =Graph_Data!CT66 -> 0.0210906741 | F59: =Graph_Data!CU66 -> 0.0161870291 | G59: =Graph_Data!CV66 -> 0.02091359178
B60: 436 | C60: =Graph_Data!Z67 -> 0.00625556318 | D60: =Graph_Data!CS67 -> 0.02282364474 | E60: =Graph_Data!CT67 -> 0.02282364474 | F60: =Graph_Data!CU67 -> 0.01753285001 | G60: =Graph_Data!CV67 -> 0.02260460298
B61: 437 | C61: =Graph_Data!Z68 -> 0.007227013737 | D61: =Graph_Data!CS68 -> 0.02642849375 | E61: =Graph_Data!CT68 -> 0.02642849375 | F61: =Graph_Data!CU68 -> 0.02032028742 | G61: =Graph_Data!CV68 -> 0.02614311765
B62: 438 | C62: =Graph_Data!Z69 -> 0.008304290826 | D62: =Graph_Data!CS69 -> 0.03043748437 | E62: =Graph_Data!CT69 -> 0.03043748437 | F62: =Graph_Data!CU69 -> 0.02342344003 | G62: =Graph_Data!CV69 -> 0.0300722665
B63: 439 | C63: =Graph_Data!Z70 -> 0.008908582824 | D63: =Graph_Data!CS70 -> 0.0327269277 | E63: =Graph_Data!CT70 -> 0.0327269277 | F63: =Graph_Data!CU70 -> 0.02520788333 | G63: =Graph_Data!CV70 -> 0.03228370789
B64: 440 | C64: =Graph_Data!Z71 -> 0.01018931961 | D64: =Graph_Data!CS71 -> 0.03751716009 | E64: =Graph_Data!CT71 -> 0.03751716009 | F64: =Graph_Data!CU71 -> 0.0289234794 | G64: =Graph_Data!CV71 -> 0.03692047171
B65: 441 | C65: =Graph_Data!Z72 -> 0.01159479376 | D65: =Graph_Data!CS72 -> 0.04278915522 | E65: =Graph_Data!CT72 -> 0.04278915522 | F65: =Graph_Data!CU72 -> 0.03301696795 | G65: =Graph_Data!CV72 -> 0.04200800658
B66: 442 | C66: =Graph_Data!Z73 -> 0.01238201273 | D66: =Graph_Data!CS73 -> 0.04579790481 | E66: =Graph_Data!CT73 -> 0.04579790481 | F66: =Graph_Data!CU73 -> 0.035362898 | G66: =Graph_Data!CV73 -> 0.04485368005
B67: 443 | C67: =Graph_Data!Z74 -> 0.01416062288 | D67: =Graph_Data!CS74 -> 0.05249502874 | E67: =Graph_Data!CT74 -> 0.05249502874 | F67: =Graph_Data!CU74 -> 0.04048889072 | G67: =Graph_Data!CV74 -> 0.05128876405
B68: 444 | C68: =Graph_Data!Z75 -> 0.0163324274 | D68: =Graph_Data!CS75 -> 0.06068282649 | E68: =Graph_Data!CT75 -> 0.06068282649 | F68: =Graph_Data!CU75 -> 0.04675180933 | G68: =Graph_Data!CV75 -> 0.05914573072
B69: 445 | C69: =Graph_Data!Z76 -> 0.01740309304 | D69: =Graph_Data!CS76 -> 0.0648064971 | E69: =Graph_Data!CT76 -> 0.0648064971 | F69: =Graph_Data!CU76 -> 0.04987307117 | G69: =Graph_Data!CV76 -> 0.06301191199
B70: 446 | C70: =Graph_Data!Z77 -> 0.01999281218 | D70: =Graph_Data!CS77 -> 0.07461752496 | E70: =Graph_Data!CT77 -> 0.07461752496 | F70: =Graph_Data!CU77 -> 0.05735908837 | G70: =Graph_Data!CV77 -> 0.07237505342
B71: 447 | C71: =Graph_Data!Z78 -> 0.02283449227 | D71: =Graph_Data!CS78 -> 0.08541437696 | E71: =Graph_Data!CT78 -> 0.08541437696 | F71: =Graph_Data!CU78 -> 0.0655851731 | G71: =Graph_Data!CV78 -> 0.08264658981
B72: 448 | C72: =Graph_Data!Z79 -> 0.02420340662 | D72: =Graph_Data!CS79 -> 0.09073745744 | E72: =Graph_Data!CT79 -> 0.09073745744 | F72: =Graph_Data!CU79 -> 0.06959445027 | G72: =Graph_Data!CV79 -> 0.08758290872
B73: 449 | C73: =Graph_Data!Z80 -> 0.02727059045 | D73: =Graph_Data!CS80 -> 0.1024643943 | E73: =Graph_Data!CT80 -> 0.1024643943 | F73: =Graph_Data!CU80 -> 0.07849961187 | G73: =Graph_Data!CV80 -> 0.09853093286
B74: 450 | C74: =Graph_Data!Z81 -> 0.03031537589 | D74: =Graph_Data!CS81 -> 0.1141583193 | E74: =Graph_Data!CT81 -> 0.1141583193 | F74: =Graph_Data!CU81 -> 0.08736033876 | G74: =Graph_Data!CV81 -> 0.1092172036
B75: 451 | C75: =Graph_Data!Z82 -> 0.03167867474 | D75: =Graph_Data!CS82 -> 0.1195571741 | E75: =Graph_Data!CT82 -> 0.1195571741 | F75: =Graph_Data!CU82 -> 0.09138890612 | G75: =Graph_Data!CV82 -> 0.1137972142
B76: 452 | C76: =Graph_Data!Z83 -> 0.03370971137 | D76: =Graph_Data!CS83 -> 0.127504515 | E76: =Graph_Data!CT83 -> 0.127504515 | F76: =Graph_Data!CU83 -> 0.09730303053 | G76: =Graph_Data!CV83 -> 0.120737609
B77: 453 | C77: =Graph_Data!Z84 -> 0.03491833323 | D77: =Graph_Data!CS84 -> 0.1323682423 | E77: =Graph_Data!CT84 -> 0.1323682423 | F77: =Graph_Data!CU84 -> 0.1008094031 | G77: =Graph_Data!CV84 -> 0.1246953405
B78: 454 | C78: =Graph_Data!Z85 -> 0.03509319706 | D78: =Graph_Data!CS85 -> 0.1333247821 | E78: =Graph_Data!CT85 -> 0.1333247821 | F78: =Graph_Data!CU85 -> 0.1013297676 | G78: =Graph_Data!CV85 -> 0.1250394109
B79: 455 | C79: =Graph_Data!Z86 -> 0.0343533904 | D79: =Graph_Data!CS86 -> 0.130801612 | E79: =Graph_Data!CT86 -> 0.130801612 | F79: =Graph_Data!CU86 -> 0.09920922945 | G79: =Graph_Data!CV86 -> 0.1225040811
B80: 456 | C80: =Graph_Data!Z87 -> 0.03240456958 | D80: =Graph_Data!CS87 -> 0.1236525835 | E80: =Graph_Data!CT87 -> 0.1236525835 | F80: =Graph_Data!CU87 -> 0.09359511351 | G80: =Graph_Data!CV87 -> 0.1156488327
B81: 457 | C81: =Graph_Data!Z88 -> 0.03119994217 | D81: =Graph_Data!CS88 -> 0.1193169337 | E81: =Graph_Data!CT88 -> 0.1193169337 | F81: =Graph_Data!CU88 -> 0.09012711969 | G81: =Graph_Data!CV88 -> 0.1114396945
B82: 458 | C82: =Graph_Data!Z89 -> 0.02808697442 | D82: =Graph_Data!CS89 -> 0.1076471488 | E82: =Graph_Data!CT89 -> 0.1076471488 | F82: =Graph_Data!CU89 -> 0.08114528195 | G82: =Graph_Data!CV89 -> 0.1004012916
B83: 459 | C83: =Graph_Data!Z90 -> 0.02463582298 | D83: =Graph_Data!CS90 -> 0.09462629913 | E83: =Graph_Data!CT90 -> 0.09462629913 | F83: =Graph_Data!CU90 -> 0.0711832959 | G83: =Graph_Data!CV90 -> 0.08813465922
B84: 460 | C84: =Graph_Data!Z91 -> 0.02297975089 | D84: =Graph_Data!CS91 -> 0.0884576185 | E84: =Graph_Data!CT91 -> 0.0884576185 | F84: =Graph_Data!CU91 -> 0.06633215667 | G84: =Graph_Data!CV91 -> 0.08227401212
B85: 461 | C85: =Graph_Data!Z92 -> 0.0197820725 | D85: =Graph_Data!CS92 -> 0.07631410395 | E85: =Graph_Data!CT92 -> 0.07631410395 | F85: =Graph_Data!CU92 -> 0.05701220658 | G85: =Graph_Data!CV92 -> 0.07088080961
B86: 462 | C86: =Graph_Data!Z93 -> 0.01713488444 | D86: =Graph_Data!CS93 -> 0.06624532728 | E86: =Graph_Data!CT93 -> 0.06624532728 | F86: =Graph_Data!CU93 -> 0.04930381353 | G86: =Graph_Data!CV93 -> 0.06144332323
B87: 463 | C87: =Graph_Data!Z94 -> 0.01595663827 | D87: =Graph_Data!CS94 -> 0.06182362778 | E87: =Graph_Data!CT94 -> 0.06182362778 | F87: =Graph_Data!CU94 -> 0.04583968523 | G87: =Graph_Data!CV94 -> 0.05726228536
B88: 464 | C88: =Graph_Data!Z95 -> 0.01414579393 | D88: =Graph_Data!CS95 -> 0.05492592791 | E88: =Graph_Data!CT95 -> 0.05492592791 | F88: =Graph_Data!CU95 -> 0.04057142113 | G88: =Graph_Data!CV95 -> 0.05080254784
B89: 465 | C89: =Graph_Data!Z96 -> 0.01338772767 | D89: =Graph_Data!CS96 -> 0.05209450515 | E89: =Graph_Data!CT96 -> 0.05209450515 | F89: =Graph_Data!CU96 -> 0.03833400208 | G89: =Graph_Data!CV96 -> 0.04811639268
B90: 466 | C90: =Graph_Data!Z97 -> 0.01226475959 | D90: =Graph_Data!CS97 -> 0.0478274307 | E90: =Graph_Data!CT97 -> 0.0478274307 | F90: =Graph_Data!CU97 -> 0.03505956328 | G90: =Graph_Data!CV97 -> 0.04411338638
B91: 467 | C91: =Graph_Data!Z98 -> 0.0113786603 | D91: =Graph_Data!CS98 -> 0.04446723315 | E91: =Graph_Data!CT98 -> 0.04446723315 | F91: =Graph_Data!CU98 -> 0.03245178655 | G91: =Graph_Data!CV98 -> 0.04095623698
B92: 468 | C92: =Graph_Data!Z99 -> 0.01094210601 | D92: =Graph_Data!CS99 -> 0.04285276663 | E92: =Graph_Data!CT99 -> 0.04285276663 | F92: =Graph_Data!CU99 -> 0.03109045354 | G92: =Graph_Data!CV99 -> 0.0393667521
B93: 469 | C93: =Graph_Data!Z100 -> 0.01023431096 | D93: =Graph_Data!CS100 -> 0.0401664589 | E93: =Graph_Data!CT100 -> 0.0401664589 | F93: =Graph_Data!CU100 -> 0.02896985765 | G93: =Graph_Data!CV100 -> 0.03678385386
B94: 470 | C94: =Graph_Data!Z101 -> 0.009561711212 | D94: =Graph_Data!CS101 -> 0.03760673029 | E94: =Graph_Data!CT101 -> 0.03760673029 | F94: =Graph_Data!CU101 -> 0.02696297263 | G94: =Graph_Data!CV101 -> 0.03433191017
B95: 471 | C95: =Graph_Data!Z102 -> 0.009213362195 | D95: =Graph_Data!CS102 -> 0.03631375392 | E95: =Graph_Data!CT102 -> 0.03631375392 | F95: =Graph_Data!CU102 -> 0.02588113925 | G95: =Graph_Data!CV102 -> 0.03304708454
B96: 472 | C96: =Graph_Data!Z103 -> 0.008453999445 | D96: =Graph_Data!CS103 -> 0.03339152919 | E96: =Graph_Data!CT103 -> 0.03339152919 | F96: =Graph_Data!CU103 -> 0.02365576137 | G96: =Graph_Data!CV103 -> 0.03029203291
B97: 473 | C97: =Graph_Data!Z104 -> 0.007708802374 | D97: =Graph_Data!CS104 -> 0.03051266546 | E97: =Graph_Data!CT104 -> 0.03051266546 | F97: =Graph_Data!CU104 -> 0.02148711056 | G97: =Graph_Data!CV104 -> 0.02759294345
B98: 474 | C98: =Graph_Data!Z105 -> 0.00731258067 | D98: =Graph_Data!CS105 -> 0.02900555011 | E98: =Graph_Data!CT105 -> 0.02900555011 | F98: =Graph_Data!CU105 -> 0.02034046107 | G98: =Graph_Data!CV105 -> 0.02614691165
B99: 475 | C99: =Graph_Data!Z106 -> 0.006561107747 | D99: =Graph_Data!CS106 -> 0.02607971698 | E99: =Graph_Data!CT106 -> 0.02607971698 | F99: =Graph_Data!CU106 -> 0.01821222268 | G99: =Graph_Data!CV106 -> 0.02343468857
B100: 476 | C100: =Graph_Data!Z107 -> 0.005911704659 | D100: =Graph_Data!CS107 -> 0.02354787797 | E100: =Graph_Data!CT107 -> 0.02354787797 | F100: =Graph_Data!CU107 -> 0.01637488822 | G100: =Graph_Data!CV107 -> 0.02109190455
B101: 477 | C101: =Graph_Data!Z108 -> 0.00558727456 | D101: =Graph_Data!CS108 -> 0.0223023428 | E101: =Graph_Data!CT108 -> 0.0223023428 | F101: =Graph_Data!CU108 -> 0.01544314576 | G101: =Graph_Data!CV108 -> 0.01991235594
B102: 478 | C102: =Graph_Data!Z109 -> 0.005038211952 | D102: =Graph_Data!CS109 -> 0.02015284781 | E102: =Graph_Data!CT109 -> 0.02015284781 | F102: =Graph_Data!CU109 -> 0.01389565055 | G102: =Graph_Data!CV109 -> 0.01793544883
B103: 479 | C103: =Graph_Data!Z110 -> 0.004589349137 | D103: =Graph_Data!CS110 -> 0.01839580114 | E103: =Graph_Data!CT110 -> 0.01839580114 | F103: =Graph_Data!CU110 -> 0.01263002359 | G103: =Graph_Data!CV110 -> 0.01630304021
B104: 480 | C104: =Graph_Data!Z111 -> 0.004413369015 | D104: =Graph_Data!CS111 -> 0.01772733998 | E104: =Graph_Data!CT111 -> 0.01772733998 | F104: =Graph_Data!CU111 -> 0.0121189237 | G104: =Graph_Data!CV111 -> 0.01560883233
B105: 481 | C105: =Graph_Data!Z112 -> 0.004156737102 | D105: =Graph_Data!CS112 -> 0.01673130164 | E105: =Graph_Data!CT112 -> 0.01673130164 | F105: =Graph_Data!CU112 -> 0.0113889301 | G105: =Graph_Data!CV112 -> 0.01463575221
B106: 482 | C106: =Graph_Data!Z113 -> 0.003963544492 | D106: =Graph_Data!CS113 -> 0.01598684891 | E106: =Graph_Data!CT113 -> 0.01598684891 | F106: =Graph_Data!CU113 -> 0.01086427884 | G106: =Graph_Data!CV113 -> 0.01389274143
B107: 483 | C107: =Graph_Data!Z114 -> 0.003880136414 | D107: =Graph_Data!CS114 -> 0.01568289446 | E107: =Graph_Data!CT114 -> 0.01568289446 | F107: =Graph_Data!CU114 -> 0.01065771869 | G107: =Graph_Data!CV114 -> 0.01353854843
B108: 484 | C108: =Graph_Data!Z115 -> 0.003810885099 | D108: =Graph_Data!CS115 -> 0.01543488191 | E108: =Graph_Data!CT115 -> 0.01543488191 | F108: =Graph_Data!CU115 -> 0.01048917531 | G108: =Graph_Data!CV115 -> 0.01323581778
B109: 485 | C109: =Graph_Data!Z116 -> 0.003754163769 | D109: =Graph_Data!CS116 -> 0.01523656425 | E109: =Graph_Data!CT116 -> 0.01523656425 | F109: =Graph_Data!CU116 -> 0.01035440339 | G109: =Graph_Data!CV116 -> 0.01297811094
B110: 486 | C110: =Graph_Data!Z117 -> 0.003759249315 | D110: =Graph_Data!CS117 -> 0.01528866248 | E110: =Graph_Data!CT117 -> 0.01528866248 | F110: =Graph_Data!CU117 -> 0.0103898081 | G110: =Graph_Data!CV117 -> 0.01293469724
B111: 487 | C111: =Graph_Data!Z118 -> 0.003751657444 | D111: =Graph_Data!CS118 -> 0.01528918138 | E111: =Graph_Data!CT118 -> 0.01528918138 | F111: =Graph_Data!CU118 -> 0.01039016073 | G111: =Graph_Data!CV118 -> 0.01283253154
B112: 488 | C112: =Graph_Data!Z119 -> 0.003798076096 | D112: =Graph_Data!CS119 -> 0.01551013502 | E112: =Graph_Data!CT119 -> 0.01551013502 | F112: =Graph_Data!CU119 -> 0.01054031552 | G112: =Graph_Data!CV119 -> 0.01285316431
B113: 489 | C113: =Graph_Data!Z120 -> 0.0038273855 | D113: =Graph_Data!CS120 -> 0.01566185364 | E113: =Graph_Data!CT120 -> 0.01566185364 | F113: =Graph_Data!CU120 -> 0.01064341985 | G113: =Graph_Data!CV120 -> 0.01281262024
B114: 490 | C114: =Graph_Data!Z121 -> 0.003869441547 | D114: =Graph_Data!CS121 -> 0.01586632936 | E114: =Graph_Data!CT121 -> 0.01586632936 | F114: =Graph_Data!CU121 -> 0.01078618456 | G114: =Graph_Data!CV121 -> 0.01281145411
B115: 491 | C115: =Graph_Data!Z122 -> 0.003986766072 | D115: =Graph_Data!CS122 -> 0.01638077106 | E115: =Graph_Data!CT122 -> 0.01638077106 | F115: =Graph_Data!CU122 -> 0.01116459299 | G115: =Graph_Data!CV122 -> 0.01305277603
B116: 492 | C116: =Graph_Data!Z123 -> 0.004046522112 | D116: =Graph_Data!CS123 -> 0.01666015799 | E116: =Graph_Data!CT123 -> 0.01666015799 | F116: =Graph_Data!CU123 -> 0.01138401923 | G116: =Graph_Data!CV123 -> 0.01311029951
B117: 493 | C117: =Graph_Data!Z124 -> 0.004205344944 | D117: =Graph_Data!CS124 -> 0.01734924734 | E117: =Graph_Data!CT124 -> 0.01734924734 | F117: =Graph_Data!CU124 -> 0.01188527539 | G117: =Graph_Data!CV124 -> 0.01348378209
B118: 494 | C118: =Graph_Data!Z125 -> 0.004434660396 | D118: =Graph_Data!CS125 -> 0.01833240365 | E118: =Graph_Data!CT125 -> 0.01833240365 | F118: =Graph_Data!CU125 -> 0.01259071316 | G118: =Graph_Data!CV125 -> 0.01406935943
B119: 495 | C119: =Graph_Data!Z126 -> 0.004546920286 | D119: =Graph_Data!CS126 -> 0.01883452336 | E119: =Graph_Data!CT126 -> 0.01883452336 | F119: =Graph_Data!CU126 -> 0.01296854873 | G119: =Graph_Data!CV126 -> 0.01427148697
B120: 496 | C120: =Graph_Data!Z127 -> 0.004860477207 | D120: =Graph_Data!CS127 -> 0.02017403092 | E120: =Graph_Data!CT127 -> 0.02017403092 | F120: =Graph_Data!CU127 -> 0.01392599232 | G120: =Graph_Data!CV127 -> 0.015090009
B121: 497 | C121: =Graph_Data!Z128 -> 0.005244790437 | D121: =Graph_Data!CS128 -> 0.02181306148 | E121: =Graph_Data!CT128 -> 0.02181306148 | F121: =Graph_Data!CU128 -> 0.01509559832 | G121: =Graph_Data!CV128 -> 0.01590919125
B122: 498 | C122: =Graph_Data!Z129 -> 0.005433155677 | D122: =Graph_Data!CS129 -> 0.02264193746 | E122: =Graph_Data!CT129 -> 0.02264193746 | F122: =Graph_Data!CU129 -> 0.01570865923 | G122: =Graph_Data!CV129 -> 0.01609124008
B123: 499 | C123: =Graph_Data!Z130 -> 0.005876454244 | D123: =Graph_Data!CS130 -> 0.02453849931 | E123: =Graph_Data!CT130 -> 0.02453849931 | F123: =Graph_Data!CU130 -> 0.0170674342 | G123: =Graph_Data!CV130 -> 0.01698146763
B124: 500 | C124: =Graph_Data!Z131 -> 0.006366887681 | D124: =Graph_Data!CS131 -> 0.02663969741 | E124: =Graph_Data!CT131 -> 0.02663969741 | F124: =Graph_Data!CU131 -> 0.01857527493 | G124: =Graph_Data!CV131 -> 0.01809790689
B125: 501 | C125: =Graph_Data!Z132 -> 0.006660464292 | D125: =Graph_Data!CS132 -> 0.02792378754 | E125: =Graph_Data!CT132 -> 0.02792378754 | F125: =Graph_Data!CU132 -> 0.019529897 | G125: =Graph_Data!CV132 -> 0.01863492659
B126: 502 | C126: =Graph_Data!Z133 -> 0.007218643162 | D126: =Graph_Data!CS133 -> 0.03032434199 | E126: =Graph_Data!CT133 -> 0.03032434199 | F126: =Graph_Data!CU133 -> 0.02128529245 | G126: =Graph_Data!CV133 -> 0.01987276919
B127: 503 | C127: =Graph_Data!Z134 -> 0.007806702813 | D127: =Graph_Data!CS134 -> 0.03286001268 | E127: =Graph_Data!CT134 -> 0.03286001268 | F127: =Graph_Data!CU134 -> 0.02314800591 | G127: =Graph_Data!CV134 -> 0.02113987959
B128: 504 | C128: =Graph_Data!Z135 -> 0.008163443641 | D128: =Graph_Data!CS135 -> 0.0344299213 | E128: =Graph_Data!CT135 -> 0.0344299213 | F128: =Graph_Data!CU135 -> 0.02434074931 | G128: =Graph_Data!CV135 -> 0.02167210179
B129: 505 | C129: =Graph_Data!Z136 -> 0.008765081226 | D129: =Graph_Data!CS136 -> 0.03704071983 | E129: =Graph_Data!CT136 -> 0.03704071983 | F129: =Graph_Data!CU136 -> 0.02627990919 | G129: =Graph_Data!CV136 -> 0.02279403034
B130: 506 | C130: =Graph_Data!Z137 -> 0.009455422019 | D130: =Graph_Data!CS137 -> 0.04003718445 | E130: =Graph_Data!CT137 -> 0.04003718445 | F130: =Graph_Data!CU137 -> 0.02850679562 | G130: =Graph_Data!CV137 -> 0.02407394705
B131: 507 | C131: =Graph_Data!Z138 -> 0.009775916521 | D131: =Graph_Data!CS138 -> 0.04147606424 | E131: =Graph_Data!CT138 -> 0.04147606424 | F131: =Graph_Data!CU138 -> 0.02963589218 | G131: =Graph_Data!CV138 -> 0.02435523782
B132: 508 | C132: =Graph_Data!Z139 -> 0.0104933686 | D132: =Graph_Data!CS139 -> 0.04460779287 | E132: =Graph_Data!CT139 -> 0.04460779287 | F132: =Graph_Data!CU139 -> 0.03198610709 | G132: =Graph_Data!CV139 -> 0.02545595478
B133: 509 | C133: =Graph_Data!Z140 -> 0.01120411315 | D133: =Graph_Data!CS140 -> 0.04772295893 | E133: =Graph_Data!CT140 -> 0.04772295893 | F133: =Graph_Data!CU140 -> 0.03434020045 | G133: =Graph_Data!CV140 -> 0.02636533107
B134: 510 | C134: =Graph_Data!Z141 -> 0.01152117898 | D134: =Graph_Data!CS141 -> 0.04916988518 | E134: =Graph_Data!CT141 -> 0.04916988518 | F134: =Graph_Data!CU141 -> 0.03550532824 | G134: =Graph_Data!CV141 -> 0.02627005269
B135: 511 | C135: =Graph_Data!Z142 -> 0.01220041267 | D135: =Graph_Data!CS142 -> 0.05217080229 | E135: =Graph_Data!CT142 -> 0.05217080229 | F135: =Graph_Data!CU142 -> 0.03780385024 | G135: =Graph_Data!CV142 -> 0.0271299544
B136: 512 | C136: =Graph_Data!Z143 -> 0.01282995877 | D136: =Graph_Data!CS143 -> 0.05497019991 | E136: =Graph_Data!CT143 -> 0.05497019991 | F136: =Graph_Data!CU143 -> 0.03997097619 | G136: =Graph_Data!CV143 -> 0.02801986838
B137: 513 | C137: =Graph_Data!Z144 -> 0.01317510312 | D137: =Graph_Data!CS144 -> 0.05655922929 | E137: =Graph_Data!CT144 -> 0.05655922929 | F137: =Graph_Data!CU144 -> 0.04127585091 | G137: =Graph_Data!CV144 -> 0.02824765125
B138: 514 | C138: =Graph_Data!Z145 -> 0.01385104276 | D138: =Graph_Data!CS145 -> 0.05957687009 | E138: =Graph_Data!CT145 -> 0.05957687009 | F138: =Graph_Data!CU145 -> 0.0436664499 | G138: =Graph_Data!CV145 -> 0.02914151388
B139: 515 | C139: =Graph_Data!Z146 -> 0.01448011957 | D139: =Graph_Data!CS146 -> 0.06240386256 | E139: =Graph_Data!CT146 -> 0.06240386256 | F139: =Graph_Data!CU146 -> 0.04593517121 | G139: =Graph_Data!CV146 -> 0.02988196099
B140: 516 | C140: =Graph_Data!Z147 -> 0.01474883571 | D140: =Graph_Data!CS147 -> 0.06368534918 | E140: =Graph_Data!CT147 -> 0.06368534918 | F140: =Graph_Data!CU147 -> 0.04707984018 | G140: =Graph_Data!CV147 -> 0.02984005533
B141: 517 | C141: =Graph_Data!Z148 -> 0.0153662515 | D141: =Graph_Data!CS148 -> 0.06647993326 | E141: =Graph_Data!CT148 -> 0.06647993326 | F141: =Graph_Data!CU148 -> 0.04935603205 | G141: =Graph_Data!CV148 -> 0.03038532533
B142: 518 | C142: =Graph_Data!Z149 -> 0.01594466 | D142: =Graph_Data!CS149 -> 0.06911576467 | E142: =Graph_Data!CT149 -> 0.06911576467 | F142: =Graph_Data!CU149 -> 0.05153147005 | G142: =Graph_Data!CV149 -> 0.03071191771
B143: 519 | C143: =Graph_Data!Z150 -> 0.01619734117 | D143: =Graph_Data!CS150 -> 0.07034661143 | E143: =Graph_Data!CT150 -> 0.07034661143 | F143: =Graph_Data!CU150 -> 0.05267160323 | G143: =Graph_Data!CV150 -> 0.03036507095
B144: 520 | C144: =Graph_Data!Z151 -> 0.0167961662 | D144: =Graph_Data!CS151 -> 0.07308791987 | E144: =Graph_Data!CT151 -> 0.07308791987 | F144: =Graph_Data!CU151 -> 0.0549545146 | G144: =Graph_Data!CV151 -> 0.03061974635
B145: 521 | C145: =Graph_Data!Z152 -> 0.01723172002 | D145: =Graph_Data!CS152 -> 0.07512741532 | E145: =Graph_Data!CT152 -> 0.07512741532 | F145: =Graph_Data!CU152 -> 0.05672563109 | G145: =Graph_Data!CV152 -> 0.03084036048
B146: 522 | C146: =Graph_Data!Z153 -> 0.01747048931 | D146: =Graph_Data!CS153 -> 0.076314606 | E146: =Graph_Data!CT153 -> 0.076314606 | F146: =Graph_Data!CU153 -> 0.05786333688 | G146: =Graph_Data!CV153 -> 0.03090182422
B147: 523 | C147: =Graph_Data!Z154 -> 0.01795746431 | D147: =Graph_Data!CS154 -> 0.07859208231 | E147: =Graph_Data!CT154 -> 0.07859208231 | F147: =Graph_Data!CU154 -> 0.05983867541 | G147: =Graph_Data!CV154 -> 0.03138543859
B148: 524 | C148: =Graph_Data!Z155 -> 0.01814083615 | D148: =Graph_Data!CS155 -> 0.07954642798 | E148: =Graph_Data!CT155 -> 0.07954642798 | F148: =Graph_Data!CU155 -> 0.06081682378 | G148: =Graph_Data!CV155 -> 0.03132263022
B149: 525 | C149: =Graph_Data!Z156 -> 0.01857599518 | D149: =Graph_Data!CS156 -> 0.08161002067 | E149: =Graph_Data!CT156 -> 0.08161002067 | F149: =Graph_Data!CU156 -> 0.06266237734 | G149: =Graph_Data!CV156 -> 0.0316797628
B150: 526 | C150: =Graph_Data!Z157 -> 0.01893186125 | D150: =Graph_Data!CS157 -> 0.08333187462 | E150: =Graph_Data!CT157 -> 0.08333187462 | F150: =Graph_Data!CU157 -> 0.06427470821 | G150: =Graph_Data!CV157 -> 0.03207232707
B151: 527 | C151: =Graph_Data!Z158 -> 0.0191364744 | D151: =Graph_Data!CS158 -> 0.08439265278 | E151: =Graph_Data!CT158 -> 0.08439265278 | F151: =Graph_Data!CU158 -> 0.06538759616 | G151: =Graph_Data!CV158 -> 0.03228386034
B152: 528 | C152: =Graph_Data!Z159 -> 0.0194643141 | D152: =Graph_Data!CS159 -> 0.08600132087 | E152: =Graph_Data!CT159 -> 0.08600132087 | F152: =Graph_Data!CU159 -> 0.06693353801 | G152: =Graph_Data!CV159 -> 0.03269789452
B153: 529 | C153: =Graph_Data!Z160 -> 0.0197973241 | D153: =Graph_Data!CS160 -> 0.0876383636 | E153: =Graph_Data!CT160 -> 0.0876383636 | F153: =Graph_Data!CU160 -> 0.06851278059 | G153: =Graph_Data!CV160 -> 0.03311600216
B154: 530 | C154: =Graph_Data!Z161 -> 0.01997186076 | D154: =Graph_Data!CS161 -> 0.08857812722 | E154: =Graph_Data!CT161 -> 0.08857812722 | F154: =Graph_Data!CU161 -> 0.0695559744 | G154: =Graph_Data!CV161 -> 0.03326372735
B155: 531 | C155: =Graph_Data!Z162 -> 0.02024623974 | D155: =Graph_Data!CS162 -> 0.08996446279 | E155: =Graph_Data!CT162 -> 0.08996446279 | F155: =Graph_Data!CU162 -> 0.07095785067 | G155: =Graph_Data!CV162 -> 0.03357461549
B156: 532 | C156: =Graph_Data!Z163 -> 0.02051837956 | D156: =Graph_Data!CS163 -> 0.09134542196 | E156: =Graph_Data!CT163 -> 0.09134542196 | F156: =Graph_Data!CU163 -> 0.07236521346 | G156: =Graph_Data!CV163 -> 0.03387612433
B157: 533 | C157: =Graph_Data!Z164 -> 0.02063304757 | D157: =Graph_Data!CS164 -> 0.092028572 | E157: =Graph_Data!CT164 -> 0.092028572 | F157: =Graph_Data!CU164 -> 0.07322685865 | G157: =Graph_Data!CV164 -> 0.03419448585
B158: 534 | C158: =Graph_Data!Z165 -> 0.02089201658 | D158: =Graph_Data!CS165 -> 0.09335846739 | E158: =Graph_Data!CT165 -> 0.09335846739 | F158: =Graph_Data!CU165 -> 0.07461012661 | G158: =Graph_Data!CV165 -> 0.03487422828
B159: 535 | C159: =Graph_Data!Z166 -> 0.02103694123 | D159: =Graph_Data!CS166 -> 0.09418212181 | E159: =Graph_Data!CT166 -> 0.09418212181 | F159: =Graph_Data!CU166 -> 0.07559735208 | G159: =Graph_Data!CV166 -> 0.03537009528
B160: 536 | C160: =Graph_Data!Z167 -> 0.0212414267 | D160: =Graph_Data!CS167 -> 0.09527535325 | E160: =Graph_Data!CT167 -> 0.09527535325 | F160: =Graph_Data!CU167 -> 0.07680851263 | G160: =Graph_Data!CV167 -> 0.03597103213
B161: 537 | C161: =Graph_Data!Z168 -> 0.02141576453 | D161: =Graph_Data!CS168 -> 0.0962365318 | E161: =Graph_Data!CT168 -> 0.0962365318 | F161: =Graph_Data!CU168 -> 0.07793494184 | G161: =Graph_Data!CV168 -> 0.03652621767
B162: 538 | C162: =Graph_Data!Z169 -> 0.02165041542 | D162: =Graph_Data!CS169 -> 0.09747216313 | E162: =Graph_Data!CT169 -> 0.09747216313 | F162: =Graph_Data!CU169 -> 0.07929253251 | G162: =Graph_Data!CV169 -> 0.03718996028
B163: 539 | C163: =Graph_Data!Z170 -> 0.02174951986 | D163: =Graph_Data!CS170 -> 0.09810034482 | E163: =Graph_Data!CT170 -> 0.09810034482 | F163: =Graph_Data!CU170 -> 0.08016191196 | G163: =Graph_Data!CV170 -> 0.03762565803
B164: 540 | C164: =Graph_Data!Z171 -> 0.02196024566 | D164: =Graph_Data!CS171 -> 0.09923458292 | E164: =Graph_Data!CT171 -> 0.09923458292 | F164: =Graph_Data!CU171 -> 0.08145124948 | G164: =Graph_Data!CV171 -> 0.03825897152
B165: 541 | C165: =Graph_Data!Z172 -> 0.02201331439 | D165: =Graph_Data!CS172 -> 0.09965860324 | E165: =Graph_Data!CT172 -> 0.09965860324 | F165: =Graph_Data!CU172 -> 0.08216423305 | G165: =Graph_Data!CV172 -> 0.03862057505
B166: 542 | C166: =Graph_Data!Z173 -> 0.02213122745 | D166: =Graph_Data!CS173 -> 0.1003776174 | E166: =Graph_Data!CT173 -> 0.1003776174 | F166: =Graph_Data!CU173 -> 0.08312370875 | G166: =Graph_Data!CV173 -> 0.03909978257
B167: 543 | C167: =Graph_Data!Z174 -> 0.02225865855 | D167: =Graph_Data!CS174 -> 0.1011418543 | E167: =Graph_Data!CT174 -> 0.1011418543 | F167: =Graph_Data!CU174 -> 0.08412595105 | G167: =Graph_Data!CV174 -> 0.03959956932
B168: 544 | C168: =Graph_Data!Z175 -> 0.02244356642 | D168: =Graph_Data!CS175 -> 0.1021698756 | E168: =Graph_Data!CT175 -> 0.1021698756 | F168: =Graph_Data!CU175 -> 0.08535526831 | G168: =Graph_Data!CV175 -> 0.04020621542
B169: 545 | C169: =Graph_Data!Z176 -> 0.0225298306 | D169: =Graph_Data!CS176 -> 0.1027511103 | E169: =Graph_Data!CT176 -> 0.1027511103 | F169: =Graph_Data!CU176 -> 0.08621609335 | G169: =Graph_Data!CV176 -> 0.04064025617
B170: 546 | C170: =Graph_Data!Z177 -> 0.02275631279 | D170: =Graph_Data!CS177 -> 0.1039744501 | E170: =Graph_Data!CT177 -> 0.1039744501 | F170: =Graph_Data!CU177 -> 0.0876223883 | G170: =Graph_Data!CV177 -> 0.04133186899
B171: 547 | C171: =Graph_Data!Z178 -> 0.02284972509 | D171: =Graph_Data!CS178 -> 0.1045924655 | E171: =Graph_Data!CT178 -> 0.1045924655 | F171: =Graph_Data!CU178 -> 0.08849694014 | G171: =Graph_Data!CV178 -> 0.04193747061
B172: 548 | C172: =Graph_Data!Z179 -> 0.02289467123 | D172: =Graph_Data!CS179 -> 0.1049897894 | E172: =Graph_Data!CT179 -> 0.1049897894 | F172: =Graph_Data!CU179 -> 0.08914620024 | G172: =Graph_Data!CV179 -> 0.04255873189
B173: 549 | C173: =Graph_Data!Z180 -> 0.02300205194 | D173: =Graph_Data!CS180 -> 0.1056746989 | E173: =Graph_Data!CT180 -> 0.1056746989 | F173: =Graph_Data!CU180 -> 0.09004287472 | G173: =Graph_Data!CV180 -> 0.04330239724
B174: 550 | C174: =Graph_Data!Z181 -> 0.02320666346 | D174: =Graph_Data!CS181 -> 0.1068089113 | E174: =Graph_Data!CT181 -> 0.1068089113 | F174: =Graph_Data!CU181 -> 0.0913279209 | G174: =Graph_Data!CV181 -> 0.0442381962
B175: 551 | C175: =Graph_Data!Z182 -> 0.0233437095 | D175: =Graph_Data!CS182 -> 0.107635012 | E175: =Graph_Data!CT182 -> 0.107635012 | F175: =Graph_Data!CU182 -> 0.09235525334 | G175: =Graph_Data!CV182 -> 0.04505394006
B176: 552 | C176: =Graph_Data!Z183 -> 0.02334706017 | D176: =Graph_Data!CS183 -> 0.1078458344 | E176: =Graph_Data!CT183 -> 0.1078458344 | F176: =Graph_Data!CU183 -> 0.09285774388 | G176: =Graph_Data!CV183 -> 0.04561779103
B177: 553 | C177: =Graph_Data!Z184 -> 0.023566325 | D177: =Graph_Data!CS184 -> 0.1090558806 | E177: =Graph_Data!CT184 -> 0.1090558806 | F177: =Graph_Data!CU184 -> 0.09422482607 | G177: =Graph_Data!CV184 -> 0.04660946996
B178: 554 | C178: =Graph_Data!Z185 -> 0.02371941411 | D178: =Graph_Data!CS185 -> 0.1099628068 | E178: =Graph_Data!CT185 -> 0.1099628068 | F178: =Graph_Data!CU185 -> 0.09533632402 | G178: =Graph_Data!CV185 -> 0.04748202256
B179: 555 | C179: =Graph_Data!Z186 -> 0.02382909546 | D179: =Graph_Data!CS186 -> 0.1106706944 | E179: =Graph_Data!CT186 -> 0.1106706944 | F179: =Graph_Data!CU186 -> 0.09628007331 | G179: =Graph_Data!CV186 -> 0.04827463462
B180: 556 | C180: =Graph_Data!Z187 -> 0.02397239814 | D180: =Graph_Data!CS187 -> 0.1115368483 | E180: =Graph_Data!CT187 -> 0.1115368483 | F180: =Graph_Data!CU187 -> 0.09736620323 | G180: =Graph_Data!CV187 -> 0.04914433388
B181: 557 | C181: =Graph_Data!Z188 -> 0.02413887246 | D181: =Graph_Data!CS188 -> 0.1125134055 | E181: =Graph_Data!CT188 -> 0.1125134055 | F181: =Graph_Data!CU188 -> 0.09855420486 | G181: =Graph_Data!CV188 -> 0.05006285638
B182: 558 | C182: =Graph_Data!Z189 -> 0.02420422331 | D182: =Graph_Data!CS189 -> 0.1130205574 | E182: =Graph_Data!CT189 -> 0.1130205574 | F182: =Graph_Data!CU189 -> 0.09933546318 | G182: =Graph_Data!CV189 -> 0.05075158178
B183: 559 | C183: =Graph_Data!Z190 -> 0.02435996442 | D183: =Graph_Data!CS190 -> 0.1139516327 | E183: =Graph_Data!CT190 -> 0.1139516327 | F183: =Graph_Data!CU190 -> 0.100529042 | G183: =Graph_Data!CV190 -> 0.05163541166
B184: 560 | C184: =Graph_Data!Z191 -> 0.02442160213 | D184: =Graph_Data!CS191 -> 0.114444328 | E184: =Graph_Data!CT191 -> 0.114444328 | F184: =Graph_Data!CU191 -> 0.1013610524 | G184: =Graph_Data!CV191 -> 0.05232757045
B185: 561 | C185: =Graph_Data!Z192 -> 0.02461772867 | D185: =Graph_Data!CS192 -> 0.1155694208 | E185: =Graph_Data!CT192 -> 0.1155694208 | F185: =Graph_Data!CU192 -> 0.1027587816 | G185: =Graph_Data!CV192 -> 0.05331434357
B186: 562 | C186: =Graph_Data!Z193 -> 0.02463487763 | D186: =Graph_Data!CS193 -> 0.1158560772 | E186: =Graph_Data!CT193 -> 0.1158560772 | F186: =Graph_Data!CU193 -> 0.1034160309 | G186: =Graph_Data!CV193 -> 0.05392126937
B187: 563 | C187: =Graph_Data!Z194 -> 0.02475107549 | D187: =Graph_Data!CS194 -> 0.1166096695 | E187: =Graph_Data!CT194 -> 0.1166096695 | F187: =Graph_Data!CU194 -> 0.104493575 | G187: =Graph_Data!CV194 -> 0.05474859991
B188: 564 | C188: =Graph_Data!Z195 -> 0.02497116817 | D188: =Graph_Data!CS195 -> 0.1178555552 | E188: =Graph_Data!CT195 -> 0.1178555552 | F188: =Graph_Data!CU195 -> 0.1060193218 | G188: =Graph_Data!CV195 -> 0.05581642521
B189: 565 | C189: =Graph_Data!Z196 -> 0.0250895739 | D189: =Graph_Data!CS196 -> 0.1186243452 | E189: =Graph_Data!CT196 -> 0.1186243452 | F189: =Graph_Data!CU196 -> 0.1071227659 | G189: =Graph_Data!CV196 -> 0.05666535522
B190: 566 | C190: =Graph_Data!Z197 -> 0.02526317257 | D190: =Graph_Data!CS197 -> 0.1196565328 | E190: =Graph_Data!CT197 -> 0.1196565328 | F190: =Graph_Data!CU197 -> 0.1084704419 | G190: =Graph_Data!CV197 -> 0.05764867532
B191: 567 | C191: =Graph_Data!Z198 -> 0.02535890039 | D191: =Graph_Data!CS198 -> 0.1203221466 | E191: =Graph_Data!CT198 -> 0.1203221466 | F191: =Graph_Data!CU198 -> 0.1094915893 | G191: =Graph_Data!CV198 -> 0.05846112776
B192: 568 | C192: =Graph_Data!Z199 -> 0.02541327465 | D192: =Graph_Data!CS199 -> 0.1207928034 | E192: =Graph_Data!CT199 -> 0.1207928034 | F192: =Graph_Data!CU199 -> 0.1103392734 | G192: =Graph_Data!CV199 -> 0.05917740517
B193: 569 | C193: =Graph_Data!Z200 -> 0.02554622261 | D193: =Graph_Data!CS200 -> 0.1216384993 | E193: =Graph_Data!CT200 -> 0.1216384993 | F193: =Graph_Data!CU200 -> 0.1115342324 | G193: =Graph_Data!CV200 -> 0.06006554562
B194: 570 | C194: =Graph_Data!Z201 -> 0.02573953255 | D194: =Graph_Data!CS201 -> 0.1227743394 | E194: =Graph_Data!CT201 -> 0.1227743394 | F194: =Graph_Data!CU201 -> 0.1129798937 | G194: =Graph_Data!CV201 -> 0.06110467918
B195: 571 | C195: =Graph_Data!Z202 -> 0.02585611684 | D195: =Graph_Data!CS202 -> 0.123546801 | E195: =Graph_Data!CT202 -> 0.123546801 | F195: =Graph_Data!CU202 -> 0.114096212 | G195: =Graph_Data!CV202 -> 0.06197039312
B196: 572 | C196: =Graph_Data!Z203 -> 0.02591874313 | D196: =Graph_Data!CS203 -> 0.1240629378 | E196: =Graph_Data!CT203 -> 0.1240629378 | F196: =Graph_Data!CU203 -> 0.1149801661 | G196: =Graph_Data!CV203 -> 0.06271255555
B197: 573 | C197: =Graph_Data!Z204 -> 0.0260731021 | D197: =Graph_Data!CS204 -> 0.1250199791 | E197: =Graph_Data!CT204 -> 0.1250199791 | F197: =Graph_Data!CU204 -> 0.1162762068 | G197: =Graph_Data!CV204 -> 0.06368332928
B198: 574 | C198: =Graph_Data!Z205 -> 0.02624301593 | D198: =Graph_Data!CS205 -> 0.1260543192 | E198: =Graph_Data!CT205 -> 0.1260543192 | F198: =Graph_Data!CU205 -> 0.1176519165 | G198: =Graph_Data!CV205 -> 0.06470123505
B199: 575 | C199: =Graph_Data!Z206 -> 0.02629750681 | D199: =Graph_Data!CS206 -> 0.1265361206 | E199: =Graph_Data!CT206 -> 0.1265361206 | F199: =Graph_Data!CU206 -> 0.1185170205 | G199: =Graph_Data!CV206 -> 0.06544143937
B200: 576 | C200: =Graph_Data!Z207 -> 0.0264304154 | D200: =Graph_Data!CS207 -> 0.127396814 | E200: =Graph_Data!CT207 -> 0.127396814 | F200: =Graph_Data!CU207 -> 0.1197412846 | G200: =Graph_Data!CV207 -> 0.06638282699
B201: 577 | C201: =Graph_Data!Z208 -> 0.02656501957 | D201: =Graph_Data!CS208 -> 0.1282679188 | E201: =Graph_Data!CT208 -> 0.1282679188 | F201: =Graph_Data!CU208 -> 0.1209797356 | G201: =Graph_Data!CV208 -> 0.06733638572
... 203 more rows

Sheet TargetSheet SPD
B3: SPD Comparison
B4: wavelength [nm] | C4: Calc. Sheet SPD | D4: Target SPD | F4: Normalized SPD from Calculation Sheet | G4: Normalized Target SPD
B5: 380 | C5: =SpectrumData!C4 -> 7.927131612e-05 | D5: 0.0005142847866 | F5: =IFERROR(C5/MAX(C$5:C$405),"") -> 0.000942252504 | G5: 0.003243846626
B6: 381 | C6: =SpectrumData!C5 -> 7.562531519e-05 | D6: 0.0004900684647 | F6: 0.0008989145896 | G6: 0.003091102395
B7: 382 | C7: =SpectrumData!C6 -> 9.739916364e-05 | D7: 0.0005416177604 | F7: 0.001157727793 | G7: 0.00341624911
B8: 383 | C8: =SpectrumData!C7 -> 8.897587758e-05 | D8: 0.0005218317953 | F8: 0.00105760504 | G8: 0.003291449314
B9: 384 | C9: =SpectrumData!C8 -> 9.777292276e-05 | D9: 0.0005162071177 | F9: 0.001162170452 | G9: 0.003255971712
B10: 385 | C10: =SpectrumData!C9 -> 9.022451205e-05 | D10: 0.0005189873511 | F10: 0.001072446839 | G10: 0.003273508009
B11: 386 | C11: =SpectrumData!C10 -> 7.696373591e-05 | D11: 0.0005091502974 | F11: 0.0009148236263 | G11: 0.003211460882
B12: 387 | C12: =SpectrumData!C11 -> 0.000108658613 | D12: 0.0005323389542 | F12: 0.001291562386 | G12: 0.003357723124
B13: 388 | C13: =SpectrumData!C12 -> 8.427315279e-05 | D13: 0.0004807535768 | F13: 0.001001706457 | G13: 0.003032348824
B14: 389 | C14: =SpectrumData!C13 -> 9.612477831e-05 | D14: 0.0005235890995 | F14: 0.001142579908 | G14: 0.003302533495
B15: 390 | C15: =SpectrumData!C14 -> 8.459179113e-05 | D15: 0.0005198263014 | F15: 0.001005493928 | G15: 0.00327879968
B16: 391 | C16: =SpectrumData!C15 -> 8.871472435e-05 | D16: 0.0005261243185 | F16: 0.001054500862 | G16: 0.003318524366
B17: 392 | C17: =SpectrumData!C16 -> 0.0001002921371 | D17: 0.0005444864427 | F17: 0.001192114903 | G17: 0.003434343298
B18: 393 | C18: =SpectrumData!C17 -> 9.833271868e-05 | D18: 0.0005596963626 | F18: 0.001168824424 | G18: 0.003530279729
B19: 394 | C19: =SpectrumData!C18 -> 0.0001171525133 | D19: 0.0005555336758 | F19: 0.001392524489 | G19: 0.00350402362
B20: 395 | C20: =SpectrumData!C19 -> 0.000109690066 | D20: 0.0005805639121 | F20: 0.001303822674 | G20: 0.003661901608
B21: 396 | C21: =SpectrumData!C20 -> 0.0001044889571 | D21: 0.0005792045896 | F21: 0.001242000087 | G21: 0.003653327694
B22: 397 | C22: =SpectrumData!C21 -> 8.081971165e-05 | D22: 0.0005423762587 | F22: 0.0009606573903 | G22: 0.003421033331
B23: 398 | C23: =SpectrumData!C22 -> 9.843350949e-05 | D23: 0.000584543123 | F23: 0.001170022466 | G23: 0.003687000445
B24: 399 | C24: =SpectrumData!C23 -> 8.086586173e-05 | D24: 0.000577868992 | F24: 0.0009612059498 | G24: 0.003644903425
B25: 400 | C25: =SpectrumData!C24 -> 9.792464872e-05 | D25: 0.0006356598091 | F25: 0.001163973931 | G25: 0.004009418479
B26: 401 | C26: =SpectrumData!C25 -> 0.0001107584034 | D26: 0.0006560289588 | F26: 0.001316521386 | G26: 0.004137896706
B27: 402 | C27: =SpectrumData!C26 -> 0.0001019434177 | D27: 0.0006750922413 | F27: 0.001211742725 | G27: 0.004258138187
B28: 403 | C28: =SpectrumData!C27 -> 0.0001081594302 | D28: 0.0007314745838 | F28: 0.001285628887 | G28: 0.004613769301
B29: 404 | C29: =SpectrumData!C28 -> 0.0001184676443 | D29: 0.0007861915535 | F29: 0.001408156694 | G29: 0.004958896092
B30: 405 | C30: =SpectrumData!C29 -> 0.0001271285188 | D30: 0.000855595419 | F30: 0.001511103524 | G30: 0.005396660343
B31: 406 | C31: =SpectrumData!C30 -> 0.0001217197009 | D31: 0.0009157200237 | F31: 0.00144681202 | G31: 0.005775895742
B32: 407 | C32: =SpectrumData!C31 -> 0.0001324251496 | D32: 0.001044052968 | F32: 0.001574061525 | G32: 0.006585354622
B33: 408 | C33: =SpectrumData!C32 -> 0.000136840519 | D33: 0.001142830566 | F33: 0.00162654448 | G33: 0.00720839343
B34: 409 | C34: =SpectrumData!C33 -> 0.0001532593663 | D34: 0.001307370782 | F34: 0.001821705867 | G34: 0.008246229344
B35: 410 | C35: =SpectrumData!C34 -> 0.0001654960884 | D35: 0.001501178821 | F35: 0.001967156739 | G35: 0.009468671795
B36: 411 | C36: =SpectrumData!C35 -> 0.0001980449358 | D36: 0.00173661861 | F36: 0.002354046152 | G36: 0.01095370613
B37: 412 | C37: =SpectrumData!C36 -> 0.0002052119582 | D37: 0.002008555491 | F37: 0.002439236422 | G37: 0.01266894554
B38: 413 | C38: =SpectrumData!C37 -> 0.0002588324264 | D38: 0.002366209283 | F38: 0.003076592062 | G38: 0.01492484359
B39: 414 | C39: =SpectrumData!C38 -> 0.00028059163 | D39: 0.002754338217 | F39: 0.00333523119 | G39: 0.01737296332
B40: 415 | C40: =SpectrumData!C39 -> 0.0003088035295 | D40: 0.003262379337 | F40: 0.0036705698 | G40: 0.02057742807
B41: 416 | C41: =SpectrumData!C40 -> 0.0003774535833 | D41: 0.003822890305 | F41: 0.004486573472 | G41: 0.02411284592
B42: 417 | C42: =SpectrumData!C41 -> 0.0004137864103 | D42: 0.004472474683 | F42: 0.004918440873 | G42: 0.02821009349
B43: 418 | C43: =SpectrumData!C42 -> 0.0005023240307 | D43: 0.005334494464 | F43: 0.005970836601 | G43: 0.03364727544
B44: 419 | C44: =SpectrumData!C43 -> 0.0006137279364 | D44: 0.006267146581 | F44: 0.007295030702 | G44: 0.03952997021
B45: 420 | C45: =SpectrumData!C44 -> 0.0006464703849 | D45: 0.00730242873 | F45: 0.007684221339 | G45: 0.04606000297
B46: 421 | C46: =SpectrumData!C45 -> 0.0007956557605 | D46: 0.008605415099 | F46: 0.009457502024 | G46: 0.05427857767
B47: 422 | C47: =SpectrumData!C46 -> 0.0009425899229 | D47: 0.01015682698 | F47: 0.01120402383 | G47: 0.06406409403
B48: 423 | C48: =SpectrumData!C47 -> 0.001047104147 | D48: 0.01179621148 | F48: 0.01244632425 | G48: 0.07440449686
B49: 424 | C49: =SpectrumData!C48 -> 0.001262038679 | D49: 0.01388748126 | F49: 0.01500112731 | G49: 0.08759516204
B50: 425 | C50: =SpectrumData!C49 -> 0.001375072021 | D50: 0.01619461776 | F50: 0.01634468958 | G50: 0.1021474046
B51: 426 | C51: =SpectrumData!C50 -> 0.00163350716 | D51: 0.01890692919 | F51: 0.01941655932 | G51: 0.1192552844
B52: 427 | C52: =SpectrumData!C51 -> 0.001966914007 | D52: 0.02195703763 | F52: 0.02337957459 | G52: 0.1384938156
B53: 428 | C53: =SpectrumData!C52 -> 0.002130277431 | D53: 0.02533514384 | F53: 0.02532138158 | G53: 0.1598011899
B54: 429 | C54: =SpectrumData!C53 -> 0.002535830635 | D54: 0.02913300872 | F54: 0.03014195907 | G54: 0.1837561882
B55: 430 | C55: =SpectrumData!C54 -> 0.003060671456 | D55: 0.03362069725 | F55: 0.03638043979 | G55: 0.2120622429
B56: 431 | C56: =SpectrumData!C55 -> 0.003279469268 | D56: 0.03797687563 | F56: 0.03898116344 | G56: 0.2395387985
B57: 432 | C57: =SpectrumData!C56 -> 0.003895419973 | D57: 0.04294944449 | F57: 0.0463026149 | G57: 0.2709032314
B58: 433 | C58: =SpectrumData!C57 -> 0.00423839525 | D58: 0.04815459094 | F58: 0.0503793646 | G58: 0.3037346455
B59: 434 | C59: =SpectrumData!C58 -> 0.004942425249 | D59: 0.05402451126 | F59: 0.05874776394 | G59: 0.3407591146
B60: 435 | C60: =SpectrumData!C59 -> 0.005793874839 | D60: 0.06036254249 | F60: 0.06886845509 | G60: 0.3807361891
B61: 436 | C61: =SpectrumData!C60 -> 0.00625556318 | D61: 0.06688412493 | F61: 0.07435627864 | G61: 0.4218710112
B62: 437 | C62: =SpectrumData!C61 -> 0.007227013737 | D62: 0.07455097612 | F62: 0.08590335222 | G62: 0.4702296055
B63: 438 | C63: =SpectrumData!C62 -> 0.008304290826 | D63: 0.08289344218 | F63: 0.09870832487 | G63: 0.5228496345
B64: 439 | C64: =SpectrumData!C63 -> 0.008908582824 | D64: 0.09128849769 | F64: 0.105891196 | G64: 0.575801371
B65: 440 | C65: =SpectrumData!C64 -> 0.01018931961 | D65: 0.1009492794 | F65: 0.121114577 | G65: 0.6367366643
B66: 441 | C66: =SpectrumData!C65 -> 0.01159479376 | D66: 0.1110300407 | F66: 0.1378206392 | G66: 0.7003209742
B67: 442 | C67: =SpectrumData!C66 -> 0.01238201273 | D67: 0.1206401832 | F67: 0.1471778578 | G67: 0.7609368614
B68: 443 | C68: =SpectrumData!C67 -> 0.01416062288 | D68: 0.1308054591 | F68: 0.1683191729 | G68: 0.8250542468
B69: 444 | C69: =SpectrumData!C68 -> 0.0163324274 | D69: 0.1407020232 | F69: =IFERROR(C69/MAX(C$5:C$405),"") -> 0.1941341631 | G69: 0.8874767347
B70: 445 | C70: =SpectrumData!C69 -> 0.01740309304 | D70: 0.1483722364 | F70: 0.2068605493 | G70: 0.935856535
B71: 446 | C71: =SpectrumData!C70 -> 0.01999281218 | D71: 0.1547803066 | F71: 0.23764305 | G71: 0.9762753797
B72: 447 | C72: =SpectrumData!C71 -> 0.02283449227 | D72: 0.158541647 | F72: 0.2714204655 | G72: 1
B73: 448 | C73: =SpectrumData!C72 -> 0.02420340662 | D73: 0.1567539297 | F73: 0.2876919623 | G73: 0.9887239893
B74: 449 | C74: =SpectrumData!C73 -> 0.02727059045 | D74: 0.1531133642 | F74: 0.324149811 | G74: 0.9657611553
B75: 450 | C75: =SpectrumData!C74 -> 0.03031537589 | D75: 0.1462095781 | F75: 0.3603414229 | G75: 0.9222155872
B76: 451 | C76: =SpectrumData!C75 -> 0.03167867474 | D76: 0.1359406124 | F76: 0.3765461716 | G76: 0.8574441795
B77: 452 | C77: =SpectrumData!C76 -> 0.03370971137 | D77: 0.1254798015 | F77: 0.4006879348 | G77: 0.7914627096
B78: 453 | C78: =SpectrumData!C77 -> 0.03491833323 | D78: 0.1149050567 | F78: 0.4150541271 | G78: 0.7247626027
B79: 454 | C79: =SpectrumData!C78 -> 0.03509319706 | D79: 0.1045671257 | F79: 0.4171326329 | G79: 0.659556197
B80: 455 | C80: =SpectrumData!C79 -> 0.0343533904 | D80: 0.09511495425 | F80: 0.408338977 | G80: 0.599936711
B81: 456 | C81: =SpectrumData!C80 -> 0.03240456958 | D81: 0.08690368062 | F81: 0.3851744657 | G81: 0.5481441771
B82: 457 | C82: =SpectrumData!C81 -> 0.03119994217 | D82: 0.080756076 | F82: 0.370855753 | G82: 0.5093682167
B83: 458 | C83: =SpectrumData!C82 -> 0.02808697442 | D83: 0.07404982414 | F83: 0.3338536973 | G83: 0.467068594
B84: 459 | C84: =SpectrumData!C83 -> 0.02463582298 | D84: 0.06792589966 | F84: 0.2928318466 | G84: 0.4284419959
B85: 460 | C85: =SpectrumData!C84 -> 0.02297975089 | D85: 0.064000622 | F85: 0.2731470711 | G85: 0.4036833426
B86: 461 | C86: =SpectrumData!C85 -> 0.0197820725 | D86: 0.0586841329 | F86: 0.2351381087 | G86: 0.3701496359
B87: 462 | C87: =SpectrumData!C86 -> 0.01713488444 | D87: 0.0539375434 | F87: 0.203672508 | G87: 0.3402105657
B88: 463 | C88: =SpectrumData!C87 -> 0.01595663827 | D88: 0.05040486239 | F88: 0.189667374 | G88: 0.3179282122
B89: 464 | C89: =SpectrumData!C88 -> 0.01414579393 | D89: 0.0461476216 | F89: 0.1681429098 | G89: 0.2910757046
B90: 465 | C90: =SpectrumData!C89 -> 0.01338772767 | D90: 0.0428281914 | F90: 0.1591322124 | G90: 0.2701384287
B91: 466 | C91: =SpectrumData!C90 -> 0.01226475959 | D91: 0.0389514074 | F91: 0.1457841373 | G91: 0.2456856488
B92: 467 | C92: =SpectrumData!C91 -> 0.0113786603 | D92: 0.03563010916 | F92: 0.1352515851 | G92: 0.2247365903
B93: 468 | C93: =SpectrumData!C92 -> 0.01094210601 | D93: 0.0329427497 | F93: 0.1300625156 | G93: 0.2077860949
B94: 469 | C94: =SpectrumData!C93 -> 0.01023431096 | D94: 0.03023079875 | F94: 0.1216493632 | G94: 0.1906804889
B95: 470 | C95: =SpectrumData!C94 -> 0.009561711212 | D95: 0.02784134156 | F95: 0.1136545572 | G95: 0.1756090093
B96: 471 | C96: =SpectrumData!C95 -> 0.009213362195 | D96: 0.02621509529 | F96: 0.1095139329 | G96: 0.1653514757
B97: 472 | C97: =SpectrumData!C96 -> 0.008453999445 | D97: 0.02447166898 | F97: 0.100487825 | G97: 0.1543548301
B98: 473 | C98: =SpectrumData!C97 -> 0.007708802374 | D98: 0.02311606244 | F98: 0.09163009642 | G98: 0.1458043541
B99: 474 | C99: =SpectrumData!C98 -> 0.00731258067 | D99: 0.02223564128 | F99: 0.08692043711 | G99: 0.1402511056
B100: 475 | C100: =SpectrumData!C99 -> 0.006561107747 | D100: 0.02125148967 | F100: 0.07798811103 | G100: 0.1340435783
B101: 476 | C101: =SpectrumData!C100 -> 0.005911704659 | D101: 0.02048735534 | F101: 0.07026903034 | G101: 0.1292238079
B102: 477 | C102: =SpectrumData!C101 -> 0.00558727456 | D102: 0.02018048631 | F102: 0.06641271651 | G102: 0.1272882343
B103: 478 | C103: =SpectrumData!C102 -> 0.005038211952 | D103: 0.01961629364 | F103: 0.05988632534 | G103: 0.1237295942
B104: 479 | C104: =SpectrumData!C103 -> 0.004589349137 | D104: 0.01928027538 | F104: 0.05455095143 | G104: 0.121610162
B105: 480 | C105: =SpectrumData!C104 -> 0.004413369015 | D105: 0.0192640839 | F105: 0.05245917703 | G105: 0.1215080344
B106: 481 | C106: =SpectrumData!C105 -> 0.004156737102 | D106: 0.0192459811 | F106: 0.0494087412 | G106: 0.1213938512
B107: 482 | C107: =SpectrumData!C106 -> 0.003963544492 | D107: 0.01938436352 | F107: 0.04711237185 | G107: 0.122266697
B108: 483 | C108: =SpectrumData!C107 -> 0.003880136414 | D108: 0.01962806602 | F108: 0.04612094804 | G108: 0.1238038484
B109: 484 | C109: =SpectrumData!C108 -> 0.003810885099 | D109: 0.02015373409 | F109: 0.04529779753 | G109: 0.1271194949
B110: 485 | C110: =SpectrumData!C109 -> 0.003754163769 | D110: 0.02064340517 | F110: 0.04462358372 | G110: 0.1302080909
B111: 486 | C111: =SpectrumData!C110 -> 0.003759249315 | D111: 0.02138527891 | F111: 0.04468403268 | G111: 0.1348874527
B112: 487 | C112: =SpectrumData!C111 -> 0.003751657444 | D112: 0.02216586595 | F112: 0.04459379248 | G112: 0.1398109984
B113: 488 | C113: =SpectrumData!C112 -> 0.003798076096 | D113: 0.02330927151 | F113: 0.04514554428 | G113: 0.1470230186
B114: 489 | C114: =SpectrumData!C113 -> 0.0038273855 | D114: 0.02456220256 | F114: 0.04549392829 | G114: 0.1549258698
B115: 490 | C115: =SpectrumData!C114 -> 0.003869441547 | D115: 0.0258395066 | F115: 0.04599382431 | G115: 0.1629824535
B116: 491 | C116: =SpectrumData!C115 -> 0.003986766072 | D116: 0.02738088924 | F116: 0.0473883934 | G116: 0.1727047105
B117: 492 | C117: =SpectrumData!C116 -> 0.004046522112 | D117: 0.02890336456 | F117: 0.04809867906 | G117: 0.1823077098
B118: 493 | C118: =SpectrumData!C117 -> 0.004205344944 | D118: 0.03052644078 | F118: 0.04998651464 | G118: 0.1925452483
B119: 494 | C119: =SpectrumData!C118 -> 0.004434660396 | D119: 0.03236630375 | F119: 0.05271225542 | G119: 0.2041501673
B120: 495 | C120: =SpectrumData!C119 -> 0.004546920286 | D120: 0.03399544986 | F120: 0.0540466241 | G120: 0.2144259916
B121: 496 | C121: =SpectrumData!C120 -> 0.004860477207 | D121: 0.03597764594 | F121: 0.05777369474 | G121: 0.2269286753
B122: 497 | C122: =SpectrumData!C121 -> 0.005244790437 | D122: 0.03803615812 | F122: 0.06234180488 | G122: 0.2399127223
B123: 498 | C123: =SpectrumData!C122 -> 0.005433155677 | D123: 0.03985281185 | F123: 0.06458079406 | G123: 0.2513712492
B124: 499 | C124: =SpectrumData!C123 -> 0.005876454244 | D124: 0.04187252091 | F124: 0.06985002896 | G124: 0.2641105457
B125: 500 | C125: =SpectrumData!C124 -> 0.006366887681 | D125: 0.04397911698 | F125: 0.0756795289 | G125: 0.2773978814
B126: 501 | C126: =SpectrumData!C125 -> 0.006660464292 | D126: 0.04579023032 | F126: 0.0791691051 | G126: 0.2888214623
B127: 502 | C127: =SpectrumData!C126 -> 0.007218643162 | D127: 0.04802378782 | F127: 0.08580385602 | G127: 0.302909606
B128: 503 | C128: =SpectrumData!C127 -> 0.007806702813 | D128: 0.05011568573 | F128: 0.09279378259 | G128: 0.3161042331
B129: 504 | C129: =SpectrumData!C128 -> 0.008163443641 | D129: 0.05197708268 | F129: 0.09703415546 | G129: 0.3278449775
B130: 505 | C130: =SpectrumData!C129 -> 0.008765081226 | D130: 0.05406677829 | F130: 0.1041854751 | G130: 0.3410257135
B131: 506 | C131: =SpectrumData!C130 -> 0.009455422019 | D131: 0.05600445584 | F131: 0.1123911587 | G131: 0.3532475972
B132: 507 | C132: =SpectrumData!C131 -> 0.009775916521 | D132: 0.05778049857 | F132: 0.1162006924 | G132: 0.3644499705
B133: 508 | C133: =SpectrumData!C132 -> 0.0104933686 | D133: 0.059769202 | F133: =IFERROR(C133/MAX(C$5:C$405),"") -> 0.1247286323 | G133: 0.3769936994
B134: 509 | C134: =SpectrumData!C133 -> 0.01120411315 | D134: 0.06171071311 | F134: 0.1331768436 | G134: 0.3892397631
B135: 510 | C135: =SpectrumData!C134 -> 0.01152117898 | D135: 0.0632670786 | F135: 0.1369456226 | G135: 0.3990565243
B136: 511 | C136: =SpectrumData!C135 -> 0.01220041267 | D136: 0.06498536142 | F136: 0.1450192825 | G136: 0.4098945776
B137: 512 | C137: =SpectrumData!C136 -> 0.01282995877 | D137: 0.06678168557 | F137: 0.1525023346 | G137: 0.4212248759
B138: 513 | C138: =SpectrumData!C137 -> 0.01317510312 | D138: 0.06803308346 | F138: 0.1566048668 | G138: 0.4291180567
B139: 514 | C139: =SpectrumData!C138 -> 0.01385104276 | D139: 0.06979724512 | F139: 0.1646393722 | G139: 0.4402454904
B140: 515 | C140: =SpectrumData!C139 -> 0.01448011957 | D140: 0.07124477443 | F140: 0.1721168461 | G140: 0.4493757684
B141: 516 | C141: =SpectrumData!C140 -> 0.01474883571 | D141: 0.07249822049 | F141: 0.1753109203 | G141: 0.457281868
B142: 517 | C142: =SpectrumData!C141 -> 0.0153662515 | D142: 0.07387155532 | F142: 0.1826497863 | G142: 0.465944165
B143: 518 | C143: =SpectrumData!C142 -> 0.01594466 | D143: 0.07529633489 | F143: 0.1895249952 | G143: 0.4749309492
B144: 519 | C144: =SpectrumData!C143 -> 0.01619734117 | D144: 0.07616790745 | F144: 0.1925284708 | G144: 0.4804283852
B145: 520 | C145: =SpectrumData!C144 -> 0.0167961662 | D145: 0.07746530331 | F145: 0.1996463593 | G145: 0.4886116978
B146: 521 | C146: =SpectrumData!C145 -> 0.01723172002 | D146: 0.07848697631 | F146: 0.2048235368 | G146: 0.495055891
B147: 522 | C147: =SpectrumData!C146 -> 0.01747048931 | D147: 0.07947347844 | F147: 0.2076616499 | G147: 0.5012782443
B148: 523 | C148: =SpectrumData!C147 -> 0.01795746431 | D148: 0.08040321553 | F148: 0.2134500415 | G148: 0.5071425525
B149: 524 | C149: =SpectrumData!C148 -> 0.01814083615 | D149: 0.08106492675 | F149: 0.215629677 | G149: 0.51131629
B150: 525 | C150: =SpectrumData!C149 -> 0.01857599518 | D150: 0.08202473005 | F150: 0.2208021619 | G150: 0.5173702406
B151: 526 | C151: =SpectrumData!C150 -> 0.01893186125 | D151: 0.08277747083 | F151: 0.225032137 | G151: 0.5221181463
B152: 527 | C152: =SpectrumData!C151 -> 0.0191364744 | D152: 0.08346650761 | F152: 0.2274642557 | G152: 0.5264642395
B153: 528 | C153: =SpectrumData!C152 -> 0.0194643141 | D153: 0.08427581676 | F153: 0.2313610975 | G153: 0.5315689496
B154: 529 | C154: =SpectrumData!C153 -> 0.0197973241 | D154: 0.08489639165 | F154: 0.2353193957 | G154: 0.5354832201
B155: 530 | C155: =SpectrumData!C154 -> 0.01997186076 | D155: 0.08549246543 | F155: 0.2373940125 | G155: 0.5392429501
B156: 531 | C156: =SpectrumData!C155 -> 0.02024623974 | D156: 0.08608439819 | F156: 0.2406553975 | G156: 0.5429765606
B157: 532 | C157: =SpectrumData!C156 -> 0.02051837956 | D157: 0.08679980011 | F157: 0.2438901669 | G157: 0.5474889518
B158: 533 | C158: =SpectrumData!C157 -> 0.02063304757 | D158: 0.08735002607 | F158: 0.2452531595 | G158: 0.550959497
B159: 534 | C159: =SpectrumData!C158 -> 0.02089201658 | D159: 0.08794935758 | F159: 0.2483313751 | G159: 0.554739775
B160: 535 | C160: =SpectrumData!C159 -> 0.02103694123 | D160: 0.08847226014 | F160: 0.2500540109 | G160: 0.5580379782
B161: 536 | C161: =SpectrumData!C160 -> 0.0212414267 | D161: 0.08895711178 | F161: 0.2524846121 | G161: 0.5610961755
B162: 537 | C162: =SpectrumData!C161 -> 0.02141576453 | D162: 0.08947846549 | F162: 0.2545568654 | G162: 0.5643846093
B163: 538 | C163: =SpectrumData!C162 -> 0.02165041542 | D163: 0.09026086291 | F163: 0.2573460255 | G163: 0.5693195739
B164: 539 | C164: =SpectrumData!C163 -> 0.02174951986 | D164: 0.09057443463 | F164: 0.258524023 | G164: 0.5712974247
B165: 540 | C165: =SpectrumData!C164 -> 0.02196024566 | D165: 0.09107870799 | F165: 0.2610287993 | G165: 0.5744781244
B166: 541 | C166: =SpectrumData!C165 -> 0.02201331439 | D166: 0.09171930603 | F166: 0.2616595967 | G166: 0.5785186907
B167: 542 | C167: =SpectrumData!C166 -> 0.02213122745 | D167: 0.09221023207 | F167: 0.2630611614 | G167: 0.5816152022
B168: 543 | C168: =SpectrumData!C167 -> 0.02225865855 | D168: 0.09263885575 | F168: 0.2645758615 | G168: 0.5843187422
B169: 544 | C169: =SpectrumData!C168 -> 0.02244356642 | D169: 0.09337005558 | F169: 0.2667737549 | G169: 0.5889307785
B170: 545 | C170: =SpectrumData!C169 -> 0.0225298306 | D170: 0.09392982612 | F170: 0.2677991275 | G170: 0.5924615261
B171: 546 | C171: =SpectrumData!C170 -> 0.02275631279 | D171: 0.09439827142 | F171: 0.270491191 | G171: 0.5954162406
B172: 547 | C172: =SpectrumData!C171 -> 0.02284972509 | D172: 0.09507504522 | F172: 0.2716015292 | G172: 0.5996849852
B173: 548 | C173: =SpectrumData!C172 -> 0.02289467123 | D173: 0.09556005465 | F173: 0.2721357781 | G173: 0.6027441778
B174: 549 | C174: =SpectrumData!C173 -> 0.02300205194 | D174: 0.0959619585 | F174: 0.2734121508 | G174: 0.6052791827
B175: 550 | C175: =SpectrumData!C174 -> 0.02320666346 | D175: 0.09679025865 | F175: 0.2758442501 | G175: 0.6105036783
B176: 551 | C176: =SpectrumData!C175 -> 0.0233437095 | D176: 0.09735843664 | F176: 0.2774732376 | G176: 0.6140874559
B177: 552 | C177: =SpectrumData!C176 -> 0.02334706017 | D177: 0.09781936465 | F177: 0.277513065 | G177: 0.6169947551
B178: 553 | C178: =SpectrumData!C177 -> 0.023566325 | D178: 0.098652913 | F178: 0.2801193399 | G178: 0.6222523537
B179: 554 | C179: =SpectrumData!C178 -> 0.02371941411 | D179: 0.09929430737 | F179: 0.281939022 | G179: 0.6262979429
B180: 555 | C180: =SpectrumData!C179 -> 0.02382909546 | D180: 0.09979439491 | F180: 0.283242741 | G180: 0.6294522405
B181: 556 | C181: =SpectrumData!C180 -> 0.02397239814 | D181: 0.1004053398 | F181: 0.2849460976 | G181: 0.6333057701
B182: 557 | C182: =SpectrumData!C181 -> 0.02413887246 | D182: 0.1012436584 | F182: 0.286924882 | G182: 0.6385934566
B183: 558 | C183: =SpectrumData!C182 -> 0.02420422331 | D183: 0.1017692133 | F183: 0.2877016698 | G183: 0.6419083895
B184: 559 | C184: =SpectrumData!C183 -> 0.02435996442 | D184: 0.1025051848 | F184: 0.2895528748 | G184: 0.6465505231
B185: 560 | C185: =SpectrumData!C184 -> 0.02442160213 | D185: 0.1029632715 | F185: 0.2902855267 | G185: 0.6494399011
B186: 561 | C186: =SpectrumData!C185 -> 0.02461772867 | D186: 0.1035514475 | F186: 0.2926167701 | G186: 0.6531498157
B187: 562 | C187: =SpectrumData!C186 -> 0.02463487763 | D187: 0.1042136511 | F187: 0.2928206098 | G187: 0.6573266586
B188: 563 | C188: =SpectrumData!C187 -> 0.02475107549 | D188: 0.1049788529 | F188: 0.294201787 | G188: 0.6621531622
B189: 564 | C189: =SpectrumData!C188 -> 0.02497116817 | D189: 0.1054622455 | F189: 0.296817902 | G189: 0.6652021567
B190: 565 | C190: =SpectrumData!C189 -> 0.0250895739 | D190: 0.1059381592 | F190: 0.2982253226 | G190: 0.6682039783
B191: 566 | C191: =SpectrumData!C190 -> 0.02526317257 | D191: 0.1067659042 | F191: 0.3002887902 | G191: 0.6734249724
B192: 567 | C192: =SpectrumData!C191 -> 0.02535890039 | D192: 0.1069397344 | F192: 0.3014266517 | G192: 0.6745214044
B193: 568 | C193: =SpectrumData!C192 -> 0.02541327465 | D193: 0.1073663631 | F193: 0.3020729672 | G193: 0.6772123613
B194: 569 | C194: =SpectrumData!C193 -> 0.02554622261 | D194: 0.1079004117 | F194: 0.303653243 | G194: 0.680580868
B195: 570 | C195: =SpectrumData!C194 -> 0.02573953255 | D195: 0.1085071837 | F195: 0.3059510071 | G195: 0.6844080767
B196: 571 | C196: =SpectrumData!C195 -> 0.02585611684 | D196: 0.1087852403 | F196: 0.3073367774 | G196: 0.6861619164
B197: 572 | C197: =SpectrumData!C196 -> 0.02591874313 | D197: 0.1092254469 | F197: =IFERROR(C197/MAX(C$5:C$405),"") -> 0.30808118 | G197: 0.6889385154
B198: 573 | C198: =SpectrumData!C197 -> 0.0260731021 | D198: 0.1094501037 | F198: 0.3099159562 | G198: 0.6903555364
B199: 574 | C199: =SpectrumData!C198 -> 0.02624301593 | D199: 0.1099575918 | F199: 0.3119356242 | G199: 0.6935565124
B200: 575 | C200: =SpectrumData!C199 -> 0.02629750681 | D200: 0.1101514186 | F200: 0.3125833259 | G200: 0.6947790735
B201: 576 | C201: =SpectrumData!C200 -> 0.0264304154 | D201: 0.1103452979 | F201: 0.3141631337 | G201: 0.6960019656
B202: 577 | C202: =SpectrumData!C201 -> 0.02656501957 | D202: 0.1106559524 | F202: 0.3157630961 | G202: 0.6979614158
... 203 more rows

Sheet Graph_Data (hidden)
B1: unit | C1: LM301H | D1: LM301H_2 | E1: LM301H_D | F1: LM301H_D_2 | G1: LM561H | H1: LM561H_2 | I1: LH181B | J1: LH181B_2 | K1: LH231B | L1: LH231B_2 | M1: LH351H_B | N1: LH351H_B_2 | O1: LH351H_C | P1: LH351H_C_2 | Q1: LH351H_D | R1: LH351H_D_2 | S1: LH351H_450nm | T1: LH351H_630nm | U1: LH351H_660nm | V1: LH351H_660nm_V2 | W1: LH351H_730nm | Y1: SPD | Z1: Horticulture | AA1: LM301H | AB1: LM301H_2 | AC1: LM301H_D | AD1: LM301H_D_2 | AE1: LM561H | AF1: LM561H_2 | AG1: LH181B | AH1: LH181B_2 | AI1: LH231B | AJ1: LH231B_2 | AK1: LH351H_B | AL1: LH351H_B_2 | AM1: LH351H_C | AN1: LH351H_C_2 | AO1: LH351H_D | AP1: LH351H_D_2 | AQ1: LH351H_450nm | AR1: LH351H_630nm | AS1: LH351H_660nm | AT1: LH351H_660nm_V2 | AU1: LH351H_730nm | AW1: PPF | AX1: Horticulture | AY1: LM301H | AZ1: LM301H_2 | BA1: LM301H_D | BB1: LM301H_D_2 | BC1: LM561H | BD1: LM561H_2 | BE1: LH181B | BF1: LH181B_2 | BG1: LH231B | BH1: LH231B_2 | BI1: LH351H_B | BJ1: LH351H_B_2 | BK1: LH351H_C | BL1: LH351H_C_2 | BM1: LH351H_D | BN1: LH351H_D_2 | BO1: LH351H_450nm | BP1: LH351H_630nm | BQ1: LH351H_660nm | BR1: LH351H_660nm_V2 | BS1: LH351H_730nm | BT1: 1 | BU1: Graph | BV1: =OFFSET(BT1,BT1,0) -> SPD | BW1: LM301H | BX1: LM301H_2 | BY1: LM301H_D | BZ1: LM301H_D_2 | CA1: LM561H | CB1: LM561H_2 | CC1: LH181B | CD1: LH181B_2 | CE1: LH231B | CF1: LH231B_2 | CG1: LH351H_B | CH1: LH351H_B_2 | CI1: LH351H_C | CJ1: LH351H_C_2 | CK1: LH351H_D | CL1: LH351H_D_2 | CM1: LH351H_450nm | CN1: LH351H_630nm | CO1: LH351H_660nm | CP1: LH351H_660nm_V2 | CQ1: LH351H_730nm | CS1: PPF | CT1: BPF | CU1: YPF | CV1: DIN | CW1: Beta Carotene | CX1: Chlorophyll A | CY1: Chlorophyll B | DB1: PPF | DC1: DIN | DD1: YPF | DE1: BPF | DF1: PPF | DG1: Beta Carotene | DH1: Chlorophyll A | DI1: Chlorophyll B | DJ1: =OFFSET($BT$1,$BT$1,0) -> SPD | DP1: PPF | DQ1: DIN | DR1: YPF | DS1: BPF | DT1: PPF | DY1: McCree | DZ1: PAR | EA1: BAR | EB1: =OFFSET(BT1,BT1,0) -> SPD | EC1: BPF
A2: =COUNTA(A1:BT1) -> 69 | B2: CRI | C2: =OFFSET(LM301H!H2,0,LM301H!$B$13) -> 70 | D2: =OFFSET(LM301H!H2,0,LM301H!$B$31) -> 70 | E2: =OFFSET(LM301H_D!H2,0,LM301H_D!$B$13) -> 80 | F2: =OFFSET(LM301H_D!H2,0,LM301H_D!$B$31) -> 80 | G2: =OFFSET(LM561H!$H2,0,LM561H!$B$13) -> 80 | H2: =OFFSET(LM561H!$H2,0,LM561H!$B$31) -> 80 | I2: =OFFSET(LH181B!$H2,0,LH181B!$B$14) -> 70 | J2: =OFFSET(LH181B!$H2,0,LH181B!$B$32) -> 70 | K2: =OFFSET(LH231B!$H2,0,LH231B!$B$14) -> 70 | L2: =OFFSET(LH231B!$H2,0,LH231B!$B$32) -> 70 | M2: =OFFSET(LH351H_B!$H2,0,LH351H_B!$B$14) -> 70 | N2: =OFFSET(LH351H_B!$H2,0,LH351H_B!$B$32) -> 80 | O2: =OFFSET(LH351H_C!$H2,0,LH351H_C!$B$14) -> 80 | P2: =OFFSET(LH351H_C!$H2,0,LH351H_C!$B$32) -> 80 | Q2: =OFFSET(LH351H_D!$H2,0,LH351H_D!$B$14) -> 80 | R2: =OFFSET(LH351H_D!$H2,0,LH351H_D!$B$32) -> 80 | S2: =OFFSET(LH351H_450nm!H2,0,LH351H_450nm!$B$13) -> 0 | T2: =OFFSET(LH351H_630nm!H2,0,LH351H_630nm!$B$13) -> 0 | U2: =OFFSET(LH351H_660nm!H2,0,LH351H_660nm!$B$13) -> 0 | V2: =OFFSET(LH351H_660nm_V2!H2,0,LH351H_660nm_V2!$B$13) -> 0 | W2: =OFFSET(LH351H_730nm!H2,0,LH351H_730nm!$B$13) -> 0 | Y2: CRI | AA2: =C2 -> 70 | AB2: 70 | AC2: 80 | AD2: 80 | AE2: 80 | AF2: 80 | AG2: 70 | AH2: 70 | AI2: 70 | AJ2: 70 | AK2: 70 | AL2: =N2 -> 80 | AM2: 80 | AN2: 80 | AO2: 80 | AP2: 80 | AQ2: 0 | AR2: 0 | AS2: 0 | AT2: 0 | AU2: =W2 -> 0 | AW2: CRI | AY2: =C2 -> 70 | AZ2: 70 | BA2: 80 | BB2: 80 | BC2: 80 | BD2: 80 | BE2: 70 | BF2: 70 | BG2: 70 | BH2: 70 | BI2: =M2 -> 70 | BJ2: 80 | BK2: 80 | BL2: 80 | BM2: 80 | BN2: 80 | BO2: =S2 -> 0 | BP2: 0 | BQ2: =U2 -> 0 | BR2: 0 | BS2: =W2 -> 0 | BT2: SPD | BU2: CRI | BW2: =AA2 -> 70 | BX2: 70 | BY2: 80 | BZ2: 80 | CA2: 80 | CB2: 80 | CC2: 70 | CD2: 70 | CE2: 70 | CF2: 70 | CG2: =AK2 -> 70 | CH2: 80 | CI2: 80 | CJ2: 80 | CK2: 80 | CL2: 80 | CM2: 0 | CN2: 0 | CO2: 0 | CP2: 0 | CQ2: =AU2 -> 0 | CW2: =CY2*0.88 -> 0.07403403853 | CX2: =CY2*0.7 -> 0.05889071247 | CY2: =IF(MAX(BV11:BV411)<=0,1,MAX(BV11:BV411)) -> 0.08412958924 | DB2: CRI | DG2: =DI2*0.88 -> 0 | DH2: =DI2*0.7 -> 0 | DI2: =MAX(CQ11:CQ411) -> 0 | DP2: CRI | DX2: 파장 (nm) | DY2: =IF($CY$2*1<=0,1,$CY$2*1) -> 0.08412958924 | DZ2: =IF($CY$2*1<=0,1,$CY$2*1) -> 0.08412958924 | EA2: =IF($CY$2*1<=0,1,$CY$2*1) -> 0.08412958924
A3: =COUNTBLANK(A1:BT1) -> 3 | B3: CCT | C3: =OFFSET(LM301H!H3,0,LM301H!$B$13) -> 3000 | D3: =OFFSET(LM301H!H3,0,LM301H!$B$31) -> 5000 | E3: =OFFSET(LM301H_D!H3,0,LM301H_D!$B$13) -> 3000 | F3: =OFFSET(LM301H_D!H3,0,LM301H_D!$B$31) -> 5000 | G3: =OFFSET(LM561H!$H3,0,LM561H!$B$13) -> 3000 | H3: =OFFSET(LM561H!$H3,0,LM561H!$B$31) -> 5000 | I3: =OFFSET(LH181B!$H3,0,LH181B!$B$14) -> 3000 | J3: =OFFSET(LH181B!$H3,0,LH181B!$B$32) -> 5000 | K3: =OFFSET(LH231B!$H3,0,LH231B!$B$14) -> 3000 | L3: =OFFSET(LH231B!$H3,0,LH231B!$B$32) -> 5000 | M3: =OFFSET(LH351H_B!$H3,0,LH351H_B!$B$14) -> 3000 | N3: =OFFSET(LH351H_B!$H3,0,LH351H_B!$B$32) -> 5000 | O3: =OFFSET(LH351H_C!$H3,0,LH351H_C!$B$14) -> 3000 | P3: =OFFSET(LH351H_C!$H3,0,LH351H_C!$B$32) -> 5000 | Q3: =OFFSET(LH351H_D!$H3,0,LH351H_D!$B$14) -> 3000 | R3: =OFFSET(LH351H_D!$H3,0,LH351H_D!$B$32) -> 5000 | S3: =OFFSET(LH351H_450nm!H3,0,LH351H_450nm!$B$13) -> 0 | T3: =OFFSET(LH351H_630nm!H3,0,LH351H_630nm!$B$13) -> 0 | U3: =OFFSET(LH351H_660nm!H3,0,LH351H_660nm!$B$13) -> 0 | V3: =OFFSET(LH351H_660nm_V2!H3,0,LH351H_660nm_V2!$B$13) -> 0 | W3: =OFFSET(LH351H_730nm!H3,0,LH351H_730nm!$B$13) -> 0 | Y3: CCT | AA3: 3000 | AB3: 5000 | AC3: 3000 | AD3: 5000 | AE3: 3000 | AF3: 5000 | AG3: 3000 | AH3: 5000 | AI3: 3000 | AJ3: 5000 | AK3: 3000 | AL3: 5000 | AM3: 3000 | AN3: 5000 | AO3: 3000 | AP3: 5000 | AQ3: 0 | AR3: 0 | AS3: 0 | AT3: 0 | AU3: =W3 -> 0 | AW3: CCT | AY3: =C3 -> 3000 | AZ3: 5000 | BA3: 3000 | BB3: 5000 | BC3: 3000 | BD3: 5000 | BE3: 3000 | BF3: 5000 | BG3: 3000 | BH3: 5000 | BI3: =M3 -> 3000 | BJ3: 5000 | BK3: 3000 | BL3: 5000 | BM3: 3000 | BN3: 5000 | BO3: 0 | BP3: 0 | BQ3: 0 | BR3: 0 | BS3: =W3 -> 0 | BT3: PPF | BU3: CCT | BW3: 3000 | BX3: 5000 | BY3: 3000 | BZ3: 5000 | CA3: 3000 | CB3: 5000 | CC3: 3000 | CD3: 5000 | CE3: 3000 | CF3: 5000 | CG3: 3000 | CH3: 5000 | CI3: 3000 | CJ3: 5000 | CK3: 3000 | CL3: 5000 | CM3: 0 | CN3: 0 | CO3: 0 | CP3: 0 | CQ3: 0 | CY3: =MAX(AX11:AX411) -> 0.4604246976 | DB3: CCT | DP3: CCT | DX3: 250 | DY3: 0 | DZ3: 0 | EA3: 0 | EB3: 0 | EC3: =IF($EB$1="PPF",0,0) -> 0 | EE3: =IF(EB1="PPF",1,0) -> 0
B4: Tj (°C) | C4: =OFFSET(LM301H!H4,0,LM301H!$B$13) -> 25 | D4: =OFFSET(LM301H!H4,0,LM301H!$B$31) -> 25 | E4: =OFFSET(LM301H_D!H4,0,LM301H_D!$B$13) -> 25 | F4: =OFFSET(LM301H_D!H4,0,LM301H_D!$B$31) -> 25 | G4: =OFFSET(LM561H!$H4,0,LM561H!$B$13) -> 25 | H4: =OFFSET(LM561H!$H4,0,LM561H!$B$31) -> 25 | I4: =OFFSET(LH181B!$H4,0,LH181B!$B$14) -> 25 | J4: =OFFSET(LH181B!$H4,0,LH181B!$B$32) -> 25 | K4: =OFFSET(LH231B!$H4,0,LH231B!$B$14) -> 25 | L4: =OFFSET(LH231B!$H4,0,LH231B!$B$32) -> 25 | M4: =OFFSET(LH351H_B!$H4,0,LH351H_B!$B$14) -> 25 | N4: =OFFSET(LH351H_B!$H4,0,LH351H_B!$B$32) -> 25 | O4: =OFFSET(LH351H_C!$H4,0,LH351H_C!$B$14) -> 25 | P4: =OFFSET(LH351H_C!$H4,0,LH351H_C!$B$32) -> 25 | Q4: =OFFSET(LH351H_D!$H4,0,LH351H_D!$B$14) -> 25 | R4: =OFFSET(LH351H_D!$H4,0,LH351H_D!$B$32) -> 25 | S4: =OFFSET(LH351H_450nm!H4,0,LH351H_450nm!$B$13) -> 25 | T4: =OFFSET(LH351H_630nm!H4,0,LH351H_630nm!$B$13) -> 25 | U4: =OFFSET(LH351H_660nm!H4,0,LH351H_660nm!$B$13) -> 25 | V4: =OFFSET(LH351H_660nm_V2!H4,0,LH351H_660nm_V2!$B$13) -> 25 | W4: =OFFSET(LH351H_730nm!H4,0,LH351H_730nm!$B$13) -> 25 | Y4: Tj (°C) | AA4: =C4 -> 25 | AB4: 25 | AC4: 25 | AD4: 25 | AE4: 25 | AF4: 25 | AG4: 25 | AH4: 25 | AI4: 25 | AJ4: 25 | AK4: =M4 -> 25 | AL4: 25 | AM4: 25 | AN4: 25 | AO4: 25 | AP4: 25 | AQ4: 25 | AR4: 25 | AS4: 25 | AT4: 25 | AU4: =W4 -> 25 | AW4: Tj (°C) | AY4: 25 | AZ4: 25 | BA4: 25 | BB4: 25 | BC4: 25 | BD4: 25 | BE4: 25 | BF4: 25 | BG4: 25 | BH4: 25 | BI4: 25 | BJ4: 25 | BK4: 25 | BL4: 25 | BM4: 25 | BN4: 25 | BO4: 25 | BP4: 25 | BQ4: 25 | BR4: 25 | BS4: =W4 -> 25 | BT4: BPF | BU4: Tj (°C) | BW4: 25 | BX4: 25 | BY4: 25 | BZ4: 25 | CA4: 25 | CB4: 25 | CC4: 25 | CD4: 25 | CE4: 25 | CF4: 25 | CG4: 25 | CH4: 25 | CI4: 25 | CJ4: 25 | CK4: 25 | CL4: 25 | CM4: 25 | CN4: 25 | CO4: 25 | CP4: 25 | CQ4: 25 | DB4: Tj (°C) | DP4: Tj (°C) | DX4: 251 | DY4: 0 | DZ4: 0 | EA4: 0 | EB4: 0 | EC4: =IF($EB$1="PPF",0,0) -> 0
B5: 전류 (mA) | C5: =OFFSET(LM301H!H5,0,LM301H!$B$13) -> 65 | D5: =OFFSET(LM301H!H5,0,LM301H!$B$31) -> 65 | E5: =OFFSET(LM301H_D!H5,0,LM301H_D!$B$13) -> 65 | F5: =OFFSET(LM301H_D!H5,0,LM301H_D!$B$31) -> 65 | G5: =OFFSET(LM561H!$H5,0,LM561H!$B$13) -> 65 | H5: =OFFSET(LM561H!$H5,0,LM561H!$B$31) -> 65 | I5: =OFFSET(LH181B!$H5,0,LH181B!$B$14) -> 350 | J5: =OFFSET(LH181B!$H5,0,LH181B!$B$32) -> 350 | K5: =OFFSET(LH231B!$H5,0,LH231B!$B$14) -> 350 | L5: =OFFSET(LH231B!$H5,0,LH231B!$B$32) -> 350 | M5: =OFFSET(LH351H_B!$H5,0,LH351H_B!$B$14) -> 350 | N5: =OFFSET(LH351H_B!$H5,0,LH351H_B!$B$32) -> 350 | O5: =OFFSET(LH351H_C!$H5,0,LH351H_C!$B$14) -> 350 | P5: =OFFSET(LH351H_C!$H5,0,LH351H_C!$B$32) -> 350 | Q5: =OFFSET(LH351H_D!$H5,0,LH351H_D!$B$14) -> 350 | R5: =OFFSET(LH351H_D!$H5,0,LH351H_D!$B$32) -> 350 | S5: =OFFSET(LH351H_450nm!H5,0,LH351H_450nm!$B$13) -> 350 | T5: =OFFSET(LH351H_630nm!H5,0,LH351H_630nm!$B$13) -> 350 | U5: =OFFSET(LH351H_660nm!H5,0,LH351H_660nm!$B$13) -> 350 | V5: =OFFSET(LH351H_660nm_V2!H5,0,LH351H_660nm_V2!$B$13) -> 350 | W5: =OFFSET(LH351H_730nm!H5,0,LH351H_730nm!$B$13) -> 350 | Y5: 전류 (mA) | AA5: 65 | AB5: 65 | AC5: 65 | AD5: 65 | AE5: 65 | AF5: 65 | AG5: 350 | AH5: 350 | AI5: 350 | AJ5: 350 | AK5: 350 | AL5: 350 | AM5: 350 | AN5: 350 | AO5: 350 | AP5: 350 | AQ5: 350 | AR5: 350 | AS5: 350 | AT5: 350 | AU5: =W5 -> 350 | AW5: 전류 (mA) | AY5: 65 | AZ5: 65 | BA5: 65 | BB5: 65 | BC5: 65 | BD5: 65 | BE5: 350 | BF5: 350 | BG5: 350 | BH5: 350 | BI5: 350 | BJ5: 350 | BK5: 350 | BL5: 350 | BM5: 350 | BN5: 350 | BO5: 350 | BP5: 350 | BQ5: 350 | BR5: 350 | BS5: =W5 -> 350 | BT5: YPF | BU5: 전류 (mA) | BW5: 65 | BX5: 65 | BY5: 65 | BZ5: 65 | CA5: 65 | CB5: 65 | CC5: 350 | CD5: 350 | CE5: 350 | CF5: 350 | CG5: 350 | CH5: 350 | CI5: 350 | CJ5: 350 | CK5: 350 | CL5: 350 | CM5: 350 | CN5: 350 | CO5: 350 | CP5: 350 | CQ5: 350 | DB5: 전류 (mA) | DP5: 전류 (mA) | DX5: 252 | DY5: 0 | DZ5: 0 | EA5: 0 | EB5: 0 | EC5: 0
B6: Vf [V] | C6: =OFFSET(LM301H!H6,0,LM301H!$B$13) -> 2.72 | D6: =OFFSET(LM301H!H6,0,LM301H!$B$31) -> 2.72 | E6: =OFFSET(LM301H_D!H6,0,LM301H_D!$B$13) -> 2.73 | F6: =OFFSET(LM301H_D!H6,0,LM301H_D!$B$31) -> 2.73 | G6: =OFFSET(LM561H!H6,0,LM561H!$B$13) -> 2.787032986 | H6: =OFFSET(LM561H!H6,0,LM561H!$B$31) -> 2.787032986 | I6: =OFFSET(LH181B!$H6,0,LH181B!$B$14) -> 2.842648125 | J6: =OFFSET(LH181B!$H6,0,LH181B!$B$32) -> 2.842648125 | K6: =OFFSET(LH231B!$H6,0,LH231B!$B$14) -> 2.790865485 | L6: =OFFSET(LH231B!$H6,0,LH231B!$B$32) -> 2.790865485 | M6: =OFFSET(LH351H_B!$H6,0,LH351H_B!$B$14) -> 2.846153 | N6: =OFFSET(LH351H_B!$H6,0,LH351H_B!$B$32) -> 2.846153 | O6: =OFFSET(LH351H_C!$H6,0,LH351H_C!$B$14) -> 2.820523 | P6: =OFFSET(LH351H_C!$H6,0,LH351H_C!$B$32) -> 2.820523 | Q6: =OFFSET(LH351H_D!$H6,0,LH351H_D!$B$14) -> 2.767378 | R6: =OFFSET(LH351H_D!$H6,0,LH351H_D!$B$32) -> 2.767378 | S6: =OFFSET(LH351H_450nm!H6,0,LH351H_450nm!$B$13) -> 2.767589 | T6: =OFFSET(LH351H_630nm!H6,0,LH351H_630nm!$B$13) -> 2.05 | U6: =OFFSET(LH351H_660nm!H6,0,LH351H_660nm!$B$13) -> 2.037499244 | V6: =OFFSET(LH351H_660nm_V2!H6,0,LH351H_660nm_V2!$B$13) -> 2.0138153 | W6: =OFFSET(LH351H_730nm!H6,0,LH351H_730nm!$B$13) -> 1.92717275 | Y6: Vf [V] | AA6: =C$6*Calculator!$D4 -> 54.4 | AB6: =D$6*Calculator!$D5 -> 54.4 | AC6: =E$6*Calculator!$D6 -> 0 | AD6: =F$6*Calculator!$D7 -> 0 | AE6: =G$6*Calculator!$D8 -> 0 | AF6: =H$6*Calculator!$D9 -> 0 | AG6: =I$6*Calculator!$D10 -> 0 | AH6: =J$6*Calculator!$D11 -> 0 | AI6: =K$6*Calculator!$D12 -> 0 | AJ6: =L$6*Calculator!$D13 -> 0 | AK6: =M$6*Calculator!$D14 -> 0 | AL6: =N$6*Calculator!$D15 -> 0 | AM6: =O$6*Calculator!$D16 -> 0 | AN6: =P$6*Calculator!$D17 -> 0 | AO6: =Q$6*Calculator!$D18 -> 0 | AP6: =R$6*Calculator!$D19 -> 0 | AQ6: =S6*Calculator!$D$20 -> 0 | AR6: =T6*Calculator!$D$21 -> 0 | AS6: =U6*Calculator!$D$22 -> 0 | AT6: =V6*Calculator!$D$23 -> 6.0414459 | AU6: =W6*Calculator!$D$24 -> 0 | AW6: Vf [V] | AY6: =C$6*Calculator!$D4 -> 54.4 | AZ6: =D$6*Calculator!$D5 -> 54.4 | BA6: =E$6*Calculator!$D6 -> 0 | BB6: =F$6*Calculator!$D7 -> 0 | BC6: =G$6*Calculator!$D8 -> 0 | BD6: =H$6*Calculator!$D9 -> 0 | BE6: =I$6*Calculator!$D10 -> 0 | BF6: =J$6*Calculator!$D11 -> 0 | BG6: =K$6*Calculator!$D12 -> 0 | BH6: =L$6*Calculator!$D13 -> 0 | BI6: =M$6*Calculator!$D14 -> 0 | BJ6: =N$6*Calculator!$D15 -> 0 | BK6: =O$6*Calculator!$D16 -> 0 | BL6: =P$6*Calculator!$D17 -> 0 | BM6: =Q$6*Calculator!$D18 -> 0 | BN6: =R$6*Calculator!$D19 -> 0 | BO6: =S$6*Calculator!$D20 -> 0 | BP6: =T6*Calculator!$D$21 -> 0 | BQ6: =U6*Calculator!$D$22 -> 0 | BR6: =V6*Calculator!$D$23 -> 6.0414459 | BS6: =W6*Calculator!$D$24 -> 0 | BT6: DIN | BU6: Vf [V] | BW6: =C6*Calculator!$D$4 -> 54.4 | BX6: =D6*Calculator!$D$5 -> 54.4 | BY6: =E6*Calculator!$D$6 -> 0 | BZ6: =F6*Calculator!$D$7 -> 0 | CA6: =G6*Calculator!$D$8 -> 0 | CB6: =H6*Calculator!$D$9 -> 0 | CC6: =I6*Calculator!$D$10 -> 0 | CD6: =J6*Calculator!$D$11 -> 0 | CE6: =K6*Calculator!$D$12 -> 0 | CF6: =L6*Calculator!$D$13 -> 0 | CG6: =M6*Calculator!$D$14 -> 0 | CH6: =N6*Calculator!$D$15 -> 0 | CI6: =O6*Calculator!$D$16 -> 0 | CJ6: =P6*Calculator!$D$17 -> 0 | CK6: =Q6*Calculator!$D$18 -> 0 | CL6: =R6*Calculator!$D$19 -> 0 | CM6: =S6*Calculator!$D$20 -> 0 | CN6: =T6*Calculator!$D$21 -> 0 | CO6: =U6*Calculator!$D$22 -> 0 | CP6: =V6*Calculator!$D$23 -> 6.0414459 | CQ6: =W6*Calculator!$D$24 -> 0 | DB6: Vf [V] | DP6: Vf [V] | DX6: 253 | DY6: 0 | DZ6: 0 | EA6: 0 | EB6: 0 | EC6: 0
B7: PPF | C7: =SUMPRODUCT($B$11:$B$411,C$11:C$411,PPF_YPF_DIN_BPF!$B$102:$B$502)/119500*1000 -> 0.1077064102 | D7: =SUMPRODUCT($B$11:$B$411,D$11:D$411,PPF_YPF_DIN_BPF!$B$102:$B$502)/119500*1000 -> 0.1178690414 | E7: =SUMPRODUCT($B$11:$B$411,E$11:E$411,PPF_YPF_DIN_BPF!$B$102:$B$502)/119500*1000 -> 0.1048747917 | F7: =SUMPRODUCT($B$11:$B$411,F$11:F$411,PPF_YPF_DIN_BPF!$B$102:$B$502)/119500*1000 -> 0.1140820942 | G7: =SUMPRODUCT($B$11:$B$411,G$11:G$411,PPF_YPF_DIN_BPF!$B$102:$B$502)/119500*1000 -> 0.1037265226 | H7: =SUMPRODUCT($B$11:$B$411,H$11:H$411,PPF_YPF_DIN_BPF!$B$102:$B$502)/119500*1000 -> 0.1119165577 | I7: =SUMPRODUCT($B$11:$B$411,I$11:I$411,PPF_YPF_DIN_BPF!$B$102:$B$502)/119500*1000 -> 0.495524147 | J7: =SUMPRODUCT($B$11:$B$411,J$11:J$411,PPF_YPF_DIN_BPF!$B$102:$B$502)/119500*1000 -> 0.5566186795 | K7: =SUMPRODUCT($B$11:$B$411,K$11:K$411,PPF_YPF_DIN_BPF!$B$102:$B$502)/119500*1000 -> 0.5026228981 | L7: =SUMPRODUCT($B$11:$B$411,L$11:L$411,PPF_YPF_DIN_BPF!$B$102:$B$502)/119500*1000 -> 0.5730749656 | M7: =SUMPRODUCT($B$11:$B$411,M$11:M$411,PPF_YPF_DIN_BPF!$B$102:$B$502)/119500*1000 -> 0.4591418337 | N7: =SUMPRODUCT($B$11:$B$411,N$11:N$411,PPF_YPF_DIN_BPF!$B$102:$B$502)/119500*1000 -> 0.475550514 | O7: =SUMPRODUCT($B$11:$B$411,O$11:O$411,PPF_YPF_DIN_BPF!$B$102:$B$502)/119500*1000 -> 0.459688772 | P7: =SUMPRODUCT($B$11:$B$411,P$11:P$411,PPF_YPF_DIN_BPF!$B$102:$B$502)/119500*1000 -> 0.5415063741 | Q7: =SUMPRODUCT($B$11:$B$411,Q$11:Q$411,PPF_YPF_DIN_BPF!$B$102:$B$502)/119500*1000 -> 0.4910447035 | R7: =SUMPRODUCT($B$11:$B$411,R$11:R$411,PPF_YPF_DIN_BPF!$B$102:$B$502)/119500*1000 -> 0.5341138781 | S7: =SUMPRODUCT($B$11:$B$411,S$11:S$411,PPF_YPF_DIN_BPF!$B$102:$B$502)/119500*1000 -> 0.75199142 | T7: =SUMPRODUCT($B$11:$B$411,T$11:T$411,PPF_YPF_DIN_BPF!$B$102:$B$502)/119500*1000 -> 0.3096574021 | U7: =SUMPRODUCT($B$11:$B$411,U$11:U$411,PPF_YPF_DIN_BPF!$B$102:$B$502)/119500*1000 -> 0.422595487 | V7: =SUMPRODUCT($B$11:$B$411,V$11:V$411,PPF_YPF_DIN_BPF!$B$102:$B$502)/119500*1000 -> 0.4839517819 | W7: =SUMPRODUCT($B$11:$B$411,W$11:W$411,PPF_YPF_DIN_BPF!$B$102:$B$502)/119500*1000 -> 0.325455275 | Y7: PPF | Z7: =SUM(AA7:AU7) -> 28.58964343 | AA7: =SUMPRODUCT($B$11:$B$411,AA$11:AA$411,PPF_YPF_DIN_BPF!$C$102:$C$502)/119500*1000 -> 10.08702276 | AB7: =SUMPRODUCT($B$11:$B$411,AB$11:AB$411,PPF_YPF_DIN_BPF!$C$102:$C$502)/119500*1000 -> 10.61513779 | AC7: =SUMPRODUCT($B$11:$B$411,AC$11:AC$411,PPF_YPF_DIN_BPF!$C$102:$C$502)/119500*1000 -> 0 | AD7: =SUMPRODUCT($B$11:$B$411,AD$11:AD$411,PPF_YPF_DIN_BPF!$C$102:$C$502)/119500*1000 -> 0 | AE7: =SUMPRODUCT($B$11:$B$411,AE$11:AE$411,PPF_YPF_DIN_BPF!$C$102:$C$502)/119500*1000 -> 0 | AF7: =SUMPRODUCT($B$11:$B$411,AF$11:AF$411,PPF_YPF_DIN_BPF!$C$102:$C$502)/119500*1000 -> 0 | AG7: =SUMPRODUCT($B$11:$B$411,AG$11:AG$411,PPF_YPF_DIN_BPF!$C$102:$C$502)/119500*1000 -> 0 | AH7: =SUMPRODUCT($B$11:$B$411,AH$11:AH$411,PPF_YPF_DIN_BPF!$C$102:$C$502)/119500*1000 -> 0 | AI7: =SUMPRODUCT($B$11:$B$411,AI$11:AI$411,PPF_YPF_DIN_BPF!$C$102:$C$502)/119500*1000 -> 0 | AJ7: =SUMPRODUCT($B$11:$B$411,AJ$11:AJ$411,PPF_YPF_DIN_BPF!$C$102:$C$502)/119500*1000 -> 0 | AK7: =SUMPRODUCT($B$11:$B$411,AK$11:AK$411,PPF_YPF_DIN_BPF!$C$102:$C$502)/119500*1000 -> 0 | AL7: =SUMPRODUCT($B$11:$B$411,AL$11:AL$411,PPF_YPF_DIN_BPF!$C$102:$C$502)/119500*1000 -> 0 | AM7: =SUMPRODUCT($B$11:$B$411,AM$11:AM$411,PPF_YPF_DIN_BPF!$C$102:$C$502)/119500*1000 -> 0 | AN7: =SUMPRODUCT($B$11:$B$411,AN$11:AN$411,PPF_YPF_DIN_BPF!$C$102:$C$502)/119500*1000 -> 0 | AO7: =SUMPRODUCT($B$11:$B$411,AO$11:AO$411,PPF_YPF_DIN_BPF!$C$102:$C$502)/119500*1000 -> 0 | AP7: =SUMPRODUCT($B$11:$B$411,AP$11:AP$411,PPF_YPF_DIN_BPF!$C$102:$C$502)/119500*1000 -> 0 | AQ7: =SUMPRODUCT($B$11:$B$411,AQ$11:AQ$411,PPF_YPF_DIN_BPF!$C$102:$C$502)/119500*1000 -> 0 | AR7: =SUMPRODUCT($B$11:$B$411,AR$11:AR$411,PPF_YPF_DIN_BPF!$C$102:$C$502)/119500*1000 -> 0 | AS7: =SUMPRODUCT($B$11:$B$411,AS$11:AS$411,PPF_YPF_DIN_BPF!$C$102:$C$502)/119500*1000 -> 0 | AT7: =SUMPRODUCT($B$11:$B$411,AT$11:AT$411,PPF_YPF_DIN_BPF!$C$102:$C$502)/119500*1000 -> 7.88748288 | AU7: =SUMPRODUCT($B$11:$B$411,AU$11:AU$411,PPF_YPF_DIN_BPF!$C$102:$C$502)/119500*1000 -> 0 | AW7: TOTAL | AX7: =SUM(AX11:AX411) -> 29.25137634 | AY7: 10.46371485 | AZ7: 10.89071564 | BA7: =SUM(BA11:BA411) -> 0 | BB7: 0 | BC7: 0 | BD7: =SUM(BD11:BD411) -> 0 | BE7: 0 | BF7: =SUM(BF11:BF411) -> 0 | BG7: 0 | BH7: =SUM(BH11:BH411) -> 0 | BI7: 0 | BJ7: =SUM(BJ11:BJ411) -> 0 | BK7: 0 | BL7: =SUM(BL11:BL411) -> 0 | BM7: =SUM(BM11:BM411) -> 0 | BN7: =SUM(BN11:BN411) -> 0 | BO7: 0 | BP7: =SUM(BP11:BP411) -> 0 | BQ7: 0 | BR7: =SUM(BR11:BR411) -> 7.896945839 | BS7: 0 | BT7: =OFFSET(BT1,BT1,0) -> SPD | BU7: PPF | CS7: =SUM(CS11:CS411) -> 28.58964343 | DB7: TOTAL | DC7: =SUM(CV11:CV411) -> 19.7464421 | DD7: =SUM(CU11:CU411) -> 26.00789073 | DE7: =SUM(CT11:CT411) -> 29.25137634 | DF7: =SUM(CS11:CS411) -> 28.58964343 | DJ7: =OFFSET(DB7,0,5-$BT$1) -> 28.58964343 | DL7: TOTAL | DM7: 380nm - 850nm | DN7: TOTAL | DP7: TOTAL | DQ7: =SUM(DF11:DF411) -> 14.03031842 | DR7: =SUM(DE11:DE411) -> 14.30414313 | DS7: =SUM(DD11:DD411) -> 12.5542199 | DT7: =SUM(DC11:DC411) -> 7.610327655 | DX7: 254 | DY7: 0 | DZ7: 0 | EA7: 0 | EB7: 0 | EC7: 0 | EG7: PPF | EH7: BPF | EI7: YPF | EJ7: DIN
B8: BPF | C8: =SUMPRODUCT($B$11:$B$411,C$11:C$411,PPF_YPF_DIN_BPF!$C$102:$C$502)/119500*1000 -> 0.504351138 | D8: =SUMPRODUCT($B$11:$B$411,D$11:D$411,PPF_YPF_DIN_BPF!$C$102:$C$502)/119500*1000 -> 0.5307568896 | E8: =SUMPRODUCT($B$11:$B$411,E$11:E$411,PPF_YPF_DIN_BPF!$C$102:$C$502)/119500*1000 -> 0.4909253177 | F8: =SUMPRODUCT($B$11:$B$411,F$11:F$411,PPF_YPF_DIN_BPF!$C$102:$C$502)/119500*1000 -> 0.5152671723 | G8: =SUMPRODUCT($B$11:$B$411,G$11:G$411,PPF_YPF_DIN_BPF!$C$102:$C$502)/119500*1000 -> 0.4863442452 | H8: =SUMPRODUCT($B$11:$B$411,H$11:H$411,PPF_YPF_DIN_BPF!$C$102:$C$502)/119500*1000 -> 0.5074461873 | I8: =SUMPRODUCT($B$11:$B$411,I$11:I$411,PPF_YPF_DIN_BPF!$C$102:$C$502)/119500*1000 -> 2.337315945 | J8: =SUMPRODUCT($B$11:$B$411,J$11:J$411,PPF_YPF_DIN_BPF!$C$102:$C$502)/119500*1000 -> 2.509243205 | K8: =SUMPRODUCT($B$11:$B$411,K$11:K$411,PPF_YPF_DIN_BPF!$C$102:$C$502)/119500*1000 -> 2.369392415 | L8: =SUMPRODUCT($B$11:$B$411,L$11:L$411,PPF_YPF_DIN_BPF!$C$102:$C$502)/119500*1000 -> 2.587545751 | M8: =SUMPRODUCT($B$11:$B$411,M$11:M$411,PPF_YPF_DIN_BPF!$C$102:$C$502)/119500*1000 -> 2.164917486 | N8: =SUMPRODUCT($B$11:$B$411,N$11:N$411,PPF_YPF_DIN_BPF!$C$102:$C$502)/119500*1000 -> 2.141722005 | O8: =SUMPRODUCT($B$11:$B$411,O$11:O$411,PPF_YPF_DIN_BPF!$C$102:$C$502)/119500*1000 -> 2.1520802 | P8: =SUMPRODUCT($B$11:$B$411,P$11:P$411,PPF_YPF_DIN_BPF!$C$102:$C$502)/119500*1000 -> 2.452438962 | Q8: =SUMPRODUCT($B$11:$B$411,Q$11:Q$411,PPF_YPF_DIN_BPF!$C$102:$C$502)/119500*1000 -> 2.310708993 | R8: =SUMPRODUCT($B$11:$B$411,R$11:R$411,PPF_YPF_DIN_BPF!$C$102:$C$502)/119500*1000 -> 2.41198961 | S8: =SUMPRODUCT($B$11:$B$411,S$11:S$411,PPF_YPF_DIN_BPF!$C$102:$C$502)/119500*1000 -> 2.840429446 | T8: =SUMPRODUCT($B$11:$B$411,T$11:T$411,PPF_YPF_DIN_BPF!$C$102:$C$502)/119500*1000 -> 1.623216552 | U8: =SUMPRODUCT($B$11:$B$411,U$11:U$411,PPF_YPF_DIN_BPF!$C$102:$C$502)/119500*1000 -> 2.308257179 | V8: =SUMPRODUCT($B$11:$B$411,V$11:V$411,PPF_YPF_DIN_BPF!$C$102:$C$502)/119500*1000 -> 2.628714106 | W8: =SUMPRODUCT($B$11:$B$411,W$11:W$411,PPF_YPF_DIN_BPF!$C$102:$C$502)/119500*1000 -> 0.2211321985 | Y8: BPF | Z8: 29.25137634 | AA8: =SUMPRODUCT($B$11:$B$411,AA$11:AA$411,PPF_YPF_DIN_BPF!$D$102:$D$502)/119500*1000 -> 10.46371485 | AB8: =SUMPRODUCT($B$11:$B$411,AB$11:AB$411,PPF_YPF_DIN_BPF!$D$102:$D$502)/119500*1000 -> 10.89071564 | AC8: =SUMPRODUCT($B$11:$B$411,AC$11:AC$411,PPF_YPF_DIN_BPF!$D$102:$D$502)/119500*1000 -> 0 | AD8: =SUMPRODUCT($B$11:$B$411,AD$11:AD$411,PPF_YPF_DIN_BPF!$D$102:$D$502)/119500*1000 -> 0 | AE8: =SUMPRODUCT($B$11:$B$411,AE$11:AE$411,PPF_YPF_DIN_BPF!$D$102:$D$502)/119500*1000 -> 0 | AF8: =SUMPRODUCT($B$11:$B$411,AF$11:AF$411,PPF_YPF_DIN_BPF!$D$102:$D$502)/119500*1000 -> 0 | AG8: =SUMPRODUCT($B$11:$B$411,AG$11:AG$411,PPF_YPF_DIN_BPF!$D$102:$D$502)/119500*1000 -> 0 | AH8: =SUMPRODUCT($B$11:$B$411,AH$11:AH$411,PPF_YPF_DIN_BPF!$D$102:$D$502)/119500*1000 -> 0 | AI8: =SUMPRODUCT($B$11:$B$411,AI$11:AI$411,PPF_YPF_DIN_BPF!$D$102:$D$502)/119500*1000 -> 0 | AJ8: =SUMPRODUCT($B$11:$B$411,AJ$11:AJ$411,PPF_YPF_DIN_BPF!$D$102:$D$502)/119500*1000 -> 0 | AK8: =SUMPRODUCT($B$11:$B$411,AK$11:AK$411,PPF_YPF_DIN_BPF!$D$102:$D$502)/119500*1000 -> 0 | AL8: =SUMPRODUCT($B$11:$B$411,AL$11:AL$411,PPF_YPF_DIN_BPF!$D$102:$D$502)/119500*1000 -> 0 | AM8: =SUMPRODUCT($B$11:$B$411,AM$11:AM$411,PPF_YPF_DIN_BPF!$D$102:$D$502)/119500*1000 -> 0 | AN8: =SUMPRODUCT($B$11:$B$411,AN$11:AN$411,PPF_YPF_DIN_BPF!$D$102:$D$502)/119500*1000 -> 0 | AO8: =SUMPRODUCT($B$11:$B$411,AO$11:AO$411,PPF_YPF_DIN_BPF!$D$102:$D$502)/119500*1000 -> 0 | AP8: =SUMPRODUCT($B$11:$B$411,AP$11:AP$411,PPF_YPF_DIN_BPF!$D$102:$D$502)/119500*1000 -> 0 | AQ8: =SUMPRODUCT($B$11:$B$411,AQ$11:AQ$411,PPF_YPF_DIN_BPF!$D$102:$D$502)/119500*1000 -> 0 | AR8: =SUMPRODUCT($B$11:$B$411,AR$11:AR$411,PPF_YPF_DIN_BPF!$D$102:$D$502)/119500*1000 -> 0 | AS8: =SUMPRODUCT($B$11:$B$411,AS$11:AS$411,PPF_YPF_DIN_BPF!$D$102:$D$502)/119500*1000 -> 0 | AT8: =SUMPRODUCT($B$11:$B$411,AT$11:AT$411,PPF_YPF_DIN_BPF!$D$102:$D$502)/119500*1000 -> 7.896945839 | AU8: =SUMPRODUCT($B$11:$B$411,AU$11:AU$411,PPF_YPF_DIN_BPF!$D$102:$D$502)/119500*1000 -> 0 | AW8: Blue | AX8: =SUM(AX51:AX111) -> 2.985292644 | AY8: 0.9192363501 | AZ8: 2.065329446 | BA8: =SUM(BA51:BA111) -> 0 | BB8: 0 | BC8: =SUM(BC51:BC111) -> 0 | BD8: =SUM(BD51:BD111) -> 0 | BE8: =SUM(BE51:BE111) -> 0 | BF8: =SUM(BF51:BF111) -> 0 | BG8: =SUM(BG51:BG111) -> 0 | BH8: =SUM(BH51:BH111) -> 0 | BI8: 0 | BJ8: =SUM(BJ51:BJ111) -> 0 | BK8: 0 | BL8: =SUM(BL51:BL111) -> 0 | BM8: =SUM(BM51:BM111) -> 0 | BN8: =SUM(BN51:BN111) -> 0 | BO8: 0 | BP8: =SUM(BP51:BP111) -> 0 | BQ8: 0 | BR8: =SUM(BR51:BR111) -> 0.0007268480012 | BS8: 0 | BU8: BPF | CT8: =SUM(CT11:CT411) -> 29.25137634 | DB8: Blue | DC8: =SUM(CV51:CV111) -> 2.819796948 | DD8: =SUM(CU51:CU111) -> 2.245668856 | DE8: =SUM(CT51:CT111) -> 2.985292644 | DF8: =SUM(CS51:CS111) -> 2.985292644 | DJ8: =OFFSET(DB8,0,5-$BT$1) -> 2.985292644 | DL8: Blue | DM8: 420nm - 480nm | DN8: =OFFSET(DB7,0,6-$BT$1) -> 0 | DP8: Blue | DQ8: =SUM(DF51:DF111) -> 0 | DR8: =SUM(DE51:DE111) -> 0 | DS8: =SUM(DD51:DD111) -> 0 | DT8: =SUM(DC51:DC111) -> 0 | DX8: 255 | DY8: 0 | DZ8: 0 | EA8: 0 | EB8: 0 | EC8: 0 | EG8: =Graph_Data!DF7 -> 28.58964343 | EH8: =Graph_Data!DE7 -> 29.25137634 | EI8: =Graph_Data!DD7 -> 26.00789073 | EJ8: =Graph_Data!DC7 -> 19.7464421
B9: YPF | C9: =SUMPRODUCT($B$11:$B$411,C$11:C$411,PPF_YPF_DIN_BPF!$D$102:$D$502)/119500*1000 -> 0.5231857426 | D9: =SUMPRODUCT($B$11:$B$411,D$11:D$411,PPF_YPF_DIN_BPF!$D$102:$D$502)/119500*1000 -> 0.5445357822 | E9: =SUMPRODUCT($B$11:$B$411,E$11:E$411,PPF_YPF_DIN_BPF!$D$102:$D$502)/119500*1000 -> 0.5076382643 | F9: =SUMPRODUCT($B$11:$B$411,F$11:F$411,PPF_YPF_DIN_BPF!$D$102:$D$502)/119500*1000 -> 0.5253614087 | G9: =SUMPRODUCT($B$11:$B$411,G$11:G$411,PPF_YPF_DIN_BPF!$D$102:$D$502)/119500*1000 -> 0.5028424837 | H9: =SUMPRODUCT($B$11:$B$411,H$11:H$411,PPF_YPF_DIN_BPF!$D$102:$D$502)/119500*1000 -> 0.5172289425 | I9: =SUMPRODUCT($B$11:$B$411,I$11:I$411,PPF_YPF_DIN_BPF!$D$102:$D$502)/119500*1000 -> 2.402298463 | J9: =SUMPRODUCT($B$11:$B$411,J$11:J$411,PPF_YPF_DIN_BPF!$D$102:$D$502)/119500*1000 -> 2.550196888 | K9: =SUMPRODUCT($B$11:$B$411,K$11:K$411,PPF_YPF_DIN_BPF!$D$102:$D$502)/119500*1000 -> 2.434606222 | L9: =SUMPRODUCT($B$11:$B$411,L$11:L$411,PPF_YPF_DIN_BPF!$D$102:$D$502)/119500*1000 -> 2.641977857 | M9: =SUMPRODUCT($B$11:$B$411,M$11:M$411,PPF_YPF_DIN_BPF!$D$102:$D$502)/119500*1000 -> 2.223860753 | N9: =SUMPRODUCT($B$11:$B$411,N$11:N$411,PPF_YPF_DIN_BPF!$D$102:$D$502)/119500*1000 -> 2.195600176 | O9: =SUMPRODUCT($B$11:$B$411,O$11:O$411,PPF_YPF_DIN_BPF!$D$102:$D$502)/119500*1000 -> 2.24438323 | P9: =SUMPRODUCT($B$11:$B$411,P$11:P$411,PPF_YPF_DIN_BPF!$D$102:$D$502)/119500*1000 -> 2.520807171 | Q9: =SUMPRODUCT($B$11:$B$411,Q$11:Q$411,PPF_YPF_DIN_BPF!$D$102:$D$502)/119500*1000 -> 2.400319939 | R9: =SUMPRODUCT($B$11:$B$411,R$11:R$411,PPF_YPF_DIN_BPF!$D$102:$D$502)/119500*1000 -> 2.474862143 | S9: =SUMPRODUCT($B$11:$B$411,S$11:S$411,PPF_YPF_DIN_BPF!$D$102:$D$502)/119500*1000 -> 2.844567145 | T9: =SUMPRODUCT($B$11:$B$411,T$11:T$411,PPF_YPF_DIN_BPF!$D$102:$D$502)/119500*1000 -> 1.623509784 | U9: =SUMPRODUCT($B$11:$B$411,U$11:U$411,PPF_YPF_DIN_BPF!$D$102:$D$502)/119500*1000 -> 2.311403284 | V9: =SUMPRODUCT($B$11:$B$411,V$11:V$411,PPF_YPF_DIN_BPF!$D$102:$D$502)/119500*1000 -> 2.631319245 | W9: =SUMPRODUCT($B$11:$B$411,W$11:W$411,PPF_YPF_DIN_BPF!$D$102:$D$502)/119500*1000 -> 1.962369563 | Y9: YPF | Z9: 26.00789073 | AA9: =SUMPRODUCT($B$11:$B$411,AA$11:AA$411,PPF_YPF_DIN_BPF!$E$102:$E$502)/119500*1000 -> 9.191527625 | AB9: =SUMPRODUCT($B$11:$B$411,AB$11:AB$411,PPF_YPF_DIN_BPF!$E$102:$E$502)/119500*1000 -> 9.287467124 | AC9: =SUMPRODUCT($B$11:$B$411,AC$11:AC$411,PPF_YPF_DIN_BPF!$E$102:$E$502)/119500*1000 -> 0 | AD9: =SUMPRODUCT($B$11:$B$411,AD$11:AD$411,PPF_YPF_DIN_BPF!$E$102:$E$502)/119500*1000 -> 0 | AE9: =SUMPRODUCT($B$11:$B$411,AE$11:AE$411,PPF_YPF_DIN_BPF!$E$102:$E$502)/119500*1000 -> 0 | AF9: =SUMPRODUCT($B$11:$B$411,AF$11:AF$411,PPF_YPF_DIN_BPF!$E$102:$E$502)/119500*1000 -> 0 | AG9: =SUMPRODUCT($B$11:$B$411,AG$11:AG$411,PPF_YPF_DIN_BPF!$E$102:$E$502)/119500*1000 -> 0 | AH9: =SUMPRODUCT($B$11:$B$411,AH$11:AH$411,PPF_YPF_DIN_BPF!$E$102:$E$502)/119500*1000 -> 0 | AI9: =SUMPRODUCT($B$11:$B$411,AI$11:AI$411,PPF_YPF_DIN_BPF!$E$102:$E$502)/119500*1000 -> 0 | AJ9: =SUMPRODUCT($B$11:$B$411,AJ$11:AJ$411,PPF_YPF_DIN_BPF!$E$102:$E$502)/119500*1000 -> 0 | AK9: =SUMPRODUCT($B$11:$B$411,AK$11:AK$411,PPF_YPF_DIN_BPF!$E$102:$E$502)/119500*1000 -> 0 | AL9: =SUMPRODUCT($B$11:$B$411,AL$11:AL$411,PPF_YPF_DIN_BPF!$E$102:$E$502)/119500*1000 -> 0 | AM9: =SUMPRODUCT($B$11:$B$411,AM$11:AM$411,PPF_YPF_DIN_BPF!$E$102:$E$502)/119500*1000 -> 0 | AN9: =SUMPRODUCT($B$11:$B$411,AN$11:AN$411,PPF_YPF_DIN_BPF!$E$102:$E$502)/119500*1000 -> 0 | AO9: =SUMPRODUCT($B$11:$B$411,AO$11:AO$411,PPF_YPF_DIN_BPF!$E$102:$E$502)/119500*1000 -> 0 | AP9: =SUMPRODUCT($B$11:$B$411,AP$11:AP$411,PPF_YPF_DIN_BPF!$E$102:$E$502)/119500*1000 -> 0 | AQ9: =SUMPRODUCT($B$11:$B$411,AQ$11:AQ$411,PPF_YPF_DIN_BPF!$E$102:$E$502)/119500*1000 -> 0 | AR9: =SUMPRODUCT($B$11:$B$411,AR$11:AR$411,PPF_YPF_DIN_BPF!$E$102:$E$502)/119500*1000 -> 0 | AS9: =SUMPRODUCT($B$11:$B$411,AS$11:AS$411,PPF_YPF_DIN_BPF!$E$102:$E$502)/119500*1000 -> 0 | AT9: =SUMPRODUCT($B$11:$B$411,AT$11:AT$411,PPF_YPF_DIN_BPF!$E$102:$E$502)/119500*1000 -> 7.528895979 | AU9: =SUMPRODUCT($B$11:$B$411,AU$11:AU$411,PPF_YPF_DIN_BPF!$E$102:$E$502)/119500*1000 -> 0 | AW9: Red | AX9: =SUM(AX251:AX301) -> 11.57403237 | AY9: 2.378379393 | AZ9: 1.613992628 | BA9: =SUM(BA251:BA301) -> 0 | BB9: 0 | BC9: =SUM(BC251:BC301) -> 0 | BD9: =SUM(BD251:BD301) -> 0 | BE9: 0 | BF9: =SUM(BF251:BF301) -> 0 | BG9: 0 | BH9: =SUM(BH251:BH301) -> 0 | BI9: 0 | BJ9: =SUM(BJ251:BJ301) -> 0 | BK9: 0 | BL9: =SUM(BL251:BL301) -> 0 | BM9: =SUM(BM251:BM301) -> 0 | BN9: =SUM(BN251:BN301) -> 0 | BO9: 0 | BP9: =SUM(BP251:BP301) -> 0 | BQ9: 0 | BR9: =SUM(BR251:BR301) -> 7.581660348 | BS9: 0 | BU9: YPF | CU9: =SUM(CU11:CU411) -> 26.00789073 | DB9: DeepRed | DC9: =SUM(CV251:CV301) -> 9.294519683 | DD9: =SUM(CU251:CU301) -> 11.12953698 | DE9: =SUM(CT251:CT301) -> 11.57403237 | DF9: =SUM(CS251:CS301) -> 11.57403237 | DJ9: 11.57403237 | DL9: Red | DM9: 620nm - 670nm | DN9: =OFFSET(DB9,0,6-$BT$1) -> 0 | DP9: DeepRed | DQ9: =SUM(DF251:DF301) -> 0 | DR9: =SUM(DE251:DE301) -> 0 | DS9: =SUM(DD251:DD301) -> 0 | DT9: =SUM(DC251:DC301) -> 0 | DX9: 256 | DY9: 0 | DZ9: 0 | EA9: 0 | EB9: 0 | EC9: 0
B10: DIN | C10: =SUMPRODUCT($B$11:$B$411,C$11:C$411,PPF_YPF_DIN_BPF!$E$102:$E$502)/119500*1000 -> 0.4595763812 | D10: =SUMPRODUCT($B$11:$B$411,D$11:D$411,PPF_YPF_DIN_BPF!$E$102:$E$502)/119500*1000 -> 0.4643733562 | E10: =SUMPRODUCT($B$11:$B$411,E$11:E$411,PPF_YPF_DIN_BPF!$E$102:$E$502)/119500*1000 -> 0.444346647 | F10: =SUMPRODUCT($B$11:$B$411,F$11:F$411,PPF_YPF_DIN_BPF!$E$102:$E$502)/119500*1000 -> 0.4484350772 | G10: =SUMPRODUCT($B$11:$B$411,G$11:G$411,PPF_YPF_DIN_BPF!$E$102:$E$502)/119500*1000 -> 0.4410823559 | H10: =SUMPRODUCT($B$11:$B$411,H$11:H$411,PPF_YPF_DIN_BPF!$E$102:$E$502)/119500*1000 -> 0.4423213992 | I10: =SUMPRODUCT($B$11:$B$411,I$11:I$411,PPF_YPF_DIN_BPF!$E$102:$E$502)/119500*1000 -> 2.132374737 | J10: =SUMPRODUCT($B$11:$B$411,J$11:J$411,PPF_YPF_DIN_BPF!$E$102:$E$502)/119500*1000 -> 2.190988817 | K10: =SUMPRODUCT($B$11:$B$411,K$11:K$411,PPF_YPF_DIN_BPF!$E$102:$E$502)/119500*1000 -> 2.16278094 | L10: =SUMPRODUCT($B$11:$B$411,L$11:L$411,PPF_YPF_DIN_BPF!$E$102:$E$502)/119500*1000 -> 2.272329203 | M10: =SUMPRODUCT($B$11:$B$411,M$11:M$411,PPF_YPF_DIN_BPF!$E$102:$E$502)/119500*1000 -> 1.97760281 | N10: =SUMPRODUCT($B$11:$B$411,N$11:N$411,PPF_YPF_DIN_BPF!$E$102:$E$502)/119500*1000 -> 1.868310532 | O10: =SUMPRODUCT($B$11:$B$411,O$11:O$411,PPF_YPF_DIN_BPF!$E$102:$E$502)/119500*1000 -> 1.959390632 | P10: =SUMPRODUCT($B$11:$B$411,P$11:P$411,PPF_YPF_DIN_BPF!$E$102:$E$502)/119500*1000 -> 2.141789757 | Q10: =SUMPRODUCT($B$11:$B$411,Q$11:Q$411,PPF_YPF_DIN_BPF!$E$102:$E$502)/119500*1000 -> 2.107304325 | R10: =SUMPRODUCT($B$11:$B$411,R$11:R$411,PPF_YPF_DIN_BPF!$E$102:$E$502)/119500*1000 -> 2.105912794 | S10: =SUMPRODUCT($B$11:$B$411,S$11:S$411,PPF_YPF_DIN_BPF!$E$102:$E$502)/119500*1000 -> 2.150281659 | T10: =SUMPRODUCT($B$11:$B$411,T$11:T$411,PPF_YPF_DIN_BPF!$E$102:$E$502)/119500*1000 -> 1.616341512 | U10: =SUMPRODUCT($B$11:$B$411,U$11:U$411,PPF_YPF_DIN_BPF!$E$102:$E$502)/119500*1000 -> 2.184658438 | V10: =SUMPRODUCT($B$11:$B$411,V$11:V$411,PPF_YPF_DIN_BPF!$E$102:$E$502)/119500*1000 -> 2.509205502 | W10: =SUMPRODUCT($B$11:$B$411,W$11:W$411,PPF_YPF_DIN_BPF!$E$102:$E$502)/119500*1000 -> 0.5191193394 | Y10: DIN | Z10: 19.7464421 | AA10: =SUMPRODUCT($B$11:$B$411,AA$11:AA$411,PPF_YPF_DIN_BPF!$F$102:$F$502)/119500*1000 -> 6.464174454 | AB10: =SUMPRODUCT($B$11:$B$411,AB$11:AB$411,PPF_YPF_DIN_BPF!$F$102:$F$502)/119500*1000 -> 6.885801491 | AC10: =SUMPRODUCT($B$11:$B$411,AC$11:AC$411,PPF_YPF_DIN_BPF!$F$102:$F$502)/119500*1000 -> 0 | AD10: =SUMPRODUCT($B$11:$B$411,AD$11:AD$411,PPF_YPF_DIN_BPF!$F$102:$F$502)/119500*1000 -> 0 | AE10: =SUMPRODUCT($B$11:$B$411,AE$11:AE$411,PPF_YPF_DIN_BPF!$F$102:$F$502)/119500*1000 -> 0 | AF10: =SUMPRODUCT($B$11:$B$411,AF$11:AF$411,PPF_YPF_DIN_BPF!$F$102:$F$502)/119500*1000 -> 0 | AG10: =SUMPRODUCT($B$11:$B$411,AG$11:AG$411,PPF_YPF_DIN_BPF!$F$102:$F$502)/119500*1000 -> 0 | AH10: =SUMPRODUCT($B$11:$B$411,AH$11:AH$411,PPF_YPF_DIN_BPF!$F$102:$F$502)/119500*1000 -> 0 | AI10: =SUMPRODUCT($B$11:$B$411,AI$11:AI$411,PPF_YPF_DIN_BPF!$F$102:$F$502)/119500*1000 -> 0 | AJ10: =SUMPRODUCT($B$11:$B$411,AJ$11:AJ$411,PPF_YPF_DIN_BPF!$F$102:$F$502)/119500*1000 -> 0 | AK10: =SUMPRODUCT($B$11:$B$411,AK$11:AK$411,PPF_YPF_DIN_BPF!$F$102:$F$502)/119500*1000 -> 0 | AL10: =SUMPRODUCT($B$11:$B$411,AL$11:AL$411,PPF_YPF_DIN_BPF!$F$102:$F$502)/119500*1000 -> 0 | AM10: =SUMPRODUCT($B$11:$B$411,AM$11:AM$411,PPF_YPF_DIN_BPF!$F$102:$F$502)/119500*1000 -> 0 | AN10: =SUMPRODUCT($B$11:$B$411,AN$11:AN$411,PPF_YPF_DIN_BPF!$F$102:$F$502)/119500*1000 -> 0 | AO10: =SUMPRODUCT($B$11:$B$411,AO$11:AO$411,PPF_YPF_DIN_BPF!$F$102:$F$502)/119500*1000 -> 0 | AP10: =SUMPRODUCT($B$11:$B$411,AP$11:AP$411,PPF_YPF_DIN_BPF!$F$102:$F$502)/119500*1000 -> 0 | AQ10: =SUMPRODUCT($B$11:$B$411,AQ$11:AQ$411,PPF_YPF_DIN_BPF!$F$102:$F$502)/119500*1000 -> 0 | AR10: =SUMPRODUCT($B$11:$B$411,AR$11:AR$411,PPF_YPF_DIN_BPF!$F$102:$F$502)/119500*1000 -> 0 | AS10: =SUMPRODUCT($B$11:$B$411,AS$11:AS$411,PPF_YPF_DIN_BPF!$F$102:$F$502)/119500*1000 -> 0 | AT10: =SUMPRODUCT($B$11:$B$411,AT$11:AT$411,PPF_YPF_DIN_BPF!$F$102:$F$502)/119500*1000 -> 6.396466155 | AU10: =SUMPRODUCT($B$11:$B$411,AU$11:AU$411,PPF_YPF_DIN_BPF!$F$102:$F$502)/119500*1000 -> 0 | AW10: FarRed | AX10: =SUM(AX341:AX381) -> 0.3879081925 | AY10: 0.2223737476 | AZ10: 0.1612660399 | BA10: =SUM(BA341:BA381) -> 0 | BB10: 0 | BC10: =SUM(BC341:BC381) -> 0 | BD10: =SUM(BD341:BD381) -> 0 | BE10: =SUM(BE341:BE381) -> 0 | BF10: 0 | BG10: =SUM(BG341:BG381) -> 0 | BH10: 0 | BI10: 0 | BJ10: =SUM(BJ341:BJ381) -> 0 | BK10: 0 | BL10: =SUM(BL341:BL381) -> 0 | BM10: =SUM(BM341:BM381) -> 0 | BN10: =SUM(BN341:BN381) -> 0 | BO10: 0 | BP10: =SUM(BP341:BP381) -> 0 | BQ10: 0 | BR10: =SUM(BR341:BR381) -> 0.004268405016 | BS10: 0 | BU10: DIN | CV10: =SUM(CV11:CV411) -> 19.7464421 | DB10: FarRed | DC10: =SUM(CV341:CV381) -> 0.0217978149 | DD10: =SUM(CU341:CU381) -> 0.07846499601 | DE10: =SUM(CT341:CT381) -> 0.3879081925 | DF10: =SUM(CS341:CS381) -> 0 | DJ10: 0 | DL10: Far Red | DM10: 710nm - 750nm | DN10: =OFFSET(DB8,0,6-$BT$1) -> 0 | DP10: FarRed | DQ10: =SUM(DF341:DF381) -> 0 | DR10: =SUM(DE341:DE381) -> 0 | DS10: =SUM(DD341:DD381) -> 0 | DT10: =SUM(DC341:DC381) -> 0 | DX10: 257 | DY10: 0 | DZ10: 0 | EA10: 0 | EB10: 0 | EC10: 0
A11: 파장 (nm) | B11: 380 | C11: =OFFSET(LM301H!H7,0,LM301H!$B$13) -> 1.021352173e-06 | D11: =OFFSET(LM301H!H7,0,LM301H!$B$31) -> 2.942213633e-06 | E11: =OFFSET(LM301H_D!H7,0,LM301H_D!$B$13) -> 2.196753745e-06 | F11: =OFFSET(LM301H_D!H7,0,LM301H_D!$B$31) -> 3.297994422e-06 | G11: =OFFSET(LM561H!$H7,0,LM561H!$B$13) -> 1.087108206e-06 | H11: =OFFSET(LM561H!$H7,0,LM561H!$B$31) -> 2.524749979e-06 | I11: =OFFSET(LH181B!$H7,0,LH181B!$B$14) -> 7.674349348e-06 | J11: =OFFSET(LH181B!$H7,0,LH181B!$B$32) -> 1.740053882e-05 | K11: =OFFSET(LH231B!$H7,0,LH231B!$B$14) -> 8.884046866e-06 | L11: =OFFSET(LH231B!$H7,0,LH231B!$B$32) -> 1.597103545e-05 | M11: =OFFSET(LH351H_B!$H7,0,LH351H_B!$B$14) -> 5.31373372e-06 | N11: =OFFSET(LH351H_B!$H7,0,LH351H_B!$B$32) -> 1.184723932e-05 | O11: =OFFSET(LH351H_C!$H7,0,LH351H_C!$B$14) -> 2.520017903e-06 | P11: =OFFSET(LH351H_C!$H7,0,LH351H_C!$B$32) -> 5.871792006e-06 | Q11: =OFFSET(LH351H_D!$H7,0,LH351H_D!$B$14) -> 5.492943268e-06 | R11: =OFFSET(LH351H_D!$H7,0,LH351H_D!$B$32) -> 1.138212799e-05 | S11: =OFFSET(LH351H_450nm!H7,0,LH351H_450nm!$B$13) -> 2.429152471e-05 | T11: =OFFSET(LH351H_630nm!H7,0,LH351H_630nm!$B$13) -> -4.17667144e-06 | U11: =OFFSET(LH351H_660nm!H7,0,LH351H_660nm!$B$13) -> -1.722536835e-06 | V11: =OFFSET(LH351H_660nm_V2!H7,0,LH351H_660nm_V2!$B$13) -> -1.413473658e-06 | W11: =OFFSET(LH351H_730nm!H7,0,LH351H_730nm!$B$13) -> 8.954693063e-08 | Y11: 380 | Z11: 7.927131612e-05 | AA11: =MAX(C11*IF(Calculator!$D$4>=0,Calculator!$D$4,0),0) -> 2.042704345e-05 | AB11: =MAX(D11*IF(Calculator!$D$5>=0,Calculator!$D$5,0),0) -> 5.884427267e-05 | AC11: =MAX(E11*IF(Calculator!$D$6>=0,Calculator!$D$6,0),0) -> 0 | AD11: =MAX(F11*IF(Calculator!$D$7>=0,Calculator!$D$7,0),0) -> 0 | AE11: =MAX(G11*IF(Calculator!$D$8>=0,Calculator!$D$8,0),0) -> 0 | AF11: =MAX(H11*IF(Calculator!$D$9>=0,Calculator!$D$9,0),0) -> 0 | AG11: =MAX(I11*IF(Calculator!$D$10>=0,Calculator!$D$10,0),0) -> 0 | AH11: =MAX(J11*IF(Calculator!$D$11>=0,Calculator!$D$11,0),0) -> 0 | AI11: =MAX(K11*IF(Calculator!$D$12>=0,Calculator!$D$12,0),0) -> 0 | AJ11: =MAX(L11*IF(Calculator!$D$13>=0,Calculator!$D$13,0),0) -> 0 | AK11: =MAX(M11*IF(Calculator!$D$14>=0,Calculator!$D$14,0),0) -> 0 | AL11: =MAX(N11*IF(Calculator!$D$15>=0,Calculator!$D$15,0),0) -> 0 | AM11: =MAX(O11*IF(Calculator!$D$16>=0,Calculator!$D$16,0),0) -> 0 | AN11: =MAX(P11*IF(Calculator!$D$17>=0,Calculator!$D$17,0),0) -> 0 | AO11: =MAX(Q11*IF(Calculator!$D$18>=0,Calculator!$D$18,0),0) -> 0 | AP11: =MAX(R11*IF(Calculator!$D$19>=0,Calculator!$D$19,0),0) -> 0 | AQ11: =MAX(S11*IF(Calculator!$D$20>=0,Calculator!$D$20,0),0) -> 0 | AR11: =MAX(T11*IF(Calculator!$D$21>=0,Calculator!$D$21,0),0) -> 0 | AS11: =MAX(U11*IF(Calculator!$D$22>=0,Calculator!$D$22,0),0) -> 0 | AT11: =MAX(V11*IF(Calculator!$D$23>=0,Calculator!$D$23,0),0) -> 0 | AU11: =MAX(W11*IF(Calculator!$D$24>=0,Calculator!$D$24,0),0) -> 0 | AW11: 380 | AX11: =Z11*$Y11/119.5 -> 0.0002520761517 | AY11: 6.495628881e-05 | AZ11: 0.0001871198629 | BA11: 0 | BB11: 0 | BC11: 0 | BD11: 0 | BE11: 0 | BF11: 0 | BG11: 0 | BH11: 0 | BI11: 0 | BJ11: =AL11*$Y11/119.5 -> 0 | BK11: =AM11*$Y11/119.5 -> 0 | BL11: =AN11*$Y11/119.5 -> 0 | BM11: =AO11*$Y11/119.5 -> 0 | BN11: =AP11*$Y11/119.5 -> 0 | BO11: =AQ11*$Y11/119.5 -> 0 | BP11: =AR11*$Y11/119.5 -> 0 | BQ11: =AS11*$Y11/119.5 -> 0 | BR11: =AT11*$Y11/119.5 -> 0 | BS11: =AU11*$Y11/119.5 -> 0 | BU11: 380 | BV11: =AX11*OFFSET(PPF_YPF_DIN_BPF!$A$101,ROW()-10,$BT$1) -> 7.927131612e-05 | BW11: =AY11*OFFSET(PPF_YPF_DIN_BPF!$A$101,ROW()-10,$BT$1) -> 2.042704345e-05 | BX11: =AZ11*OFFSET(PPF_YPF_DIN_BPF!$A$101,ROW()-10,$BT$1) -> 5.884427267e-05 | BY11: =BA11*OFFSET(PPF_YPF_DIN_BPF!$A$101,ROW()-10,$BT$1) -> 0 | BZ11: =BB11*OFFSET(PPF_YPF_DIN_BPF!$A$101,ROW()-10,$BT$1) -> 0 | CA11: =BC11*OFFSET(PPF_YPF_DIN_BPF!$A$101,ROW()-10,$BT$1) -> 0 | CB11: =BD11*OFFSET(PPF_YPF_DIN_BPF!$A$101,ROW()-10,$BT$1) -> 0 | CC11: =BE11*OFFSET(PPF_YPF_DIN_BPF!$A$101,ROW()-10,$BT$1) -> 0 | CD11: =BF11*OFFSET(PPF_YPF_DIN_BPF!$A$101,ROW()-10,$BT$1) -> 0 | CE11: =BG11*OFFSET(PPF_YPF_DIN_BPF!$A$101,ROW()-10,$BT$1) -> 0 | CF11: =BH11*OFFSET(PPF_YPF_DIN_BPF!$A$101,ROW()-10,$BT$1) -> 0 | CG11: =BI11*OFFSET(PPF_YPF_DIN_BPF!$A$101,ROW()-10,$BT$1) -> 0 | CH11: =BJ11*OFFSET(PPF_YPF_DIN_BPF!$A$101,ROW()-10,$BT$1) -> 0 | CI11: =BK11*OFFSET(PPF_YPF_DIN_BPF!$A$101,ROW()-10,$BT$1) -> 0 | CJ11: =BL11*OFFSET(PPF_YPF_DIN_BPF!$A$101,ROW()-10,$BT$1) -> 0 | CK11: =BM11*OFFSET(PPF_YPF_DIN_BPF!$A$101,ROW()-10,$BT$1) -> 0 | CL11: =BN11*OFFSET(PPF_YPF_DIN_BPF!$A$101,ROW()-10,$BT$1) -> 0 | CM11: =BO11*OFFSET(PPF_YPF_DIN_BPF!$A$101,ROW()-10,$BT$1) -> 0 | CN11: =BP11*OFFSET(PPF_YPF_DIN_BPF!$A$101,ROW()-10,$BT$1) -> 0 | CO11: =BQ11*OFFSET(PPF_YPF_DIN_BPF!$A$101,ROW()-10,$BT$1) -> 0 | CP11: =BR11*OFFSET(PPF_YPF_DIN_BPF!$A$101,ROW()-10,$BT$1) -> 0 | CQ11: =BS11*OFFSET(PPF_YPF_DIN_BPF!$A$101,ROW()-10,$BT$1) -> 0 | CS11: =AX11*OFFSET(PPF_YPF_DIN_BPF!$A$101,ROW()-10,1+1) -> 0 | CT11: =AX11*OFFSET(PPF_YPF_DIN_BPF!$A$101,ROW()-10,2+1) -> 0.0002520761517 | CU11: =AX11*OFFSET(PPF_YPF_DIN_BPF!$A$101,ROW()-10,3+1) -> 0.0001205491176 | CV11: =AX11*OFFSET(PPF_YPF_DIN_BPF!$A$101,ROW()-10,4+1) -> 0 | CW11: =PPF_YPF_DIN_BPF!I2*Graph_Data!CW$2 -> 0.0141770483 | CX11: =PPF_YPF_DIN_BPF!J2*Graph_Data!CX$2 -> 0.01695338692 | CY11: =PPF_YPF_DIN_BPF!K2*Graph_Data!CY$2 -> 0.008468673884 | DB11: etc. | DC11: =IF(SUM(DC8:DC10)<=0,0.000001,DC7-SUM(DC8:DC10)) -> 7.610327655 | DD11: =IF(SUM(DD8:DD10)<=0,0.000001,DD7-SUM(DD8:DD10)) -> 12.5542199 | DE11: =IF(SUM(DE8:DE10)<=0,0.000001,DE7-SUM(DE8:DE10)) -> 14.30414313 | DF11: =IF(SUM(DF8:DF10)<=0,0.000001,DF7-SUM(DF8:DF10)) -> 14.03031842 | DJ11: 14.03031842 | DL11: Other | DM11: Other range | DN11: =OFFSET(DB15,0,6-$BT$1) -> 0 | DP11: Other | DQ11: =DQ7-SUM(DQ8:DQ10) -> 14.03031842 | DR11: =DR7-SUM(DR8:DR10) -> 14.30414313 | DS11: =DS7-SUM(DS8:DS10) -> 12.5542199 | DT11: =DT7-SUM(DT8:DT10) -> 7.610327655 | DX11: 258 | DY11: 0 | DZ11: 0 | EA11: 0 | EB11: 0 | EC11: 0
B12: 381 | C12: =OFFSET(LM301H!H8,0,LM301H!$B$13) -> 1.326901902e-06 | D12: =OFFSET(LM301H!H8,0,LM301H!$B$31) -> 2.276558345e-06 | E12: =OFFSET(LM301H_D!H8,0,LM301H_D!$B$13) -> 2.05349101e-06 | F12: =OFFSET(LM301H_D!H8,0,LM301H_D!$B$31) -> 2.779315168e-06 | G12: =OFFSET(LM561H!$H8,0,LM561H!$B$13) -> 1.627592712e-06 | H12: =OFFSET(LM561H!$H8,0,LM561H!$B$31) -> 2.301890736e-06 | I12: =OFFSET(LH181B!$H8,0,LH181B!$B$14) -> 7.370600421e-06 | J12: =OFFSET(LH181B!$H8,0,LH181B!$B$32) -> 1.667255559e-05 | K12: =OFFSET(LH231B!$H8,0,LH231B!$B$14) -> 8.388081565e-06 | L12: =OFFSET(LH231B!$H8,0,LH231B!$B$32) -> 1.720852151e-05 | M12: =OFFSET(LH351H_B!$H8,0,LH351H_B!$B$14) -> 5.123084653e-06 | N12: =OFFSET(LH351H_B!$H8,0,LH351H_B!$B$32) -> 1.402097849e-05 | O12: =OFFSET(LH351H_C!$H8,0,LH351H_C!$B$14) -> 5.300603701e-06 | P12: =OFFSET(LH351H_C!$H8,0,LH351H_C!$B$32) -> 1.037510201e-05 | Q12: =OFFSET(LH351H_D!$H8,0,LH351H_D!$B$14) -> 7.507283302e-06 | R12: =OFFSET(LH351H_D!$H8,0,LH351H_D!$B$32) -> 1.180736562e-05 | S12: =OFFSET(LH351H_450nm!H8,0,LH351H_450nm!$B$13) -> 2.856319237e-05 | T12: =OFFSET(LH351H_630nm!H8,0,LH351H_630nm!$B$13) -> 4.748603032e-07 | U12: =OFFSET(LH351H_660nm!H8,0,LH351H_660nm!$B$13) -> -1.978801532e-06 | V12: =OFFSET(LH351H_660nm_V2!H8,0,LH351H_660nm_V2!$B$13) -> 1.185370085e-06 | W12: =OFFSET(LH351H_730nm!H8,0,LH351H_730nm!$B$13) -> 9.557025701e-07 | Y12: 381 | Z12: 7.562531519e-05 | AA12: =MAX(C12*IF(Calculator!$D$4>=0,Calculator!$D$4,0),0) -> 2.653803803e-05 | AB12: =MAX(D12*IF(Calculator!$D$5>=0,Calculator!$D$5,0),0) -> 4.55311669e-05 | AC12: =MAX(E12*IF(Calculator!$D$6>=0,Calculator!$D$6,0),0) -> 0 | AD12: =MAX(F12*IF(Calculator!$D$7>=0,Calculator!$D$7,0),0) -> 0 | AE12: =MAX(G12*IF(Calculator!$D$8>=0,Calculator!$D$8,0),0) -> 0 | AF12: =MAX(H12*IF(Calculator!$D$9>=0,Calculator!$D$9,0),0) -> 0 | AG12: =MAX(I12*IF(Calculator!$D$10>=0,Calculator!$D$10,0),0) -> 0 | AH12: =MAX(J12*IF(Calculator!$D$11>=0,Calculator!$D$11,0),0) -> 0 | AI12: =MAX(K12*IF(Calculator!$D$12>=0,Calculator!$D$12,0),0) -> 0 | AJ12: =MAX(L12*IF(Calculator!$D$13>=0,Calculator!$D$13,0),0) -> 0 | AK12: =MAX(M12*IF(Calculator!$D$14>=0,Calculator!$D$14,0),0) -> 0 | AL12: =MAX(N12*IF(Calculator!$D$15>=0,Calculator!$D$15,0),0) -> 0 | AM12: =MAX(O12*IF(Calculator!$D$16>=0,Calculator!$D$16,0),0) -> 0 | AN12: =MAX(P12*IF(Calculator!$D$17>=0,Calculator!$D$17,0),0) -> 0 | AO12: =MAX(Q12*IF(Calculator!$D$18>=0,Calculator!$D$18,0),0) -> 0 | AP12: =MAX(R12*IF(Calculator!$D$19>=0,Calculator!$D$19,0),0) -> 0 | AQ12: =MAX(S12*IF(Calculator!$D$20>=0,Calculator!$D$20,0),0) -> 0 | AR12: =MAX(T12*IF(Calculator!$D$21>=0,Calculator!$D$21,0),0) -> 0 | AS12: =MAX(U12*IF(Calculator!$D$22>=0,Calculator!$D$22,0),0) -> 0 | AT12: =MAX(V12*IF(Calculator!$D$23>=0,Calculator!$D$23,0),0) -> 3.556110255e-06 | AU12: =MAX(W12*IF(Calculator!$D$24>=0,Calculator!$D$24,0),0) -> 0 | AW12: 381 | AX12: =Z12*$Y12/119.5 -> 0.0002411150216 | AY12: =AA12*$Y12/119.5 -> 8.461081582e-05 | AZ12: =AB12*$Y12/119.5 -> 0.0001451663145 | BA12: =AC12*$Y12/119.5 -> 0 | BB12: =AD12*$Y12/119.5 -> 0 | BC12: =AE12*$Y12/119.5 -> 0 | BD12: =AF12*$Y12/119.5 -> 0 | BE12: =AG12*$Y12/119.5 -> 0 | BF12: =AH12*$Y12/119.5 -> 0 | BG12: =AI12*$Y12/119.5 -> 0 | BH12: =AJ12*$Y12/119.5 -> 0 | BI12: =AK12*$Y12/119.5 -> 0 | BJ12: 0 | BK12: 0 | BL12: 0 | BM12: 0 | BN12: 0 | BO12: 0 | BP12: 0 | BQ12: 0 | BR12: 1.133789127e-05 | BS12: 0 | BT12: PPF | BU12: 381 | BV12: =AX12*OFFSET(PPF_YPF_DIN_BPF!$A$101,ROW()-10,$BT$1) -> 7.562531519e-05 | BW12: =AY12*OFFSET(PPF_YPF_DIN_BPF!$A$101,ROW()-10,$BT$1) -> 2.653803803e-05 | BX12: =AZ12*OFFSET(PPF_YPF_DIN_BPF!$A$101,ROW()-10,$BT$1) -> 4.55311669e-05 | BY12: =BA12*OFFSET(PPF_YPF_DIN_BPF!$A$101,ROW()-10,$BT$1) -> 0 | BZ12: =BB12*OFFSET(PPF_YPF_DIN_BPF!$A$101,ROW()-10,$BT$1) -> 0 | CA12: =BC12*OFFSET(PPF_YPF_DIN_BPF!$A$101,ROW()-10,$BT$1) -> 0 | CB12: =BD12*OFFSET(PPF_YPF_DIN_BPF!$A$101,ROW()-10,$BT$1) -> 0 | CC12: =BE12*OFFSET(PPF_YPF_DIN_BPF!$A$101,ROW()-10,$BT$1) -> 0 | CD12: =BF12*OFFSET(PPF_YPF_DIN_BPF!$A$101,ROW()-10,$BT$1) -> 0 | CE12: =BG12*OFFSET(PPF_YPF_DIN_BPF!$A$101,ROW()-10,$BT$1) -> 0 | CF12: =BH12*OFFSET(PPF_YPF_DIN_BPF!$A$101,ROW()-10,$BT$1) -> 0 | CG12: =BI12*OFFSET(PPF_YPF_DIN_BPF!$A$101,ROW()-10,$BT$1) -> 0 | CH12: =BJ12*OFFSET(PPF_YPF_DIN_BPF!$A$101,ROW()-10,$BT$1) -> 0 | CI12: =BK12*OFFSET(PPF_YPF_DIN_BPF!$A$101,ROW()-10,$BT$1) -> 0 | CJ12: =BL12*OFFSET(PPF_YPF_DIN_BPF!$A$101,ROW()-10,$BT$1) -> 0 | CK12: =BM12*OFFSET(PPF_YPF_DIN_BPF!$A$101,ROW()-10,$BT$1) -> 0 | CL12: =BN12*OFFSET(PPF_YPF_DIN_BPF!$A$101,ROW()-10,$BT$1) -> 0 | CM12: =BO12*OFFSET(PPF_YPF_DIN_BPF!$A$101,ROW()-10,$BT$1) -> 0 | CN12: =BP12*OFFSET(PPF_YPF_DIN_BPF!$A$101,ROW()-10,$BT$1) -> 0 | CO12: =BQ12*OFFSET(PPF_YPF_DIN_BPF!$A$101,ROW()-10,$BT$1) -> 0 | CP12: =BR12*OFFSET(PPF_YPF_DIN_BPF!$A$101,ROW()-10,$BT$1) -> 3.556110255e-06 | CQ12: =BS12*OFFSET(PPF_YPF_DIN_BPF!$A$101,ROW()-10,$BT$1) -> 0 | CS12: =AX12*OFFSET(PPF_YPF_DIN_BPF!$A$101,ROW()-10,1+1) -> 0 | CT12: =AX12*OFFSET(PPF_YPF_DIN_BPF!$A$101,ROW()-10,2+1) -> 0.0002411150216 | CU12: =AX12*OFFSET(PPF_YPF_DIN_BPF!$A$101,ROW()-10,3+1) -> 0.0001176694351 | CV12: =AX12*OFFSET(PPF_YPF_DIN_BPF!$A$101,ROW()-10,4+1) -> 0 | CW12: =PPF_YPF_DIN_BPF!I3*Graph_Data!CW$2 -> 0.01421435632 | CX12: =PPF_YPF_DIN_BPF!J3*Graph_Data!CX$2 -> 0.0169980011 | CY12: =PPF_YPF_DIN_BPF!K3*Graph_Data!CY$2 -> 0.008490959868 | DX12: 259 | DY12: 0 | DZ12: 0 | EA12: 0 | EB12: 0 | EC12: 0
B13: 382 | C13: =OFFSET(LM301H!H9,0,LM301H!$B$13) -> 1.552942584e-06 | D13: =OFFSET(LM301H!H9,0,LM301H!$B$31) -> 2.752259195e-06 | E13: =OFFSET(LM301H_D!H9,0,LM301H_D!$B$13) -> 1.881594586e-06 | F13: =OFFSET(LM301H_D!H9,0,LM301H_D!$B$31) -> 2.574728574e-06 | G13: =OFFSET(LM561H!$H9,0,LM561H!$B$13) -> 1.51749199e-06 | H13: =OFFSET(LM561H!$H9,0,LM561H!$B$31) -> 2.979270723e-06 | I13: =OFFSET(LH181B!$H9,0,LH181B!$B$14) -> 7.185904855e-06 | J13: =OFFSET(LH181B!$H9,0,LH181B!$B$32) -> 1.806994729e-05 | K13: =OFFSET(LH231B!$H9,0,LH231B!$B$14) -> 8.026243721e-06 | L13: =OFFSET(LH231B!$H9,0,LH231B!$B$32) -> 1.649457775e-05 | M13: =OFFSET(LH351H_B!$H9,0,LH351H_B!$B$14) -> 4.661673575e-06 | N13: =OFFSET(LH351H_B!$H9,0,LH351H_B!$B$32) -> 1.47974372e-05 | O13: =OFFSET(LH351H_C!$H9,0,LH351H_C!$B$14) -> 5.067950507e-06 | P13: =OFFSET(LH351H_C!$H9,0,LH351H_C!$B$32) -> 9.315802262e-06 | Q13: =OFFSET(LH351H_D!$H9,0,LH351H_D!$B$14) -> 3.718805149e-06 | R13: =OFFSET(LH351H_D!$H9,0,LH351H_D!$B$32) -> 1.17878949e-05 | S13: =OFFSET(LH351H_450nm!H9,0,LH351H_450nm!$B$13) -> 2.593281698e-05 | T13: =OFFSET(LH351H_630nm!H9,0,LH351H_630nm!$B$13) -> -1.390478571e-06 | U13: =OFFSET(LH351H_660nm!H9,0,LH351H_660nm!$B$13) -> -3.283985553e-06 | V13: =OFFSET(LH351H_660nm_V2!H9,0,LH351H_660nm_V2!$B$13) -> 3.765042687e-06 | W13: =OFFSET(LH351H_730nm!H9,0,LH351H_730nm!$B$13) -> -5.686747142e-07 | Y13: 382 | Z13: 9.739916364e-05 | AA13: =MAX(C13*IF(Calculator!$D$4>=0,Calculator!$D$4,0),0) -> 3.105885168e-05 | AB13: =MAX(D13*IF(Calculator!$D$5>=0,Calculator!$D$5,0),0) -> 5.50451839e-05 | AC13: =MAX(E13*IF(Calculator!$D$6>=0,Calculator!$D$6,0),0) -> 0 | AD13: =MAX(F13*IF(Calculator!$D$7>=0,Calculator!$D$7,0),0) -> 0 | AE13: =MAX(G13*IF(Calculator!$D$8>=0,Calculator!$D$8,0),0) -> 0 | AF13: =MAX(H13*IF(Calculator!$D$9>=0,Calculator!$D$9,0),0) -> 0 | AG13: =MAX(I13*IF(Calculator!$D$10>=0,Calculator!$D$10,0),0) -> 0 | AH13: =MAX(J13*IF(Calculator!$D$11>=0,Calculator!$D$11,0),0) -> 0 | AI13: =MAX(K13*IF(Calculator!$D$12>=0,Calculator!$D$12,0),0) -> 0 | AJ13: =MAX(L13*IF(Calculator!$D$13>=0,Calculator!$D$13,0),0) -> 0 | AK13: =MAX(M13*IF(Calculator!$D$14>=0,Calculator!$D$14,0),0) -> 0 | AL13: =MAX(N13*IF(Calculator!$D$15>=0,Calculator!$D$15,0),0) -> 0 | AM13: =MAX(O13*IF(Calculator!$D$16>=0,Calculator!$D$16,0),0) -> 0 | AN13: =MAX(P13*IF(Calculator!$D$17>=0,Calculator!$D$17,0),0) -> 0 | AO13: =MAX(Q13*IF(Calculator!$D$18>=0,Calculator!$D$18,0),0) -> 0 | AP13: =MAX(R13*IF(Calculator!$D$19>=0,Calculator!$D$19,0),0) -> 0 | AQ13: =MAX(S13*IF(Calculator!$D$20>=0,Calculator!$D$20,0),0) -> 0 | AR13: =MAX(T13*IF(Calculator!$D$21>=0,Calculator!$D$21,0),0) -> 0 | AS13: =MAX(U13*IF(Calculator!$D$22>=0,Calculator!$D$22,0),0) -> 0 | AT13: =MAX(V13*IF(Calculator!$D$23>=0,Calculator!$D$23,0),0) -> 1.129512806e-05 | AU13: =MAX(W13*IF(Calculator!$D$24>=0,Calculator!$D$24,0),0) -> 0 | AW13: 382 | AX13: 0.0003113513014 | AY13: 9.92843627e-05 | AZ13: 0.0001759603368 | BA13: 0 | BB13: 0 | BC13: 0 | BD13: 0 | BE13: 0 | BF13: 0 | BG13: 0 | BH13: 0 | BI13: 0 | BJ13: 0 | BK13: 0 | BL13: 0 | BM13: 0 | BN13: 0 | BO13: 0 | BP13: 0 | BQ13: 0 | BR13: 3.610660183e-05 | BS13: 0 | BT13: BPF | BU13: 382 | BV13: =AX13*OFFSET(PPF_YPF_DIN_BPF!$A$101,ROW()-10,$BT$1) -> 9.739916364e-05 | BW13: =AY13*OFFSET(PPF_YPF_DIN_BPF!$A$101,ROW()-10,$BT$1) -> 3.105885168e-05 | BX13: =AZ13*OFFSET(PPF_YPF_DIN_BPF!$A$101,ROW()-10,$BT$1) -> 5.50451839e-05 | BY13: =BA13*OFFSET(PPF_YPF_DIN_BPF!$A$101,ROW()-10,$BT$1) -> 0 | BZ13: =BB13*OFFSET(PPF_YPF_DIN_BPF!$A$101,ROW()-10,$BT$1) -> 0 | CA13: =BC13*OFFSET(PPF_YPF_DIN_BPF!$A$101,ROW()-10,$BT$1) -> 0 | CB13: =BD13*OFFSET(PPF_YPF_DIN_BPF!$A$101,ROW()-10,$BT$1) -> 0 | CC13: =BE13*OFFSET(PPF_YPF_DIN_BPF!$A$101,ROW()-10,$BT$1) -> 0 | CD13: =BF13*OFFSET(PPF_YPF_DIN_BPF!$A$101,ROW()-10,$BT$1) -> 0 | CE13: =BG13*OFFSET(PPF_YPF_DIN_BPF!$A$101,ROW()-10,$BT$1) -> 0 | CF13: =BH13*OFFSET(PPF_YPF_DIN_BPF!$A$101,ROW()-10,$BT$1) -> 0 | CG13: =BI13*OFFSET(PPF_YPF_DIN_BPF!$A$101,ROW()-10,$BT$1) -> 0 | CH13: =BJ13*OFFSET(PPF_YPF_DIN_BPF!$A$101,ROW()-10,$BT$1) -> 0 | CI13: =BK13*OFFSET(PPF_YPF_DIN_BPF!$A$101,ROW()-10,$BT$1) -> 0 | CJ13: =BL13*OFFSET(PPF_YPF_DIN_BPF!$A$101,ROW()-10,$BT$1) -> 0 | CK13: =BM13*OFFSET(PPF_YPF_DIN_BPF!$A$101,ROW()-10,$BT$1) -> 0 | CL13: =BN13*OFFSET(PPF_YPF_DIN_BPF!$A$101,ROW()-10,$BT$1) -> 0 | CM13: =BO13*OFFSET(PPF_YPF_DIN_BPF!$A$101,ROW()-10,$BT$1) -> 0 | CN13: =BP13*OFFSET(PPF_YPF_DIN_BPF!$A$101,ROW()-10,$BT$1) -> 0 | CO13: =BQ13*OFFSET(PPF_YPF_DIN_BPF!$A$101,ROW()-10,$BT$1) -> 0 | CP13: =BR13*OFFSET(PPF_YPF_DIN_BPF!$A$101,ROW()-10,$BT$1) -> 1.129512806e-05 | CQ13: =BS13*OFFSET(PPF_YPF_DIN_BPF!$A$101,ROW()-10,$BT$1) -> 0 | CS13: =AX13*OFFSET(PPF_YPF_DIN_BPF!$A$101,ROW()-10,1+1) -> 0 | CT13: =AX13*OFFSET(PPF_YPF_DIN_BPF!$A$101,ROW()-10,2+1) -> 0.0003113513014 | CU13: =AX13*OFFSET(PPF_YPF_DIN_BPF!$A$101,ROW()-10,3+1) -> 0.0001549962821 | CV13: =AX13*OFFSET(PPF_YPF_DIN_BPF!$A$101,ROW()-10,4+1) -> 0 | CW13: =PPF_YPF_DIN_BPF!I4*Graph_Data!CW$2 -> 0.01425166434 | CX13: =PPF_YPF_DIN_BPF!J4*Graph_Data!CX$2 -> 0.01704261527 | CY13: =PPF_YPF_DIN_BPF!K4*Graph_Data!CY$2 -> 0.008513245852 | DX13: 260 | DY13: 0 | DZ13: 0 | EA13: 0 | EB13: 0 | EC13: 0
B14: 383 | C14: =OFFSET(LM301H!H10,0,LM301H!$B$13) -> 1.08623277e-06 | D14: =OFFSET(LM301H!H10,0,LM301H!$B$31) -> 2.879138132e-06 | E14: =OFFSET(LM301H_D!H10,0,LM301H_D!$B$13) -> 1.450056042e-06 | F14: =OFFSET(LM301H_D!H10,0,LM301H_D!$B$31) -> 2.778114821e-06 | G14: =OFFSET(LM561H!$H10,0,LM561H!$B$13) -> 1.197348002e-06 | H14: =OFFSET(LM561H!$H10,0,LM561H!$B$31) -> 3.084733784e-06 | I14: =OFFSET(LH181B!$H10,0,LH181B!$B$14) -> 7.526958775e-06 | J14: =OFFSET(LH181B!$H10,0,LH181B!$B$32) -> 1.757206229e-05 | K14: =OFFSET(LH231B!$H10,0,LH231B!$B$14) -> 8.394236386e-06 | L14: =OFFSET(LH231B!$H10,0,LH231B!$B$32) -> 1.656358244e-05 | M14: =OFFSET(LH351H_B!$H10,0,LH351H_B!$B$14) -> 8.096392615e-06 | N14: =OFFSET(LH351H_B!$H10,0,LH351H_B!$B$32) -> 1.602798281e-05 | O14: =OFFSET(LH351H_C!$H10,0,LH351H_C!$B$14) -> 3.413676666e-06 | P14: =OFFSET(LH351H_C!$H10,0,LH351H_C!$B$32) -> 8.651925631e-06 | Q14: =OFFSET(LH351H_D!$H10,0,LH351H_D!$B$14) -> 5.657347714e-06 | R14: =OFFSET(LH351H_D!$H10,0,LH351H_D!$B$32) -> 1.356693857e-05 | S14: =OFFSET(LH351H_450nm!H10,0,LH351H_450nm!$B$13) -> 2.528754454e-05 | T14: =OFFSET(LH351H_630nm!H10,0,LH351H_630nm!$B$13) -> -4.31189042e-06 | U14: =OFFSET(LH351H_660nm!H10,0,LH351H_660nm!$B$13) -> -3.664488805e-06 | V14: =OFFSET(LH351H_660nm_V2!H10,0,LH351H_660nm_V2!$B$13) -> 3.222819851e-06 | W14: =OFFSET(LH351H_730nm!H10,0,LH351H_730nm!$B$13) -> -2.266199726e-06 | Y14: 383 | Z14: 8.897587758e-05 | AA14: =MAX(C14*IF(Calculator!$D$4>=0,Calculator!$D$4,0),0) -> 2.172465539e-05 | AB14: =MAX(D14*IF(Calculator!$D$5>=0,Calculator!$D$5,0),0) -> 5.758276263e-05 | AC14: =MAX(E14*IF(Calculator!$D$6>=0,Calculator!$D$6,0),0) -> 0 | AD14: =MAX(F14*IF(Calculator!$D$7>=0,Calculator!$D$7,0),0) -> 0 | AE14: =MAX(G14*IF(Calculator!$D$8>=0,Calculator!$D$8,0),0) -> 0 | AF14: =MAX(H14*IF(Calculator!$D$9>=0,Calculator!$D$9,0),0) -> 0 | AG14: =MAX(I14*IF(Calculator!$D$10>=0,Calculator!$D$10,0),0) -> 0 | AH14: =MAX(J14*IF(Calculator!$D$11>=0,Calculator!$D$11,0),0) -> 0 | AI14: =MAX(K14*IF(Calculator!$D$12>=0,Calculator!$D$12,0),0) -> 0 | AJ14: =MAX(L14*IF(Calculator!$D$13>=0,Calculator!$D$13,0),0) -> 0 | AK14: =MAX(M14*IF(Calculator!$D$14>=0,Calculator!$D$14,0),0) -> 0 | AL14: =MAX(N14*IF(Calculator!$D$15>=0,Calculator!$D$15,0),0) -> 0 | AM14: =MAX(O14*IF(Calculator!$D$16>=0,Calculator!$D$16,0),0) -> 0 | AN14: =MAX(P14*IF(Calculator!$D$17>=0,Calculator!$D$17,0),0) -> 0 | AO14: =MAX(Q14*IF(Calculator!$D$18>=0,Calculator!$D$18,0),0) -> 0 | AP14: =MAX(R14*IF(Calculator!$D$19>=0,Calculator!$D$19,0),0) -> 0 | AQ14: =MAX(S14*IF(Calculator!$D$20>=0,Calculator!$D$20,0),0) -> 0 | AR14: =MAX(T14*IF(Calculator!$D$21>=0,Calculator!$D$21,0),0) -> 0 | AS14: =MAX(U14*IF(Calculator!$D$22>=0,Calculator!$D$22,0),0) -> 0 | AT14: =MAX(V14*IF(Calculator!$D$23>=0,Calculator!$D$23,0),0) -> 9.668459554e-06 | AU14: =MAX(W14*IF(Calculator!$D$24>=0,Calculator!$D$24,0),0) -> 0 | AW14: 383 | AX14: 0.0002851695491 | AY14: 6.962797503e-05 | AZ14: 0.0001845539589 | BA14: 0 | BB14: 0 | BC14: 0 | BD14: 0 | BE14: 0 | BF14: 0 | BG14: 0 | BH14: 0 | BI14: 0 | BJ14: 0 | BK14: 0 | BL14: 0 | BM14: 0 | BN14: 0 | BO14: 0 | BP14: 0 | BQ14: 0 | BR14: 3.098761514e-05 | BS14: 0 | BT14: YPF | BU14: 383 | BV14: =AX14*OFFSET(PPF_YPF_DIN_BPF!$A$101,ROW()-10,$BT$1) -> 8.897587758e-05 | BW14: =AY14*OFFSET(PPF_YPF_DIN_BPF!$A$101,ROW()-10,$BT$1) -> 2.172465539e-05 | BX14: =AZ14*OFFSET(PPF_YPF_DIN_BPF!$A$101,ROW()-10,$BT$1) -> 5.758276263e-05 | BY14: =BA14*OFFSET(PPF_YPF_DIN_BPF!$A$101,ROW()-10,$BT$1) -> 0 | BZ14: =BB14*OFFSET(PPF_YPF_DIN_BPF!$A$101,ROW()-10,$BT$1) -> 0 | CA14: =BC14*OFFSET(PPF_YPF_DIN_BPF!$A$101,ROW()-10,$BT$1) -> 0 | CB14: =BD14*OFFSET(PPF_YPF_DIN_BPF!$A$101,ROW()-10,$BT$1) -> 0 | CC14: =BE14*OFFSET(PPF_YPF_DIN_BPF!$A$101,ROW()-10,$BT$1) -> 0 | CD14: =BF14*OFFSET(PPF_YPF_DIN_BPF!$A$101,ROW()-10,$BT$1) -> 0 | CE14: =BG14*OFFSET(PPF_YPF_DIN_BPF!$A$101,ROW()-10,$BT$1) -> 0 | CF14: =BH14*OFFSET(PPF_YPF_DIN_BPF!$A$101,ROW()-10,$BT$1) -> 0 | CG14: =BI14*OFFSET(PPF_YPF_DIN_BPF!$A$101,ROW()-10,$BT$1) -> 0 | CH14: =BJ14*OFFSET(PPF_YPF_DIN_BPF!$A$101,ROW()-10,$BT$1) -> 0 | CI14: =BK14*OFFSET(PPF_YPF_DIN_BPF!$A$101,ROW()-10,$BT$1) -> 0 | CJ14: =BL14*OFFSET(PPF_YPF_DIN_BPF!$A$101,ROW()-10,$BT$1) -> 0 | CK14: =BM14*OFFSET(PPF_YPF_DIN_BPF!$A$101,ROW()-10,$BT$1) -> 0 | CL14: =BN14*OFFSET(PPF_YPF_DIN_BPF!$A$101,ROW()-10,$BT$1) -> 0 | CM14: =BO14*OFFSET(PPF_YPF_DIN_BPF!$A$101,ROW()-10,$BT$1) -> 0 | CN14: =BP14*OFFSET(PPF_YPF_DIN_BPF!$A$101,ROW()-10,$BT$1) -> 0 | CO14: =BQ14*OFFSET(PPF_YPF_DIN_BPF!$A$101,ROW()-10,$BT$1) -> 0 | CP14: =BR14*OFFSET(PPF_YPF_DIN_BPF!$A$101,ROW()-10,$BT$1) -> 9.668459554e-06 | CQ14: =BS14*OFFSET(PPF_YPF_DIN_BPF!$A$101,ROW()-10,$BT$1) -> 0 | CS14: =AX14*OFFSET(PPF_YPF_DIN_BPF!$A$101,ROW()-10,1+1) -> 0 | CT14: =AX14*OFFSET(PPF_YPF_DIN_BPF!$A$101,ROW()-10,2+1) -> 0.0002851695491 | CU14: =AX14*OFFSET(PPF_YPF_DIN_BPF!$A$101,ROW()-10,3+1) -> 0.0001447563406 | CV14: =AX14*OFFSET(PPF_YPF_DIN_BPF!$A$101,ROW()-10,4+1) -> 0 | CW14: =PPF_YPF_DIN_BPF!I5*Graph_Data!CW$2 -> 0.01428897236 | CX14: =PPF_YPF_DIN_BPF!J5*Graph_Data!CX$2 -> 0.01708722945 | CY14: =PPF_YPF_DIN_BPF!K5*Graph_Data!CY$2 -> 0.007824237516 | DF14: =SUM(CS341:CS381) -> 0 | DL14: Far Red | DM14: 710nm - 750nm | DX14: 261 | DY14: 0 | DZ14: 0 | EA14: 0 | EB14: 0 | EC14: 0
B15: 384 | C15: =OFFSET(LM301H!H11,0,LM301H!$B$13) -> 1.613865306e-06 | D15: =OFFSET(LM301H!H11,0,LM301H!$B$31) -> 3.044111247e-06 | E15: =OFFSET(LM301H_D!H11,0,LM301H_D!$B$13) -> 1.770959497e-06 | F15: =OFFSET(LM301H_D!H11,0,LM301H_D!$B$31) -> 2.753036742e-06 | G15: =OFFSET(LM561H!$H11,0,LM561H!$B$13) -> 1.384088658e-06 | H15: =OFFSET(LM561H!$H11,0,LM561H!$B$31) -> 3.003641467e-06 | I15: =OFFSET(LH181B!$H11,0,LH181B!$B$14) -> 7.879208804e-06 | J15: =OFFSET(LH181B!$H11,0,LH181B!$B$32) -> 1.686039158e-05 | K15: =OFFSET(LH231B!$H11,0,LH231B!$B$14) -> 8.435935813e-06 | L15: =OFFSET(LH231B!$H11,0,LH231B!$B$32) -> 1.653292616e-05 | M15: =OFFSET(LH351H_B!$H11,0,LH351H_B!$B$14) -> 7.429656522e-06 | N15: =OFFSET(LH351H_B!$H11,0,LH351H_B!$B$32) -> 1.534009121e-05 | O15: =OFFSET(LH351H_C!$H11,0,LH351H_C!$B$14) -> 3.448349808e-06 | P15: =OFFSET(LH351H_C!$H11,0,LH351H_C!$B$32) -> 9.983376177e-06 | Q15: =OFFSET(LH351H_D!$H11,0,LH351H_D!$B$14) -> 7.904642139e-06 | R15: =OFFSET(LH351H_D!$H11,0,LH351H_D!$B$32) -> 1.31840192e-05 | S15: =OFFSET(LH351H_450nm!H11,0,LH351H_450nm!$B$13) -> 2.621358636e-05 | T15: =OFFSET(LH351H_630nm!H11,0,LH351H_630nm!$B$13) -> 1.404915944e-06 | U15: =OFFSET(LH351H_660nm!H11,0,LH351H_660nm!$B$13) -> -1.379703128e-06 | V15: =OFFSET(LH351H_660nm_V2!H11,0,LH351H_660nm_V2!$B$13) -> 1.537797233e-06 | W15: =OFFSET(LH351H_730nm!H11,0,LH351H_730nm!$B$13) -> -1.484441959e-07 | Y15: 384 | Z15: 9.777292276e-05 | AA15: =MAX(C15*IF(Calculator!$D$4>=0,Calculator!$D$4,0),0) -> 3.227730612e-05 | AB15: =MAX(D15*IF(Calculator!$D$5>=0,Calculator!$D$5,0),0) -> 6.088222494e-05 | AC15: =MAX(E15*IF(Calculator!$D$6>=0,Calculator!$D$6,0),0) -> 0 | AD15: =MAX(F15*IF(Calculator!$D$7>=0,Calculator!$D$7,0),0) -> 0 | AE15: =MAX(G15*IF(Calculator!$D$8>=0,Calculator!$D$8,0),0) -> 0 | AF15: =MAX(H15*IF(Calculator!$D$9>=0,Calculator!$D$9,0),0) -> 0 | AG15: =MAX(I15*IF(Calculator!$D$10>=0,Calculator!$D$10,0),0) -> 0 | AH15: =MAX(J15*IF(Calculator!$D$11>=0,Calculator!$D$11,0),0) -> 0 | AI15: =MAX(K15*IF(Calculator!$D$12>=0,Calculator!$D$12,0),0) -> 0 | AJ15: =MAX(L15*IF(Calculator!$D$13>=0,Calculator!$D$13,0),0) -> 0 | AK15: =MAX(M15*IF(Calculator!$D$14>=0,Calculator!$D$14,0),0) -> 0 | AL15: =MAX(N15*IF(Calculator!$D$15>=0,Calculator!$D$15,0),0) -> 0 | AM15: =MAX(O15*IF(Calculator!$D$16>=0,Calculator!$D$16,0),0) -> 0 | AN15: =MAX(P15*IF(Calculator!$D$17>=0,Calculator!$D$17,0),0) -> 0 | AO15: =MAX(Q15*IF(Calculator!$D$18>=0,Calculator!$D$18,0),0) -> 0 | AP15: =MAX(R15*IF(Calculator!$D$19>=0,Calculator!$D$19,0),0) -> 0 | AQ15: =MAX(S15*IF(Calculator!$D$20>=0,Calculator!$D$20,0),0) -> 0 | AR15: =MAX(T15*IF(Calculator!$D$21>=0,Calculator!$D$21,0),0) -> 0 | AS15: =MAX(U15*IF(Calculator!$D$22>=0,Calculator!$D$22,0),0) -> 0 | AT15: =MAX(V15*IF(Calculator!$D$23>=0,Calculator!$D$23,0),0) -> 4.6133917e-06 | AU15: =MAX(W15*IF(Calculator!$D$24>=0,Calculator!$D$24,0),0) -> 0 | AW15: 384 | AX15: 0.0003141824464 | AY15: 0.0001037195444 | AZ15: 0.0001956382793 | BA15: 0 | BB15: 0 | BC15: 0 | BD15: 0 | BE15: 0 | BF15: 0 | BG15: 0 | BH15: 0 | BI15: 0 | BJ15: 0 | BK15: 0 | BL15: 0 | BM15: 0 | BN15: 0 | BO15: 0 | BP15: 0 | BQ15: 0 | BR15: 1.48246227e-05 | BS15: 0 | BT15: DIN | BU15: 384 | BV15: =AX15*OFFSET(PPF_YPF_DIN_BPF!$A$101,ROW()-10,$BT$1) -> 9.777292276e-05 | BW15: =AY15*OFFSET(PPF_YPF_DIN_BPF!$A$101,ROW()-10,$BT$1) -> 3.227730612e-05 | BX15: =AZ15*OFFSET(PPF_YPF_DIN_BPF!$A$101,ROW()-10,$BT$1) -> 6.088222494e-05 | BY15: =BA15*OFFSET(PPF_YPF_DIN_BPF!$A$101,ROW()-10,$BT$1) -> 0 | BZ15: =BB15*OFFSET(PPF_YPF_DIN_BPF!$A$101,ROW()-10,$BT$1) -> 0 | CA15: =BC15*OFFSET(PPF_YPF_DIN_BPF!$A$101,ROW()-10,$BT$1) -> 0 | CB15: =BD15*OFFSET(PPF_YPF_DIN_BPF!$A$101,ROW()-10,$BT$1) -> 0 | CC15: =BE15*OFFSET(PPF_YPF_DIN_BPF!$A$101,ROW()-10,$BT$1) -> 0 | CD15: =BF15*OFFSET(PPF_YPF_DIN_BPF!$A$101,ROW()-10,$BT$1) -> 0 | CE15: =BG15*OFFSET(PPF_YPF_DIN_BPF!$A$101,ROW()-10,$BT$1) -> 0 | CF15: =BH15*OFFSET(PPF_YPF_DIN_BPF!$A$101,ROW()-10,$BT$1) -> 0 | CG15: =BI15*OFFSET(PPF_YPF_DIN_BPF!$A$101,ROW()-10,$BT$1) -> 0 | CH15: =BJ15*OFFSET(PPF_YPF_DIN_BPF!$A$101,ROW()-10,$BT$1) -> 0 | CI15: =BK15*OFFSET(PPF_YPF_DIN_BPF!$A$101,ROW()-10,$BT$1) -> 0 | CJ15: =BL15*OFFSET(PPF_YPF_DIN_BPF!$A$101,ROW()-10,$BT$1) -> 0 | CK15: =BM15*OFFSET(PPF_YPF_DIN_BPF!$A$101,ROW()-10,$BT$1) -> 0 | CL15: =BN15*OFFSET(PPF_YPF_DIN_BPF!$A$101,ROW()-10,$BT$1) -> 0 | CM15: =BO15*OFFSET(PPF_YPF_DIN_BPF!$A$101,ROW()-10,$BT$1) -> 0 | CN15: =BP15*OFFSET(PPF_YPF_DIN_BPF!$A$101,ROW()-10,$BT$1) -> 0 | CO15: =BQ15*OFFSET(PPF_YPF_DIN_BPF!$A$101,ROW()-10,$BT$1) -> 0 | CP15: =BR15*OFFSET(PPF_YPF_DIN_BPF!$A$101,ROW()-10,$BT$1) -> 4.6133917e-06 | CQ15: =BS15*OFFSET(PPF_YPF_DIN_BPF!$A$101,ROW()-10,$BT$1) -> 0 | CS15: =AX15*OFFSET(PPF_YPF_DIN_BPF!$A$101,ROW()-10,1+1) -> 0 | CT15: =AX15*OFFSET(PPF_YPF_DIN_BPF!$A$101,ROW()-10,2+1) -> 0.0003141824464 | CU15: =AX15*OFFSET(PPF_YPF_DIN_BPF!$A$101,ROW()-10,3+1) -> 0.0001625649098 | CV15: =AX15*OFFSET(PPF_YPF_DIN_BPF!$A$101,ROW()-10,4+1) -> 1.956268613e-06 | CW15: =PPF_YPF_DIN_BPF!I6*Graph_Data!CW$2 -> 0.01575890842 | CX15: =PPF_YPF_DIN_BPF!J6*Graph_Data!CX$2 -> 0.01713184363 | CY15: =PPF_YPF_DIN_BPF!K6*Graph_Data!CY$2 -> 0.007844666334 | DX15: 262 | DY15: 0 | DZ15: 0 | EA15: 0 | EB15: 0 | EC15: 0
B16: 385 | C16: =OFFSET(LM301H!H12,0,LM301H!$B$13) -> 1.465368766e-06 | D16: =OFFSET(LM301H!H12,0,LM301H!$B$31) -> 3.045856836e-06 | E16: =OFFSET(LM301H_D!H12,0,LM301H_D!$B$13) -> 1.607923094e-06 | F16: =OFFSET(LM301H_D!H12,0,LM301H_D!$B$31) -> 2.602034349e-06 | G16: =OFFSET(LM561H!$H12,0,LM561H!$B$13) -> 1.816694278e-06 | H16: =OFFSET(LM561H!$H12,0,LM561H!$B$31) -> 3.361163653e-06 | I16: =OFFSET(LH181B!$H12,0,LH181B!$B$14) -> 7.354193892e-06 | J16: =OFFSET(LH181B!$H12,0,LH181B!$B$32) -> 1.715051356e-05 | K16: =OFFSET(LH231B!$H12,0,LH231B!$B$14) -> 8.551621465e-06 | L16: =OFFSET(LH231B!$H12,0,LH231B!$B$32) -> 1.676138502e-05 | M16: =OFFSET(LH351H_B!$H12,0,LH351H_B!$B$14) -> 8.03273178e-06 | N16: =OFFSET(LH351H_B!$H12,0,LH351H_B!$B$32) -> 1.817255449e-05 | O16: =OFFSET(LH351H_C!$H12,0,LH351H_C!$B$14) -> 6.115011404e-06 | P16: =OFFSET(LH351H_C!$H12,0,LH351H_C!$B$32) -> 8.929525733e-06 | Q16: =OFFSET(LH351H_D!$H12,0,LH351H_D!$B$14) -> 4.37314991e-06 | R16: =OFFSET(LH351H_D!$H12,0,LH351H_D!$B$32) -> 1.212314137e-05 | S16: =OFFSET(LH351H_450nm!H12,0,LH351H_450nm!$B$13) -> 3.118417672e-05 | T16: =OFFSET(LH351H_630nm!H12,0,LH351H_630nm!$B$13) -> -1.249071378e-06 | U16: =OFFSET(LH351H_660nm!H12,0,LH351H_660nm!$B$13) -> 4.00425309e-07 | V16: =OFFSET(LH351H_660nm_V2!H12,0,LH351H_660nm_V2!$B$13) -> -3.520937209e-06 | W16: =OFFSET(LH351H_730nm!H12,0,LH351H_730nm!$B$13) -> 8.285386886e-08 | Y16: 385 | Z16: 9.022451205e-05 | AA16: =MAX(C16*IF(Calculator!$D$4>=0,Calculator!$D$4,0),0) -> 2.930737533e-05 | AB16: =MAX(D16*IF(Calculator!$D$5>=0,Calculator!$D$5,0),0) -> 6.091713672e-05 | AC16: =MAX(E16*IF(Calculator!$D$6>=0,Calculator!$D$6,0),0) -> 0 | AD16: =MAX(F16*IF(Calculator!$D$7>=0,Calculator!$D$7,0),0) -> 0 | AE16: =MAX(G16*IF(Calculator!$D$8>=0,Calculator!$D$8,0),0) -> 0 | AF16: =MAX(H16*IF(Calculator!$D$9>=0,Calculator!$D$9,0),0) -> 0 | AG16: =MAX(I16*IF(Calculator!$D$10>=0,Calculator!$D$10,0),0) -> 0 | AH16: =MAX(J16*IF(Calculator!$D$11>=0,Calculator!$D$11,0),0) -> 0 | AI16: =MAX(K16*IF(Calculator!$D$12>=0,Calculator!$D$12,0),0) -> 0 | AJ16: =MAX(L16*IF(Calculator!$D$13>=0,Calculator!$D$13,0),0) -> 0 | AK16: =MAX(M16*IF(Calculator!$D$14>=0,Calculator!$D$14,0),0) -> 0 | AL16: =MAX(N16*IF(Calculator!$D$15>=0,Calculator!$D$15,0),0) -> 0 | AM16: =MAX(O16*IF(Calculator!$D$16>=0,Calculator!$D$16,0),0) -> 0 | AN16: =MAX(P16*IF(Calculator!$D$17>=0,Calculator!$D$17,0),0) -> 0 | AO16: =MAX(Q16*IF(Calculator!$D$18>=0,Calculator!$D$18,0),0) -> 0 | AP16: =MAX(R16*IF(Calculator!$D$19>=0,Calculator!$D$19,0),0) -> 0 | AQ16: =MAX(S16*IF(Calculator!$D$20>=0,Calculator!$D$20,0),0) -> 0 | AR16: =MAX(T16*IF(Calculator!$D$21>=0,Calculator!$D$21,0),0) -> 0 | AS16: =MAX(U16*IF(Calculator!$D$22>=0,Calculator!$D$22,0),0) -> 0 | AT16: =MAX(V16*IF(Calculator!$D$23>=0,Calculator!$D$23,0),0) -> 0 | AU16: =MAX(W16*IF(Calculator!$D$24>=0,Calculator!$D$24,0),0) -> 0 | AW16: 385 | AX16: 0.0002906814823 | AY16: 9.442125106e-05 | AZ16: 0.0001962602313 | BA16: 0 | BB16: 0 | BC16: 0 | BD16: 0 | BE16: 0 | BF16: 0 | BG16: 0 | BH16: 0 | BI16: 0 | BJ16: 0 | BK16: 0 | BL16: 0 | BM16: 0 | BN16: 0 | BO16: 0 | BP16: 0 | BQ16: 0 | BR16: 0 | BS16: 0 | BT16: SPD | BU16: 385 | BV16: =AX16*OFFSET(PPF_YPF_DIN_BPF!$A$101,ROW()-10,$BT$1) -> 9.022451205e-05 | BW16: =AY16*OFFSET(PPF_YPF_DIN_BPF!$A$101,ROW()-10,$BT$1) -> 2.930737533e-05 | BX16: =AZ16*OFFSET(PPF_YPF_DIN_BPF!$A$101,ROW()-10,$BT$1) -> 6.091713672e-05 | BY16: =BA16*OFFSET(PPF_YPF_DIN_BPF!$A$101,ROW()-10,$BT$1) -> 0 | BZ16: =BB16*OFFSET(PPF_YPF_DIN_BPF!$A$101,ROW()-10,$BT$1) -> 0 | CA16: =BC16*OFFSET(PPF_YPF_DIN_BPF!$A$101,ROW()-10,$BT$1) -> 0 | CB16: =BD16*OFFSET(PPF_YPF_DIN_BPF!$A$101,ROW()-10,$BT$1) -> 0 | CC16: =BE16*OFFSET(PPF_YPF_DIN_BPF!$A$101,ROW()-10,$BT$1) -> 0 | CD16: =BF16*OFFSET(PPF_YPF_DIN_BPF!$A$101,ROW()-10,$BT$1) -> 0 | CE16: =BG16*OFFSET(PPF_YPF_DIN_BPF!$A$101,ROW()-10,$BT$1) -> 0 | CF16: =BH16*OFFSET(PPF_YPF_DIN_BPF!$A$101,ROW()-10,$BT$1) -> 0 | CG16: =BI16*OFFSET(PPF_YPF_DIN_BPF!$A$101,ROW()-10,$BT$1) -> 0 | CH16: =BJ16*OFFSET(PPF_YPF_DIN_BPF!$A$101,ROW()-10,$BT$1) -> 0 | CI16: =BK16*OFFSET(PPF_YPF_DIN_BPF!$A$101,ROW()-10,$BT$1) -> 0 | CJ16: =BL16*OFFSET(PPF_YPF_DIN_BPF!$A$101,ROW()-10,$BT$1) -> 0 | CK16: =BM16*OFFSET(PPF_YPF_DIN_BPF!$A$101,ROW()-10,$BT$1) -> 0 | CL16: =BN16*OFFSET(PPF_YPF_DIN_BPF!$A$101,ROW()-10,$BT$1) -> 0 | CM16: =BO16*OFFSET(PPF_YPF_DIN_BPF!$A$101,ROW()-10,$BT$1) -> 0 | CN16: =BP16*OFFSET(PPF_YPF_DIN_BPF!$A$101,ROW()-10,$BT$1) -> 0 | CO16: =BQ16*OFFSET(PPF_YPF_DIN_BPF!$A$101,ROW()-10,$BT$1) -> 0 | CP16: =BR16*OFFSET(PPF_YPF_DIN_BPF!$A$101,ROW()-10,$BT$1) -> 0 | CQ16: =BS16*OFFSET(PPF_YPF_DIN_BPF!$A$101,ROW()-10,$BT$1) -> 0 | CS16: =AX16*OFFSET(PPF_YPF_DIN_BPF!$A$101,ROW()-10,1+1) -> 0 | CT16: =AX16*OFFSET(PPF_YPF_DIN_BPF!$A$101,ROW()-10,2+1) -> 0.0002906814823 | CU16: =AX16*OFFSET(PPF_YPF_DIN_BPF!$A$101,ROW()-10,3+1) -> 0.0001532528004 | CV16: =AX16*OFFSET(PPF_YPF_DIN_BPF!$A$101,ROW()-10,4+1) -> 1.017613997e-05 | CW16: =PPF_YPF_DIN_BPF!I7*Graph_Data!CW$2 -> 0.01579994725 | CX16: =PPF_YPF_DIN_BPF!J7*Graph_Data!CX$2 -> 0.0171764578 | CY16: =PPF_YPF_DIN_BPF!K7*Graph_Data!CY$2 -> 0.007150086503 | DX16: 263 | DY16: 0 | DZ16: 0 | EA16: 0 | EB16: 0 | EC16: 0
B17: 386 | C17: =OFFSET(LM301H!H13,0,LM301H!$B$13) -> 1.252238581e-06 | D17: =OFFSET(LM301H!H13,0,LM301H!$B$31) -> 2.595948214e-06 | E17: =OFFSET(LM301H_D!H13,0,LM301H_D!$B$13) -> 1.766376214e-06 | F17: =OFFSET(LM301H_D!H13,0,LM301H_D!$B$31) -> 2.73074993e-06 | G17: =OFFSET(LM561H!$H13,0,LM561H!$B$13) -> 2.317644032e-06 | H17: =OFFSET(LM561H!$H13,0,LM561H!$B$31) -> 2.021520825e-06 | I17: =OFFSET(LH181B!$H13,0,LH181B!$B$14) -> 7.827639046e-06 | J17: =OFFSET(LH181B!$H13,0,LH181B!$B$32) -> 1.728746246e-05 | K17: =OFFSET(LH231B!$H13,0,LH231B!$B$14) -> 8.53078004e-06 | L17: =OFFSET(LH231B!$H13,0,LH231B!$B$32) -> 1.713585619e-05 | M17: =OFFSET(LH351H_B!$H13,0,LH351H_B!$B$14) -> 7.631212163e-06 | N17: =OFFSET(LH351H_B!$H13,0,LH351H_B!$B$32) -> 1.936965025e-05 | O17: =OFFSET(LH351H_C!$H13,0,LH351H_C!$B$14) -> 5.389707832e-06 | P17: =OFFSET(LH351H_C!$H13,0,LH351H_C!$B$32) -> 8.685873857e-06 | Q17: =OFFSET(LH351H_D!$H13,0,LH351H_D!$B$14) -> 5.116273988e-06 | R17: =OFFSET(LH351H_D!$H13,0,LH351H_D!$B$32) -> 1.427323794e-05 | S17: =OFFSET(LH351H_450nm!H13,0,LH351H_450nm!$B$13) -> 4.058061181e-05 | T17: =OFFSET(LH351H_630nm!H13,0,LH351H_630nm!$B$13) -> -1.550768376e-06 | U17: =OFFSET(LH351H_660nm!H13,0,LH351H_660nm!$B$13) -> -7.886457078e-08 | V17: =OFFSET(LH351H_660nm_V2!H13,0,LH351H_660nm_V2!$B$13) -> -3.130636405e-06 | W17: =OFFSET(LH351H_730nm!H13,0,LH351H_730nm!$B$13) -> -4.99152024e-09 | Y17: 386 | Z17: 7.696373591e-05 | AA17: =MAX(C17*IF(Calculator!$D$4>=0,Calculator!$D$4,0),0) -> 2.504477162e-05 | AB17: =MAX(D17*IF(Calculator!$D$5>=0,Calculator!$D$5,0),0) -> 5.191896429e-05 | AC17: =MAX(E17*IF(Calculator!$D$6>=0,Calculator!$D$6,0),0) -> 0 | AD17: =MAX(F17*IF(Calculator!$D$7>=0,Calculator!$D$7,0),0) -> 0 | AE17: =MAX(G17*IF(Calculator!$D$8>=0,Calculator!$D$8,0),0) -> 0 | AF17: =MAX(H17*IF(Calculator!$D$9>=0,Calculator!$D$9,0),0) -> 0 | AG17: =MAX(I17*IF(Calculator!$D$10>=0,Calculator!$D$10,0),0) -> 0 | AH17: =MAX(J17*IF(Calculator!$D$11>=0,Calculator!$D$11,0),0) -> 0 | AI17: =MAX(K17*IF(Calculator!$D$12>=0,Calculator!$D$12,0),0) -> 0 | AJ17: =MAX(L17*IF(Calculator!$D$13>=0,Calculator!$D$13,0),0) -> 0 | AK17: =MAX(M17*IF(Calculator!$D$14>=0,Calculator!$D$14,0),0) -> 0 | AL17: =MAX(N17*IF(Calculator!$D$15>=0,Calculator!$D$15,0),0) -> 0 | AM17: =MAX(O17*IF(Calculator!$D$16>=0,Calculator!$D$16,0),0) -> 0 | AN17: =MAX(P17*IF(Calculator!$D$17>=0,Calculator!$D$17,0),0) -> 0 | AO17: =MAX(Q17*IF(Calculator!$D$18>=0,Calculator!$D$18,0),0) -> 0 | AP17: =MAX(R17*IF(Calculator!$D$19>=0,Calculator!$D$19,0),0) -> 0 | AQ17: =MAX(S17*IF(Calculator!$D$20>=0,Calculator!$D$20,0),0) -> 0 | AR17: =MAX(T17*IF(Calculator!$D$21>=0,Calculator!$D$21,0),0) -> 0 | AS17: =MAX(U17*IF(Calculator!$D$22>=0,Calculator!$D$22,0),0) -> 0 | AT17: =MAX(V17*IF(Calculator!$D$23>=0,Calculator!$D$23,0),0) -> 0 | AU17: =MAX(W17*IF(Calculator!$D$24>=0,Calculator!$D$24,0),0) -> 0 | AW17: 386 | AX17: 0.0002486025277 | AY17: 8.089775603e-05 | AZ17: 0.0001677047717 | BA17: 0 | BB17: 0 | BC17: 0 | BD17: 0 | BE17: 0 | BF17: 0 | BG17: 0 | BH17: 0 | BI17: 0 | BJ17: 0 | BK17: 0 | BL17: 0 | BM17: 0 | BN17: 0 | BO17: 0 | BP17: 0 | BQ17: 0 | BR17: 0 | BS17: 0 | BU17: 386 | BV17: =AX17*OFFSET(PPF_YPF_DIN_BPF!$A$101,ROW()-10,$BT$1) -> 7.696373591e-05 | BW17: =AY17*OFFSET(PPF_YPF_DIN_BPF!$A$101,ROW()-10,$BT$1) -> 2.504477162e-05 | BX17: =AZ17*OFFSET(PPF_YPF_DIN_BPF!$A$101,ROW()-10,$BT$1) -> 5.191896429e-05 | BY17: =BA17*OFFSET(PPF_YPF_DIN_BPF!$A$101,ROW()-10,$BT$1) -> 0 | BZ17: =BB17*OFFSET(PPF_YPF_DIN_BPF!$A$101,ROW()-10,$BT$1) -> 0 | CA17: =BC17*OFFSET(PPF_YPF_DIN_BPF!$A$101,ROW()-10,$BT$1) -> 0 | CB17: =BD17*OFFSET(PPF_YPF_DIN_BPF!$A$101,ROW()-10,$BT$1) -> 0 | CC17: =BE17*OFFSET(PPF_YPF_DIN_BPF!$A$101,ROW()-10,$BT$1) -> 0 | CD17: =BF17*OFFSET(PPF_YPF_DIN_BPF!$A$101,ROW()-10,$BT$1) -> 0 | CE17: =BG17*OFFSET(PPF_YPF_DIN_BPF!$A$101,ROW()-10,$BT$1) -> 0 | CF17: =BH17*OFFSET(PPF_YPF_DIN_BPF!$A$101,ROW()-10,$BT$1) -> 0 | CG17: =BI17*OFFSET(PPF_YPF_DIN_BPF!$A$101,ROW()-10,$BT$1) -> 0 | CH17: =BJ17*OFFSET(PPF_YPF_DIN_BPF!$A$101,ROW()-10,$BT$1) -> 0 | CI17: =BK17*OFFSET(PPF_YPF_DIN_BPF!$A$101,ROW()-10,$BT$1) -> 0 | CJ17: =BL17*OFFSET(PPF_YPF_DIN_BPF!$A$101,ROW()-10,$BT$1) -> 0 | CK17: =BM17*OFFSET(PPF_YPF_DIN_BPF!$A$101,ROW()-10,$BT$1) -> 0 | CL17: =BN17*OFFSET(PPF_YPF_DIN_BPF!$A$101,ROW()-10,$BT$1) -> 0 | CM17: =BO17*OFFSET(PPF_YPF_DIN_BPF!$A$101,ROW()-10,$BT$1) -> 0 | CN17: =BP17*OFFSET(PPF_YPF_DIN_BPF!$A$101,ROW()-10,$BT$1) -> 0 | CO17: =BQ17*OFFSET(PPF_YPF_DIN_BPF!$A$101,ROW()-10,$BT$1) -> 0 | CP17: =BR17*OFFSET(PPF_YPF_DIN_BPF!$A$101,ROW()-10,$BT$1) -> 0 | CQ17: =BS17*OFFSET(PPF_YPF_DIN_BPF!$A$101,ROW()-10,$BT$1) -> 0 | CS17: =AX17*OFFSET(PPF_YPF_DIN_BPF!$A$101,ROW()-10,1+1) -> 0 | CT17: =AX17*OFFSET(PPF_YPF_DIN_BPF!$A$101,ROW()-10,2+1) -> 0.0002486025277 | CU17: =AX17*OFFSET(PPF_YPF_DIN_BPF!$A$101,ROW()-10,3+1) -> 0.000133503535 | CV17: =AX17*OFFSET(PPF_YPF_DIN_BPF!$A$101,ROW()-10,4+1) -> 1.585815785e-05 | CW17: =PPF_YPF_DIN_BPF!I8*Graph_Data!CW$2 -> 0.01584098607 | CX17: =PPF_YPF_DIN_BPF!J8*Graph_Data!CX$2 -> 0.01722107198 | CY17: =PPF_YPF_DIN_BPF!K8*Graph_Data!CY$2 -> 0.00688191183 | DL17: Parameter | DM17: Performance | DX17: 264 | DY17: 0 | DZ17: 0 | EA17: 0 | EB17: 0 | EC17: 0
B18: 387 | C18: =OFFSET(LM301H!H14,0,LM301H!$B$13) -> 1.794490279e-06 | D18: =OFFSET(LM301H!H14,0,LM301H!$B$31) -> 2.94301061e-06 | E18: =OFFSET(LM301H_D!H14,0,LM301H_D!$B$13) -> 1.587174861e-06 | F18: =OFFSET(LM301H_D!H14,0,LM301H_D!$B$31) -> 2.757625145e-06 | G18: =OFFSET(LM561H!$H14,0,LM561H!$B$13) -> 1.53190592e-06 | H18: =OFFSET(LM561H!$H14,0,LM561H!$B$31) -> 2.712595299e-06 | I18: =OFFSET(LH181B!$H14,0,LH181B!$B$14) -> 7.444401352e-06 | J18: =OFFSET(LH181B!$H14,0,LH181B!$B$32) -> 1.731810952e-05 | K18: =OFFSET(LH231B!$H14,0,LH231B!$B$14) -> 8.509042419e-06 | L18: =OFFSET(LH231B!$H14,0,LH231B!$B$32) -> 1.710066267e-05 | M18: =OFFSET(LH351H_B!$H14,0,LH351H_B!$B$14) -> 7.937249595e-06 | N18: =OFFSET(LH351H_B!$H14,0,LH351H_B!$B$32) -> 2.042649705e-05 | O18: =OFFSET(LH351H_C!$H14,0,LH351H_C!$B$14) -> 4.46473827e-06 | P18: =OFFSET(LH351H_C!$H14,0,LH351H_C!$B$32) -> 1.025988106e-05 | Q18: =OFFSET(LH351H_D!$H14,0,LH351H_D!$B$14) -> 7.211954873e-06 | R18: =OFFSET(LH351H_D!$H14,0,LH351H_D!$B$32) -> 1.560372909e-05 | S18: =OFFSET(LH351H_450nm!H14,0,LH351H_450nm!$B$13) -> 4.137263958e-05 | T18: =OFFSET(LH351H_630nm!H14,0,LH351H_630nm!$B$13) -> 3.8459981e-06 | U18: =OFFSET(LH351H_660nm!H14,0,LH351H_660nm!$B$13) -> -2.360964159e-06 | V18: =OFFSET(LH351H_660nm_V2!H14,0,LH351H_660nm_V2!$B$13) -> 4.636198399e-06 | W18: =OFFSET(LH351H_730nm!H14,0,LH351H_730nm!$B$13) -> 9.917476504e-07 | Y18: 387 | Z18: 0.000108658613 | AA18: =MAX(C18*IF(Calculator!$D$4>=0,Calculator!$D$4,0),0) -> 3.588980558e-05 | AB18: =MAX(D18*IF(Calculator!$D$5>=0,Calculator!$D$5,0),0) -> 5.886021221e-05 | AC18: =MAX(E18*IF(Calculator!$D$6>=0,Calculator!$D$6,0),0) -> 0 | AD18: =MAX(F18*IF(Calculator!$D$7>=0,Calculator!$D$7,0),0) -> 0 | AE18: =MAX(G18*IF(Calculator!$D$8>=0,Calculator!$D$8,0),0) -> 0 | AF18: =MAX(H18*IF(Calculator!$D$9>=0,Calculator!$D$9,0),0) -> 0 | AG18: =MAX(I18*IF(Calculator!$D$10>=0,Calculator!$D$10,0),0) -> 0 | AH18: =MAX(J18*IF(Calculator!$D$11>=0,Calculator!$D$11,0),0) -> 0 | AI18: =MAX(K18*IF(Calculator!$D$12>=0,Calculator!$D$12,0),0) -> 0 | AJ18: =MAX(L18*IF(Calculator!$D$13>=0,Calculator!$D$13,0),0) -> 0 | AK18: =MAX(M18*IF(Calculator!$D$14>=0,Calculator!$D$14,0),0) -> 0 | AL18: =MAX(N18*IF(Calculator!$D$15>=0,Calculator!$D$15,0),0) -> 0 | AM18: =MAX(O18*IF(Calculator!$D$16>=0,Calculator!$D$16,0),0) -> 0 | AN18: =MAX(P18*IF(Calculator!$D$17>=0,Calculator!$D$17,0),0) -> 0 | AO18: =MAX(Q18*IF(Calculator!$D$18>=0,Calculator!$D$18,0),0) -> 0 | AP18: =MAX(R18*IF(Calculator!$D$19>=0,Calculator!$D$19,0),0) -> 0 | AQ18: =MAX(S18*IF(Calculator!$D$20>=0,Calculator!$D$20,0),0) -> 0 | AR18: =MAX(T18*IF(Calculator!$D$21>=0,Calculator!$D$21,0),0) -> 0 | AS18: =MAX(U18*IF(Calculator!$D$22>=0,Calculator!$D$22,0),0) -> 0 | AT18: =MAX(V18*IF(Calculator!$D$23>=0,Calculator!$D$23,0),0) -> 1.39085952e-05 | AU18: =MAX(W18*IF(Calculator!$D$24>=0,Calculator!$D$24,0),0) -> 0 | AW18: 387 | AX18: 0.0003518902362 | AY18: 0.0001162289101 | AZ18: 0.0001906184278 | BA18: 0 | BB18: 0 | BC18: 0 | BD18: 0 | BE18: 0 | BF18: 0 | BG18: 0 | BH18: 0 | BI18: 0 | BJ18: 0 | BK18: 0 | BL18: 0 | BM18: 0 | BN18: 0 | BO18: 0 | BP18: 0 | BQ18: 0 | BR18: 4.504289825e-05 | BS18: 0 | BU18: 387 | BV18: =AX18*OFFSET(PPF_YPF_DIN_BPF!$A$101,ROW()-10,$BT$1) -> 0.000108658613 | BW18: =AY18*OFFSET(PPF_YPF_DIN_BPF!$A$101,ROW()-10,$BT$1) -> 3.588980558e-05 | BX18: =AZ18*OFFSET(PPF_YPF_DIN_BPF!$A$101,ROW()-10,$BT$1) -> 5.886021221e-05 | BY18: =BA18*OFFSET(PPF_YPF_DIN_BPF!$A$101,ROW()-10,$BT$1) -> 0 | BZ18: =BB18*OFFSET(PPF_YPF_DIN_BPF!$A$101,ROW()-10,$BT$1) -> 0 | CA18: =BC18*OFFSET(PPF_YPF_DIN_BPF!$A$101,ROW()-10,$BT$1) -> 0 | CB18: =BD18*OFFSET(PPF_YPF_DIN_BPF!$A$101,ROW()-10,$BT$1) -> 0 | CC18: =BE18*OFFSET(PPF_YPF_DIN_BPF!$A$101,ROW()-10,$BT$1) -> 0 | CD18: =BF18*OFFSET(PPF_YPF_DIN_BPF!$A$101,ROW()-10,$BT$1) -> 0 | CE18: =BG18*OFFSET(PPF_YPF_DIN_BPF!$A$101,ROW()-10,$BT$1) -> 0 | CF18: =BH18*OFFSET(PPF_YPF_DIN_BPF!$A$101,ROW()-10,$BT$1) -> 0 | CG18: =BI18*OFFSET(PPF_YPF_DIN_BPF!$A$101,ROW()-10,$BT$1) -> 0 | CH18: =BJ18*OFFSET(PPF_YPF_DIN_BPF!$A$101,ROW()-10,$BT$1) -> 0 | CI18: =BK18*OFFSET(PPF_YPF_DIN_BPF!$A$101,ROW()-10,$BT$1) -> 0 | CJ18: =BL18*OFFSET(PPF_YPF_DIN_BPF!$A$101,ROW()-10,$BT$1) -> 0 | CK18: =BM18*OFFSET(PPF_YPF_DIN_BPF!$A$101,ROW()-10,$BT$1) -> 0 | CL18: =BN18*OFFSET(PPF_YPF_DIN_BPF!$A$101,ROW()-10,$BT$1) -> 0 | CM18: =BO18*OFFSET(PPF_YPF_DIN_BPF!$A$101,ROW()-10,$BT$1) -> 0 | CN18: =BP18*OFFSET(PPF_YPF_DIN_BPF!$A$101,ROW()-10,$BT$1) -> 0 | CO18: =BQ18*OFFSET(PPF_YPF_DIN_BPF!$A$101,ROW()-10,$BT$1) -> 0 | CP18: =BR18*OFFSET(PPF_YPF_DIN_BPF!$A$101,ROW()-10,$BT$1) -> 1.39085952e-05 | CQ18: =BS18*OFFSET(PPF_YPF_DIN_BPF!$A$101,ROW()-10,$BT$1) -> 0 | CS18: =AX18*OFFSET(PPF_YPF_DIN_BPF!$A$101,ROW()-10,1+1) -> 0 | CT18: =AX18*OFFSET(PPF_YPF_DIN_BPF!$A$101,ROW()-10,2+1) -> 0.0003518902362 | CU18: =AX18*OFFSET(PPF_YPF_DIN_BPF!$A$101,ROW()-10,3+1) -> 0.0001924216746 | CV18: =AX18*OFFSET(PPF_YPF_DIN_BPF!$A$101,ROW()-10,4+1) -> 3.257466936e-05 | CW18: =PPF_YPF_DIN_BPF!I9*Graph_Data!CW$2 -> 0.01732584534 | CX18: =PPF_YPF_DIN_BPF!J9*Graph_Data!CX$2 -> 0.01726568616 | CY18: =PPF_YPF_DIN_BPF!K9*Graph_Data!CY$2 -> 0.006540379126 | DL18: PE [μmol/J] | DM18: =Calculator!M25/Calculator!K25 -> 3.112134606 | DX18: 265 | DY18: 0 | DZ18: 0 | EA18: 0 | EB18: 0 | EC18: 0
B19: 388 | C19: =OFFSET(LM301H!H15,0,LM301H!$B$13) -> 1.228833525e-06 | D19: =OFFSET(LM301H!H15,0,LM301H!$B$31) -> 2.984824115e-06 | E19: =OFFSET(LM301H_D!H15,0,LM301H_D!$B$13) -> 1.803963121e-06 | F19: =OFFSET(LM301H_D!H15,0,LM301H_D!$B$31) -> 3.639933426e-06 | G19: =OFFSET(LM561H!$H15,0,LM561H!$B$13) -> 1.439651817e-06 | H19: =OFFSET(LM561H!$H15,0,LM561H!$B$31) -> 2.770900515e-06 | I19: =OFFSET(LH181B!$H15,0,LH181B!$B$14) -> 7.004398104e-06 | J19: =OFFSET(LH181B!$H15,0,LH181B!$B$32) -> 1.585921696e-05 | K19: =OFFSET(LH231B!$H15,0,LH231B!$B$14) -> 8.284342212e-06 | L19: =OFFSET(LH231B!$H15,0,LH231B!$B$32) -> 1.626606512e-05 | M19: =OFFSET(LH351H_B!$H15,0,LH351H_B!$B$14) -> 7.292788735e-06 | N19: =OFFSET(LH351H_B!$H15,0,LH351H_B!$B$32) -> 2.279477173e-05 | O19: =OFFSET(LH351H_C!$H15,0,LH351H_C!$B$14) -> 7.290864624e-06 | P19: =OFFSET(LH351H_C!$H15,0,LH351H_C!$B$32) -> 1.090452396e-05 | Q19: =OFFSET(LH351H_D!$H15,0,LH351H_D!$B$14) -> 8.660147205e-06 | R19: =OFFSET(LH351H_D!$H15,0,LH351H_D!$B$32) -> 1.663106405e-05 | S19: =OFFSET(LH351H_450nm!H15,0,LH351H_450nm!$B$13) -> 5.083805087e-05 | T19: =OFFSET(LH351H_630nm!H15,0,LH351H_630nm!$B$13) -> 3.947581008e-07 | U19: =OFFSET(LH351H_660nm!H15,0,LH351H_660nm!$B$13) -> 9.002090885e-07 | V19: =OFFSET(LH351H_660nm_V2!H15,0,LH351H_660nm_V2!$B$13) -> -4.949330213e-06 | W19: =OFFSET(LH351H_730nm!H15,0,LH351H_730nm!$B$13) -> -9.503686842e-08 | Y19: 388 | Z19: 8.427315279e-05 | AA19: =MAX(C19*IF(Calculator!$D$4>=0,Calculator!$D$4,0),0) -> 2.457667049e-05 | AB19: =MAX(D19*IF(Calculator!$D$5>=0,Calculator!$D$5,0),0) -> 5.96964823e-05 | AC19: =MAX(E19*IF(Calculator!$D$6>=0,Calculator!$D$6,0),0) -> 0 | AD19: =MAX(F19*IF(Calculator!$D$7>=0,Calculator!$D$7,0),0) -> 0 | AE19: =MAX(G19*IF(Calculator!$D$8>=0,Calculator!$D$8,0),0) -> 0 | AF19: =MAX(H19*IF(Calculator!$D$9>=0,Calculator!$D$9,0),0) -> 0 | AG19: =MAX(I19*IF(Calculator!$D$10>=0,Calculator!$D$10,0),0) -> 0 | AH19: =MAX(J19*IF(Calculator!$D$11>=0,Calculator!$D$11,0),0) -> 0 | AI19: =MAX(K19*IF(Calculator!$D$12>=0,Calculator!$D$12,0),0) -> 0 | AJ19: =MAX(L19*IF(Calculator!$D$13>=0,Calculator!$D$13,0),0) -> 0 | AK19: =MAX(M19*IF(Calculator!$D$14>=0,Calculator!$D$14,0),0) -> 0 | AL19: =MAX(N19*IF(Calculator!$D$15>=0,Calculator!$D$15,0),0) -> 0 | AM19: =MAX(O19*IF(Calculator!$D$16>=0,Calculator!$D$16,0),0) -> 0 | AN19: =MAX(P19*IF(Calculator!$D$17>=0,Calculator!$D$17,0),0) -> 0 | AO19: =MAX(Q19*IF(Calculator!$D$18>=0,Calculator!$D$18,0),0) -> 0 | AP19: =MAX(R19*IF(Calculator!$D$19>=0,Calculator!$D$19,0),0) -> 0 | AQ19: =MAX(S19*IF(Calculator!$D$20>=0,Calculator!$D$20,0),0) -> 0 | AR19: =MAX(T19*IF(Calculator!$D$21>=0,Calculator!$D$21,0),0) -> 0 | AS19: =MAX(U19*IF(Calculator!$D$22>=0,Calculator!$D$22,0),0) -> 0 | AT19: =MAX(V19*IF(Calculator!$D$23>=0,Calculator!$D$23,0),0) -> 0 | AU19: =MAX(W19*IF(Calculator!$D$24>=0,Calculator!$D$24,0),0) -> 0 | AW19: 388 | AX19: 0.0002736232911 | AY19: 7.979705566e-05 | AZ19: 0.0001938262354 | BA19: 0 | BB19: 0 | BC19: 0 | BD19: 0 | BE19: 0 | BF19: 0 | BG19: 0 | BH19: 0 | BI19: 0 | BJ19: 0 | BK19: 0 | BL19: 0 | BM19: 0 | BN19: 0 | BO19: 0 | BP19: 0 | BQ19: 0 | BR19: 0 | BS19: 0 | BU19: 388 | BV19: =AX19*OFFSET(PPF_YPF_DIN_BPF!$A$101,ROW()-10,$BT$1) -> 8.427315279e-05 | BW19: =AY19*OFFSET(PPF_YPF_DIN_BPF!$A$101,ROW()-10,$BT$1) -> 2.457667049e-05 | BX19: =AZ19*OFFSET(PPF_YPF_DIN_BPF!$A$101,ROW()-10,$BT$1) -> 5.96964823e-05 | BY19: =BA19*OFFSET(PPF_YPF_DIN_BPF!$A$101,ROW()-10,$BT$1) -> 0 | BZ19: =BB19*OFFSET(PPF_YPF_DIN_BPF!$A$101,ROW()-10,$BT$1) -> 0 | CA19: =BC19*OFFSET(PPF_YPF_DIN_BPF!$A$101,ROW()-10,$BT$1) -> 0 | CB19: =BD19*OFFSET(PPF_YPF_DIN_BPF!$A$101,ROW()-10,$BT$1) -> 0 | CC19: =BE19*OFFSET(PPF_YPF_DIN_BPF!$A$101,ROW()-10,$BT$1) -> 0 | CD19: =BF19*OFFSET(PPF_YPF_DIN_BPF!$A$101,ROW()-10,$BT$1) -> 0 | CE19: =BG19*OFFSET(PPF_YPF_DIN_BPF!$A$101,ROW()-10,$BT$1) -> 0 | CF19: =BH19*OFFSET(PPF_YPF_DIN_BPF!$A$101,ROW()-10,$BT$1) -> 0 | CG19: =BI19*OFFSET(PPF_YPF_DIN_BPF!$A$101,ROW()-10,$BT$1) -> 0 | CH19: =BJ19*OFFSET(PPF_YPF_DIN_BPF!$A$101,ROW()-10,$BT$1) -> 0 | CI19: =BK19*OFFSET(PPF_YPF_DIN_BPF!$A$101,ROW()-10,$BT$1) -> 0 | CJ19: =BL19*OFFSET(PPF_YPF_DIN_BPF!$A$101,ROW()-10,$BT$1) -> 0 | CK19: =BM19*OFFSET(PPF_YPF_DIN_BPF!$A$101,ROW()-10,$BT$1) -> 0 | CL19: =BN19*OFFSET(PPF_YPF_DIN_BPF!$A$101,ROW()-10,$BT$1) -> 0 | CM19: =BO19*OFFSET(PPF_YPF_DIN_BPF!$A$101,ROW()-10,$BT$1) -> 0 | CN19: =BP19*OFFSET(PPF_YPF_DIN_BPF!$A$101,ROW()-10,$BT$1) -> 0 | CO19: =BQ19*OFFSET(PPF_YPF_DIN_BPF!$A$101,ROW()-10,$BT$1) -> 0 | CP19: =BR19*OFFSET(PPF_YPF_DIN_BPF!$A$101,ROW()-10,$BT$1) -> 0 | CQ19: =BS19*OFFSET(PPF_YPF_DIN_BPF!$A$101,ROW()-10,$BT$1) -> 0 | CS19: =AX19*OFFSET(PPF_YPF_DIN_BPF!$A$101,ROW()-10,1+1) -> 0 | CT19: =AX19*OFFSET(PPF_YPF_DIN_BPF!$A$101,ROW()-10,2+1) -> 0.0002736232911 | CU19: =AX19*OFFSET(PPF_YPF_DIN_BPF!$A$101,ROW()-10,3+1) -> 0.000152167111 | CV19: =AX19*OFFSET(PPF_YPF_DIN_BPF!$A$101,ROW()-10,4+1) -> 3.320469942e-05 | CW19: =PPF_YPF_DIN_BPF!I10*Graph_Data!CW$2 -> 0.01737061497 | CX19: =PPF_YPF_DIN_BPF!J10*Graph_Data!CX$2 -> 0.01731030033 | CY19: =PPF_YPF_DIN_BPF!K10*Graph_Data!CY$2 -> 0.006269047272 | DL19: WPE [W/W] | DM19: =SUM(Graph_Data!Z11:Z411)/Calculator!K25 -> 0.649215643 | DX19: 266 | DY19: 0 | DZ19: 0 | EA19: 0 | EB19: 0 | EC19: 0
B20: 389 | C20: =OFFSET(LM301H!H16,0,LM301H!$B$13) -> 1.651325797e-06 | D20: =OFFSET(LM301H!H16,0,LM301H!$B$31) -> 3.154913118e-06 | E20: =OFFSET(LM301H_D!H16,0,LM301H_D!$B$13) -> 1.334932124e-06 | F20: =OFFSET(LM301H_D!H16,0,LM301H_D!$B$31) -> 3.195098933e-06 | G20: =OFFSET(LM561H!$H16,0,LM561H!$B$13) -> 1.436464835e-06 | H20: =OFFSET(LM561H!$H16,0,LM561H!$B$31) -> 1.933450907e-06 | I20: =OFFSET(LH181B!$H16,0,LH181B!$B$14) -> 7.793660562e-06 | J20: =OFFSET(LH181B!$H16,0,LH181B!$B$32) -> 1.709857285e-05 | K20: =OFFSET(LH231B!$H16,0,LH231B!$B$14) -> 7.939608043e-06 | L20: =OFFSET(LH231B!$H16,0,LH231B!$B$32) -> 1.652899903e-05 | M20: =OFFSET(LH351H_B!$H16,0,LH351H_B!$B$14) -> 7.499654218e-06 | N20: =OFFSET(LH351H_B!$H16,0,LH351H_B!$B$32) -> 2.364261817e-05 | O20: =OFFSET(LH351H_C!$H16,0,LH351H_C!$B$14) -> 7.23822628e-06 | P20: =OFFSET(LH351H_C!$H16,0,LH351H_C!$B$32) -> 1.143685646e-05 | Q20: =OFFSET(LH351H_D!$H16,0,LH351H_D!$B$14) -> 9.614565483e-06 | R20: =OFFSET(LH351H_D!$H16,0,LH351H_D!$B$32) -> 1.76598857e-05 | S20: =OFFSET(LH351H_450nm!H16,0,LH351H_450nm!$B$13) -> 4.910788745e-05 | T20: =OFFSET(LH351H_630nm!H16,0,LH351H_630nm!$B$13) -> -2.566013524e-06 | U20: =OFFSET(LH351H_660nm!H16,0,LH351H_660nm!$B$13) -> 1.488981201e-06 | V20: =OFFSET(LH351H_660nm_V2!H16,0,LH351H_660nm_V2!$B$13) -> -6.424336127e-06 | W20: =OFFSET(LH351H_730nm!H16,0,LH351H_730nm!$B$13) -> -1.444190541e-07 | Y20: 389 | Z20: 9.612477831e-05 | AA20: =MAX(C20*IF(Calculator!$D$4>=0,Calculator!$D$4,0),0) -> 3.302651594e-05 | AB20: =MAX(D20*IF(Calculator!$D$5>=0,Calculator!$D$5,0),0) -> 6.309826236e-05 | AC20: =MAX(E20*IF(Calculator!$D$6>=0,Calculator!$D$6,0),0) -> 0 | AD20: =MAX(F20*IF(Calculator!$D$7>=0,Calculator!$D$7,0),0) -> 0 | AE20: =MAX(G20*IF(Calculator!$D$8>=0,Calculator!$D$8,0),0) -> 0 | AF20: =MAX(H20*IF(Calculator!$D$9>=0,Calculator!$D$9,0),0) -> 0 | AG20: =MAX(I20*IF(Calculator!$D$10>=0,Calculator!$D$10,0),0) -> 0 | AH20: =MAX(J20*IF(Calculator!$D$11>=0,Calculator!$D$11,0),0) -> 0 | AI20: =MAX(K20*IF(Calculator!$D$12>=0,Calculator!$D$12,0),0) -> 0 | AJ20: =MAX(L20*IF(Calculator!$D$13>=0,Calculator!$D$13,0),0) -> 0 | AK20: =MAX(M20*IF(Calculator!$D$14>=0,Calculator!$D$14,0),0) -> 0 | AL20: =MAX(N20*IF(Calculator!$D$15>=0,Calculator!$D$15,0),0) -> 0 | AM20: =MAX(O20*IF(Calculator!$D$16>=0,Calculator!$D$16,0),0) -> 0 | AN20: =MAX(P20*IF(Calculator!$D$17>=0,Calculator!$D$17,0),0) -> 0 | AO20: =MAX(Q20*IF(Calculator!$D$18>=0,Calculator!$D$18,0),0) -> 0 | AP20: =MAX(R20*IF(Calculator!$D$19>=0,Calculator!$D$19,0),0) -> 0 | AQ20: =MAX(S20*IF(Calculator!$D$20>=0,Calculator!$D$20,0),0) -> 0 | AR20: =MAX(T20*IF(Calculator!$D$21>=0,Calculator!$D$21,0),0) -> 0 | AS20: =MAX(U20*IF(Calculator!$D$22>=0,Calculator!$D$22,0),0) -> 0 | AT20: =MAX(V20*IF(Calculator!$D$23>=0,Calculator!$D$23,0),0) -> 0 | AU20: =MAX(W20*IF(Calculator!$D$24>=0,Calculator!$D$24,0),0) -> 0 | AW20: 389 | AX20: 0.0003129082742 | AY20: 0.0001075089096 | AZ20: 0.0002053993645 | BA20: 0 | BB20: 0 | BC20: 0 | BD20: 0 | BE20: 0 | BF20: 0 | BG20: 0 | BH20: 0 | BI20: 0 | BJ20: 0 | BK20: 0 | BL20: 0 | BM20: 0 | BN20: 0 | BO20: 0 | BP20: 0 | BQ20: 0 | BR20: 0 | BS20: 0 | BU20: 389 | BV20: =AX20*OFFSET(PPF_YPF_DIN_BPF!$A$101,ROW()-10,$BT$1) -> 9.612477831e-05 | BW20: =AY20*OFFSET(PPF_YPF_DIN_BPF!$A$101,ROW()-10,$BT$1) -> 3.302651594e-05 | BX20: =AZ20*OFFSET(PPF_YPF_DIN_BPF!$A$101,ROW()-10,$BT$1) -> 6.309826236e-05 | BY20: =BA20*OFFSET(PPF_YPF_DIN_BPF!$A$101,ROW()-10,$BT$1) -> 0 | BZ20: =BB20*OFFSET(PPF_YPF_DIN_BPF!$A$101,ROW()-10,$BT$1) -> 0 | CA20: =BC20*OFFSET(PPF_YPF_DIN_BPF!$A$101,ROW()-10,$BT$1) -> 0 | CB20: =BD20*OFFSET(PPF_YPF_DIN_BPF!$A$101,ROW()-10,$BT$1) -> 0 | CC20: =BE20*OFFSET(PPF_YPF_DIN_BPF!$A$101,ROW()-10,$BT$1) -> 0 | CD20: =BF20*OFFSET(PPF_YPF_DIN_BPF!$A$101,ROW()-10,$BT$1) -> 0 | CE20: =BG20*OFFSET(PPF_YPF_DIN_BPF!$A$101,ROW()-10,$BT$1) -> 0 | CF20: =BH20*OFFSET(PPF_YPF_DIN_BPF!$A$101,ROW()-10,$BT$1) -> 0 | CG20: =BI20*OFFSET(PPF_YPF_DIN_BPF!$A$101,ROW()-10,$BT$1) -> 0 | CH20: =BJ20*OFFSET(PPF_YPF_DIN_BPF!$A$101,ROW()-10,$BT$1) -> 0 | CI20: =BK20*OFFSET(PPF_YPF_DIN_BPF!$A$101,ROW()-10,$BT$1) -> 0 | CJ20: =BL20*OFFSET(PPF_YPF_DIN_BPF!$A$101,ROW()-10,$BT$1) -> 0 | CK20: =BM20*OFFSET(PPF_YPF_DIN_BPF!$A$101,ROW()-10,$BT$1) -> 0 | CL20: =BN20*OFFSET(PPF_YPF_DIN_BPF!$A$101,ROW()-10,$BT$1) -> 0 | CM20: =BO20*OFFSET(PPF_YPF_DIN_BPF!$A$101,ROW()-10,$BT$1) -> 0 | CN20: =BP20*OFFSET(PPF_YPF_DIN_BPF!$A$101,ROW()-10,$BT$1) -> 0 | CO20: =BQ20*OFFSET(PPF_YPF_DIN_BPF!$A$101,ROW()-10,$BT$1) -> 0 | CP20: =BR20*OFFSET(PPF_YPF_DIN_BPF!$A$101,ROW()-10,$BT$1) -> 0 | CQ20: =BS20*OFFSET(PPF_YPF_DIN_BPF!$A$101,ROW()-10,$BT$1) -> 0 | CS20: =AX20*OFFSET(PPF_YPF_DIN_BPF!$A$101,ROW()-10,1+1) -> 0 | CT20: =AX20*OFFSET(PPF_YPF_DIN_BPF!$A$101,ROW()-10,2+1) -> 0.0003129082742 | CU20: =AX20*OFFSET(PPF_YPF_DIN_BPF!$A$101,ROW()-10,3+1) -> 0.000176625769 | CV20: =AX20*OFFSET(PPF_YPF_DIN_BPF!$A$101,ROW()-10,4+1) -> 4.697792349e-05 | CW20: =PPF_YPF_DIN_BPF!I11*Graph_Data!CW$2 -> 0.01814102562 | CX20: =PPF_YPF_DIN_BPF!J11*Graph_Data!CX$2 -> 0.01735491451 | CY20: =PPF_YPF_DIN_BPF!K11*Graph_Data!CY$2 -> 0.006068473417 | DX20: 267 | DY20: 0 | DZ20: 0 | EA20: 0 | EB20: 0 | EC20: 0
B21: 390 | C21: =OFFSET(LM301H!H17,0,LM301H!$B$13) -> 1.361175753e-06 | D21: =OFFSET(LM301H!H17,0,LM301H!$B$31) -> 2.868413803e-06 | E21: =OFFSET(LM301H_D!H17,0,LM301H_D!$B$13) -> 2.176596449e-06 | F21: =OFFSET(LM301H_D!H17,0,LM301H_D!$B$31) -> 3.67429432e-06 | G21: =OFFSET(LM561H!$H17,0,LM561H!$B$13) -> 1.679681133e-06 | H21: =OFFSET(LM561H!$H17,0,LM561H!$B$31) -> 2.684754609e-06 | I21: =OFFSET(LH181B!$H17,0,LH181B!$B$14) -> 7.430005231e-06 | J21: =OFFSET(LH181B!$H17,0,LH181B!$B$32) -> 1.740938041e-05 | K21: =OFFSET(LH231B!$H17,0,LH231B!$B$14) -> 8.163718508e-06 | L21: =OFFSET(LH231B!$H17,0,LH231B!$B$32) -> 1.679621443e-05 | M21: =OFFSET(LH351H_B!$H17,0,LH351H_B!$B$14) -> 7.310421951e-06 | N21: =OFFSET(LH351H_B!$H17,0,LH351H_B!$B$32) -> 2.553817742e-05 | O21: =OFFSET(LH351H_C!$H17,0,LH351H_C!$B$14) -> 6.529217092e-06 | P21: =OFFSET(LH351H_C!$H17,0,LH351H_C!$B$32) -> 1.125673945e-05 | Q21: =OFFSET(LH351H_D!$H17,0,LH351H_D!$B$14) -> 9.444748958e-06 | R21: =OFFSET(LH351H_D!$H17,0,LH351H_D!$B$32) -> 1.865580731e-05 | S21: =OFFSET(LH351H_450nm!H17,0,LH351H_450nm!$B$13) -> 5.103000144e-05 | T21: =OFFSET(LH351H_630nm!H17,0,LH351H_630nm!$B$13) -> -2.228936176e-06 | U21: =OFFSET(LH351H_660nm!H17,0,LH351H_660nm!$B$13) -> 7.75453189e-07 | V21: =OFFSET(LH351H_660nm_V2!H17,0,LH351H_660nm_V2!$B$13) -> -6.077056907e-06 | W21: =OFFSET(LH351H_730nm!H17,0,LH351H_730nm!$B$13) -> 1.245104949e-06 | Y21: 390 | Z21: 8.459179113e-05 | AA21: =MAX(C21*IF(Calculator!$D$4>=0,Calculator!$D$4,0),0) -> 2.722351507e-05 | AB21: =MAX(D21*IF(Calculator!$D$5>=0,Calculator!$D$5,0),0) -> 5.736827606e-05 | AC21: =MAX(E21*IF(Calculator!$D$6>=0,Calculator!$D$6,0),0) -> 0 | AD21: =MAX(F21*IF(Calculator!$D$7>=0,Calculator!$D$7,0),0) -> 0 | AE21: =MAX(G21*IF(Calculator!$D$8>=0,Calculator!$D$8,0),0) -> 0 | AF21: =MAX(H21*IF(Calculator!$D$9>=0,Calculator!$D$9,0),0) -> 0 | AG21: =MAX(I21*IF(Calculator!$D$10>=0,Calculator!$D$10,0),0) -> 0 | AH21: =MAX(J21*IF(Calculator!$D$11>=0,Calculator!$D$11,0),0) -> 0 | AI21: =MAX(K21*IF(Calculator!$D$12>=0,Calculator!$D$12,0),0) -> 0 | AJ21: =MAX(L21*IF(Calculator!$D$13>=0,Calculator!$D$13,0),0) -> 0 | AK21: =MAX(M21*IF(Calculator!$D$14>=0,Calculator!$D$14,0),0) -> 0 | AL21: =MAX(N21*IF(Calculator!$D$15>=0,Calculator!$D$15,0),0) -> 0 | AM21: =MAX(O21*IF(Calculator!$D$16>=0,Calculator!$D$16,0),0) -> 0 | AN21: =MAX(P21*IF(Calculator!$D$17>=0,Calculator!$D$17,0),0) -> 0 | AO21: =MAX(Q21*IF(Calculator!$D$18>=0,Calculator!$D$18,0),0) -> 0 | AP21: =MAX(R21*IF(Calculator!$D$19>=0,Calculator!$D$19,0),0) -> 0 | AQ21: =MAX(S21*IF(Calculator!$D$20>=0,Calculator!$D$20,0),0) -> 0 | AR21: =MAX(T21*IF(Calculator!$D$21>=0,Calculator!$D$21,0),0) -> 0 | AS21: =MAX(U21*IF(Calculator!$D$22>=0,Calculator!$D$22,0),0) -> 0 | AT21: =MAX(V21*IF(Calculator!$D$23>=0,Calculator!$D$23,0),0) -> 0 | AU21: =MAX(W21*IF(Calculator!$D$24>=0,Calculator!$D$24,0),0) -> 0 | AW21: 390 | AX21: 0.0002760736279 | AY21: 8.884661822e-05 | AZ21: 0.0001872270097 | BA21: 0 | BB21: 0 | BC21: 0 | BD21: 0 | BE21: 0 | BF21: 0 | BG21: 0 | BH21: 0 | BI21: 0 | BJ21: 0 | BK21: 0 | BL21: 0 | BM21: 0 | BN21: 0 | BO21: 0 | BP21: 0 | BQ21: 0 | BR21: 0 | BS21: 0 | BU21: 390 | BV21: =AX21*OFFSET(PPF_YPF_DIN_BPF!$A$101,ROW()-10,$BT$1) -> 8.459179113e-05 | BW21: =AY21*OFFSET(PPF_YPF_DIN_BPF!$A$101,ROW()-10,$BT$1) -> 2.722351507e-05 | BX21: =AZ21*OFFSET(PPF_YPF_DIN_BPF!$A$101,ROW()-10,$BT$1) -> 5.736827606e-05 | BY21: =BA21*OFFSET(PPF_YPF_DIN_BPF!$A$101,ROW()-10,$BT$1) -> 0 | BZ21: =BB21*OFFSET(PPF_YPF_DIN_BPF!$A$101,ROW()-10,$BT$1) -> 0 | CA21: =BC21*OFFSET(PPF_YPF_DIN_BPF!$A$101,ROW()-10,$BT$1) -> 0 | CB21: =BD21*OFFSET(PPF_YPF_DIN_BPF!$A$101,ROW()-10,$BT$1) -> 0 | CC21: =BE21*OFFSET(PPF_YPF_DIN_BPF!$A$101,ROW()-10,$BT$1) -> 0 | CD21: =BF21*OFFSET(PPF_YPF_DIN_BPF!$A$101,ROW()-10,$BT$1) -> 0 | CE21: =BG21*OFFSET(PPF_YPF_DIN_BPF!$A$101,ROW()-10,$BT$1) -> 0 | CF21: =BH21*OFFSET(PPF_YPF_DIN_BPF!$A$101,ROW()-10,$BT$1) -> 0 | CG21: =BI21*OFFSET(PPF_YPF_DIN_BPF!$A$101,ROW()-10,$BT$1) -> 0 | CH21: =BJ21*OFFSET(PPF_YPF_DIN_BPF!$A$101,ROW()-10,$BT$1) -> 0 | CI21: =BK21*OFFSET(PPF_YPF_DIN_BPF!$A$101,ROW()-10,$BT$1) -> 0 | CJ21: =BL21*OFFSET(PPF_YPF_DIN_BPF!$A$101,ROW()-10,$BT$1) -> 0 | CK21: =BM21*OFFSET(PPF_YPF_DIN_BPF!$A$101,ROW()-10,$BT$1) -> 0 | CL21: =BN21*OFFSET(PPF_YPF_DIN_BPF!$A$101,ROW()-10,$BT$1) -> 0 | CM21: =BO21*OFFSET(PPF_YPF_DIN_BPF!$A$101,ROW()-10,$BT$1) -> 0 | CN21: =BP21*OFFSET(PPF_YPF_DIN_BPF!$A$101,ROW()-10,$BT$1) -> 0 | CO21: =BQ21*OFFSET(PPF_YPF_DIN_BPF!$A$101,ROW()-10,$BT$1) -> 0 | CP21: =BR21*OFFSET(PPF_YPF_DIN_BPF!$A$101,ROW()-10,$BT$1) -> 0 | CQ21: =BS21*OFFSET(PPF_YPF_DIN_BPF!$A$101,ROW()-10,$BT$1) -> 0 | CS21: =AX21*OFFSET(PPF_YPF_DIN_BPF!$A$101,ROW()-10,1+1) -> 0 | CT21: =AX21*OFFSET(PPF_YPF_DIN_BPF!$A$101,ROW()-10,2+1) -> 0.0002760736279 | CU21: =AX21*OFFSET(PPF_YPF_DIN_BPF!$A$101,ROW()-10,3+1) -> 0.0001581352502 | CV21: =AX21*OFFSET(PPF_YPF_DIN_BPF!$A$101,ROW()-10,4+1) -> 4.93963733e-05 | CW21: =PPF_YPF_DIN_BPF!I12*Graph_Data!CW$2 -> 0.01891516707 | CX21: =PPF_YPF_DIN_BPF!J12*Graph_Data!CX$2 -> 0.01739952868 | CY21: =PPF_YPF_DIN_BPF!K12*Graph_Data!CY$2 -> 0.005866785263 | DX21: 268 | DY21: 0 | DZ21: 0 | EA21: 0 | EB21: 0 | EC21: 0
B22: 391 | C22: =OFFSET(LM301H!H18,0,LM301H!$B$13) -> 1.309798999e-06 | D22: =OFFSET(LM301H!H18,0,LM301H!$B$31) -> 3.125937219e-06 | E22: =OFFSET(LM301H_D!H18,0,LM301H_D!$B$13) -> 1.56495582e-06 | F22: =OFFSET(LM301H_D!H18,0,LM301H_D!$B$31) -> 3.283638495e-06 | G22: =OFFSET(LM561H!$H18,0,LM561H!$B$13) -> 1.255134653e-06 | H22: =OFFSET(LM561H!$H18,0,LM561H!$B$31) -> 3.132863399e-06 | I22: =OFFSET(LH181B!$H18,0,LH181B!$B$14) -> 7.564859612e-06 | J22: =OFFSET(LH181B!$H18,0,LH181B!$B$32) -> 1.749638377e-05 | K22: =OFFSET(LH231B!$H18,0,LH231B!$B$14) -> 7.856625914e-06 | L22: =OFFSET(LH231B!$H18,0,LH231B!$B$32) -> 1.683955415e-05 | M22: =OFFSET(LH351H_B!$H18,0,LH351H_B!$B$14) -> 8.628613713e-06 | N22: =OFFSET(LH351H_B!$H18,0,LH351H_B!$B$32) -> 2.726875041e-05 | O22: =OFFSET(LH351H_C!$H18,0,LH351H_C!$B$14) -> 5.699893154e-06 | P22: =OFFSET(LH351H_C!$H18,0,LH351H_C!$B$32) -> 1.337982062e-05 | Q22: =OFFSET(LH351H_D!$H18,0,LH351H_D!$B$14) -> 1.084745899e-05 | R22: =OFFSET(LH351H_D!$H18,0,LH351H_D!$B$32) -> 1.898326914e-05 | S22: =OFFSET(LH351H_450nm!H18,0,LH351H_450nm!$B$13) -> 5.437641622e-05 | T22: =OFFSET(LH351H_630nm!H18,0,LH351H_630nm!$B$13) -> -1.959877821e-07 | U22: =OFFSET(LH351H_660nm!H18,0,LH351H_660nm!$B$13) -> -1.27394736e-06 | V22: =OFFSET(LH351H_660nm_V2!H18,0,LH351H_660nm_V2!$B$13) -> -3.27265447e-06 | W22: =OFFSET(LH351H_730nm!H18,0,LH351H_730nm!$B$13) -> 1.303060325e-08 | Y22: 391 | Z22: 8.871472435e-05 | AA22: =MAX(C22*IF(Calculator!$D$4>=0,Calculator!$D$4,0),0) -> 2.619597997e-05 | AB22: =MAX(D22*IF(Calculator!$D$5>=0,Calculator!$D$5,0),0) -> 6.251874438e-05 | AC22: =MAX(E22*IF(Calculator!$D$6>=0,Calculator!$D$6,0),0) -> 0 | AD22: =MAX(F22*IF(Calculator!$D$7>=0,Calculator!$D$7,0),0) -> 0 | AE22: =MAX(G22*IF(Calculator!$D$8>=0,Calculator!$D$8,0),0) -> 0 | AF22: =MAX(H22*IF(Calculator!$D$9>=0,Calculator!$D$9,0),0) -> 0 | AG22: =MAX(I22*IF(Calculator!$D$10>=0,Calculator!$D$10,0),0) -> 0 | AH22: =MAX(J22*IF(Calculator!$D$11>=0,Calculator!$D$11,0),0) -> 0 | AI22: =MAX(K22*IF(Calculator!$D$12>=0,Calculator!$D$12,0),0) -> 0 | AJ22: =MAX(L22*IF(Calculator!$D$13>=0,Calculator!$D$13,0),0) -> 0 | AK22: =MAX(M22*IF(Calculator!$D$14>=0,Calculator!$D$14,0),0) -> 0 | AL22: =MAX(N22*IF(Calculator!$D$15>=0,Calculator!$D$15,0),0) -> 0 | AM22: =MAX(O22*IF(Calculator!$D$16>=0,Calculator!$D$16,0),0) -> 0 | AN22: =MAX(P22*IF(Calculator!$D$17>=0,Calculator!$D$17,0),0) -> 0 | AO22: =MAX(Q22*IF(Calculator!$D$18>=0,Calculator!$D$18,0),0) -> 0 | AP22: =MAX(R22*IF(Calculator!$D$19>=0,Calculator!$D$19,0),0) -> 0 | AQ22: =MAX(S22*IF(Calculator!$D$20>=0,Calculator!$D$20,0),0) -> 0 | AR22: =MAX(T22*IF(Calculator!$D$21>=0,Calculator!$D$21,0),0) -> 0 | AS22: =MAX(U22*IF(Calculator!$D$22>=0,Calculator!$D$22,0),0) -> 0 | AT22: =MAX(V22*IF(Calculator!$D$23>=0,Calculator!$D$23,0),0) -> 0 | AU22: =MAX(W22*IF(Calculator!$D$24>=0,Calculator!$D$24,0),0) -> 0 | AW22: 391 | AX22: 0.0002902716085 | AY22: 8.571236961e-05 | AZ22: 0.0002045592389 | BA22: 0 | BB22: 0 | BC22: 0 | BD22: 0 | BE22: 0 | BF22: 0 | BG22: 0 | BH22: 0 | BI22: 0 | BJ22: 0 | BK22: 0 | BL22: 0 | BM22: 0 | BN22: 0 | BO22: 0 | BP22: 0 | BQ22: 0 | BR22: 0 | BS22: 0 | BU22: 391 | BV22: =AX22*OFFSET(PPF_YPF_DIN_BPF!$A$101,ROW()-10,$BT$1) -> 8.871472435e-05 | BW22: =AY22*OFFSET(PPF_YPF_DIN_BPF!$A$101,ROW()-10,$BT$1) -> 2.619597997e-05 | BX22: =AZ22*OFFSET(PPF_YPF_DIN_BPF!$A$101,ROW()-10,$BT$1) -> 6.251874438e-05 | BY22: =BA22*OFFSET(PPF_YPF_DIN_BPF!$A$101,ROW()-10,$BT$1) -> 0 | BZ22: =BB22*OFFSET(PPF_YPF_DIN_BPF!$A$101,ROW()-10,$BT$1) -> 0 | CA22: =BC22*OFFSET(PPF_YPF_DIN_BPF!$A$101,ROW()-10,$BT$1) -> 0 | CB22: =BD22*OFFSET(PPF_YPF_DIN_BPF!$A$101,ROW()-10,$BT$1) -> 0 | CC22: =BE22*OFFSET(PPF_YPF_DIN_BPF!$A$101,ROW()-10,$BT$1) -> 0 | CD22: =BF22*OFFSET(PPF_YPF_DIN_BPF!$A$101,ROW()-10,$BT$1) -> 0 | CE22: =BG22*OFFSET(PPF_YPF_DIN_BPF!$A$101,ROW()-10,$BT$1) -> 0 | CF22: =BH22*OFFSET(PPF_YPF_DIN_BPF!$A$101,ROW()-10,$BT$1) -> 0 | CG22: =BI22*OFFSET(PPF_YPF_DIN_BPF!$A$101,ROW()-10,$BT$1) -> 0 | CH22: =BJ22*OFFSET(PPF_YPF_DIN_BPF!$A$101,ROW()-10,$BT$1) -> 0 | CI22: =BK22*OFFSET(PPF_YPF_DIN_BPF!$A$101,ROW()-10,$BT$1) -> 0 | CJ22: =BL22*OFFSET(PPF_YPF_DIN_BPF!$A$101,ROW()-10,$BT$1) -> 0 | CK22: =BM22*OFFSET(PPF_YPF_DIN_BPF!$A$101,ROW()-10,$BT$1) -> 0 | CL22: =BN22*OFFSET(PPF_YPF_DIN_BPF!$A$101,ROW()-10,$BT$1) -> 0 | CM22: =BO22*OFFSET(PPF_YPF_DIN_BPF!$A$101,ROW()-10,$BT$1) -> 0 | CN22: =BP22*OFFSET(PPF_YPF_DIN_BPF!$A$101,ROW()-10,$BT$1) -> 0 | CO22: =BQ22*OFFSET(PPF_YPF_DIN_BPF!$A$101,ROW()-10,$BT$1) -> 0 | CP22: =BR22*OFFSET(PPF_YPF_DIN_BPF!$A$101,ROW()-10,$BT$1) -> 0 | CQ22: =BS22*OFFSET(PPF_YPF_DIN_BPF!$A$101,ROW()-10,$BT$1) -> 0 | CS22: =AX22*OFFSET(PPF_YPF_DIN_BPF!$A$101,ROW()-10,1+1) -> 0 | CT22: =AX22*OFFSET(PPF_YPF_DIN_BPF!$A$101,ROW()-10,2+1) -> 0.0002902716085 | CU22: =AX22*OFFSET(PPF_YPF_DIN_BPF!$A$101,ROW()-10,3+1) -> 0.0001686904745 | CV22: =AX22*OFFSET(PPF_YPF_DIN_BPF!$A$101,ROW()-10,4+1) -> 6.029114608e-05 | CW22: =PPF_YPF_DIN_BPF!I13*Graph_Data!CW$2 -> 0.02042241115 | CX22: =PPF_YPF_DIN_BPF!J13*Graph_Data!CX$2 -> 0.01809022223 | CY22: =PPF_YPF_DIN_BPF!K13*Graph_Data!CY$2 -> 0.005809213138 | DX22: 269 | DY22: 0 | DZ22: 0 | EA22: 0 | EB22: 0 | EC22: 0
B23: 392 | C23: =OFFSET(LM301H!H19,0,LM301H!$B$13) -> 1.736294004e-06 | D23: =OFFSET(LM301H!H19,0,LM301H!$B$31) -> 3.248528112e-06 | E23: =OFFSET(LM301H_D!H19,0,LM301H_D!$B$13) -> 1.186241024e-06 | F23: =OFFSET(LM301H_D!H19,0,LM301H_D!$B$31) -> 2.858372265e-06 | G23: =OFFSET(LM561H!$H19,0,LM561H!$B$13) -> 9.877168164e-07 | H23: =OFFSET(LM561H!$H19,0,LM561H!$B$31) -> 3.13696564e-06 | I23: =OFFSET(LH181B!$H19,0,LH181B!$B$14) -> 7.689108408e-06 | J23: =OFFSET(LH181B!$H19,0,LH181B!$B$32) -> 1.778365742e-05 | K23: =OFFSET(LH231B!$H19,0,LH231B!$B$14) -> 8.331928994e-06 | L23: =OFFSET(LH231B!$H19,0,LH231B!$B$32) -> 1.690527491e-05 | M23: =OFFSET(LH351H_B!$H19,0,LH351H_B!$B$14) -> 1.228211983e-05 | N23: =OFFSET(LH351H_B!$H19,0,LH351H_B!$B$32) -> 3.004330448e-05 | O23: =OFFSET(LH351H_C!$H19,0,LH351H_C!$B$14) -> 6.807059408e-06 | P23: =OFFSET(LH351H_C!$H19,0,LH351H_C!$B$32) -> 1.355543901e-05 | Q23: =OFFSET(LH351H_D!$H19,0,LH351H_D!$B$14) -> 9.761856102e-06 | R23: =OFFSET(LH351H_D!$H19,0,LH351H_D!$B$32) -> 2.223148068e-05 | S23: =OFFSET(LH351H_450nm!H19,0,LH351H_450nm!$B$13) -> 5.829124144e-05 | T23: =OFFSET(LH351H_630nm!H19,0,LH351H_630nm!$B$13) -> 3.610612126e-07 | U23: =OFFSET(LH351H_660nm!H19,0,LH351H_660nm!$B$13) -> 1.703140558e-06 | V23: =OFFSET(LH351H_660nm_V2!H19,0,LH351H_660nm_V2!$B$13) -> 1.985649332e-07 | W23: =OFFSET(LH351H_730nm!H19,0,LH351H_730nm!$B$13) -> 5.295944677e-07 | Y23: 392 | Z23: 0.0001002921371 | AA23: =MAX(C23*IF(Calculator!$D$4>=0,Calculator!$D$4,0),0) -> 3.472588008e-05 | AB23: =MAX(D23*IF(Calculator!$D$5>=0,Calculator!$D$5,0),0) -> 6.497056224e-05 | AC23: =MAX(E23*IF(Calculator!$D$6>=0,Calculator!$D$6,0),0) -> 0 | AD23: =MAX(F23*IF(Calculator!$D$7>=0,Calculator!$D$7,0),0) -> 0 | AE23: =MAX(G23*IF(Calculator!$D$8>=0,Calculator!$D$8,0),0) -> 0 | AF23: =MAX(H23*IF(Calculator!$D$9>=0,Calculator!$D$9,0),0) -> 0 | AG23: =MAX(I23*IF(Calculator!$D$10>=0,Calculator!$D$10,0),0) -> 0 | AH23: =MAX(J23*IF(Calculator!$D$11>=0,Calculator!$D$11,0),0) -> 0 | AI23: =MAX(K23*IF(Calculator!$D$12>=0,Calculator!$D$12,0),0) -> 0 | AJ23: =MAX(L23*IF(Calculator!$D$13>=0,Calculator!$D$13,0),0) -> 0 | AK23: =MAX(M23*IF(Calculator!$D$14>=0,Calculator!$D$14,0),0) -> 0 | AL23: =MAX(N23*IF(Calculator!$D$15>=0,Calculator!$D$15,0),0) -> 0 | AM23: =MAX(O23*IF(Calculator!$D$16>=0,Calculator!$D$16,0),0) -> 0 | AN23: =MAX(P23*IF(Calculator!$D$17>=0,Calculator!$D$17,0),0) -> 0 | AO23: =MAX(Q23*IF(Calculator!$D$18>=0,Calculator!$D$18,0),0) -> 0 | AP23: =MAX(R23*IF(Calculator!$D$19>=0,Calculator!$D$19,0),0) -> 0 | AQ23: =MAX(S23*IF(Calculator!$D$20>=0,Calculator!$D$20,0),0) -> 0 | AR23: =MAX(T23*IF(Calculator!$D$21>=0,Calculator!$D$21,0),0) -> 0 | AS23: =MAX(U23*IF(Calculator!$D$22>=0,Calculator!$D$22,0),0) -> 0 | AT23: =MAX(V23*IF(Calculator!$D$23>=0,Calculator!$D$23,0),0) -> 5.956947996e-07 | AU23: =MAX(W23*IF(Calculator!$D$24>=0,Calculator!$D$24,0),0) -> 0 | AW23: 392 | AX23: 0.0003289917803 | AY23: 0.0001139125104 | AZ23: 0.0002131251916 | BA23: 0 | BB23: 0 | BC23: 0 | BD23: 0 | BE23: 0 | BF23: 0 | BG23: 0 | BH23: 0 | BI23: 0 | BJ23: 0 | BK23: 0 | BL23: 0 | BM23: 0 | BN23: 0 | BO23: 0 | BP23: 0 | BQ23: 0 | BR23: 1.954078338e-06 | BS23: 0 | BU23: 392 | BV23: =AX23*OFFSET(PPF_YPF_DIN_BPF!$A$101,ROW()-10,$BT$1) -> 0.0001002921371 | BW23: =AY23*OFFSET(PPF_YPF_DIN_BPF!$A$101,ROW()-10,$BT$1) -> 3.472588008e-05 | BX23: =AZ23*OFFSET(PPF_YPF_DIN_BPF!$A$101,ROW()-10,$BT$1) -> 6.497056224e-05 | BY23: =BA23*OFFSET(PPF_YPF_DIN_BPF!$A$101,ROW()-10,$BT$1) -> 0 | BZ23: =BB23*OFFSET(PPF_YPF_DIN_BPF!$A$101,ROW()-10,$BT$1) -> 0 | CA23: =BC23*OFFSET(PPF_YPF_DIN_BPF!$A$101,ROW()-10,$BT$1) -> 0 | CB23: =BD23*OFFSET(PPF_YPF_DIN_BPF!$A$101,ROW()-10,$BT$1) -> 0 | CC23: =BE23*OFFSET(PPF_YPF_DIN_BPF!$A$101,ROW()-10,$BT$1) -> 0 | CD23: =BF23*OFFSET(PPF_YPF_DIN_BPF!$A$101,ROW()-10,$BT$1) -> 0 | CE23: =BG23*OFFSET(PPF_YPF_DIN_BPF!$A$101,ROW()-10,$BT$1) -> 0 | CF23: =BH23*OFFSET(PPF_YPF_DIN_BPF!$A$101,ROW()-10,$BT$1) -> 0 | CG23: =BI23*OFFSET(PPF_YPF_DIN_BPF!$A$101,ROW()-10,$BT$1) -> 0 | CH23: =BJ23*OFFSET(PPF_YPF_DIN_BPF!$A$101,ROW()-10,$BT$1) -> 0 | CI23: =BK23*OFFSET(PPF_YPF_DIN_BPF!$A$101,ROW()-10,$BT$1) -> 0 | CJ23: =BL23*OFFSET(PPF_YPF_DIN_BPF!$A$101,ROW()-10,$BT$1) -> 0 | CK23: =BM23*OFFSET(PPF_YPF_DIN_BPF!$A$101,ROW()-10,$BT$1) -> 0 | CL23: =BN23*OFFSET(PPF_YPF_DIN_BPF!$A$101,ROW()-10,$BT$1) -> 0 | CM23: =BO23*OFFSET(PPF_YPF_DIN_BPF!$A$101,ROW()-10,$BT$1) -> 0 | CN23: =BP23*OFFSET(PPF_YPF_DIN_BPF!$A$101,ROW()-10,$BT$1) -> 0 | CO23: =BQ23*OFFSET(PPF_YPF_DIN_BPF!$A$101,ROW()-10,$BT$1) -> 0 | CP23: =BR23*OFFSET(PPF_YPF_DIN_BPF!$A$101,ROW()-10,$BT$1) -> 5.956947996e-07 | CQ23: =BS23*OFFSET(PPF_YPF_DIN_BPF!$A$101,ROW()-10,$BT$1) -> 0 | CS23: =AX23*OFFSET(PPF_YPF_DIN_BPF!$A$101,ROW()-10,1+1) -> 0 | CT23: =AX23*OFFSET(PPF_YPF_DIN_BPF!$A$101,ROW()-10,2+1) -> 0.0003289917803 | CU23: =AX23*OFFSET(PPF_YPF_DIN_BPF!$A$101,ROW()-10,3+1) -> 0.0001939383516 | CV23: =AX23*OFFSET(PPF_YPF_DIN_BPF!$A$101,ROW()-10,4+1) -> 7.780237941e-05 | CW23: =PPF_YPF_DIN_BPF!I14*Graph_Data!CW$2 -> 0.02120587961 | CX23: =PPF_YPF_DIN_BPF!J14*Graph_Data!CX$2 -> 0.01813648878 | CY23: =PPF_YPF_DIN_BPF!K14*Graph_Data!CY$2 -> 0.00575126958 | DX23: 270 | DY23: 0 | DZ23: 0 | EA23: 0 | EB23: 0 | EC23: 0
B24: 393 | C24: =OFFSET(LM301H!H20,0,LM301H!$B$13) -> 1.259313331e-06 | D24: =OFFSET(LM301H!H20,0,LM301H!$B$31) -> 3.058099849e-06 | E24: =OFFSET(LM301H_D!H20,0,LM301H_D!$B$13) -> 1.079892663e-06 | F24: =OFFSET(LM301H_D!H20,0,LM301H_D!$B$31) -> 2.821349659e-06 | G24: =OFFSET(LM561H!$H20,0,LM561H!$B$13) -> 1.91990956e-06 | H24: =OFFSET(LM561H!$H20,0,LM561H!$B$31) -> 3.388430251e-06 | I24: =OFFSET(LH181B!$H20,0,LH181B!$B$14) -> 8.146925337e-06 | J24: =OFFSET(LH181B!$H20,0,LH181B!$B$32) -> 1.877413122e-05 | K24: =OFFSET(LH231B!$H20,0,LH231B!$B$14) -> 8.633591968e-06 | L24: =OFFSET(LH231B!$H20,0,LH231B!$B$32) -> 1.658988352e-05 | M24: =OFFSET(LH351H_B!$H20,0,LH351H_B!$B$14) -> 1.169154432e-05 | N24: =OFFSET(LH351H_B!$H20,0,LH351H_B!$B$32) -> 3.091901192e-05 | O24: =OFFSET(LH351H_C!$H20,0,LH351H_C!$B$14) -> 9.501300635e-06 | P24: =OFFSET(LH351H_C!$H20,0,LH351H_C!$B$32) -> 1.622482703e-05 | Q24: =OFFSET(LH351H_D!$H20,0,LH351H_D!$B$14) -> 1.087224404e-05 | R24: =OFFSET(LH351H_D!$H20,0,LH351H_D!$B$32) -> 2.484269209e-05 | S24: =OFFSET(LH351H_450nm!H20,0,LH351H_450nm!$B$13) -> 6.49127617e-05 | T24: =OFFSET(LH351H_630nm!H20,0,LH351H_630nm!$B$13) -> -6.800320032e-07 | U24: =OFFSET(LH351H_660nm!H20,0,LH351H_660nm!$B$13) -> -1.090268657e-06 | V24: =OFFSET(LH351H_660nm_V2!H20,0,LH351H_660nm_V2!$B$13) -> 3.994818361e-06 | W24: =OFFSET(LH351H_730nm!H20,0,LH351H_730nm!$B$13) -> -3.78386003e-07 | Y24: 393 | Z24: 9.833271868e-05 | AA24: =MAX(C24*IF(Calculator!$D$4>=0,Calculator!$D$4,0),0) -> 2.518626662e-05 | AB24: =MAX(D24*IF(Calculator!$D$5>=0,Calculator!$D$5,0),0) -> 6.116199697e-05 | AC24: =MAX(E24*IF(Calculator!$D$6>=0,Calculator!$D$6,0),0) -> 0 | AD24: =MAX(F24*IF(Calculator!$D$7>=0,Calculator!$D$7,0),0) -> 0 | AE24: =MAX(G24*IF(Calculator!$D$8>=0,Calculator!$D$8,0),0) -> 0 | AF24: =MAX(H24*IF(Calculator!$D$9>=0,Calculator!$D$9,0),0) -> 0 | AG24: =MAX(I24*IF(Calculator!$D$10>=0,Calculator!$D$10,0),0) -> 0 | AH24: =MAX(J24*IF(Calculator!$D$11>=0,Calculator!$D$11,0),0) -> 0 | AI24: =MAX(K24*IF(Calculator!$D$12>=0,Calculator!$D$12,0),0) -> 0 | AJ24: =MAX(L24*IF(Calculator!$D$13>=0,Calculator!$D$13,0),0) -> 0 | AK24: =MAX(M24*IF(Calculator!$D$14>=0,Calculator!$D$14,0),0) -> 0 | AL24: =MAX(N24*IF(Calculator!$D$15>=0,Calculator!$D$15,0),0) -> 0 | AM24: =MAX(O24*IF(Calculator!$D$16>=0,Calculator!$D$16,0),0) -> 0 | AN24: =MAX(P24*IF(Calculator!$D$17>=0,Calculator!$D$17,0),0) -> 0 | AO24: =MAX(Q24*IF(Calculator!$D$18>=0,Calculator!$D$18,0),0) -> 0 | AP24: =MAX(R24*IF(Calculator!$D$19>=0,Calculator!$D$19,0),0) -> 0 | AQ24: =MAX(S24*IF(Calculator!$D$20>=0,Calculator!$D$20,0),0) -> 0 | AR24: =MAX(T24*IF(Calculator!$D$21>=0,Calculator!$D$21,0),0) -> 0 | AS24: =MAX(U24*IF(Calculator!$D$22>=0,Calculator!$D$22,0),0) -> 0 | AT24: =MAX(V24*IF(Calculator!$D$23>=0,Calculator!$D$23,0),0) -> 1.198445508e-05 | AU24: =MAX(W24*IF(Calculator!$D$24>=0,Calculator!$D$24,0),0) -> 0 | AW24: 393 | AX24: 0.0003233870999 | AY24: 8.283014881e-05 | AZ24: 0.0002011436386 | BA24: 0 | BB24: 0 | BC24: 0 | BD24: 0 | BE24: 0 | BF24: 0 | BG24: 0 | BH24: 0 | BI24: 0 | BJ24: 0 | BK24: 0 | BL24: 0 | BM24: 0 | BN24: 0 | BO24: 0 | BP24: 0 | BQ24: 0 | BR24: 3.941331254e-05 | BS24: 0 | BU24: 393 | BV24: =AX24*OFFSET(PPF_YPF_DIN_BPF!$A$101,ROW()-10,$BT$1) -> 9.833271868e-05 | BW24: =AY24*OFFSET(PPF_YPF_DIN_BPF!$A$101,ROW()-10,$BT$1) -> 2.518626662e-05 | BX24: =AZ24*OFFSET(PPF_YPF_DIN_BPF!$A$101,ROW()-10,$BT$1) -> 6.116199697e-05 | BY24: =BA24*OFFSET(PPF_YPF_DIN_BPF!$A$101,ROW()-10,$BT$1) -> 0 | BZ24: =BB24*OFFSET(PPF_YPF_DIN_BPF!$A$101,ROW()-10,$BT$1) -> 0 | CA24: =BC24*OFFSET(PPF_YPF_DIN_BPF!$A$101,ROW()-10,$BT$1) -> 0 | CB24: =BD24*OFFSET(PPF_YPF_DIN_BPF!$A$101,ROW()-10,$BT$1) -> 0 | CC24: =BE24*OFFSET(PPF_YPF_DIN_BPF!$A$101,ROW()-10,$BT$1) -> 0 | CD24: =BF24*OFFSET(PPF_YPF_DIN_BPF!$A$101,ROW()-10,$BT$1) -> 0 | CE24: =BG24*OFFSET(PPF_YPF_DIN_BPF!$A$101,ROW()-10,$BT$1) -> 0 | CF24: =BH24*OFFSET(PPF_YPF_DIN_BPF!$A$101,ROW()-10,$BT$1) -> 0 | CG24: =BI24*OFFSET(PPF_YPF_DIN_BPF!$A$101,ROW()-10,$BT$1) -> 0 | CH24: =BJ24*OFFSET(PPF_YPF_DIN_BPF!$A$101,ROW()-10,$BT$1) -> 0 | CI24: =BK24*OFFSET(PPF_YPF_DIN_BPF!$A$101,ROW()-10,$BT$1) -> 0 | CJ24: =BL24*OFFSET(PPF_YPF_DIN_BPF!$A$101,ROW()-10,$BT$1) -> 0 | CK24: =BM24*OFFSET(PPF_YPF_DIN_BPF!$A$101,ROW()-10,$BT$1) -> 0 | CL24: =BN24*OFFSET(PPF_YPF_DIN_BPF!$A$101,ROW()-10,$BT$1) -> 0 | CM24: =BO24*OFFSET(PPF_YPF_DIN_BPF!$A$101,ROW()-10,$BT$1) -> 0 | CN24: =BP24*OFFSET(PPF_YPF_DIN_BPF!$A$101,ROW()-10,$BT$1) -> 0 | CO24: =BQ24*OFFSET(PPF_YPF_DIN_BPF!$A$101,ROW()-10,$BT$1) -> 0 | CP24: =BR24*OFFSET(PPF_YPF_DIN_BPF!$A$101,ROW()-10,$BT$1) -> 1.198445508e-05 | CQ24: =BS24*OFFSET(PPF_YPF_DIN_BPF!$A$101,ROW()-10,$BT$1) -> 0 | CS24: =AX24*OFFSET(PPF_YPF_DIN_BPF!$A$101,ROW()-10,1+1) -> 0 | CT24: =AX24*OFFSET(PPF_YPF_DIN_BPF!$A$101,ROW()-10,2+1) -> 0.0003233870999 | CU24: =AX24*OFFSET(PPF_YPF_DIN_BPF!$A$101,ROW()-10,3+1) -> 0.0001933298632 | CV24: =AX24*OFFSET(PPF_YPF_DIN_BPF!$A$101,ROW()-10,4+1) -> 8.578445595e-05 | CW24: =PPF_YPF_DIN_BPF!I15*Graph_Data!CW$2 -> 0.02125997624 | CX24: =PPF_YPF_DIN_BPF!J15*Graph_Data!CX$2 -> 0.01948152357 | CY24: =PPF_YPF_DIN_BPF!K15*Graph_Data!CY$2 -> 0.005765941186 | DX24: 271 | DY24: 0 | DZ24: 0 | EA24: 0 | EB24: 0 | EC24: 0
B25: 394 | C25: =OFFSET(LM301H!H21,0,LM301H!$B$13) -> 1.754554888e-06 | D25: =OFFSET(LM301H!H21,0,LM301H!$B$31) -> 3.30401514e-06 | E25: =OFFSET(LM301H_D!H21,0,LM301H_D!$B$13) -> 1.820697053e-06 | F25: =OFFSET(LM301H_D!H21,0,LM301H_D!$B$31) -> 2.841698138e-06 | G25: =OFFSET(LM561H!$H21,0,LM561H!$B$13) -> 1.245215249e-06 | H25: =OFFSET(LM561H!$H21,0,LM561H!$B$31) -> 2.737242928e-06 | I25: =OFFSET(LH181B!$H21,0,LH181B!$B$14) -> 8.638198231e-06 | J25: =OFFSET(LH181B!$H21,0,LH181B!$B$32) -> 1.796140951e-05 | K25: =OFFSET(LH231B!$H21,0,LH231B!$B$14) -> 8.58095022e-06 | L25: =OFFSET(LH231B!$H21,0,LH231B!$B$32) -> 1.72721169e-05 | M25: =OFFSET(LH351H_B!$H21,0,LH351H_B!$B$14) -> 1.186637699e-05 | N25: =OFFSET(LH351H_B!$H21,0,LH351H_B!$B$32) -> 3.32088014e-05 | O25: =OFFSET(LH351H_C!$H21,0,LH351H_C!$B$14) -> 9.833938979e-06 | P25: =OFFSET(LH351H_C!$H21,0,LH351H_C!$B$32) -> 1.696487063e-05 | Q25: =OFFSET(LH351H_D!$H21,0,LH351H_D!$B$14) -> 1.195961176e-05 | R25: =OFFSET(LH351H_D!$H21,0,LH351H_D!$B$32) -> 2.763083673e-05 | S25: =OFFSET(LH351H_450nm!H21,0,LH351H_450nm!$B$13) -> 8.178607866e-05 | T25: =OFFSET(LH351H_630nm!H21,0,LH351H_630nm!$B$13) -> 3.428336113e-08 | U25: =OFFSET(LH351H_660nm!H21,0,LH351H_660nm!$B$13) -> 2.19168952e-06 | V25: =OFFSET(LH351H_660nm_V2!H21,0,LH351H_660nm_V2!$B$13) -> 5.327037583e-06 | W25: =OFFSET(LH351H_730nm!H21,0,LH351H_730nm!$B$13) -> -6.156301707e-08 | Y25: 394 | Z25: 0.0001171525133 | AA25: =MAX(C25*IF(Calculator!$D$4>=0,Calculator!$D$4,0),0) -> 3.509109776e-05 | AB25: =MAX(D25*IF(Calculator!$D$5>=0,Calculator!$D$5,0),0) -> 6.60803028e-05 | AC25: =MAX(E25*IF(Calculator!$D$6>=0,Calculator!$D$6,0),0) -> 0 | AD25: =MAX(F25*IF(Calculator!$D$7>=0,Calculator!$D$7,0),0) -> 0 | AE25: =MAX(G25*IF(Calculator!$D$8>=0,Calculator!$D$8,0),0) -> 0 | AF25: =MAX(H25*IF(Calculator!$D$9>=0,Calculator!$D$9,0),0) -> 0 | AG25: =MAX(I25*IF(Calculator!$D$10>=0,Calculator!$D$10,0),0) -> 0 | AH25: =MAX(J25*IF(Calculator!$D$11>=0,Calculator!$D$11,0),0) -> 0 | AI25: =MAX(K25*IF(Calculator!$D$12>=0,Calculator!$D$12,0),0) -> 0 | AJ25: =MAX(L25*IF(Calculator!$D$13>=0,Calculator!$D$13,0),0) -> 0 | AK25: =MAX(M25*IF(Calculator!$D$14>=0,Calculator!$D$14,0),0) -> 0 | AL25: =MAX(N25*IF(Calculator!$D$15>=0,Calculator!$D$15,0),0) -> 0 | AM25: =MAX(O25*IF(Calculator!$D$16>=0,Calculator!$D$16,0),0) -> 0 | AN25: =MAX(P25*IF(Calculator!$D$17>=0,Calculator!$D$17,0),0) -> 0 | AO25: =MAX(Q25*IF(Calculator!$D$18>=0,Calculator!$D$18,0),0) -> 0 | AP25: =MAX(R25*IF(Calculator!$D$19>=0,Calculator!$D$19,0),0) -> 0 | AQ25: =MAX(S25*IF(Calculator!$D$20>=0,Calculator!$D$20,0),0) -> 0 | AR25: =MAX(T25*IF(Calculator!$D$21>=0,Calculator!$D$21,0),0) -> 0 | AS25: =MAX(U25*IF(Calculator!$D$22>=0,Calculator!$D$22,0),0) -> 0 | AT25: =MAX(V25*IF(Calculator!$D$23>=0,Calculator!$D$23,0),0) -> 1.598111275e-05 | AU25: =MAX(W25*IF(Calculator!$D$24>=0,Calculator!$D$24,0),0) -> 0 | AW25: 394 | AX25: 0.0003862601694 | AY25: 0.0001156978453 | AZ25: 0.0002178714586 | BA25: 0 | BB25: 0 | BC25: 0 | BD25: 0 | BE25: 0 | BF25: 0 | BG25: 0 | BH25: 0 | BI25: 0 | BJ25: 0 | BK25: 0 | BL25: 0 | BM25: 0 | BN25: 0 | BO25: 0 | BP25: 0 | BQ25: 0 | BR25: 5.269086547e-05 | BS25: 0 | BU25: 394 | BV25: =AX25*OFFSET(PPF_YPF_DIN_BPF!$A$101,ROW()-10,$BT$1) -> 0.0001171525133 | BW25: =AY25*OFFSET(PPF_YPF_DIN_BPF!$A$101,ROW()-10,$BT$1) -> 3.509109776e-05 | BX25: =AZ25*OFFSET(PPF_YPF_DIN_BPF!$A$101,ROW()-10,$BT$1) -> 6.60803028e-05 | BY25: =BA25*OFFSET(PPF_YPF_DIN_BPF!$A$101,ROW()-10,$BT$1) -> 0 | BZ25: =BB25*OFFSET(PPF_YPF_DIN_BPF!$A$101,ROW()-10,$BT$1) -> 0 | CA25: =BC25*OFFSET(PPF_YPF_DIN_BPF!$A$101,ROW()-10,$BT$1) -> 0 | CB25: =BD25*OFFSET(PPF_YPF_DIN_BPF!$A$101,ROW()-10,$BT$1) -> 0 | CC25: =BE25*OFFSET(PPF_YPF_DIN_BPF!$A$101,ROW()-10,$BT$1) -> 0 | CD25: =BF25*OFFSET(PPF_YPF_DIN_BPF!$A$101,ROW()-10,$BT$1) -> 0 | CE25: =BG25*OFFSET(PPF_YPF_DIN_BPF!$A$101,ROW()-10,$BT$1) -> 0 | CF25: =BH25*OFFSET(PPF_YPF_DIN_BPF!$A$101,ROW()-10,$BT$1) -> 0 | CG25: =BI25*OFFSET(PPF_YPF_DIN_BPF!$A$101,ROW()-10,$BT$1) -> 0 | CH25: =BJ25*OFFSET(PPF_YPF_DIN_BPF!$A$101,ROW()-10,$BT$1) -> 0 | CI25: =BK25*OFFSET(PPF_YPF_DIN_BPF!$A$101,ROW()-10,$BT$1) -> 0 | CJ25: =BL25*OFFSET(PPF_YPF_DIN_BPF!$A$101,ROW()-10,$BT$1) -> 0 | CK25: =BM25*OFFSET(PPF_YPF_DIN_BPF!$A$101,ROW()-10,$BT$1) -> 0 | CL25: =BN25*OFFSET(PPF_YPF_DIN_BPF!$A$101,ROW()-10,$BT$1) -> 0 | CM25: =BO25*OFFSET(PPF_YPF_DIN_BPF!$A$101,ROW()-10,$BT$1) -> 0 | CN25: =BP25*OFFSET(PPF_YPF_DIN_BPF!$A$101,ROW()-10,$BT$1) -> 0 | CO25: =BQ25*OFFSET(PPF_YPF_DIN_BPF!$A$101,ROW()-10,$BT$1) -> 0 | CP25: =BR25*OFFSET(PPF_YPF_DIN_BPF!$A$101,ROW()-10,$BT$1) -> 1.598111275e-05 | CQ25: =BS25*OFFSET(PPF_YPF_DIN_BPF!$A$101,ROW()-10,$BT$1) -> 0 | CS25: =AX25*OFFSET(PPF_YPF_DIN_BPF!$A$101,ROW()-10,1+1) -> 0 | CT25: =AX25*OFFSET(PPF_YPF_DIN_BPF!$A$101,ROW()-10,2+1) -> 0.0003862601694 | CU25: =AX25*OFFSET(PPF_YPF_DIN_BPF!$A$101,ROW()-10,3+1) -> 0.0002341408719 | CV25: =AX25*OFFSET(PPF_YPF_DIN_BPF!$A$101,ROW()-10,4+1) -> 0.0001135797927 | CW25: =PPF_YPF_DIN_BPF!I16*Graph_Data!CW$2 -> 0.02351897697 | CX25: =PPF_YPF_DIN_BPF!J16*Graph_Data!CX$2 -> 0.02018213137 | CY25: =PPF_YPF_DIN_BPF!K16*Graph_Data!CY$2 -> 0.005853785106 | DX25: 272 | DY25: 0 | DZ25: 0 | EA25: 0 | EB25: 0 | EC25: 0
B26: 395 | C26: =OFFSET(LM301H!H22,0,LM301H!$B$13) -> 1.585368353e-06 | D26: =OFFSET(LM301H!H22,0,LM301H!$B$31) -> 3.574530053e-06 | E26: =OFFSET(LM301H_D!H22,0,LM301H_D!$B$13) -> 1.610989598e-06 | F26: =OFFSET(LM301H_D!H22,0,LM301H_D!$B$31) -> 3.096874602e-06 | G26: =OFFSET(LM561H!$H22,0,LM561H!$B$13) -> 1.204765916e-06 | H26: =OFFSET(LM561H!$H22,0,LM561H!$B$31) -> 3.020346138e-06 | I26: =OFFSET(LH181B!$H22,0,LH181B!$B$14) -> 8.401751293e-06 | J26: =OFFSET(LH181B!$H22,0,LH181B!$B$32) -> 1.900807645e-05 | K26: =OFFSET(LH231B!$H22,0,LH231B!$B$14) -> 9.361322918e-06 | L26: =OFFSET(LH231B!$H22,0,LH231B!$B$32) -> 1.766906762e-05 | M26: =OFFSET(LH351H_B!$H22,0,LH351H_B!$B$14) -> 1.064255377e-05 | N26: =OFFSET(LH351H_B!$H22,0,LH351H_B!$B$32) -> 3.491731867e-05 | O26: =OFFSET(LH351H_C!$H22,0,LH351H_C!$B$14) -> 8.162664841e-06 | P26: =OFFSET(LH351H_C!$H22,0,LH351H_C!$B$32) -> 1.837105275e-05 | Q26: =OFFSET(LH351H_D!$H22,0,LH351H_D!$B$14) -> 1.225469039e-05 | R26: =OFFSET(LH351H_D!$H22,0,LH351H_D!$B$32) -> 3.022469776e-05 | S26: =OFFSET(LH351H_450nm!H22,0,LH351H_450nm!$B$13) -> 9.357667182e-05 | T26: =OFFSET(LH351H_630nm!H22,0,LH351H_630nm!$B$13) -> 2.21477845e-06 | U26: =OFFSET(LH351H_660nm!H22,0,LH351H_660nm!$B$13) -> 1.205686278e-06 | V26: =OFFSET(LH351H_660nm_V2!H22,0,LH351H_660nm_V2!$B$13) -> 2.164032631e-06 | W26: =OFFSET(LH351H_730nm!H22,0,LH351H_730nm!$B$13) -> 4.890081269e-07 | Y26: 395 | Z26: 0.000109690066 | AA26: =MAX(C26*IF(Calculator!$D$4>=0,Calculator!$D$4,0),0) -> 3.170736707e-05 | AB26: =MAX(D26*IF(Calculator!$D$5>=0,Calculator!$D$5,0),0) -> 7.149060106e-05 | AC26: =MAX(E26*IF(Calculator!$D$6>=0,Calculator!$D$6,0),0) -> 0 | AD26: =MAX(F26*IF(Calculator!$D$7>=0,Calculator!$D$7,0),0) -> 0 | AE26: =MAX(G26*IF(Calculator!$D$8>=0,Calculator!$D$8,0),0) -> 0 | AF26: =MAX(H26*IF(Calculator!$D$9>=0,Calculator!$D$9,0),0) -> 0 | AG26: =MAX(I26*IF(Calculator!$D$10>=0,Calculator!$D$10,0),0) -> 0 | AH26: =MAX(J26*IF(Calculator!$D$11>=0,Calculator!$D$11,0),0) -> 0 | AI26: =MAX(K26*IF(Calculator!$D$12>=0,Calculator!$D$12,0),0) -> 0 | AJ26: =MAX(L26*IF(Calculator!$D$13>=0,Calculator!$D$13,0),0) -> 0 | AK26: =MAX(M26*IF(Calculator!$D$14>=0,Calculator!$D$14,0),0) -> 0 | AL26: =MAX(N26*IF(Calculator!$D$15>=0,Calculator!$D$15,0),0) -> 0 | AM26: =MAX(O26*IF(Calculator!$D$16>=0,Calculator!$D$16,0),0) -> 0 | AN26: =MAX(P26*IF(Calculator!$D$17>=0,Calculator!$D$17,0),0) -> 0 | AO26: =MAX(Q26*IF(Calculator!$D$18>=0,Calculator!$D$18,0),0) -> 0 | AP26: =MAX(R26*IF(Calculator!$D$19>=0,Calculator!$D$19,0),0) -> 0 | AQ26: =MAX(S26*IF(Calculator!$D$20>=0,Calculator!$D$20,0),0) -> 0 | AR26: =MAX(T26*IF(Calculator!$D$21>=0,Calculator!$D$21,0),0) -> 0 | AS26: =MAX(U26*IF(Calculator!$D$22>=0,Calculator!$D$22,0),0) -> 0 | AT26: =MAX(V26*IF(Calculator!$D$23>=0,Calculator!$D$23,0),0) -> 6.492097892e-06 | AU26: =MAX(W26*IF(Calculator!$D$24>=0,Calculator!$D$24,0),0) -> 0 | AW26: 395 | AX26: 0.0003625738584 | AY26: 0.0001048067782 | AZ26: 0.0002363078445 | BA26: 0 | BB26: 0 | BC26: 0 | BD26: 0 | BE26: 0 | BF26: 0 | BG26: 0 | BH26: 0 | BI26: 0 | BJ26: 0 | BK26: 0 | BL26: 0 | BM26: 0 | BN26: 0 | BO26: 0 | BP26: 0 | BQ26: 0 | BR26: 2.145923571e-05 | BS26: 0 | BU26: 395 | BV26: =AX26*OFFSET(PPF_YPF_DIN_BPF!$A$101,ROW()-10,$BT$1) -> 0.000109690066 | BW26: =AY26*OFFSET(PPF_YPF_DIN_BPF!$A$101,ROW()-10,$BT$1) -> 3.170736707e-05 | BX26: =AZ26*OFFSET(PPF_YPF_DIN_BPF!$A$101,ROW()-10,$BT$1) -> 7.149060106e-05 | BY26: =BA26*OFFSET(PPF_YPF_DIN_BPF!$A$101,ROW()-10,$BT$1) -> 0 | BZ26: =BB26*OFFSET(PPF_YPF_DIN_BPF!$A$101,ROW()-10,$BT$1) -> 0 | CA26: =BC26*OFFSET(PPF_YPF_DIN_BPF!$A$101,ROW()-10,$BT$1) -> 0 | CB26: =BD26*OFFSET(PPF_YPF_DIN_BPF!$A$101,ROW()-10,$BT$1) -> 0 | CC26: =BE26*OFFSET(PPF_YPF_DIN_BPF!$A$101,ROW()-10,$BT$1) -> 0 | CD26: =BF26*OFFSET(PPF_YPF_DIN_BPF!$A$101,ROW()-10,$BT$1) -> 0 | CE26: =BG26*OFFSET(PPF_YPF_DIN_BPF!$A$101,ROW()-10,$BT$1) -> 0 | CF26: =BH26*OFFSET(PPF_YPF_DIN_BPF!$A$101,ROW()-10,$BT$1) -> 0 | CG26: =BI26*OFFSET(PPF_YPF_DIN_BPF!$A$101,ROW()-10,$BT$1) -> 0 | CH26: =BJ26*OFFSET(PPF_YPF_DIN_BPF!$A$101,ROW()-10,$BT$1) -> 0 | CI26: =BK26*OFFSET(PPF_YPF_DIN_BPF!$A$101,ROW()-10,$BT$1) -> 0 | CJ26: =BL26*OFFSET(PPF_YPF_DIN_BPF!$A$101,ROW()-10,$BT$1) -> 0 | CK26: =BM26*OFFSET(PPF_YPF_DIN_BPF!$A$101,ROW()-10,$BT$1) -> 0 | CL26: =BN26*OFFSET(PPF_YPF_DIN_BPF!$A$101,ROW()-10,$BT$1) -> 0 | CM26: =BO26*OFFSET(PPF_YPF_DIN_BPF!$A$101,ROW()-10,$BT$1) -> 0 | CN26: =BP26*OFFSET(PPF_YPF_DIN_BPF!$A$101,ROW()-10,$BT$1) -> 0 | CO26: =BQ26*OFFSET(PPF_YPF_DIN_BPF!$A$101,ROW()-10,$BT$1) -> 0 | CP26: =BR26*OFFSET(PPF_YPF_DIN_BPF!$A$101,ROW()-10,$BT$1) -> 6.492097892e-06 | CQ26: =BS26*OFFSET(PPF_YPF_DIN_BPF!$A$101,ROW()-10,$BT$1) -> 0 | CS26: =AX26*OFFSET(PPF_YPF_DIN_BPF!$A$101,ROW()-10,1+1) -> 0 | CT26: =AX26*OFFSET(PPF_YPF_DIN_BPF!$A$101,ROW()-10,2+1) -> 0.0003625738584 | CU26: =AX26*OFFSET(PPF_YPF_DIN_BPF!$A$101,ROW()-10,3+1) -> 0.0002228052617 | CV26: =AX26*OFFSET(PPF_YPF_DIN_BPF!$A$101,ROW()-10,4+1) -> 0.000117050193 | CW26: =PPF_YPF_DIN_BPF!I17*Graph_Data!CW$2 -> 0.0235786698 | CX26: =PPF_YPF_DIN_BPF!J17*Graph_Data!CX$2 -> 0.02088604393 | CY26: =PPF_YPF_DIN_BPF!K17*Graph_Data!CY$2 -> 0.005942000459 | DL26: Opt. Power [W] | DM26: =Calculator!L25 -> 5.964023442 | DX26: 273 | DY26: 0 | DZ26: 0 | EA26: 0 | EB26: 0 | EC26: 0
B27: 396 | C27: =OFFSET(LM301H!H23,0,LM301H!$B$13) -> 1.483269485e-06 | D27: =OFFSET(LM301H!H23,0,LM301H!$B$31) -> 3.241304781e-06 | E27: =OFFSET(LM301H_D!H23,0,LM301H_D!$B$13) -> 2.269201879e-06 | F27: =OFFSET(LM301H_D!H23,0,LM301H_D!$B$31) -> 3.344582987e-06 | G27: =OFFSET(LM561H!$H23,0,LM561H!$B$13) -> 1.853357291e-06 | H27: =OFFSET(LM561H!$H23,0,LM561H!$B$31) -> 2.762063311e-06 | I27: =OFFSET(LH181B!$H23,0,LH181B!$B$14) -> 7.818777616e-06 | J27: =OFFSET(LH181B!$H23,0,LH181B!$B$32) -> 1.925522455e-05 | K27: =OFFSET(LH231B!$H23,0,LH231B!$B$14) -> 8.736106004e-06 | L27: =OFFSET(LH231B!$H23,0,LH231B!$B$32) -> 1.800992343e-05 | M27: =OFFSET(LH351H_B!$H23,0,LH351H_B!$B$14) -> 1.201315697e-05 | N27: =OFFSET(LH351H_B!$H23,0,LH351H_B!$B$32) -> 3.792482676e-05 | O27: =OFFSET(LH351H_C!$H23,0,LH351H_C!$B$14) -> 9.789553804e-06 | P27: =OFFSET(LH351H_C!$H23,0,LH351H_C!$B$32) -> 1.867983863e-05 | Q27: =OFFSET(LH351H_D!$H23,0,LH351H_D!$B$14) -> 1.213901438e-05 | R27: =OFFSET(LH351H_D!$H23,0,LH351H_D!$B$32) -> 3.129659684e-05 | S27: =OFFSET(LH351H_450nm!H23,0,LH351H_450nm!$B$13) -> 9.655835581e-05 | T27: =OFFSET(LH351H_630nm!H23,0,LH351H_630nm!$B$13) -> 2.662867327e-06 | U27: =OFFSET(LH351H_660nm!H23,0,LH351H_660nm!$B$13) -> -4.392055788e-07 | V27: =OFFSET(LH351H_660nm_V2!H23,0,LH351H_660nm_V2!$B$13) -> 3.332490611e-06 | W27: =OFFSET(LH351H_730nm!H23,0,LH351H_730nm!$B$13) -> 2.673335247e-07 | Y27: 396 | Z27: 0.0001044889571 | AA27: =MAX(C27*IF(Calculator!$D$4>=0,Calculator!$D$4,0),0) -> 2.96653897e-05 | AB27: =MAX(D27*IF(Calculator!$D$5>=0,Calculator!$D$5,0),0) -> 6.482609562e-05 | AC27: =MAX(E27*IF(Calculator!$D$6>=0,Calculator!$D$6,0),0) -> 0 | AD27: =MAX(F27*IF(Calculator!$D$7>=0,Calculator!$D$7,0),0) -> 0 | AE27: =MAX(G27*IF(Calculator!$D$8>=0,Calculator!$D$8,0),0) -> 0 | AF27: =MAX(H27*IF(Calculator!$D$9>=0,Calculator!$D$9,0),0) -> 0 | AG27: =MAX(I27*IF(Calculator!$D$10>=0,Calculator!$D$10,0),0) -> 0 | AH27: =MAX(J27*IF(Calculator!$D$11>=0,Calculator!$D$11,0),0) -> 0 | AI27: =MAX(K27*IF(Calculator!$D$12>=0,Calculator!$D$12,0),0) -> 0 | AJ27: =MAX(L27*IF(Calculator!$D$13>=0,Calculator!$D$13,0),0) -> 0 | AK27: =MAX(M27*IF(Calculator!$D$14>=0,Calculator!$D$14,0),0) -> 0 | AL27: =MAX(N27*IF(Calculator!$D$15>=0,Calculator!$D$15,0),0) -> 0 | AM27: =MAX(O27*IF(Calculator!$D$16>=0,Calculator!$D$16,0),0) -> 0 | AN27: =MAX(P27*IF(Calculator!$D$17>=0,Calculator!$D$17,0),0) -> 0 | AO27: =MAX(Q27*IF(Calculator!$D$18>=0,Calculator!$D$18,0),0) -> 0 | AP27: =MAX(R27*IF(Calculator!$D$19>=0,Calculator!$D$19,0),0) -> 0 | AQ27: =MAX(S27*IF(Calculator!$D$20>=0,Calculator!$D$20,0),0) -> 0 | AR27: =MAX(T27*IF(Calculator!$D$21>=0,Calculator!$D$21,0),0) -> 0 | AS27: =MAX(U27*IF(Calculator!$D$22>=0,Calculator!$D$22,0),0) -> 0 | AT27: =MAX(V27*IF(Calculator!$D$23>=0,Calculator!$D$23,0),0) -> 9.997471833e-06 | AU27: =MAX(W27*IF(Calculator!$D$24>=0,Calculator!$D$24,0),0) -> 0 | AW27: 396 | AX27: 0.0003462562931 | AY27: 9.830539181e-05 | AZ27: 0.0002148212039 | BA27: 0 | BB27: 0 | BC27: 0 | BD27: 0 | BE27: 0 | BF27: 0 | BG27: 0 | BH27: 0 | BI27: 0 | BJ27: 0 | BK27: 0 | BL27: 0 | BM27: 0 | BN27: 0 | BO27: 0 | BP27: 0 | BQ27: 0 | BR27: 3.312969745e-05 | BS27: 0 | BU27: 396 | BV27: =AX27*OFFSET(PPF_YPF_DIN_BPF!$A$101,ROW()-10,$BT$1) -> 0.0001044889571 | BW27: =AY27*OFFSET(PPF_YPF_DIN_BPF!$A$101,ROW()-10,$BT$1) -> 2.96653897e-05 | BX27: =AZ27*OFFSET(PPF_YPF_DIN_BPF!$A$101,ROW()-10,$BT$1) -> 6.482609562e-05 | BY27: =BA27*OFFSET(PPF_YPF_DIN_BPF!$A$101,ROW()-10,$BT$1) -> 0 | BZ27: =BB27*OFFSET(PPF_YPF_DIN_BPF!$A$101,ROW()-10,$BT$1) -> 0 | CA27: =BC27*OFFSET(PPF_YPF_DIN_BPF!$A$101,ROW()-10,$BT$1) -> 0 | CB27: =BD27*OFFSET(PPF_YPF_DIN_BPF!$A$101,ROW()-10,$BT$1) -> 0 | CC27: =BE27*OFFSET(PPF_YPF_DIN_BPF!$A$101,ROW()-10,$BT$1) -> 0 | CD27: =BF27*OFFSET(PPF_YPF_DIN_BPF!$A$101,ROW()-10,$BT$1) -> 0 | CE27: =BG27*OFFSET(PPF_YPF_DIN_BPF!$A$101,ROW()-10,$BT$1) -> 0 | CF27: =BH27*OFFSET(PPF_YPF_DIN_BPF!$A$101,ROW()-10,$BT$1) -> 0 | CG27: =BI27*OFFSET(PPF_YPF_DIN_BPF!$A$101,ROW()-10,$BT$1) -> 0 | CH27: =BJ27*OFFSET(PPF_YPF_DIN_BPF!$A$101,ROW()-10,$BT$1) -> 0 | CI27: =BK27*OFFSET(PPF_YPF_DIN_BPF!$A$101,ROW()-10,$BT$1) -> 0 | CJ27: =BL27*OFFSET(PPF_YPF_DIN_BPF!$A$101,ROW()-10,$BT$1) -> 0 | CK27: =BM27*OFFSET(PPF_YPF_DIN_BPF!$A$101,ROW()-10,$BT$1) -> 0 | CL27: =BN27*OFFSET(PPF_YPF_DIN_BPF!$A$101,ROW()-10,$BT$1) -> 0 | CM27: =BO27*OFFSET(PPF_YPF_DIN_BPF!$A$101,ROW()-10,$BT$1) -> 0 | CN27: =BP27*OFFSET(PPF_YPF_DIN_BPF!$A$101,ROW()-10,$BT$1) -> 0 | CO27: =BQ27*OFFSET(PPF_YPF_DIN_BPF!$A$101,ROW()-10,$BT$1) -> 0 | CP27: =BR27*OFFSET(PPF_YPF_DIN_BPF!$A$101,ROW()-10,$BT$1) -> 9.997471833e-06 | CQ27: =BS27*OFFSET(PPF_YPF_DIN_BPF!$A$101,ROW()-10,$BT$1) -> 0 | CS27: =AX27*OFFSET(PPF_YPF_DIN_BPF!$A$101,ROW()-10,1+1) -> 0 | CT27: =AX27*OFFSET(PPF_YPF_DIN_BPF!$A$101,ROW()-10,2+1) -> 0.0003462562931 | CU27: =AX27*OFFSET(PPF_YPF_DIN_BPF!$A$101,ROW()-10,3+1) -> 0.0002155916333 | CV27: =AX27*OFFSET(PPF_YPF_DIN_BPF!$A$101,ROW()-10,4+1) -> 0.0001217515846 | CW27: =PPF_YPF_DIN_BPF!I18*Graph_Data!CW$2 -> 0.02363836264 | CX27: =PPF_YPF_DIN_BPF!J18*Graph_Data!CX$2 -> 0.02224760249 | CY27: =PPF_YPF_DIN_BPF!K18*Graph_Data!CY$2 -> 0.006104130991 | DX27: 274 | DY27: 0 | DZ27: 0 | EA27: 0 | EB27: 0 | EC27: 0
B28: 397 | C28: =OFFSET(LM301H!H24,0,LM301H!$B$13) -> 1.412060465e-06 | D28: =OFFSET(LM301H!H24,0,LM301H!$B$31) -> 2.628925118e-06 | E28: =OFFSET(LM301H_D!H24,0,LM301H_D!$B$13) -> 1.267385821e-06 | F28: =OFFSET(LM301H_D!H24,0,LM301H_D!$B$31) -> 3.482529076e-06 | G28: =OFFSET(LM561H!$H24,0,LM561H!$B$13) -> 9.816405151e-07 | H28: =OFFSET(LM561H!$H24,0,LM561H!$B$31) -> 3.759132188e-06 | I28: =OFFSET(LH181B!$H24,0,LH181B!$B$14) -> 7.875827807e-06 | J28: =OFFSET(LH181B!$H24,0,LH181B!$B$32) -> 1.846226188e-05 | K28: =OFFSET(LH231B!$H24,0,LH231B!$B$14) -> 9.577763223e-06 | L28: =OFFSET(LH231B!$H24,0,LH231B!$B$32) -> 1.796525085e-05 | M28: =OFFSET(LH351H_B!$H24,0,LH351H_B!$B$14) -> 1.388332882e-05 | N28: =OFFSET(LH351H_B!$H24,0,LH351H_B!$B$32) -> 3.887595447e-05 | O28: =OFFSET(LH351H_C!$H24,0,LH351H_C!$B$14) -> 9.241339916e-06 | P28: =OFFSET(LH351H_C!$H24,0,LH351H_C!$B$32) -> 1.940607357e-05 | Q28: =OFFSET(LH351H_D!$H24,0,LH351H_D!$B$14) -> 1.340258386e-05 | R28: =OFFSET(LH351H_D!$H24,0,LH351H_D!$B$32) -> 3.277564093e-05 | S28: =OFFSET(LH351H_450nm!H24,0,LH351H_450nm!$B$13) -> 0.0001030506221 | T28: =OFFSET(LH351H_630nm!H24,0,LH351H_630nm!$B$13) -> 1.808868109e-07 | U28: =OFFSET(LH351H_660nm!H24,0,LH351H_660nm!$B$13) -> 3.410693751e-07 | V28: =OFFSET(LH351H_660nm_V2!H24,0,LH351H_660nm_V2!$B$13) -> -3.152982929e-06 | W28: =OFFSET(LH351H_730nm!H24,0,LH351H_730nm!$B$13) -> -1.490772223e-06 | Y28: 397 | Z28: 8.081971165e-05 | AA28: =MAX(C28*IF(Calculator!$D$4>=0,Calculator!$D$4,0),0) -> 2.824120929e-05 | AB28: =MAX(D28*IF(Calculator!$D$5>=0,Calculator!$D$5,0),0) -> 5.257850236e-05 | AC28: =MAX(E28*IF(Calculator!$D$6>=0,Calculator!$D$6,0),0) -> 0 | AD28: =MAX(F28*IF(Calculator!$D$7>=0,Calculator!$D$7,0),0) -> 0 | AE28: =MAX(G28*IF(Calculator!$D$8>=0,Calculator!$D$8,0),0) -> 0 | AF28: =MAX(H28*IF(Calculator!$D$9>=0,Calculator!$D$9,0),0) -> 0 | AG28: =MAX(I28*IF(Calculator!$D$10>=0,Calculator!$D$10,0),0) -> 0 | AH28: =MAX(J28*IF(Calculator!$D$11>=0,Calculator!$D$11,0),0) -> 0 | AI28: =MAX(K28*IF(Calculator!$D$12>=0,Calculator!$D$12,0),0) -> 0 | AJ28: =MAX(L28*IF(Calculator!$D$13>=0,Calculator!$D$13,0),0) -> 0 | AK28: =MAX(M28*IF(Calculator!$D$14>=0,Calculator!$D$14,0),0) -> 0 | AL28: =MAX(N28*IF(Calculator!$D$15>=0,Calculator!$D$15,0),0) -> 0 | AM28: =MAX(O28*IF(Calculator!$D$16>=0,Calculator!$D$16,0),0) -> 0 | AN28: =MAX(P28*IF(Calculator!$D$17>=0,Calculator!$D$17,0),0) -> 0 | AO28: =MAX(Q28*IF(Calculator!$D$18>=0,Calculator!$D$18,0),0) -> 0 | AP28: =MAX(R28*IF(Calculator!$D$19>=0,Calculator!$D$19,0),0) -> 0 | AQ28: =MAX(S28*IF(Calculator!$D$20>=0,Calculator!$D$20,0),0) -> 0 | AR28: =MAX(T28*IF(Calculator!$D$21>=0,Calculator!$D$21,0),0) -> 0 | AS28: =MAX(U28*IF(Calculator!$D$22>=0,Calculator!$D$22,0),0) -> 0 | AT28: =MAX(V28*IF(Calculator!$D$23>=0,Calculator!$D$23,0),0) -> 0 | AU28: =MAX(W28*IF(Calculator!$D$24>=0,Calculator!$D$24,0),0) -> 0 | AW28: 397 | AX28: 0.0002684972847 | AY28: 9.382226015e-05 | AZ28: 0.0001746750246 | BA28: 0 | BB28: 0 | BC28: 0 | BD28: 0 | BE28: 0 | BF28: 0 | BG28: 0 | BH28: 0 | BI28: 0 | BJ28: 0 | BK28: 0 | BL28: 0 | BM28: 0 | BN28: 0 | BO28: 0 | BP28: 0 | BQ28: 0 | BR28: 0 | BS28: 0 | BU28: 397 | BV28: =AX28*OFFSET(PPF_YPF_DIN_BPF!$A$101,ROW()-10,$BT$1) -> 8.081971165e-05 | BW28: =AY28*OFFSET(PPF_YPF_DIN_BPF!$A$101,ROW()-10,$BT$1) -> 2.824120929e-05 | BX28: =AZ28*OFFSET(PPF_YPF_DIN_BPF!$A$101,ROW()-10,$BT$1) -> 5.257850236e-05 | BY28: =BA28*OFFSET(PPF_YPF_DIN_BPF!$A$101,ROW()-10,$BT$1) -> 0 | BZ28: =BB28*OFFSET(PPF_YPF_DIN_BPF!$A$101,ROW()-10,$BT$1) -> 0 | CA28: =BC28*OFFSET(PPF_YPF_DIN_BPF!$A$101,ROW()-10,$BT$1) -> 0 | CB28: =BD28*OFFSET(PPF_YPF_DIN_BPF!$A$101,ROW()-10,$BT$1) -> 0 | CC28: =BE28*OFFSET(PPF_YPF_DIN_BPF!$A$101,ROW()-10,$BT$1) -> 0 | CD28: =BF28*OFFSET(PPF_YPF_DIN_BPF!$A$101,ROW()-10,$BT$1) -> 0 | CE28: =BG28*OFFSET(PPF_YPF_DIN_BPF!$A$101,ROW()-10,$BT$1) -> 0 | CF28: =BH28*OFFSET(PPF_YPF_DIN_BPF!$A$101,ROW()-10,$BT$1) -> 0 | CG28: =BI28*OFFSET(PPF_YPF_DIN_BPF!$A$101,ROW()-10,$BT$1) -> 0 | CH28: =BJ28*OFFSET(PPF_YPF_DIN_BPF!$A$101,ROW()-10,$BT$1) -> 0 | CI28: =BK28*OFFSET(PPF_YPF_DIN_BPF!$A$101,ROW()-10,$BT$1) -> 0 | CJ28: =BL28*OFFSET(PPF_YPF_DIN_BPF!$A$101,ROW()-10,$BT$1) -> 0 | CK28: =BM28*OFFSET(PPF_YPF_DIN_BPF!$A$101,ROW()-10,$BT$1) -> 0 | CL28: =BN28*OFFSET(PPF_YPF_DIN_BPF!$A$101,ROW()-10,$BT$1) -> 0 | CM28: =BO28*OFFSET(PPF_YPF_DIN_BPF!$A$101,ROW()-10,$BT$1) -> 0 | CN28: =BP28*OFFSET(PPF_YPF_DIN_BPF!$A$101,ROW()-10,$BT$1) -> 0 | CO28: =BQ28*OFFSET(PPF_YPF_DIN_BPF!$A$101,ROW()-10,$BT$1) -> 0 | CP28: =BR28*OFFSET(PPF_YPF_DIN_BPF!$A$101,ROW()-10,$BT$1) -> 0 | CQ28: =BS28*OFFSET(PPF_YPF_DIN_BPF!$A$101,ROW()-10,$BT$1) -> 0 | CS28: =AX28*OFFSET(PPF_YPF_DIN_BPF!$A$101,ROW()-10,1+1) -> 0 | CT28: =AX28*OFFSET(PPF_YPF_DIN_BPF!$A$101,ROW()-10,2+1) -> 0.0002684972847 | CU28: =AX28*OFFSET(PPF_YPF_DIN_BPF!$A$101,ROW()-10,3+1) -> 0.0001690783786 | CV28: =AX28*OFFSET(PPF_YPF_DIN_BPF!$A$101,ROW()-10,4+1) -> 0.0001021374596 | CW28: =PPF_YPF_DIN_BPF!I19*Graph_Data!CW$2 -> 0.02591974817 | CX28: =PPF_YPF_DIN_BPF!J19*Graph_Data!CX$2 -> 0.02295977693 | CY28: =PPF_YPF_DIN_BPF!K19*Graph_Data!CY$2 -> 0.006267004391 | DL28: R/B Ratio | DM28: =Graph_Data!AX9/Graph_Data!AX8 -> 3.877017683 | DX28: 275 | DY28: 0 | DZ28: 0 | EA28: 0 | EB28: 0 | EC28: 0
B29: 398 | C29: =OFFSET(LM301H!H25,0,LM301H!$B$13) -> 1.732935395e-06 | D29: =OFFSET(LM301H!H25,0,LM301H!$B$31) -> 3.188740079e-06 | E29: =OFFSET(LM301H_D!H25,0,LM301H_D!$B$13) -> 1.811450572e-06 | F29: =OFFSET(LM301H_D!H25,0,LM301H_D!$B$31) -> 3.020788887e-06 | G29: =OFFSET(LM561H!$H25,0,LM561H!$B$13) -> 1.808081479e-06 | H29: =OFFSET(LM561H!$H25,0,LM561H!$B$31) -> 2.682441437e-06 | I29: =OFFSET(LH181B!$H25,0,LH181B!$B$14) -> 8.287159321e-06 | J29: =OFFSET(LH181B!$H25,0,LH181B!$B$32) -> 1.944438454e-05 | K29: =OFFSET(LH231B!$H25,0,LH231B!$B$14) -> 9.171919658e-06 | L29: =OFFSET(LH231B!$H25,0,LH231B!$B$32) -> 1.753881974e-05 | M29: =OFFSET(LH351H_B!$H25,0,LH351H_B!$B$14) -> 1.541129993e-05 | N29: =OFFSET(LH351H_B!$H25,0,LH351H_B!$B$32) -> 4.23598389e-05 | O29: =OFFSET(LH351H_C!$H25,0,LH351H_C!$B$14) -> 1.001954953e-05 | P29: =OFFSET(LH351H_C!$H25,0,LH351H_C!$B$32) -> 2.090665921e-05 | Q29: =OFFSET(LH351H_D!$H25,0,LH351H_D!$B$14) -> 1.375347675e-05 | R29: =OFFSET(LH351H_D!$H25,0,LH351H_D!$B$32) -> 3.450498267e-05 | S29: =OFFSET(LH351H_450nm!H25,0,LH351H_450nm!$B$13) -> 0.0001186132075 | T29: =OFFSET(LH351H_630nm!H25,0,LH351H_630nm!$B$13) -> 3.361705231e-06 | U29: =OFFSET(LH351H_660nm!H25,0,LH351H_660nm!$B$13) -> 1.275382936e-06 | V29: =OFFSET(LH351H_660nm_V2!H25,0,LH351H_660nm_V2!$B$13) -> -5.825887686e-06 | W29: =OFFSET(LH351H_730nm!H25,0,LH351H_730nm!$B$13) -> 1.177005514e-06 | Y29: 398 | Z29: 9.843350949e-05 | AA29: =MAX(C29*IF(Calculator!$D$4>=0,Calculator!$D$4,0),0) -> 3.46587079e-05 | AB29: =MAX(D29*IF(Calculator!$D$5>=0,Calculator!$D$5,0),0) -> 6.377480158e-05 | AC29: =MAX(E29*IF(Calculator!$D$6>=0,Calculator!$D$6,0),0) -> 0 | AD29: =MAX(F29*IF(Calculator!$D$7>=0,Calculator!$D$7,0),0) -> 0 | AE29: =MAX(G29*IF(Calculator!$D$8>=0,Calculator!$D$8,0),0) -> 0 | AF29: =MAX(H29*IF(Calculator!$D$9>=0,Calculator!$D$9,0),0) -> 0 | AG29: =MAX(I29*IF(Calculator!$D$10>=0,Calculator!$D$10,0),0) -> 0 | AH29: =MAX(J29*IF(Calculator!$D$11>=0,Calculator!$D$11,0),0) -> 0 | AI29: =MAX(K29*IF(Calculator!$D$12>=0,Calculator!$D$12,0),0) -> 0 | AJ29: =MAX(L29*IF(Calculator!$D$13>=0,Calculator!$D$13,0),0) -> 0 | AK29: =MAX(M29*IF(Calculator!$D$14>=0,Calculator!$D$14,0),0) -> 0 | AL29: =MAX(N29*IF(Calculator!$D$15>=0,Calculator!$D$15,0),0) -> 0 | AM29: =MAX(O29*IF(Calculator!$D$16>=0,Calculator!$D$16,0),0) -> 0 | AN29: =MAX(P29*IF(Calculator!$D$17>=0,Calculator!$D$17,0),0) -> 0 | AO29: =MAX(Q29*IF(Calculator!$D$18>=0,Calculator!$D$18,0),0) -> 0 | AP29: =MAX(R29*IF(Calculator!$D$19>=0,Calculator!$D$19,0),0) -> 0 | AQ29: =MAX(S29*IF(Calculator!$D$20>=0,Calculator!$D$20,0),0) -> 0 | AR29: =MAX(T29*IF(Calculator!$D$21>=0,Calculator!$D$21,0),0) -> 0 | AS29: =MAX(U29*IF(Calculator!$D$22>=0,Calculator!$D$22,0),0) -> 0 | AT29: =MAX(V29*IF(Calculator!$D$23>=0,Calculator!$D$23,0),0) -> 0 | AU29: =MAX(W29*IF(Calculator!$D$24>=0,Calculator!$D$24,0),0) -> 0 | AW29: 398 | AX29: 0.0003278371278 | AY29: 0.0001154323493 | AZ29: 0.0002124047785 | BA29: 0 | BB29: 0 | BC29: 0 | BD29: 0 | BE29: 0 | BF29: 0 | BG29: 0 | BH29: 0 | BI29: 0 | BJ29: 0 | BK29: 0 | BL29: 0 | BM29: 0 | BN29: 0 | BO29: 0 | BP29: 0 | BQ29: 0 | BR29: 0 | BS29: 0 | BU29: 398 | BV29: =AX29*OFFSET(PPF_YPF_DIN_BPF!$A$101,ROW()-10,$BT$1) -> 9.843350949e-05 | BW29: =AY29*OFFSET(PPF_YPF_DIN_BPF!$A$101,ROW()-10,$BT$1) -> 3.46587079e-05 | BX29: =AZ29*OFFSET(PPF_YPF_DIN_BPF!$A$101,ROW()-10,$BT$1) -> 6.377480158e-05 | BY29: =BA29*OFFSET(PPF_YPF_DIN_BPF!$A$101,ROW()-10,$BT$1) -> 0 | BZ29: =BB29*OFFSET(PPF_YPF_DIN_BPF!$A$101,ROW()-10,$BT$1) -> 0 | CA29: =BC29*OFFSET(PPF_YPF_DIN_BPF!$A$101,ROW()-10,$BT$1) -> 0 | CB29: =BD29*OFFSET(PPF_YPF_DIN_BPF!$A$101,ROW()-10,$BT$1) -> 0 | CC29: =BE29*OFFSET(PPF_YPF_DIN_BPF!$A$101,ROW()-10,$BT$1) -> 0 | CD29: =BF29*OFFSET(PPF_YPF_DIN_BPF!$A$101,ROW()-10,$BT$1) -> 0 | CE29: =BG29*OFFSET(PPF_YPF_DIN_BPF!$A$101,ROW()-10,$BT$1) -> 0 | CF29: =BH29*OFFSET(PPF_YPF_DIN_BPF!$A$101,ROW()-10,$BT$1) -> 0 | CG29: =BI29*OFFSET(PPF_YPF_DIN_BPF!$A$101,ROW()-10,$BT$1) -> 0 | CH29: =BJ29*OFFSET(PPF_YPF_DIN_BPF!$A$101,ROW()-10,$BT$1) -> 0 | CI29: =BK29*OFFSET(PPF_YPF_DIN_BPF!$A$101,ROW()-10,$BT$1) -> 0 | CJ29: =BL29*OFFSET(PPF_YPF_DIN_BPF!$A$101,ROW()-10,$BT$1) -> 0 | CK29: =BM29*OFFSET(PPF_YPF_DIN_BPF!$A$101,ROW()-10,$BT$1) -> 0 | CL29: =BN29*OFFSET(PPF_YPF_DIN_BPF!$A$101,ROW()-10,$BT$1) -> 0 | CM29: =BO29*OFFSET(PPF_YPF_DIN_BPF!$A$101,ROW()-10,$BT$1) -> 0 | CN29: =BP29*OFFSET(PPF_YPF_DIN_BPF!$A$101,ROW()-10,$BT$1) -> 0 | CO29: =BQ29*OFFSET(PPF_YPF_DIN_BPF!$A$101,ROW()-10,$BT$1) -> 0 | CP29: =BR29*OFFSET(PPF_YPF_DIN_BPF!$A$101,ROW()-10,$BT$1) -> 0 | CQ29: =BS29*OFFSET(PPF_YPF_DIN_BPF!$A$101,ROW()-10,$BT$1) -> 0 | CS29: =AX29*OFFSET(PPF_YPF_DIN_BPF!$A$101,ROW()-10,1+1) -> 0 | CT29: =AX29*OFFSET(PPF_YPF_DIN_BPF!$A$101,ROW()-10,2+1) -> 0.0003278371278 | CU29: =AX29*OFFSET(PPF_YPF_DIN_BPF!$A$101,ROW()-10,3+1) -> 0.0002087653717 | CV29: =AX29*OFFSET(PPF_YPF_DIN_BPF!$A$101,ROW()-10,4+1) -> 0.0001341461674 | CW29: =PPF_YPF_DIN_BPF!I20*Graph_Data!CW$2 -> 0.02598503721 | CX29: =PPF_YPF_DIN_BPF!J20*Graph_Data!CX$2 -> 0.02433290213 | CY29: =PPF_YPF_DIN_BPF!K20*Graph_Data!CY$2 -> 0.006430620656 | DX29: 276 | DY29: 0 | DZ29: 0 | EA29: 0 | EB29: 0 | EC29: 0
B30: 399 | C30: =OFFSET(LM301H!H26,0,LM301H!$B$13) -> 1.258582854e-06 | D30: =OFFSET(LM301H!H26,0,LM301H!$B$31) -> 2.784710233e-06 | E30: =OFFSET(LM301H_D!H26,0,LM301H_D!$B$13) -> 2.063410454e-06 | F30: =OFFSET(LM301H_D!H26,0,LM301H_D!$B$31) -> 2.874573449e-06 | G30: =OFFSET(LM561H!$H26,0,LM561H!$B$13) -> 1.593667965e-06 | H30: =OFFSET(LM561H!$H26,0,LM561H!$B$31) -> 3.315637652e-06 | I30: =OFFSET(LH181B!$H26,0,LH181B!$B$14) -> 7.497779608e-06 | J30: =OFFSET(LH181B!$H26,0,LH181B!$B$32) -> 1.988012521e-05 | K30: =OFFSET(LH231B!$H26,0,LH231B!$B$14) -> 9.393842788e-06 | L30: =OFFSET(LH231B!$H26,0,LH231B!$B$32) -> 1.787387512e-05 | M30: =OFFSET(LH351H_B!$H26,0,LH351H_B!$B$14) -> 1.322269345e-05 | N30: =OFFSET(LH351H_B!$H26,0,LH351H_B!$B$32) -> 4.58697662e-05 | O30: =OFFSET(LH351H_C!$H26,0,LH351H_C!$B$14) -> 1.130122312e-05 | P30: =OFFSET(LH351H_C!$H26,0,LH351H_C!$B$32) -> 2.244170324e-05 | Q30: =OFFSET(LH351H_D!$H26,0,LH351H_D!$B$14) -> 1.386856463e-05 | R30: =OFFSET(LH351H_D!$H26,0,LH351H_D!$B$32) -> 3.601593363e-05 | S30: =OFFSET(LH351H_450nm!H26,0,LH351H_450nm!$B$13) -> 0.0001315056877 | T30: =OFFSET(LH351H_630nm!H26,0,LH351H_630nm!$B$13) -> 3.739424094e-06 | U30: =OFFSET(LH351H_660nm!H26,0,LH351H_660nm!$B$13) -> 5.314591693e-07 | V30: =OFFSET(LH351H_660nm_V2!H26,0,LH351H_660nm_V2!$B$13) -> -2.175186915e-06 | W30: =OFFSET(LH351H_730nm!H26,0,LH351H_730nm!$B$13) -> 2.051977796e-06 | Y30: 399 | Z30: 8.086586173e-05 | AA30: =MAX(C30*IF(Calculator!$D$4>=0,Calculator!$D$4,0),0) -> 2.517165707e-05 | AB30: =MAX(D30*IF(Calculator!$D$5>=0,Calculator!$D$5,0),0) -> 5.569420466e-05 | AC30: =MAX(E30*IF(Calculator!$D$6>=0,Calculator!$D$6,0),0) -> 0 | AD30: =MAX(F30*IF(Calculator!$D$7>=0,Calculator!$D$7,0),0) -> 0 | AE30: =MAX(G30*IF(Calculator!$D$8>=0,Calculator!$D$8,0),0) -> 0 | AF30: =MAX(H30*IF(Calculator!$D$9>=0,Calculator!$D$9,0),0) -> 0 | AG30: =MAX(I30*IF(Calculator!$D$10>=0,Calculator!$D$10,0),0) -> 0 | AH30: =MAX(J30*IF(Calculator!$D$11>=0,Calculator!$D$11,0),0) -> 0 | AI30: =MAX(K30*IF(Calculator!$D$12>=0,Calculator!$D$12,0),0) -> 0 | AJ30: =MAX(L30*IF(Calculator!$D$13>=0,Calculator!$D$13,0),0) -> 0 | AK30: =MAX(M30*IF(Calculator!$D$14>=0,Calculator!$D$14,0),0) -> 0 | AL30: =MAX(N30*IF(Calculator!$D$15>=0,Calculator!$D$15,0),0) -> 0 | AM30: =MAX(O30*IF(Calculator!$D$16>=0,Calculator!$D$16,0),0) -> 0 | AN30: =MAX(P30*IF(Calculator!$D$17>=0,Calculator!$D$17,0),0) -> 0 | AO30: =MAX(Q30*IF(Calculator!$D$18>=0,Calculator!$D$18,0),0) -> 0 | AP30: =MAX(R30*IF(Calculator!$D$19>=0,Calculator!$D$19,0),0) -> 0 | AQ30: =MAX(S30*IF(Calculator!$D$20>=0,Calculator!$D$20,0),0) -> 0 | AR30: =MAX(T30*IF(Calculator!$D$21>=0,Calculator!$D$21,0),0) -> 0 | AS30: =MAX(U30*IF(Calculator!$D$22>=0,Calculator!$D$22,0),0) -> 0 | AT30: =MAX(V30*IF(Calculator!$D$23>=0,Calculator!$D$23,0),0) -> 0 | AU30: =MAX(W30*IF(Calculator!$D$24>=0,Calculator!$D$24,0),0) -> 0 | AW30: 399 | AX30: 0.000270004007 | AY30: 8.404595123e-05 | AZ30: 0.0001859580557 | BA30: 0 | BB30: 0 | BC30: 0 | BD30: 0 | BE30: 0 | BF30: 0 | BG30: 0 | BH30: 0 | BI30: 0 | BJ30: 0 | BK30: 0 | BL30: 0 | BM30: 0 | BN30: 0 | BO30: 0 | BP30: 0 | BQ30: 0 | BR30: 0 | BS30: 0 | BU30: 399 | BV30: =AX30*OFFSET(PPF_YPF_DIN_BPF!$A$101,ROW()-10,$BT$1) -> 8.086586173e-05 | BW30: =AY30*OFFSET(PPF_YPF_DIN_BPF!$A$101,ROW()-10,$BT$1) -> 2.517165707e-05 | BX30: =AZ30*OFFSET(PPF_YPF_DIN_BPF!$A$101,ROW()-10,$BT$1) -> 5.569420466e-05 | BY30: =BA30*OFFSET(PPF_YPF_DIN_BPF!$A$101,ROW()-10,$BT$1) -> 0 | BZ30: =BB30*OFFSET(PPF_YPF_DIN_BPF!$A$101,ROW()-10,$BT$1) -> 0 | CA30: =BC30*OFFSET(PPF_YPF_DIN_BPF!$A$101,ROW()-10,$BT$1) -> 0 | CB30: =BD30*OFFSET(PPF_YPF_DIN_BPF!$A$101,ROW()-10,$BT$1) -> 0 | CC30: =BE30*OFFSET(PPF_YPF_DIN_BPF!$A$101,ROW()-10,$BT$1) -> 0 | CD30: =BF30*OFFSET(PPF_YPF_DIN_BPF!$A$101,ROW()-10,$BT$1) -> 0 | CE30: =BG30*OFFSET(PPF_YPF_DIN_BPF!$A$101,ROW()-10,$BT$1) -> 0 | CF30: =BH30*OFFSET(PPF_YPF_DIN_BPF!$A$101,ROW()-10,$BT$1) -> 0 | CG30: =BI30*OFFSET(PPF_YPF_DIN_BPF!$A$101,ROW()-10,$BT$1) -> 0 | CH30: =BJ30*OFFSET(PPF_YPF_DIN_BPF!$A$101,ROW()-10,$BT$1) -> 0 | CI30: =BK30*OFFSET(PPF_YPF_DIN_BPF!$A$101,ROW()-10,$BT$1) -> 0 | CJ30: =BL30*OFFSET(PPF_YPF_DIN_BPF!$A$101,ROW()-10,$BT$1) -> 0 | CK30: =BM30*OFFSET(PPF_YPF_DIN_BPF!$A$101,ROW()-10,$BT$1) -> 0 | CL30: =BN30*OFFSET(PPF_YPF_DIN_BPF!$A$101,ROW()-10,$BT$1) -> 0 | CM30: =BO30*OFFSET(PPF_YPF_DIN_BPF!$A$101,ROW()-10,$BT$1) -> 0 | CN30: =BP30*OFFSET(PPF_YPF_DIN_BPF!$A$101,ROW()-10,$BT$1) -> 0 | CO30: =BQ30*OFFSET(PPF_YPF_DIN_BPF!$A$101,ROW()-10,$BT$1) -> 0 | CP30: =BR30*OFFSET(PPF_YPF_DIN_BPF!$A$101,ROW()-10,$BT$1) -> 0 | CQ30: =BS30*OFFSET(PPF_YPF_DIN_BPF!$A$101,ROW()-10,$BT$1) -> 0 | CS30: =AX30*OFFSET(PPF_YPF_DIN_BPF!$A$101,ROW()-10,1+1) -> 0 | CT30: =AX30*OFFSET(PPF_YPF_DIN_BPF!$A$101,ROW()-10,2+1) -> 0.000270004007 | CU30: =AX30*OFFSET(PPF_YPF_DIN_BPF!$A$101,ROW()-10,3+1) -> 0.00017385045 | CV30: =AX30*OFFSET(PPF_YPF_DIN_BPF!$A$101,ROW()-10,4+1) -> 0.0001182527742 | CW30: =PPF_YPF_DIN_BPF!I21*Graph_Data!CW$2 -> 0.02753891632 | CX30: =PPF_YPF_DIN_BPF!J21*Graph_Data!CX$2 -> 0.02505333845 | CY30: =PPF_YPF_DIN_BPF!K21*Graph_Data!CY$2 -> 0.006669080683 | DL30: Elec. Power | DM30: =Calculator!K25 -> 9.186506065 | DX30: 277 | DY30: 0 | DZ30: 0 | EA30: 0 | EB30: 0 | EC30: 0
B31: 400 | C31: =OFFSET(LM301H!H27,0,LM301H!$B$13) -> 1.804288048e-06 | D31: =OFFSET(LM301H!H27,0,LM301H!$B$31) -> 3.061434895e-06 | E31: =OFFSET(LM301H_D!H27,0,LM301H_D!$B$13) -> 1.768212529e-06 | F31: =OFFSET(LM301H_D!H27,0,LM301H_D!$B$31) -> 3.730104529e-06 | G31: =OFFSET(LM561H!$H27,0,LM561H!$B$13) -> 1.231024694e-06 | H31: =OFFSET(LM561H!$H27,0,LM561H!$B$31) -> 2.58784853e-06 | I31: =OFFSET(LH181B!$H27,0,LH181B!$B$14) -> 8.62338721e-06 | J31: =OFFSET(LH181B!$H27,0,LH181B!$B$32) -> 2.152567815e-05 | K31: =OFFSET(LH231B!$H27,0,LH231B!$B$14) -> 9.211238861e-06 | L31: =OFFSET(LH231B!$H27,0,LH231B!$B$32) -> 1.940948693e-05 | M31: =OFFSET(LH351H_B!$H27,0,LH351H_B!$B$14) -> 1.522303426e-05 | N31: =OFFSET(LH351H_B!$H27,0,LH351H_B!$B$32) -> 5.001343248e-05 | O31: =OFFSET(LH351H_C!$H27,0,LH351H_C!$B$14) -> 1.29205314e-05 | P31: =OFFSET(LH351H_C!$H27,0,LH351H_C!$B$32) -> 2.588870188e-05 | Q31: =OFFSET(LH351H_D!$H27,0,LH351H_D!$B$14) -> 1.592683477e-05 | R31: =OFFSET(LH351H_D!$H27,0,LH351H_D!$B$32) -> 3.975080653e-05 | S31: =OFFSET(LH351H_450nm!H27,0,LH351H_450nm!$B$13) -> 0.0001463055946 | T31: =OFFSET(LH351H_630nm!H27,0,LH351H_630nm!$B$13) -> -1.839630018e-06 | U31: =OFFSET(LH351H_660nm!H27,0,LH351H_660nm!$B$13) -> -2.63502363e-06 | V31: =OFFSET(LH351H_660nm_V2!H27,0,LH351H_660nm_V2!$B$13) -> 2.033966253e-07 | W31: =OFFSET(LH351H_730nm!H27,0,LH351H_730nm!$B$13) -> 1.68262198e-06 | Y31: 400 | Z31: 9.792464872e-05 | AA31: =MAX(C31*IF(Calculator!$D$4>=0,Calculator!$D$4,0),0) -> 3.608576095e-05 | AB31: =MAX(D31*IF(Calculator!$D$5>=0,Calculator!$D$5,0),0) -> 6.12286979e-05 | AC31: =MAX(E31*IF(Calculator!$D$6>=0,Calculator!$D$6,0),0) -> 0 | AD31: =MAX(F31*IF(Calculator!$D$7>=0,Calculator!$D$7,0),0) -> 0 | AE31: =MAX(G31*IF(Calculator!$D$8>=0,Calculator!$D$8,0),0) -> 0 | AF31: =MAX(H31*IF(Calculator!$D$9>=0,Calculator!$D$9,0),0) -> 0 | AG31: =MAX(I31*IF(Calculator!$D$10>=0,Calculator!$D$10,0),0) -> 0 | AH31: =MAX(J31*IF(Calculator!$D$11>=0,Calculator!$D$11,0),0) -> 0 | AI31: =MAX(K31*IF(Calculator!$D$12>=0,Calculator!$D$12,0),0) -> 0 | AJ31: =MAX(L31*IF(Calculator!$D$13>=0,Calculator!$D$13,0),0) -> 0 | AK31: =MAX(M31*IF(Calculator!$D$14>=0,Calculator!$D$14,0),0) -> 0 | AL31: =MAX(N31*IF(Calculator!$D$15>=0,Calculator!$D$15,0),0) -> 0 | AM31: =MAX(O31*IF(Calculator!$D$16>=0,Calculator!$D$16,0),0) -> 0 | AN31: =MAX(P31*IF(Calculator!$D$17>=0,Calculator!$D$17,0),0) -> 0 | AO31: =MAX(Q31*IF(Calculator!$D$18>=0,Calculator!$D$18,0),0) -> 0 | AP31: =MAX(R31*IF(Calculator!$D$19>=0,Calculator!$D$19,0),0) -> 0 | AQ31: =MAX(S31*IF(Calculator!$D$20>=0,Calculator!$D$20,0),0) -> 0 | AR31: =MAX(T31*IF(Calculator!$D$21>=0,Calculator!$D$21,0),0) -> 0 | AS31: =MAX(U31*IF(Calculator!$D$22>=0,Calculator!$D$22,0),0) -> 0 | AT31: =MAX(V31*IF(Calculator!$D$23>=0,Calculator!$D$23,0),0) -> 6.101898759e-07 | AU31: =MAX(W31*IF(Calculator!$D$24>=0,Calculator!$D$24,0),0) -> 0 | AW31: 400 | AX31: 0.000327781251 | AY31: 0.000120789158 | AZ31: 0.0002049496164 | BA31: 0 | BB31: 0 | BC31: 0 | BD31: 0 | BE31: 0 | BF31: 0 | BG31: 0 | BH31: 0 | BI31: 0 | BJ31: 0 | BK31: 0 | BL31: 0 | BM31: 0 | BN31: 0 | BO31: 0 | BP31: 0 | BQ31: 0 | BR31: 2.042476572e-06 | BS31: 0 | BU31: 400 | BV31: =AX31*OFFSET(PPF_YPF_DIN_BPF!$A$101,ROW()-10,$BT$1) -> 9.792464872e-05 | BW31: =AY31*OFFSET(PPF_YPF_DIN_BPF!$A$101,ROW()-10,$BT$1) -> 3.608576095e-05 | BX31: =AZ31*OFFSET(PPF_YPF_DIN_BPF!$A$101,ROW()-10,$BT$1) -> 6.12286979e-05 | BY31: =BA31*OFFSET(PPF_YPF_DIN_BPF!$A$101,ROW()-10,$BT$1) -> 0 | BZ31: =BB31*OFFSET(PPF_YPF_DIN_BPF!$A$101,ROW()-10,$BT$1) -> 0 | CA31: =BC31*OFFSET(PPF_YPF_DIN_BPF!$A$101,ROW()-10,$BT$1) -> 0 | CB31: =BD31*OFFSET(PPF_YPF_DIN_BPF!$A$101,ROW()-10,$BT$1) -> 0 | CC31: =BE31*OFFSET(PPF_YPF_DIN_BPF!$A$101,ROW()-10,$BT$1) -> 0 | CD31: =BF31*OFFSET(PPF_YPF_DIN_BPF!$A$101,ROW()-10,$BT$1) -> 0 | CE31: =BG31*OFFSET(PPF_YPF_DIN_BPF!$A$101,ROW()-10,$BT$1) -> 0 | CF31: =BH31*OFFSET(PPF_YPF_DIN_BPF!$A$101,ROW()-10,$BT$1) -> 0 | CG31: =BI31*OFFSET(PPF_YPF_DIN_BPF!$A$101,ROW()-10,$BT$1) -> 0 | CH31: =BJ31*OFFSET(PPF_YPF_DIN_BPF!$A$101,ROW()-10,$BT$1) -> 0 | CI31: =BK31*OFFSET(PPF_YPF_DIN_BPF!$A$101,ROW()-10,$BT$1) -> 0 | CJ31: =BL31*OFFSET(PPF_YPF_DIN_BPF!$A$101,ROW()-10,$BT$1) -> 0 | CK31: =BM31*OFFSET(PPF_YPF_DIN_BPF!$A$101,ROW()-10,$BT$1) -> 0 | CL31: =BN31*OFFSET(PPF_YPF_DIN_BPF!$A$101,ROW()-10,$BT$1) -> 0 | CM31: =BO31*OFFSET(PPF_YPF_DIN_BPF!$A$101,ROW()-10,$BT$1) -> 0 | CN31: =BP31*OFFSET(PPF_YPF_DIN_BPF!$A$101,ROW()-10,$BT$1) -> 0 | CO31: =BQ31*OFFSET(PPF_YPF_DIN_BPF!$A$101,ROW()-10,$BT$1) -> 0 | CP31: =BR31*OFFSET(PPF_YPF_DIN_BPF!$A$101,ROW()-10,$BT$1) -> 6.101898759e-07 | CQ31: =BS31*OFFSET(PPF_YPF_DIN_BPF!$A$101,ROW()-10,$BT$1) -> 0 | CS31: =AX31*OFFSET(PPF_YPF_DIN_BPF!$A$101,ROW()-10,1+1) -> 0.000327781251 | CT31: =AX31*OFFSET(PPF_YPF_DIN_BPF!$A$101,ROW()-10,2+1) -> 0.000327781251 | CU31: =AX31*OFFSET(PPF_YPF_DIN_BPF!$A$101,ROW()-10,3+1) -> 0.000213371172 | CV31: =AX31*OFFSET(PPF_YPF_DIN_BPF!$A$101,ROW()-10,4+1) -> 0.0001529912671 | CW31: =PPF_YPF_DIN_BPF!I22*Graph_Data!CW$2 -> 0.02760793616 | CX31: =PPF_YPF_DIN_BPF!J22*Graph_Data!CX$2 -> 0.02643803029 | CY31: =PPF_YPF_DIN_BPF!K22*Graph_Data!CY$2 -> 0.006834368397 | DX31: 278 | DY31: 0 | DZ31: 0 | EA31: 0 | EB31: 0 | EC31: 0
B32: 401 | C32: =OFFSET(LM301H!H28,0,LM301H!$B$13) -> 1.587661422e-06 | D32: =OFFSET(LM301H!H28,0,LM301H!$B$31) -> 3.293863537e-06 | E32: =OFFSET(LM301H_D!H28,0,LM301H_D!$B$13) -> 1.882293516e-06 | F32: =OFFSET(LM301H_D!H28,0,LM301H_D!$B$31) -> 3.551341637e-06 | G32: =OFFSET(LM561H!$H28,0,LM561H!$B$13) -> 2.064478778e-06 | H32: =OFFSET(LM561H!$H28,0,LM561H!$B$31) -> 3.385387318e-06 | I32: =OFFSET(LH181B!$H28,0,LH181B!$B$14) -> 9.261703823e-06 | J32: =OFFSET(LH181B!$H28,0,LH181B!$B$32) -> 2.216089966e-05 | K32: =OFFSET(LH231B!$H28,0,LH231B!$B$14) -> 1.061633298e-05 | L32: =OFFSET(LH231B!$H28,0,LH231B!$B$32) -> 1.977809622e-05 | M32: =OFFSET(LH351H_B!$H28,0,LH351H_B!$B$14) -> 1.666972113e-05 | N32: =OFFSET(LH351H_B!$H28,0,LH351H_B!$B$32) -> 5.0895739e-05 | O32: =OFFSET(LH351H_C!$H28,0,LH351H_C!$B$14) -> 1.303913328e-05 | P32: =OFFSET(LH351H_C!$H28,0,LH351H_C!$B$32) -> 2.69055136e-05 | Q32: =OFFSET(LH351H_D!$H28,0,LH351H_D!$B$14) -> 1.643987446e-05 | R32: =OFFSET(LH351H_D!$H28,0,LH351H_D!$B$32) -> 4.339732654e-05 | S32: =OFFSET(LH351H_450nm!H28,0,LH351H_450nm!$B$13) -> 0.0001653325924 | T32: =OFFSET(LH351H_630nm!H28,0,LH351H_630nm!$B$13) -> 1.035135303e-07 | U32: =OFFSET(LH351H_660nm!H28,0,LH351H_660nm!$B$13) -> -5.18621948e-07 | V32: =OFFSET(LH351H_660nm_V2!H28,0,LH351H_660nm_V2!$B$13) -> 4.37596808e-06 | W32: =OFFSET(LH351H_730nm!H28,0,LH351H_730nm!$B$13) -> 8.726086466e-07 | Y32: 401 | Z32: 0.0001107584034 | AA32: =MAX(C32*IF(Calculator!$D$4>=0,Calculator!$D$4,0),0) -> 3.175322843e-05 | AB32: =MAX(D32*IF(Calculator!$D$5>=0,Calculator!$D$5,0),0) -> 6.587727074e-05 | AC32: =MAX(E32*IF(Calculator!$D$6>=0,Calculator!$D$6,0),0) -> 0 | AD32: =MAX(F32*IF(Calculator!$D$7>=0,Calculator!$D$7,0),0) -> 0 | AE32: =MAX(G32*IF(Calculator!$D$8>=0,Calculator!$D$8,0),0) -> 0 | AF32: =MAX(H32*IF(Calculator!$D$9>=0,Calculator!$D$9,0),0) -> 0 | AG32: =MAX(I32*IF(Calculator!$D$10>=0,Calculator!$D$10,0),0) -> 0 | AH32: =MAX(J32*IF(Calculator!$D$11>=0,Calculator!$D$11,0),0) -> 0 | AI32: =MAX(K32*IF(Calculator!$D$12>=0,Calculator!$D$12,0),0) -> 0 | AJ32: =MAX(L32*IF(Calculator!$D$13>=0,Calculator!$D$13,0),0) -> 0 | AK32: =MAX(M32*IF(Calculator!$D$14>=0,Calculator!$D$14,0),0) -> 0 | AL32: =MAX(N32*IF(Calculator!$D$15>=0,Calculator!$D$15,0),0) -> 0 | AM32: =MAX(O32*IF(Calculator!$D$16>=0,Calculator!$D$16,0),0) -> 0 | AN32: =MAX(P32*IF(Calculator!$D$17>=0,Calculator!$D$17,0),0) -> 0 | AO32: =MAX(Q32*IF(Calculator!$D$18>=0,Calculator!$D$18,0),0) -> 0 | AP32: =MAX(R32*IF(Calculator!$D$19>=0,Calculator!$D$19,0),0) -> 0 | AQ32: =MAX(S32*IF(Calculator!$D$20>=0,Calculator!$D$20,0),0) -> 0 | AR32: =MAX(T32*IF(Calculator!$D$21>=0,Calculator!$D$21,0),0) -> 0 | AS32: =MAX(U32*IF(Calculator!$D$22>=0,Calculator!$D$22,0),0) -> 0 | AT32: =MAX(V32*IF(Calculator!$D$23>=0,Calculator!$D$23,0),0) -> 1.312790424e-05 | AU32: =MAX(W32*IF(Calculator!$D$24>=0,Calculator!$D$24,0),0) -> 0 | AW32: 401 | AX32: 0.0003716662742 | AY32: 0.0001065526745 | AZ32: 0.0002210609671 | BA32: 0 | BB32: 0 | BC32: 0 | BD32: 0 | BE32: 0 | BF32: 0 | BG32: 0 | BH32: 0 | BI32: 0 | BJ32: 0 | BK32: 0 | BL32: 0 | BM32: 0 | BN32: 0 | BO32: 0 | BP32: 0 | BQ32: 0 | BR32: 4.405263263e-05 | BS32: 0 | BU32: 401 | BV32: =AX32*OFFSET(PPF_YPF_DIN_BPF!$A$101,ROW()-10,$BT$1) -> 0.0001107584034 | BW32: =AY32*OFFSET(PPF_YPF_DIN_BPF!$A$101,ROW()-10,$BT$1) -> 3.175322843e-05 | BX32: =AZ32*OFFSET(PPF_YPF_DIN_BPF!$A$101,ROW()-10,$BT$1) -> 6.587727074e-05 | BY32: =BA32*OFFSET(PPF_YPF_DIN_BPF!$A$101,ROW()-10,$BT$1) -> 0 | BZ32: =BB32*OFFSET(PPF_YPF_DIN_BPF!$A$101,ROW()-10,$BT$1) -> 0 | CA32: =BC32*OFFSET(PPF_YPF_DIN_BPF!$A$101,ROW()-10,$BT$1) -> 0 | CB32: =BD32*OFFSET(PPF_YPF_DIN_BPF!$A$101,ROW()-10,$BT$1) -> 0 | CC32: =BE32*OFFSET(PPF_YPF_DIN_BPF!$A$101,ROW()-10,$BT$1) -> 0 | CD32: =BF32*OFFSET(PPF_YPF_DIN_BPF!$A$101,ROW()-10,$BT$1) -> 0 | CE32: =BG32*OFFSET(PPF_YPF_DIN_BPF!$A$101,ROW()-10,$BT$1) -> 0 | CF32: =BH32*OFFSET(PPF_YPF_DIN_BPF!$A$101,ROW()-10,$BT$1) -> 0 | CG32: =BI32*OFFSET(PPF_YPF_DIN_BPF!$A$101,ROW()-10,$BT$1) -> 0 | CH32: =BJ32*OFFSET(PPF_YPF_DIN_BPF!$A$101,ROW()-10,$BT$1) -> 0 | CI32: =BK32*OFFSET(PPF_YPF_DIN_BPF!$A$101,ROW()-10,$BT$1) -> 0 | CJ32: =BL32*OFFSET(PPF_YPF_DIN_BPF!$A$101,ROW()-10,$BT$1) -> 0 | CK32: =BM32*OFFSET(PPF_YPF_DIN_BPF!$A$101,ROW()-10,$BT$1) -> 0 | CL32: =BN32*OFFSET(PPF_YPF_DIN_BPF!$A$101,ROW()-10,$BT$1) -> 0 | CM32: =BO32*OFFSET(PPF_YPF_DIN_BPF!$A$101,ROW()-10,$BT$1) -> 0 | CN32: =BP32*OFFSET(PPF_YPF_DIN_BPF!$A$101,ROW()-10,$BT$1) -> 0 | CO32: =BQ32*OFFSET(PPF_YPF_DIN_BPF!$A$101,ROW()-10,$BT$1) -> 0 | CP32: =BR32*OFFSET(PPF_YPF_DIN_BPF!$A$101,ROW()-10,$BT$1) -> 1.312790424e-05 | CQ32: =BS32*OFFSET(PPF_YPF_DIN_BPF!$A$101,ROW()-10,$BT$1) -> 0 | CS32: =AX32*OFFSET(PPF_YPF_DIN_BPF!$A$101,ROW()-10,1+1) -> 0.0003716662742 | CT32: =AX32*OFFSET(PPF_YPF_DIN_BPF!$A$101,ROW()-10,2+1) -> 0.0003716662742 | CU32: =AX32*OFFSET(PPF_YPF_DIN_BPF!$A$101,ROW()-10,3+1) -> 0.0002445716467 | CV32: =AX32*OFFSET(PPF_YPF_DIN_BPF!$A$101,ROW()-10,4+1) -> 0.0001841715685 | CW32: =PPF_YPF_DIN_BPF!I23*Graph_Data!CW$2 -> 0.02842498184 | CX32: =PPF_YPF_DIN_BPF!J23*Graph_Data!CX$2 -> 0.0271667285 | CY32: =PPF_YPF_DIN_BPF!K23*Graph_Data!CY$2 -> 0.007074871307 | DX32: 279 | DY32: 0 | DZ32: 0 | EA32: 0 | EB32: 0 | EC32: 0
B33: 402 | C33: =OFFSET(LM301H!H29,0,LM301H!$B$13) -> 1.346212686e-06 | D33: =OFFSET(LM301H!H29,0,LM301H!$B$31) -> 3.422963381e-06 | E33: =OFFSET(LM301H_D!H29,0,LM301H_D!$B$13) -> 1.762294377e-06 | F33: =OFFSET(LM301H_D!H29,0,LM301H_D!$B$31) -> 3.752492973e-06 | G33: =OFFSET(LM561H!$H29,0,LM561H!$B$13) -> 1.569238501e-06 | H33: =OFFSET(LM561H!$H29,0,LM561H!$B$31) -> 3.145676534e-06 | I33: =OFFSET(LH181B!$H29,0,LH181B!$B$14) -> 9.4982341e-06 | J33: =OFFSET(LH181B!$H29,0,LH181B!$B$32) -> 2.310088351e-05 | K33: =OFFSET(LH231B!$H29,0,LH231B!$B$14) -> 1.075178303e-05 | L33: =OFFSET(LH231B!$H29,0,LH231B!$B$32) -> 2.107635008e-05 | M33: =OFFSET(LH351H_B!$H29,0,LH351H_B!$B$14) -> 1.810012465e-05 | N33: =OFFSET(LH351H_B!$H29,0,LH351H_B!$B$32) -> 5.323062924e-05 | O33: =OFFSET(LH351H_C!$H29,0,LH351H_C!$B$14) -> 1.265338837e-05 | P33: =OFFSET(LH351H_C!$H29,0,LH351H_C!$B$32) -> 3.037295452e-05 | Q33: =OFFSET(LH351H_D!$H29,0,LH351H_D!$B$14) -> 1.750743214e-05 | R33: =OFFSET(LH351H_D!$H29,0,LH351H_D!$B$32) -> 4.825119995e-05 | S33: =OFFSET(LH351H_450nm!H29,0,LH351H_450nm!$B$13) -> 0.0001751753995 | T33: =OFFSET(LH351H_630nm!H29,0,LH351H_630nm!$B$13) -> -5.475471768e-07 | U33: =OFFSET(LH351H_660nm!H29,0,LH351H_660nm!$B$13) -> 1.597423921e-06 | V33: =OFFSET(LH351H_660nm_V2!H29,0,LH351H_660nm_V2!$B$13) -> 2.186632126e-06 | W33: =OFFSET(LH351H_730nm!H29,0,LH351H_730nm!$B$13) -> 5.654839846e-07 | Y33: 402 | Z33: 0.0001019434177 | AA33: =MAX(C33*IF(Calculator!$D$4>=0,Calculator!$D$4,0),0) -> 2.692425371e-05 | AB33: =MAX(D33*IF(Calculator!$D$5>=0,Calculator!$D$5,0),0) -> 6.845926763e-05 | AC33: =MAX(E33*IF(Calculator!$D$6>=0,Calculator!$D$6,0),0) -> 0 | AD33: =MAX(F33*IF(Calculator!$D$7>=0,Calculator!$D$7,0),0) -> 0 | AE33: =MAX(G33*IF(Calculator!$D$8>=0,Calculator!$D$8,0),0) -> 0 | AF33: =MAX(H33*IF(Calculator!$D$9>=0,Calculator!$D$9,0),0) -> 0 | AG33: =MAX(I33*IF(Calculator!$D$10>=0,Calculator!$D$10,0),0) -> 0 | AH33: =MAX(J33*IF(Calculator!$D$11>=0,Calculator!$D$11,0),0) -> 0 | AI33: =MAX(K33*IF(Calculator!$D$12>=0,Calculator!$D$12,0),0) -> 0 | AJ33: =MAX(L33*IF(Calculator!$D$13>=0,Calculator!$D$13,0),0) -> 0 | AK33: =MAX(M33*IF(Calculator!$D$14>=0,Calculator!$D$14,0),0) -> 0 | AL33: =MAX(N33*IF(Calculator!$D$15>=0,Calculator!$D$15,0),0) -> 0 | AM33: =MAX(O33*IF(Calculator!$D$16>=0,Calculator!$D$16,0),0) -> 0 | AN33: =MAX(P33*IF(Calculator!$D$17>=0,Calculator!$D$17,0),0) -> 0 | AO33: =MAX(Q33*IF(Calculator!$D$18>=0,Calculator!$D$18,0),0) -> 0 | AP33: =MAX(R33*IF(Calculator!$D$19>=0,Calculator!$D$19,0),0) -> 0 | AQ33: =MAX(S33*IF(Calculator!$D$20>=0,Calculator!$D$20,0),0) -> 0 | AR33: =MAX(T33*IF(Calculator!$D$21>=0,Calculator!$D$21,0),0) -> 0 | AS33: =MAX(U33*IF(Calculator!$D$22>=0,Calculator!$D$22,0),0) -> 0 | AT33: =MAX(V33*IF(Calculator!$D$23>=0,Calculator!$D$23,0),0) -> 6.559896379e-06 | AU33: =MAX(W33*IF(Calculator!$D$24>=0,Calculator!$D$24,0),0) -> 0 | AW33: 402 | AX33: 0.0003429393634 | AY33: 9.057364011e-05 | AZ33: 0.0002302981221 | BA33: 0 | BB33: 0 | BC33: 0 | BD33: 0 | BE33: 0 | BF33: 0 | BG33: 0 | BH33: 0 | BI33: 0 | BJ33: 0 | BK33: 0 | BL33: 0 | BM33: 0 | BN33: 0 | BO33: 0 | BP33: 0 | BQ33: 0 | BR33: 2.206760121e-05 | BS33: 0 | BU33: 402 | BV33: =AX33*OFFSET(PPF_YPF_DIN_BPF!$A$101,ROW()-10,$BT$1) -> 0.0001019434177 | BW33: =AY33*OFFSET(PPF_YPF_DIN_BPF!$A$101,ROW()-10,$BT$1) -> 2.692425371e-05 | BX33: =AZ33*OFFSET(PPF_YPF_DIN_BPF!$A$101,ROW()-10,$BT$1) -> 6.845926763e-05 | BY33: =BA33*OFFSET(PPF_YPF_DIN_BPF!$A$101,ROW()-10,$BT$1) -> 0 | BZ33: =BB33*OFFSET(PPF_YPF_DIN_BPF!$A$101,ROW()-10,$BT$1) -> 0 | CA33: =BC33*OFFSET(PPF_YPF_DIN_BPF!$A$101,ROW()-10,$BT$1) -> 0 | CB33: =BD33*OFFSET(PPF_YPF_DIN_BPF!$A$101,ROW()-10,$BT$1) -> 0 | CC33: =BE33*OFFSET(PPF_YPF_DIN_BPF!$A$101,ROW()-10,$BT$1) -> 0 | CD33: =BF33*OFFSET(PPF_YPF_DIN_BPF!$A$101,ROW()-10,$BT$1) -> 0 | CE33: =BG33*OFFSET(PPF_YPF_DIN_BPF!$A$101,ROW()-10,$BT$1) -> 0 | CF33: =BH33*OFFSET(PPF_YPF_DIN_BPF!$A$101,ROW()-10,$BT$1) -> 0 | CG33: =BI33*OFFSET(PPF_YPF_DIN_BPF!$A$101,ROW()-10,$BT$1) -> 0 | CH33: =BJ33*OFFSET(PPF_YPF_DIN_BPF!$A$101,ROW()-10,$BT$1) -> 0 | CI33: =BK33*OFFSET(PPF_YPF_DIN_BPF!$A$101,ROW()-10,$BT$1) -> 0 | CJ33: =BL33*OFFSET(PPF_YPF_DIN_BPF!$A$101,ROW()-10,$BT$1) -> 0 | CK33: =BM33*OFFSET(PPF_YPF_DIN_BPF!$A$101,ROW()-10,$BT$1) -> 0 | CL33: =BN33*OFFSET(PPF_YPF_DIN_BPF!$A$101,ROW()-10,$BT$1) -> 0 | CM33: =BO33*OFFSET(PPF_YPF_DIN_BPF!$A$101,ROW()-10,$BT$1) -> 0 | CN33: =BP33*OFFSET(PPF_YPF_DIN_BPF!$A$101,ROW()-10,$BT$1) -> 0 | CO33: =BQ33*OFFSET(PPF_YPF_DIN_BPF!$A$101,ROW()-10,$BT$1) -> 0 | CP33: =BR33*OFFSET(PPF_YPF_DIN_BPF!$A$101,ROW()-10,$BT$1) -> 6.559896379e-06 | CQ33: =BS33*OFFSET(PPF_YPF_DIN_BPF!$A$101,ROW()-10,$BT$1) -> 0 | CS33: =AX33*OFFSET(PPF_YPF_DIN_BPF!$A$101,ROW()-10,1+1) -> 0.0003429393634 | CT33: =AX33*OFFSET(PPF_YPF_DIN_BPF!$A$101,ROW()-10,2+1) -> 0.0003429393634 | CU33: =AX33*OFFSET(PPF_YPF_DIN_BPF!$A$101,ROW()-10,3+1) -> 0.0002280944576 | CV33: =AX33*OFFSET(PPF_YPF_DIN_BPF!$A$101,ROW()-10,4+1) -> 0.0001798102527 | CW33: =PPF_YPF_DIN_BPF!I24*Graph_Data!CW$2 -> 0.02924575832 | CX33: =PPF_YPF_DIN_BPF!J24*Graph_Data!CX$2 -> 0.02789873146 | CY33: =PPF_YPF_DIN_BPF!K24*Graph_Data!CY$2 -> 0.00724183047 | DX33: 280 | DY33: 0 | DZ33: 0 | EA33: 0 | EB33: 0 | EC33: 0
B34: 403 | C34: =OFFSET(LM301H!H30,0,LM301H!$B$13) -> 1.763654486e-06 | D34: =OFFSET(LM301H!H30,0,LM301H!$B$31) -> 3.644317024e-06 | E34: =OFFSET(LM301H_D!H30,0,LM301H_D!$B$13) -> 2.252936846e-06 | F34: =OFFSET(LM301H_D!H30,0,LM301H_D!$B$31) -> 3.823424985e-06 | G34: =OFFSET(LM561H!$H30,0,LM561H!$B$13) -> 2.327598395e-06 | H34: =OFFSET(LM561H!$H30,0,LM561H!$B$31) -> 3.961572088e-06 | I34: =OFFSET(LH181B!$H30,0,LH181B!$B$14) -> 1.072969872e-05 | J34: =OFFSET(LH181B!$H30,0,LH181B!$B$32) -> 2.493260615e-05 | K34: =OFFSET(LH231B!$H30,0,LH231B!$B$14) -> 1.217179895e-05 | L34: =OFFSET(LH231B!$H30,0,LH231B!$B$32) -> 2.313229587e-05 | M34: =OFFSET(LH351H_B!$H30,0,LH351H_B!$B$14) -> 1.997854421e-05 | N34: =OFFSET(LH351H_B!$H30,0,LH351H_B!$B$32) -> 5.740391498e-05 | O34: =OFFSET(LH351H_C!$H30,0,LH351H_C!$B$14) -> 1.394539583e-05 | P34: =OFFSET(LH351H_C!$H30,0,LH351H_C!$B$32) -> 3.129608157e-05 | Q34: =OFFSET(LH351H_D!$H30,0,LH351H_D!$B$14) -> 1.818856205e-05 | R34: =OFFSET(LH351H_D!$H30,0,LH351H_D!$B$32) -> 4.990028649e-05 | S34: =OFFSET(LH351H_450nm!H30,0,LH351H_450nm!$B$13) -> 0.0001907848825 | T34: =OFFSET(LH351H_630nm!H30,0,LH351H_630nm!$B$13) -> -1.142412249e-06 | U34: =OFFSET(LH351H_660nm!H30,0,LH351H_660nm!$B$13) -> 2.102220185e-06 | V34: =OFFSET(LH351H_660nm_V2!H30,0,LH351H_660nm_V2!$B$13) -> -4.138030841e-07 | W34: =OFFSET(LH351H_730nm!H30,0,LH351H_730nm!$B$13) -> 1.535023032e-06 | Y34: 403 | Z34: 0.0001081594302 | AA34: =MAX(C34*IF(Calculator!$D$4>=0,Calculator!$D$4,0),0) -> 3.527308972e-05 | AB34: =MAX(D34*IF(Calculator!$D$5>=0,Calculator!$D$5,0),0) -> 7.288634049e-05 | AC34: =MAX(E34*IF(Calculator!$D$6>=0,Calculator!$D$6,0),0) -> 0 | AD34: =MAX(F34*IF(Calculator!$D$7>=0,Calculator!$D$7,0),0) -> 0 | AE34: =MAX(G34*IF(Calculator!$D$8>=0,Calculator!$D$8,0),0) -> 0 | AF34: =MAX(H34*IF(Calculator!$D$9>=0,Calculator!$D$9,0),0) -> 0 | AG34: =MAX(I34*IF(Calculator!$D$10>=0,Calculator!$D$10,0),0) -> 0 | AH34: =MAX(J34*IF(Calculator!$D$11>=0,Calculator!$D$11,0),0) -> 0 | AI34: =MAX(K34*IF(Calculator!$D$12>=0,Calculator!$D$12,0),0) -> 0 | AJ34: =MAX(L34*IF(Calculator!$D$13>=0,Calculator!$D$13,0),0) -> 0 | AK34: =MAX(M34*IF(Calculator!$D$14>=0,Calculator!$D$14,0),0) -> 0 | AL34: =MAX(N34*IF(Calculator!$D$15>=0,Calculator!$D$15,0),0) -> 0 | AM34: =MAX(O34*IF(Calculator!$D$16>=0,Calculator!$D$16,0),0) -> 0 | AN34: =MAX(P34*IF(Calculator!$D$17>=0,Calculator!$D$17,0),0) -> 0 | AO34: =MAX(Q34*IF(Calculator!$D$18>=0,Calculator!$D$18,0),0) -> 0 | AP34: =MAX(R34*IF(Calculator!$D$19>=0,Calculator!$D$19,0),0) -> 0 | AQ34: =MAX(S34*IF(Calculator!$D$20>=0,Calculator!$D$20,0),0) -> 0 | AR34: =MAX(T34*IF(Calculator!$D$21>=0,Calculator!$D$21,0),0) -> 0 | AS34: =MAX(U34*IF(Calculator!$D$22>=0,Calculator!$D$22,0),0) -> 0 | AT34: =MAX(V34*IF(Calculator!$D$23>=0,Calculator!$D$23,0),0) -> 0 | AU34: =MAX(W34*IF(Calculator!$D$24>=0,Calculator!$D$24,0),0) -> 0 | AW34: 403 | AX34: 0.0003647552333 | AY34: 0.0001189544365 | AZ34: 0.0002458007968 | BA34: 0 | BB34: 0 | BC34: 0 | BD34: 0 | BE34: 0 | BF34: 0 | BG34: 0 | BH34: 0 | BI34: 0 | BJ34: 0 | BK34: 0 | BL34: 0 | BM34: 0 | BN34: 0 | BO34: 0 | BP34: 0 | BQ34: 0 | BR34: 0 | BS34: 0 | BU34: 403 | BV34: =AX34*OFFSET(PPF_YPF_DIN_BPF!$A$101,ROW()-10,$BT$1) -> 0.0001081594302 | BW34: =AY34*OFFSET(PPF_YPF_DIN_BPF!$A$101,ROW()-10,$BT$1) -> 3.527308972e-05 | BX34: =AZ34*OFFSET(PPF_YPF_DIN_BPF!$A$101,ROW()-10,$BT$1) -> 7.288634049e-05 | BY34: =BA34*OFFSET(PPF_YPF_DIN_BPF!$A$101,ROW()-10,$BT$1) -> 0 | BZ34: =BB34*OFFSET(PPF_YPF_DIN_BPF!$A$101,ROW()-10,$BT$1) -> 0 | CA34: =BC34*OFFSET(PPF_YPF_DIN_BPF!$A$101,ROW()-10,$BT$1) -> 0 | CB34: =BD34*OFFSET(PPF_YPF_DIN_BPF!$A$101,ROW()-10,$BT$1) -> 0 | CC34: =BE34*OFFSET(PPF_YPF_DIN_BPF!$A$101,ROW()-10,$BT$1) -> 0 | CD34: =BF34*OFFSET(PPF_YPF_DIN_BPF!$A$101,ROW()-10,$BT$1) -> 0 | CE34: =BG34*OFFSET(PPF_YPF_DIN_BPF!$A$101,ROW()-10,$BT$1) -> 0 | CF34: =BH34*OFFSET(PPF_YPF_DIN_BPF!$A$101,ROW()-10,$BT$1) -> 0 | CG34: =BI34*OFFSET(PPF_YPF_DIN_BPF!$A$101,ROW()-10,$BT$1) -> 0 | CH34: =BJ34*OFFSET(PPF_YPF_DIN_BPF!$A$101,ROW()-10,$BT$1) -> 0 | CI34: =BK34*OFFSET(PPF_YPF_DIN_BPF!$A$101,ROW()-10,$BT$1) -> 0 | CJ34: =BL34*OFFSET(PPF_YPF_DIN_BPF!$A$101,ROW()-10,$BT$1) -> 0 | CK34: =BM34*OFFSET(PPF_YPF_DIN_BPF!$A$101,ROW()-10,$BT$1) -> 0 | CL34: =BN34*OFFSET(PPF_YPF_DIN_BPF!$A$101,ROW()-10,$BT$1) -> 0 | CM34: =BO34*OFFSET(PPF_YPF_DIN_BPF!$A$101,ROW()-10,$BT$1) -> 0 | CN34: =BP34*OFFSET(PPF_YPF_DIN_BPF!$A$101,ROW()-10,$BT$1) -> 0 | CO34: =BQ34*OFFSET(PPF_YPF_DIN_BPF!$A$101,ROW()-10,$BT$1) -> 0 | CP34: =BR34*OFFSET(PPF_YPF_DIN_BPF!$A$101,ROW()-10,$BT$1) -> 0 | CQ34: =BS34*OFFSET(PPF_YPF_DIN_BPF!$A$101,ROW()-10,$BT$1) -> 0 | CS34: =AX34*OFFSET(PPF_YPF_DIN_BPF!$A$101,ROW()-10,1+1) -> 0.0003647552333 | CT34: =AX34*OFFSET(PPF_YPF_DIN_BPF!$A$101,ROW()-10,2+1) -> 0.0003647552333 | CU34: =AX34*OFFSET(PPF_YPF_DIN_BPF!$A$101,ROW()-10,3+1) -> 0.0002451888325 | CV34: =AX34*OFFSET(PPF_YPF_DIN_BPF!$A$101,ROW()-10,4+1) -> 0.0002017469102 | CW34: =PPF_YPF_DIN_BPF!I25*Graph_Data!CW$2 -> 0.0300702656 | CX34: =PPF_YPF_DIN_BPF!J25*Graph_Data!CX$2 -> 0.02863403918 | CY34: =PPF_YPF_DIN_BPF!K25*Graph_Data!CY$2 -> 0.007409532499 | DX34: 281 | DY34: =PPF_YPF_DIN_BPF!E3*Graph_Data!EA$2 -> 0 | DZ34: =PPF_YPF_DIN_BPF!C3*Graph_Data!DZ$2 -> 0 | EA34: =PPF_YPF_DIN_BPF!D3*Graph_Data!DY$2 -> 0.08412958924 | EB34: 0 | EC34: 0
B35: 404 | C35: =OFFSET(LM301H!H31,0,LM301H!$B$13) -> 1.871564331e-06 | D35: =OFFSET(LM301H!H31,0,LM301H!$B$31) -> 3.771477134e-06 | E35: =OFFSET(LM301H_D!H31,0,LM301H_D!$B$13) -> 1.707301282e-06 | F35: =OFFSET(LM301H_D!H31,0,LM301H_D!$B$31) -> 3.985671511e-06 | G35: =OFFSET(LM561H!$H31,0,LM561H!$B$13) -> 1.976722722e-06 | H35: =OFFSET(LM561H!$H31,0,LM561H!$B$31) -> 3.758242653e-06 | I35: =OFFSET(LH181B!$H31,0,LH181B!$B$14) -> 1.068315026e-05 | J35: =OFFSET(LH181B!$H31,0,LH181B!$B$32) -> 2.685847144e-05 | K35: =OFFSET(LH231B!$H31,0,LH231B!$B$14) -> 1.296147795e-05 | L35: =OFFSET(LH231B!$H31,0,LH231B!$B$32) -> 2.341405822e-05 | M35: =OFFSET(LH351H_B!$H31,0,LH351H_B!$B$14) -> 1.854614475e-05 | N35: =OFFSET(LH351H_B!$H31,0,LH351H_B!$B$32) -> 6.177687074e-05 | O35: =OFFSET(LH351H_C!$H31,0,LH351H_C!$B$14) -> 1.600514676e-05 | P35: =OFFSET(LH351H_C!$H31,0,LH351H_C!$B$32) -> 3.333422281e-05 | Q35: =OFFSET(LH351H_D!$H31,0,LH351H_D!$B$14) -> 1.886956102e-05 | R35: =OFFSET(LH351H_D!$H31,0,LH351H_D!$B$32) -> 5.075955788e-05 | S35: =OFFSET(LH351H_450nm!H31,0,LH351H_450nm!$B$13) -> 0.000208231153 | T35: =OFFSET(LH351H_630nm!H31,0,LH351H_630nm!$B$13) -> 2.217213136e-06 | U35: =OFFSET(LH351H_660nm!H31,0,LH351H_660nm!$B$13) -> 4.000676537e-06 | V35: =OFFSET(LH351H_660nm_V2!H31,0,LH351H_660nm_V2!$B$13) -> 1.868938319e-06 | W35: =OFFSET(LH351H_730nm!H31,0,LH351H_730nm!$B$13) -> 5.441553506e-08 | Y35: 404 | Z35: 0.0001184676443 | AA35: =MAX(C35*IF(Calculator!$D$4>=0,Calculator!$D$4,0),0) -> 3.743128663e-05 | AB35: =MAX(D35*IF(Calculator!$D$5>=0,Calculator!$D$5,0),0) -> 7.542954267e-05 | AC35: =MAX(E35*IF(Calculator!$D$6>=0,Calculator!$D$6,0),0) -> 0 | AD35: =MAX(F35*IF(Calculator!$D$7>=0,Calculator!$D$7,0),0) -> 0 | AE35: =MAX(G35*IF(Calculator!$D$8>=0,Calculator!$D$8,0),0) -> 0 | AF35: =MAX(H35*IF(Calculator!$D$9>=0,Calculator!$D$9,0),0) -> 0 | AG35: =MAX(I35*IF(Calculator!$D$10>=0,Calculator!$D$10,0),0) -> 0 | AH35: =MAX(J35*IF(Calculator!$D$11>=0,Calculator!$D$11,0),0) -> 0 | AI35: =MAX(K35*IF(Calculator!$D$12>=0,Calculator!$D$12,0),0) -> 0 | AJ35: =MAX(L35*IF(Calculator!$D$13>=0,Calculator!$D$13,0),0) -> 0 | AK35: =MAX(M35*IF(Calculator!$D$14>=0,Calculator!$D$14,0),0) -> 0 | AL35: =MAX(N35*IF(Calculator!$D$15>=0,Calculator!$D$15,0),0) -> 0 | AM35: =MAX(O35*IF(Calculator!$D$16>=0,Calculator!$D$16,0),0) -> 0 | AN35: =MAX(P35*IF(Calculator!$D$17>=0,Calculator!$D$17,0),0) -> 0 | AO35: =MAX(Q35*IF(Calculator!$D$18>=0,Calculator!$D$18,0),0) -> 0 | AP35: =MAX(R35*IF(Calculator!$D$19>=0,Calculator!$D$19,0),0) -> 0 | AQ35: =MAX(S35*IF(Calculator!$D$20>=0,Calculator!$D$20,0),0) -> 0 | AR35: =MAX(T35*IF(Calculator!$D$21>=0,Calculator!$D$21,0),0) -> 0 | AS35: =MAX(U35*IF(Calculator!$D$22>=0,Calculator!$D$22,0),0) -> 0 | AT35: =MAX(V35*IF(Calculator!$D$23>=0,Calculator!$D$23,0),0) -> 5.606814958e-06 | AU35: =MAX(W35*IF(Calculator!$D$24>=0,Calculator!$D$24,0),0) -> 0 | AW35: 404 | AX35: 0.0004005098601 | AY35: 0.0001265459397 | AZ35: 0.0002550086631 | BA35: 0 | BB35: 0 | BC35: 0 | BD35: 0 | BE35: 0 | BF35: 0 | BG35: 0 | BH35: 0 | BI35: 0 | BJ35: 0 | BK35: 0 | BL35: 0 | BM35: 0 | BN35: 0 | BO35: 0 | BP35: 0 | BQ35: 0 | BR35: 1.895525726e-05 | BS35: 0 | BU35: 404 | BV35: =AX35*OFFSET(PPF_YPF_DIN_BPF!$A$101,ROW()-10,$BT$1) -> 0.0001184676443 | BW35: =AY35*OFFSET(PPF_YPF_DIN_BPF!$A$101,ROW()-10,$BT$1) -> 3.743128663e-05 | BX35: =AZ35*OFFSET(PPF_YPF_DIN_BPF!$A$101,ROW()-10,$BT$1) -> 7.542954267e-05 | BY35: =BA35*OFFSET(PPF_YPF_DIN_BPF!$A$101,ROW()-10,$BT$1) -> 0 | BZ35: =BB35*OFFSET(PPF_YPF_DIN_BPF!$A$101,ROW()-10,$BT$1) -> 0 | CA35: =BC35*OFFSET(PPF_YPF_DIN_BPF!$A$101,ROW()-10,$BT$1) -> 0 | CB35: =BD35*OFFSET(PPF_YPF_DIN_BPF!$A$101,ROW()-10,$BT$1) -> 0 | CC35: =BE35*OFFSET(PPF_YPF_DIN_BPF!$A$101,ROW()-10,$BT$1) -> 0 | CD35: =BF35*OFFSET(PPF_YPF_DIN_BPF!$A$101,ROW()-10,$BT$1) -> 0 | CE35: =BG35*OFFSET(PPF_YPF_DIN_BPF!$A$101,ROW()-10,$BT$1) -> 0 | CF35: =BH35*OFFSET(PPF_YPF_DIN_BPF!$A$101,ROW()-10,$BT$1) -> 0 | CG35: =BI35*OFFSET(PPF_YPF_DIN_BPF!$A$101,ROW()-10,$BT$1) -> 0 | CH35: =BJ35*OFFSET(PPF_YPF_DIN_BPF!$A$101,ROW()-10,$BT$1) -> 0 | CI35: =BK35*OFFSET(PPF_YPF_DIN_BPF!$A$101,ROW()-10,$BT$1) -> 0 | CJ35: =BL35*OFFSET(PPF_YPF_DIN_BPF!$A$101,ROW()-10,$BT$1) -> 0 | CK35: =BM35*OFFSET(PPF_YPF_DIN_BPF!$A$101,ROW()-10,$BT$1) -> 0 | CL35: =BN35*OFFSET(PPF_YPF_DIN_BPF!$A$101,ROW()-10,$BT$1) -> 0 | CM35: =BO35*OFFSET(PPF_YPF_DIN_BPF!$A$101,ROW()-10,$BT$1) -> 0 | CN35: =BP35*OFFSET(PPF_YPF_DIN_BPF!$A$101,ROW()-10,$BT$1) -> 0 | CO35: =BQ35*OFFSET(PPF_YPF_DIN_BPF!$A$101,ROW()-10,$BT$1) -> 0 | CP35: =BR35*OFFSET(PPF_YPF_DIN_BPF!$A$101,ROW()-10,$BT$1) -> 5.606814958e-06 | CQ35: =BS35*OFFSET(PPF_YPF_DIN_BPF!$A$101,ROW()-10,$BT$1) -> 0 | CS35: =AX35*OFFSET(PPF_YPF_DIN_BPF!$A$101,ROW()-10,1+1) -> 0.0004005098601 | CT35: =AX35*OFFSET(PPF_YPF_DIN_BPF!$A$101,ROW()-10,2+1) -> 0.0004005098601 | CU35: =AX35*OFFSET(PPF_YPF_DIN_BPF!$A$101,ROW()-10,3+1) -> 0.0002713670577 | CV35: =AX35*OFFSET(PPF_YPF_DIN_BPF!$A$101,ROW()-10,4+1) -> 0.00023305008 | CW35: =PPF_YPF_DIN_BPF!I26*Graph_Data!CW$2 -> 0.03014488164 | CX35: =PPF_YPF_DIN_BPF!J26*Graph_Data!CX$2 -> 0.02870509139 | CY35: =PPF_YPF_DIN_BPF!K26*Graph_Data!CY$2 -> 0.007502947915 | DX35: 282 | DY35: =PPF_YPF_DIN_BPF!E4*Graph_Data!EA$2 -> 0 | DZ35: =PPF_YPF_DIN_BPF!C4*Graph_Data!DZ$2 -> 0 | EA35: =PPF_YPF_DIN_BPF!D4*Graph_Data!DY$2 -> 0.08412958924 | EB35: 0 | EC35: 0
B36: 405 | C36: =OFFSET(LM301H!H32,0,LM301H!$B$13) -> 1.807988363e-06 | D36: =OFFSET(LM301H!H32,0,LM301H!$B$31) -> 3.660484311e-06 | E36: =OFFSET(LM301H_D!H32,0,LM301H_D!$B$13) -> 1.541410065e-06 | F36: =OFFSET(LM301H_D!H32,0,LM301H_D!$B$31) -> 4.298309005e-06 | G36: =OFFSET(LM561H!$H32,0,LM561H!$B$13) -> 2.355713384e-06 | H36: =OFFSET(LM561H!$H32,0,LM561H!$B$31) -> 3.705370282e-06 | I36: =OFFSET(LH181B!$H32,0,LH181B!$B$14) -> 1.167169424e-05 | J36: =OFFSET(LH181B!$H32,0,LH181B!$B$32) -> 2.961225108e-05 | K36: =OFFSET(LH231B!$H32,0,LH231B!$B$14) -> 1.499678598e-05 | L36: =OFFSET(LH231B!$H32,0,LH231B!$B$32) -> 2.571061504e-05 | M36: =OFFSET(LH351H_B!$H32,0,LH351H_B!$B$14) -> 2.140618625e-05 | N36: =OFFSET(LH351H_B!$H32,0,LH351H_B!$B$32) -> 6.822193179e-05 | O36: =OFFSET(LH351H_C!$H32,0,LH351H_C!$B$14) -> 1.653889076e-05 | P36: =OFFSET(LH351H_C!$H32,0,LH351H_C!$B$32) -> 3.768176719e-05 | Q36: =OFFSET(LH351H_D!$H32,0,LH351H_D!$B$14) -> 2.249026556e-05 | R36: =OFFSET(LH351H_D!$H32,0,LH351H_D!$B$32) -> 5.70563672e-05 | S36: =OFFSET(LH351H_450nm!H32,0,LH351H_450nm!$B$13) -> 0.0002232754085 | T36: =OFFSET(LH351H_630nm!H32,0,LH351H_630nm!$B$13) -> 4.728839027e-06 | U36: =OFFSET(LH351H_660nm!H32,0,LH351H_660nm!$B$13) -> 3.64650125e-07 | V36: =OFFSET(LH351H_660nm_V2!H32,0,LH351H_660nm_V2!$B$13) -> 5.919688433e-06 | W36: =OFFSET(LH351H_730nm!H32,0,LH351H_730nm!$B$13) -> 2.640453825e-07 | Y36: 405 | Z36: 0.0001271285188 | AA36: =MAX(C36*IF(Calculator!$D$4>=0,Calculator!$D$4,0),0) -> 3.615976726e-05 | AB36: =MAX(D36*IF(Calculator!$D$5>=0,Calculator!$D$5,0),0) -> 7.320968623e-05 | AC36: =MAX(E36*IF(Calculator!$D$6>=0,Calculator!$D$6,0),0) -> 0 | AD36: =MAX(F36*IF(Calculator!$D$7>=0,Calculator!$D$7,0),0) -> 0 | AE36: =MAX(G36*IF(Calculator!$D$8>=0,Calculator!$D$8,0),0) -> 0 | AF36: =MAX(H36*IF(Calculator!$D$9>=0,Calculator!$D$9,0),0) -> 0 | AG36: =MAX(I36*IF(Calculator!$D$10>=0,Calculator!$D$10,0),0) -> 0 | AH36: =MAX(J36*IF(Calculator!$D$11>=0,Calculator!$D$11,0),0) -> 0 | AI36: =MAX(K36*IF(Calculator!$D$12>=0,Calculator!$D$12,0),0) -> 0 | AJ36: =MAX(L36*IF(Calculator!$D$13>=0,Calculator!$D$13,0),0) -> 0 | AK36: =MAX(M36*IF(Calculator!$D$14>=0,Calculator!$D$14,0),0) -> 0 | AL36: =MAX(N36*IF(Calculator!$D$15>=0,Calculator!$D$15,0),0) -> 0 | AM36: =MAX(O36*IF(Calculator!$D$16>=0,Calculator!$D$16,0),0) -> 0 | AN36: =MAX(P36*IF(Calculator!$D$17>=0,Calculator!$D$17,0),0) -> 0 | AO36: =MAX(Q36*IF(Calculator!$D$18>=0,Calculator!$D$18,0),0) -> 0 | AP36: =MAX(R36*IF(Calculator!$D$19>=0,Calculator!$D$19,0),0) -> 0 | AQ36: =MAX(S36*IF(Calculator!$D$20>=0,Calculator!$D$20,0),0) -> 0 | AR36: =MAX(T36*IF(Calculator!$D$21>=0,Calculator!$D$21,0),0) -> 0 | AS36: =MAX(U36*IF(Calculator!$D$22>=0,Calculator!$D$22,0),0) -> 0 | AT36: =MAX(V36*IF(Calculator!$D$23>=0,Calculator!$D$23,0),0) -> 1.77590653e-05 | AU36: =MAX(W36*IF(Calculator!$D$24>=0,Calculator!$D$24,0),0) -> 0 | AW36: 405 | AX36: 0.0004308539758 | AY36: 0.0001225498388 | AZ36: 0.0002481165098 | BA36: 0 | BB36: 0 | BC36: 0 | BD36: 0 | BE36: 0 | BF36: 0 | BG36: 0 | BH36: 0 | BI36: 0 | BJ36: 0 | BK36: 0 | BL36: 0 | BM36: 0 | BN36: 0 | BO36: 0 | BP36: 0 | BQ36: 0 | BR36: 6.018762716e-05 | BS36: 0 | BU36: 405 | BV36: =AX36*OFFSET(PPF_YPF_DIN_BPF!$A$101,ROW()-10,$BT$1) -> 0.0001271285188 | BW36: =AY36*OFFSET(PPF_YPF_DIN_BPF!$A$101,ROW()-10,$BT$1) -> 3.615976726e-05 | BX36: =AZ36*OFFSET(PPF_YPF_DIN_BPF!$A$101,ROW()-10,$BT$1) -> 7.320968623e-05 | BY36: =BA36*OFFSET(PPF_YPF_DIN_BPF!$A$101,ROW()-10,$BT$1) -> 0 | BZ36: =BB36*OFFSET(PPF_YPF_DIN_BPF!$A$101,ROW()-10,$BT$1) -> 0 | CA36: =BC36*OFFSET(PPF_YPF_DIN_BPF!$A$101,ROW()-10,$BT$1) -> 0 | CB36: =BD36*OFFSET(PPF_YPF_DIN_BPF!$A$101,ROW()-10,$BT$1) -> 0 | CC36: =BE36*OFFSET(PPF_YPF_DIN_BPF!$A$101,ROW()-10,$BT$1) -> 0 | CD36: =BF36*OFFSET(PPF_YPF_DIN_BPF!$A$101,ROW()-10,$BT$1) -> 0 | CE36: =BG36*OFFSET(PPF_YPF_DIN_BPF!$A$101,ROW()-10,$BT$1) -> 0 | CF36: =BH36*OFFSET(PPF_YPF_DIN_BPF!$A$101,ROW()-10,$BT$1) -> 0 | CG36: =BI36*OFFSET(PPF_YPF_DIN_BPF!$A$101,ROW()-10,$BT$1) -> 0 | CH36: =BJ36*OFFSET(PPF_YPF_DIN_BPF!$A$101,ROW()-10,$BT$1) -> 0 | CI36: =BK36*OFFSET(PPF_YPF_DIN_BPF!$A$101,ROW()-10,$BT$1) -> 0 | CJ36: =BL36*OFFSET(PPF_YPF_DIN_BPF!$A$101,ROW()-10,$BT$1) -> 0 | CK36: =BM36*OFFSET(PPF_YPF_DIN_BPF!$A$101,ROW()-10,$BT$1) -> 0 | CL36: =BN36*OFFSET(PPF_YPF_DIN_BPF!$A$101,ROW()-10,$BT$1) -> 0 | CM36: =BO36*OFFSET(PPF_YPF_DIN_BPF!$A$101,ROW()-10,$BT$1) -> 0 | CN36: =BP36*OFFSET(PPF_YPF_DIN_BPF!$A$101,ROW()-10,$BT$1) -> 0 | CO36: =BQ36*OFFSET(PPF_YPF_DIN_BPF!$A$101,ROW()-10,$BT$1) -> 0 | CP36: =BR36*OFFSET(PPF_YPF_DIN_BPF!$A$101,ROW()-10,$BT$1) -> 1.77590653e-05 | CQ36: =BS36*OFFSET(PPF_YPF_DIN_BPF!$A$101,ROW()-10,$BT$1) -> 0 | CS36: =AX36*OFFSET(PPF_YPF_DIN_BPF!$A$101,ROW()-10,1+1) -> 0.0004308539758 | CT36: =AX36*OFFSET(PPF_YPF_DIN_BPF!$A$101,ROW()-10,2+1) -> 0.0004308539758 | CU36: =AX36*OFFSET(PPF_YPF_DIN_BPF!$A$101,ROW()-10,3+1) -> 0.0002936989371 | CV36: =AX36*OFFSET(PPF_YPF_DIN_BPF!$A$101,ROW()-10,4+1) -> 0.0002614638213 | CW36: =PPF_YPF_DIN_BPF!I27*Graph_Data!CW$2 -> 0.03173047257 | CX36: =PPF_YPF_DIN_BPF!J27*Graph_Data!CX$2 -> 0.02944535623 | CY36: =PPF_YPF_DIN_BPF!K27*Graph_Data!CY$2 -> 0.007521519568 | DX36: 283 | DY36: =PPF_YPF_DIN_BPF!E5*Graph_Data!EA$2 -> 0 | DZ36: =PPF_YPF_DIN_BPF!C5*Graph_Data!DZ$2 -> 0 | EA36: =PPF_YPF_DIN_BPF!D5*Graph_Data!DY$2 -> 0.08412958924 | EB36: 0 | EC36: 0
B37: 406 | C37: =OFFSET(LM301H!H33,0,LM301H!$B$13) -> 1.652495628e-06 | D37: =OFFSET(LM301H!H33,0,LM301H!$B$31) -> 4.010959771e-06 | E37: =OFFSET(LM301H_D!H33,0,LM301H_D!$B$13) -> 2.086349565e-06 | F37: =OFFSET(LM301H_D!H33,0,LM301H_D!$B$31) -> 4.715859073e-06 | G37: =OFFSET(LM561H!$H33,0,LM561H!$B$13) -> 2.300726703e-06 | H37: =OFFSET(LM561H!$H33,0,LM561H!$B$31) -> 4.543097005e-06 | I37: =OFFSET(LH181B!$H33,0,LH181B!$B$14) -> 1.275360999e-05 | J37: =OFFSET(LH181B!$H33,0,LH181B!$B$32) -> 3.198536206e-05 | K37: =OFFSET(LH231B!$H33,0,LH231B!$B$14) -> 1.631413037e-05 | L37: =OFFSET(LH231B!$H33,0,LH231B!$B$32) -> 2.868550306e-05 | M37: =OFFSET(LH351H_B!$H33,0,LH351H_B!$B$14) -> 2.254941174e-05 | N37: =OFFSET(LH351H_B!$H33,0,LH351H_B!$B$32) -> 7.197798506e-05 | O37: =OFFSET(LH351H_C!$H33,0,LH351H_C!$B$14) -> 1.772918289e-05 | P37: =OFFSET(LH351H_C!$H33,0,LH351H_C!$B$32) -> 3.975286614e-05 | Q37: =OFFSET(LH351H_D!$H33,0,LH351H_D!$B$14) -> 2.411323444e-05 | R37: =OFFSET(LH351H_D!$H33,0,LH351H_D!$B$32) -> 6.05797436e-05 | S37: =OFFSET(LH351H_450nm!H33,0,LH351H_450nm!$B$13) -> 0.0002421462793 | T37: =OFFSET(LH351H_630nm!H33,0,LH351H_630nm!$B$13) -> 3.88781433e-06 | U37: =OFFSET(LH351H_660nm!H33,0,LH351H_660nm!$B$13) -> -1.8287109e-06 | V37: =OFFSET(LH351H_660nm_V2!H33,0,LH351H_660nm_V2!$B$13) -> 2.816864314e-06 | W37: =OFFSET(LH351H_730nm!H33,0,LH351H_730nm!$B$13) -> 2.68657849e-07 | Y37: 406 | Z37: 0.0001217197009 | AA37: =MAX(C37*IF(Calculator!$D$4>=0,Calculator!$D$4,0),0) -> 3.304991255e-05 | AB37: =MAX(D37*IF(Calculator!$D$5>=0,Calculator!$D$5,0),0) -> 8.021919542e-05 | AC37: =MAX(E37*IF(Calculator!$D$6>=0,Calculator!$D$6,0),0) -> 0 | AD37: =MAX(F37*IF(Calculator!$D$7>=0,Calculator!$D$7,0),0) -> 0 | AE37: =MAX(G37*IF(Calculator!$D$8>=0,Calculator!$D$8,0),0) -> 0 | AF37: =MAX(H37*IF(Calculator!$D$9>=0,Calculator!$D$9,0),0) -> 0 | AG37: =MAX(I37*IF(Calculator!$D$10>=0,Calculator!$D$10,0),0) -> 0 | AH37: =MAX(J37*IF(Calculator!$D$11>=0,Calculator!$D$11,0),0) -> 0 | AI37: =MAX(K37*IF(Calculator!$D$12>=0,Calculator!$D$12,0),0) -> 0 | AJ37: =MAX(L37*IF(Calculator!$D$13>=0,Calculator!$D$13,0),0) -> 0 | AK37: =MAX(M37*IF(Calculator!$D$14>=0,Calculator!$D$14,0),0) -> 0 | AL37: =MAX(N37*IF(Calculator!$D$15>=0,Calculator!$D$15,0),0) -> 0 | AM37: =MAX(O37*IF(Calculator!$D$16>=0,Calculator!$D$16,0),0) -> 0 | AN37: =MAX(P37*IF(Calculator!$D$17>=0,Calculator!$D$17,0),0) -> 0 | AO37: =MAX(Q37*IF(Calculator!$D$18>=0,Calculator!$D$18,0),0) -> 0 | AP37: =MAX(R37*IF(Calculator!$D$19>=0,Calculator!$D$19,0),0) -> 0 | AQ37: =MAX(S37*IF(Calculator!$D$20>=0,Calculator!$D$20,0),0) -> 0 | AR37: =MAX(T37*IF(Calculator!$D$21>=0,Calculator!$D$21,0),0) -> 0 | AS37: =MAX(U37*IF(Calculator!$D$22>=0,Calculator!$D$22,0),0) -> 0 | AT37: =MAX(V37*IF(Calculator!$D$23>=0,Calculator!$D$23,0),0) -> 8.450592941e-06 | AU37: =MAX(W37*IF(Calculator!$D$24>=0,Calculator!$D$24,0),0) -> 0 | AW37: 406 | AX37: 0.0004135414107 | AY37: 0.0001122867322 | AZ37: 0.0002725438773 | BA37: 0 | BB37: 0 | BC37: 0 | BD37: 0 | BE37: 0 | BF37: 0 | BG37: 0 | BH37: 0 | BI37: 0 | BJ37: 0 | BK37: 0 | BL37: 0 | BM37: 0 | BN37: 0 | BO37: 0 | BP37: 0 | BQ37: 0 | BR37: 2.871080112e-05 | BS37: 0 | BU37: 406 | BV37: =AX37*OFFSET(PPF_YPF_DIN_BPF!$A$101,ROW()-10,$BT$1) -> 0.0001217197009 | BW37: =AY37*OFFSET(PPF_YPF_DIN_BPF!$A$101,ROW()-10,$BT$1) -> 3.304991255e-05 | BX37: =AZ37*OFFSET(PPF_YPF_DIN_BPF!$A$101,ROW()-10,$BT$1) -> 8.021919542e-05 | BY37: =BA37*OFFSET(PPF_YPF_DIN_BPF!$A$101,ROW()-10,$BT$1) -> 0 | BZ37: =BB37*OFFSET(PPF_YPF_DIN_BPF!$A$101,ROW()-10,$BT$1) -> 0 | CA37: =BC37*OFFSET(PPF_YPF_DIN_BPF!$A$101,ROW()-10,$BT$1) -> 0 | CB37: =BD37*OFFSET(PPF_YPF_DIN_BPF!$A$101,ROW()-10,$BT$1) -> 0 | CC37: =BE37*OFFSET(PPF_YPF_DIN_BPF!$A$101,ROW()-10,$BT$1) -> 0 | CD37: =BF37*OFFSET(PPF_YPF_DIN_BPF!$A$101,ROW()-10,$BT$1) -> 0 | CE37: =BG37*OFFSET(PPF_YPF_DIN_BPF!$A$101,ROW()-10,$BT$1) -> 0 | CF37: =BH37*OFFSET(PPF_YPF_DIN_BPF!$A$101,ROW()-10,$BT$1) -> 0 | CG37: =BI37*OFFSET(PPF_YPF_DIN_BPF!$A$101,ROW()-10,$BT$1) -> 0 | CH37: =BJ37*OFFSET(PPF_YPF_DIN_BPF!$A$101,ROW()-10,$BT$1) -> 0 | CI37: =BK37*OFFSET(PPF_YPF_DIN_BPF!$A$101,ROW()-10,$BT$1) -> 0 | CJ37: =BL37*OFFSET(PPF_YPF_DIN_BPF!$A$101,ROW()-10,$BT$1) -> 0 | CK37: =BM37*OFFSET(PPF_YPF_DIN_BPF!$A$101,ROW()-10,$BT$1) -> 0 | CL37: =BN37*OFFSET(PPF_YPF_DIN_BPF!$A$101,ROW()-10,$BT$1) -> 0 | CM37: =BO37*OFFSET(PPF_YPF_DIN_BPF!$A$101,ROW()-10,$BT$1) -> 0 | CN37: =BP37*OFFSET(PPF_YPF_DIN_BPF!$A$101,ROW()-10,$BT$1) -> 0 | CO37: =BQ37*OFFSET(PPF_YPF_DIN_BPF!$A$101,ROW()-10,$BT$1) -> 0 | CP37: =BR37*OFFSET(PPF_YPF_DIN_BPF!$A$101,ROW()-10,$BT$1) -> 8.450592941e-06 | CQ37: =BS37*OFFSET(PPF_YPF_DIN_BPF!$A$101,ROW()-10,$BT$1) -> 0 | CS37: =AX37*OFFSET(PPF_YPF_DIN_BPF!$A$101,ROW()-10,1+1) -> 0.0004135414107 | CT37: =AX37*OFFSET(PPF_YPF_DIN_BPF!$A$101,ROW()-10,2+1) -> 0.0004135414107 | CU37: =AX37*OFFSET(PPF_YPF_DIN_BPF!$A$101,ROW()-10,3+1) -> 0.0002835984286 | CV37: =AX37*OFFSET(PPF_YPF_DIN_BPF!$A$101,ROW()-10,4+1) -> 0.000261282451 | CW37: =PPF_YPF_DIN_BPF!I28*Graph_Data!CW$2 -> 0.03180881942 | CX37: =PPF_YPF_DIN_BPF!J28*Graph_Data!CX$2 -> 0.02951806082 | CY37: =PPF_YPF_DIN_BPF!K28*Graph_Data!CY$2 -> 0.008294100343 | DX37: 284 | DY37: =PPF_YPF_DIN_BPF!E6*Graph_Data!EA$2 -> 0 | DZ37: =PPF_YPF_DIN_BPF!C6*Graph_Data!DZ$2 -> 0 | EA37: =PPF_YPF_DIN_BPF!D6*Graph_Data!DY$2 -> 0.08412958924 | EB37: 0 | EC37: 0
B38: 407 | C38: =OFFSET(LM301H!H34,0,LM301H!$B$13) -> 2.123463844e-06 | D38: =OFFSET(LM301H!H34,0,LM301H!$B$31) -> 4.028308532e-06 | E38: =OFFSET(LM301H_D!H34,0,LM301H_D!$B$13) -> 2.769853764e-06 | F38: =OFFSET(LM301H_D!H34,0,LM301H_D!$B$31) -> 4.418176438e-06 | G38: =OFFSET(LM561H!$H34,0,LM561H!$B$13) -> 2.837390832e-06 | H38: =OFFSET(LM561H!$H34,0,LM561H!$B$31) -> 5.015029843e-06 | I38: =OFFSET(LH181B!$H34,0,LH181B!$B$14) -> 1.363100971e-05 | J38: =OFFSET(LH181B!$H34,0,LH181B!$B$32) -> 3.671550478e-05 | K38: =OFFSET(LH231B!$H34,0,LH231B!$B$14) -> 1.740008145e-05 | L38: =OFFSET(LH231B!$H34,0,LH231B!$B$32) -> 3.160437668e-05 | M38: =OFFSET(LH351H_B!$H34,0,LH351H_B!$B$14) -> 2.527510392e-05 | N38: =OFFSET(LH351H_B!$H34,0,LH351H_B!$B$32) -> 7.920780504e-05 | O38: =OFFSET(LH351H_C!$H34,0,LH351H_C!$B$14) -> 1.851378745e-05 | P38: =OFFSET(LH351H_C!$H34,0,LH351H_C!$B$32) -> 4.218257935e-05 | Q38: =OFFSET(LH351H_D!$H34,0,LH351H_D!$B$14) -> 2.377312229e-05 | R38: =OFFSET(LH351H_D!$H34,0,LH351H_D!$B$32) -> 6.458402348e-05 | S38: =OFFSET(LH351H_450nm!H34,0,LH351H_450nm!$B$13) -> 0.0002611800608 | T38: =OFFSET(LH351H_630nm!H34,0,LH351H_630nm!$B$13) -> 1.15477746e-06 | U38: =OFFSET(LH351H_660nm!H34,0,LH351H_660nm!$B$13) -> -2.158491524e-06 | V38: =OFFSET(LH351H_660nm_V2!H34,0,LH351H_660nm_V2!$B$13) -> 3.129900682e-06 | W38: =OFFSET(LH351H_730nm!H34,0,LH351H_730nm!$B$13) -> 1.985177903e-07 | Y38: 407 | Z38: 0.0001324251496 | AA38: =MAX(C38*IF(Calculator!$D$4>=0,Calculator!$D$4,0),0) -> 4.246927688e-05 | AB38: =MAX(D38*IF(Calculator!$D$5>=0,Calculator!$D$5,0),0) -> 8.056617065e-05 | AC38: =MAX(E38*IF(Calculator!$D$6>=0,Calculator!$D$6,0),0) -> 0 | AD38: =MAX(F38*IF(Calculator!$D$7>=0,Calculator!$D$7,0),0) -> 0 | AE38: =MAX(G38*IF(Calculator!$D$8>=0,Calculator!$D$8,0),0) -> 0 | AF38: =MAX(H38*IF(Calculator!$D$9>=0,Calculator!$D$9,0),0) -> 0 | AG38: =MAX(I38*IF(Calculator!$D$10>=0,Calculator!$D$10,0),0) -> 0 | AH38: =MAX(J38*IF(Calculator!$D$11>=0,Calculator!$D$11,0),0) -> 0 | AI38: =MAX(K38*IF(Calculator!$D$12>=0,Calculator!$D$12,0),0) -> 0 | AJ38: =MAX(L38*IF(Calculator!$D$13>=0,Calculator!$D$13,0),0) -> 0 | AK38: =MAX(M38*IF(Calculator!$D$14>=0,Calculator!$D$14,0),0) -> 0 | AL38: =MAX(N38*IF(Calculator!$D$15>=0,Calculator!$D$15,0),0) -> 0 | AM38: =MAX(O38*IF(Calculator!$D$16>=0,Calculator!$D$16,0),0) -> 0 | AN38: =MAX(P38*IF(Calculator!$D$17>=0,Calculator!$D$17,0),0) -> 0 | AO38: =MAX(Q38*IF(Calculator!$D$18>=0,Calculator!$D$18,0),0) -> 0 | AP38: =MAX(R38*IF(Calculator!$D$19>=0,Calculator!$D$19,0),0) -> 0 | AQ38: =MAX(S38*IF(Calculator!$D$20>=0,Calculator!$D$20,0),0) -> 0 | AR38: =MAX(T38*IF(Calculator!$D$21>=0,Calculator!$D$21,0),0) -> 0 | AS38: =MAX(U38*IF(Calculator!$D$22>=0,Calculator!$D$22,0),0) -> 0 | AT38: =MAX(V38*IF(Calculator!$D$23>=0,Calculator!$D$23,0),0) -> 9.389702045e-06 | AU38: =MAX(W38*IF(Calculator!$D$24>=0,Calculator!$D$24,0),0) -> 0 | AW38: 407 | AX38: 0.0004510212207 | AY38: 0.0001446443154 | AZ38: 0.0002743969159 | BA38: 0 | BB38: 0 | BC38: 0 | BD38: 0 | BE38: 0 | BF38: 0 | BG38: 0 | BH38: 0 | BI38: 0 | BJ38: 0 | BK38: 0 | BL38: 0 | BM38: 0 | BN38: 0 | BO38: 0 | BP38: 0 | BQ38: 0 | BR38: 3.197998939e-05 | BS38: 0 | BU38: 407 | BV38: =AX38*OFFSET(PPF_YPF_DIN_BPF!$A$101,ROW()-10,$BT$1) -> 0.0001324251496 | BW38: =AY38*OFFSET(PPF_YPF_DIN_BPF!$A$101,ROW()-10,$BT$1) -> 4.246927688e-05 | BX38: =AZ38*OFFSET(PPF_YPF_DIN_BPF!$A$101,ROW()-10,$BT$1) -> 8.056617065e-05 | BY38: =BA38*OFFSET(PPF_YPF_DIN_BPF!$A$101,ROW()-10,$BT$1) -> 0 | BZ38: =BB38*OFFSET(PPF_YPF_DIN_BPF!$A$101,ROW()-10,$BT$1) -> 0 | CA38: =BC38*OFFSET(PPF_YPF_DIN_BPF!$A$101,ROW()-10,$BT$1) -> 0 | CB38: =BD38*OFFSET(PPF_YPF_DIN_BPF!$A$101,ROW()-10,$BT$1) -> 0 | CC38: =BE38*OFFSET(PPF_YPF_DIN_BPF!$A$101,ROW()-10,$BT$1) -> 0 | CD38: =BF38*OFFSET(PPF_YPF_DIN_BPF!$A$101,ROW()-10,$BT$1) -> 0 | CE38: =BG38*OFFSET(PPF_YPF_DIN_BPF!$A$101,ROW()-10,$BT$1) -> 0 | CF38: =BH38*OFFSET(PPF_YPF_DIN_BPF!$A$101,ROW()-10,$BT$1) -> 0 | CG38: =BI38*OFFSET(PPF_YPF_DIN_BPF!$A$101,ROW()-10,$BT$1) -> 0 | CH38: =BJ38*OFFSET(PPF_YPF_DIN_BPF!$A$101,ROW()-10,$BT$1) -> 0 | CI38: =BK38*OFFSET(PPF_YPF_DIN_BPF!$A$101,ROW()-10,$BT$1) -> 0 | CJ38: =BL38*OFFSET(PPF_YPF_DIN_BPF!$A$101,ROW()-10,$BT$1) -> 0 | CK38: =BM38*OFFSET(PPF_YPF_DIN_BPF!$A$101,ROW()-10,$BT$1) -> 0 | CL38: =BN38*OFFSET(PPF_YPF_DIN_BPF!$A$101,ROW()-10,$BT$1) -> 0 | CM38: =BO38*OFFSET(PPF_YPF_DIN_BPF!$A$101,ROW()-10,$BT$1) -> 0 | CN38: =BP38*OFFSET(PPF_YPF_DIN_BPF!$A$101,ROW()-10,$BT$1) -> 0 | CO38: =BQ38*OFFSET(PPF_YPF_DIN_BPF!$A$101,ROW()-10,$BT$1) -> 0 | CP38: =BR38*OFFSET(PPF_YPF_DIN_BPF!$A$101,ROW()-10,$BT$1) -> 9.389702045e-06 | CQ38: =BS38*OFFSET(PPF_YPF_DIN_BPF!$A$101,ROW()-10,$BT$1) -> 0 | CS38: =AX38*OFFSET(PPF_YPF_DIN_BPF!$A$101,ROW()-10,1+1) -> 0.0004510212207 | CT38: =AX38*OFFSET(PPF_YPF_DIN_BPF!$A$101,ROW()-10,2+1) -> 0.0004510212207 | CU38: =AX38*OFFSET(PPF_YPF_DIN_BPF!$A$101,ROW()-10,3+1) -> 0.000311156383 | CV38: =AX38*OFFSET(PPF_YPF_DIN_BPF!$A$101,ROW()-10,4+1) -> 0.0002962278903 | CW38: =PPF_YPF_DIN_BPF!I29*Graph_Data!CW$2 -> 0.03264638451 | CX38: =PPF_YPF_DIN_BPF!J29*Graph_Data!CX$2 -> 0.0302632828 | CY38: =PPF_YPF_DIN_BPF!K29*Graph_Data!CY$2 -> 0.008314529162 | DX38: 285 | DY38: =PPF_YPF_DIN_BPF!E7*Graph_Data!EA$2 -> 0 | DZ38: =PPF_YPF_DIN_BPF!C7*Graph_Data!DZ$2 -> 0 | EA38: =PPF_YPF_DIN_BPF!D7*Graph_Data!DY$2 -> 0.08412958924 | EB38: 0 | EC38: 0
B39: 408 | C39: =OFFSET(LM301H!H35,0,LM301H!$B$13) -> 2.087682683e-06 | D39: =OFFSET(LM301H!H35,0,LM301H!$B$31) -> 4.750586862e-06 | E39: =OFFSET(LM301H_D!H35,0,LM301H_D!$B$13) -> 2.366870108e-06 | F39: =OFFSET(LM301H_D!H35,0,LM301H_D!$B$31) -> 5.527046852e-06 | G39: =OFFSET(LM561H!$H35,0,LM561H!$B$13) -> 3.301985697e-06 | H39: =OFFSET(LM561H!$H35,0,LM561H!$B$31) -> 5.806141461e-06 | I39: =OFFSET(LH181B!$H35,0,LH181B!$B$14) -> 1.534793085e-05 | J39: =OFFSET(LH181B!$H35,0,LH181B!$B$32) -> 4.024160531e-05 | K39: =OFFSET(LH231B!$H35,0,LH231B!$B$14) -> 2.061112406e-05 | L39: =OFFSET(LH231B!$H35,0,LH231B!$B$32) -> 3.550116611e-05 | M39: =OFFSET(LH351H_B!$H35,0,LH351H_B!$B$14) -> 2.740742312e-05 | N39: =OFFSET(LH351H_B!$H35,0,LH351H_B!$B$32) -> 8.591682053e-05 | O39: =OFFSET(LH351H_C!$H35,0,LH351H_C!$B$14) -> 2.197461727e-05 | P39: =OFFSET(LH351H_C!$H35,0,LH351H_C!$B$32) -> 4.658520609e-05 | Q39: =OFFSET(LH351H_D!$H35,0,LH351H_D!$B$14) -> 3.014262273e-05 | R39: =OFFSET(LH351H_D!$H35,0,LH351H_D!$B$32) -> 6.997317058e-05 | S39: =OFFSET(LH351H_450nm!H35,0,LH351H_450nm!$B$13) -> 0.0002808825841 | T39: =OFFSET(LH351H_630nm!H35,0,LH351H_630nm!$B$13) -> 1.205904425e-06 | U39: =OFFSET(LH351H_660nm!H35,0,LH351H_660nm!$B$13) -> 6.404389416e-07 | V39: =OFFSET(LH351H_660nm_V2!H35,0,LH351H_660nm_V2!$B$13) -> 2.504271097e-08 | W39: =OFFSET(LH351H_730nm!H35,0,LH351H_730nm!$B$13) -> 1.956133419e-06 | Y39: 408 | Z39: 0.000136840519 | AA39: =MAX(C39*IF(Calculator!$D$4>=0,Calculator!$D$4,0),0) -> 4.175365365e-05 | AB39: =MAX(D39*IF(Calculator!$D$5>=0,Calculator!$D$5,0),0) -> 9.501173723e-05 | AC39: =MAX(E39*IF(Calculator!$D$6>=0,Calculator!$D$6,0),0) -> 0 | AD39: =MAX(F39*IF(Calculator!$D$7>=0,Calculator!$D$7,0),0) -> 0 | AE39: =MAX(G39*IF(Calculator!$D$8>=0,Calculator!$D$8,0),0) -> 0 | AF39: =MAX(H39*IF(Calculator!$D$9>=0,Calculator!$D$9,0),0) -> 0 | AG39: =MAX(I39*IF(Calculator!$D$10>=0,Calculator!$D$10,0),0) -> 0 | AH39: =MAX(J39*IF(Calculator!$D$11>=0,Calculator!$D$11,0),0) -> 0 | AI39: =MAX(K39*IF(Calculator!$D$12>=0,Calculator!$D$12,0),0) -> 0 | AJ39: =MAX(L39*IF(Calculator!$D$13>=0,Calculator!$D$13,0),0) -> 0 | AK39: =MAX(M39*IF(Calculator!$D$14>=0,Calculator!$D$14,0),0) -> 0 | AL39: =MAX(N39*IF(Calculator!$D$15>=0,Calculator!$D$15,0),0) -> 0 | AM39: =MAX(O39*IF(Calculator!$D$16>=0,Calculator!$D$16,0),0) -> 0 | AN39: =MAX(P39*IF(Calculator!$D$17>=0,Calculator!$D$17,0),0) -> 0 | AO39: =MAX(Q39*IF(Calculator!$D$18>=0,Calculator!$D$18,0),0) -> 0 | AP39: =MAX(R39*IF(Calculator!$D$19>=0,Calculator!$D$19,0),0) -> 0 | AQ39: =MAX(S39*IF(Calculator!$D$20>=0,Calculator!$D$20,0),0) -> 0 | AR39: =MAX(T39*IF(Calculator!$D$21>=0,Calculator!$D$21,0),0) -> 0 | AS39: =MAX(U39*IF(Calculator!$D$22>=0,Calculator!$D$22,0),0) -> 0 | AT39: =MAX(V39*IF(Calculator!$D$23>=0,Calculator!$D$23,0),0) -> 7.512813292e-08 | AU39: =MAX(W39*IF(Calculator!$D$24>=0,Calculator!$D$24,0),0) -> 0 | AW39: 408 | AX39: 0.0004672044499 | AY39: 0.0001425564075 | AZ39: 0.000324391538 | BA39: 0 | BB39: 0 | BC39: 0 | BD39: 0 | BE39: 0 | BF39: 0 | BG39: 0 | BH39: 0 | BI39: 0 | BJ39: 0 | BK39: 0 | BL39: 0 | BM39: 0 | BN39: 0 | BO39: 0 | BP39: 0 | BQ39: 0 | BR39: 2.565044203e-07 | BS39: 0 | BU39: 408 | BV39: =AX39*OFFSET(PPF_YPF_DIN_BPF!$A$101,ROW()-10,$BT$1) -> 0.000136840519 | BW39: =AY39*OFFSET(PPF_YPF_DIN_BPF!$A$101,ROW()-10,$BT$1) -> 4.175365365e-05 | BX39: =AZ39*OFFSET(PPF_YPF_DIN_BPF!$A$101,ROW()-10,$BT$1) -> 9.501173723e-05 | BY39: =BA39*OFFSET(PPF_YPF_DIN_BPF!$A$101,ROW()-10,$BT$1) -> 0 | BZ39: =BB39*OFFSET(PPF_YPF_DIN_BPF!$A$101,ROW()-10,$BT$1) -> 0 | CA39: =BC39*OFFSET(PPF_YPF_DIN_BPF!$A$101,ROW()-10,$BT$1) -> 0 | CB39: =BD39*OFFSET(PPF_YPF_DIN_BPF!$A$101,ROW()-10,$BT$1) -> 0 | CC39: =BE39*OFFSET(PPF_YPF_DIN_BPF!$A$101,ROW()-10,$BT$1) -> 0 | CD39: =BF39*OFFSET(PPF_YPF_DIN_BPF!$A$101,ROW()-10,$BT$1) -> 0 | CE39: =BG39*OFFSET(PPF_YPF_DIN_BPF!$A$101,ROW()-10,$BT$1) -> 0 | CF39: =BH39*OFFSET(PPF_YPF_DIN_BPF!$A$101,ROW()-10,$BT$1) -> 0 | CG39: =BI39*OFFSET(PPF_YPF_DIN_BPF!$A$101,ROW()-10,$BT$1) -> 0 | CH39: =BJ39*OFFSET(PPF_YPF_DIN_BPF!$A$101,ROW()-10,$BT$1) -> 0 | CI39: =BK39*OFFSET(PPF_YPF_DIN_BPF!$A$101,ROW()-10,$BT$1) -> 0 | CJ39: =BL39*OFFSET(PPF_YPF_DIN_BPF!$A$101,ROW()-10,$BT$1) -> 0 | CK39: =BM39*OFFSET(PPF_YPF_DIN_BPF!$A$101,ROW()-10,$BT$1) -> 0 | CL39: =BN39*OFFSET(PPF_YPF_DIN_BPF!$A$101,ROW()-10,$BT$1) -> 0 | CM39: =BO39*OFFSET(PPF_YPF_DIN_BPF!$A$101,ROW()-10,$BT$1) -> 0 | CN39: =BP39*OFFSET(PPF_YPF_DIN_BPF!$A$101,ROW()-10,$BT$1) -> 0 | CO39: =BQ39*OFFSET(PPF_YPF_DIN_BPF!$A$101,ROW()-10,$BT$1) -> 0 | CP39: =BR39*OFFSET(PPF_YPF_DIN_BPF!$A$101,ROW()-10,$BT$1) -> 7.512813292e-08 | CQ39: =BS39*OFFSET(PPF_YPF_DIN_BPF!$A$101,ROW()-10,$BT$1) -> 0 | CS39: =AX39*OFFSET(PPF_YPF_DIN_BPF!$A$101,ROW()-10,1+1) -> 0.0004672044499 | CT39: =AX39*OFFSET(PPF_YPF_DIN_BPF!$A$101,ROW()-10,2+1) -> 0.0004672044499 | CU39: =AX39*OFFSET(PPF_YPF_DIN_BPF!$A$101,ROW()-10,3+1) -> 0.0003242426914 | CV39: =AX39*OFFSET(PPF_YPF_DIN_BPF!$A$101,ROW()-10,4+1) -> 0.0003232740595 | CW39: =PPF_YPF_DIN_BPF!I30*Graph_Data!CW$2 -> 0.03272659675 | CX39: =PPF_YPF_DIN_BPF!J30*Graph_Data!CX$2 -> 0.03033763976 | CY39: =PPF_YPF_DIN_BPF!K30*Graph_Data!CY$2 -> 0.00833495798 | DX39: 286 | DY39: =PPF_YPF_DIN_BPF!E8*Graph_Data!EA$2 -> 0 | DZ39: =PPF_YPF_DIN_BPF!C8*Graph_Data!DZ$2 -> 0 | EA39: =PPF_YPF_DIN_BPF!D8*Graph_Data!DY$2 -> 0.08412958924 | EB39: 0 | EC39: 0
B40: 409 | C40: =OFFSET(LM301H!H36,0,LM301H!$B$13) -> 2.598055527e-06 | D40: =OFFSET(LM301H!H36,0,LM301H!$B$31) -> 5.064912787e-06 | E40: =OFFSET(LM301H_D!H36,0,LM301H_D!$B$13) -> 2.472553966e-06 | F40: =OFFSET(LM301H_D!H36,0,LM301H_D!$B$31) -> 5.864470864e-06 | G40: =OFFSET(LM561H!$H36,0,LM561H!$B$13) -> 3.477129387e-06 | H40: =OFFSET(LM561H!$H36,0,LM561H!$B$31) -> 6.772251075e-06 | I40: =OFFSET(LH181B!$H36,0,LH181B!$B$14) -> 1.719692053e-05 | J40: =OFFSET(LH181B!$H36,0,LH181B!$B$32) -> 4.616445661e-05 | K40: =OFFSET(LH231B!$H36,0,LH231B!$B$14) -> 2.400978797e-05 | L40: =OFFSET(LH231B!$H36,0,LH231B!$B$32) -> 4.062794385e-05 | M40: =OFFSET(LH351H_B!$H36,0,LH351H_B!$B$14) -> 3.023292887e-05 | N40: =OFFSET(LH351H_B!$H36,0,LH351H_B!$B$32) -> 9.518888729e-05 | O40: =OFFSET(LH351H_C!$H36,0,LH351H_C!$B$14) -> 2.325556393e-05 | P40: =OFFSET(LH351H_C!$H36,0,LH351H_C!$B$32) -> 5.143358912e-05 | Q40: =OFFSET(LH351H_D!$H36,0,LH351H_D!$B$14) -> 3.179216114e-05 | R40: =OFFSET(LH351H_D!$H36,0,LH351H_D!$B$32) -> 7.694792386e-05 | S40: =OFFSET(LH351H_450nm!H36,0,LH351H_450nm!$B$13) -> 0.00030326357 | T40: =OFFSET(LH351H_630nm!H36,0,LH351H_630nm!$B$13) -> -4.108394801e-07 | U40: =OFFSET(LH351H_660nm!H36,0,LH351H_660nm!$B$13) -> -1.335335568e-06 | V40: =OFFSET(LH351H_660nm_V2!H36,0,LH351H_660nm_V2!$B$13) -> -4.632301873e-06 | W40: =OFFSET(LH351H_730nm!H36,0,LH351H_730nm!$B$13) -> 1.108971896e-06 | Y40: 409 | Z40: 0.0001532593663 | AA40: =MAX(C40*IF(Calculator!$D$4>=0,Calculator!$D$4,0),0) -> 5.196111053e-05 | AB40: =MAX(D40*IF(Calculator!$D$5>=0,Calculator!$D$5,0),0) -> 0.0001012982557 | AC40: =MAX(E40*IF(Calculator!$D$6>=0,Calculator!$D$6,0),0) -> 0 | AD40: =MAX(F40*IF(Calculator!$D$7>=0,Calculator!$D$7,0),0) -> 0 | AE40: =MAX(G40*IF(Calculator!$D$8>=0,Calculator!$D$8,0),0) -> 0 | AF40: =MAX(H40*IF(Calculator!$D$9>=0,Calculator!$D$9,0),0) -> 0 | AG40: =MAX(I40*IF(Calculator!$D$10>=0,Calculator!$D$10,0),0) -> 0 | AH40: =MAX(J40*IF(Calculator!$D$11>=0,Calculator!$D$11,0),0) -> 0 | AI40: =MAX(K40*IF(Calculator!$D$12>=0,Calculator!$D$12,0),0) -> 0 | AJ40: =MAX(L40*IF(Calculator!$D$13>=0,Calculator!$D$13,0),0) -> 0 | AK40: =MAX(M40*IF(Calculator!$D$14>=0,Calculator!$D$14,0),0) -> 0 | AL40: =MAX(N40*IF(Calculator!$D$15>=0,Calculator!$D$15,0),0) -> 0 | AM40: =MAX(O40*IF(Calculator!$D$16>=0,Calculator!$D$16,0),0) -> 0 | AN40: =MAX(P40*IF(Calculator!$D$17>=0,Calculator!$D$17,0),0) -> 0 | AO40: =MAX(Q40*IF(Calculator!$D$18>=0,Calculator!$D$18,0),0) -> 0 | AP40: =MAX(R40*IF(Calculator!$D$19>=0,Calculator!$D$19,0),0) -> 0 | AQ40: =MAX(S40*IF(Calculator!$D$20>=0,Calculator!$D$20,0),0) -> 0 | AR40: =MAX(T40*IF(Calculator!$D$21>=0,Calculator!$D$21,0),0) -> 0 | AS40: =MAX(U40*IF(Calculator!$D$22>=0,Calculator!$D$22,0),0) -> 0 | AT40: =MAX(V40*IF(Calculator!$D$23>=0,Calculator!$D$23,0),0) -> 0 | AU40: =MAX(W40*IF(Calculator!$D$24>=0,Calculator!$D$24,0),0) -> 0 | AW40: 409 | AX40: 0.0005245446093 | AY40: 0.0001778417925 | AZ40: 0.0003467028167 | BA40: 0 | BB40: 0 | BC40: 0 | BD40: 0 | BE40: 0 | BF40: 0 | BG40: 0 | BH40: 0 | BI40: 0 | BJ40: 0 | BK40: 0 | BL40: 0 | BM40: 0 | BN40: 0 | BO40: 0 | BP40: 0 | BQ40: 0 | BR40: 0 | BS40: 0 | BU40: 409 | BV40: =AX40*OFFSET(PPF_YPF_DIN_BPF!$A$101,ROW()-10,$BT$1) -> 0.0001532593663 | BW40: =AY40*OFFSET(PPF_YPF_DIN_BPF!$A$101,ROW()-10,$BT$1) -> 5.196111053e-05 | BX40: =AZ40*OFFSET(PPF_YPF_DIN_BPF!$A$101,ROW()-10,$BT$1) -> 0.0001012982557 | BY40: =BA40*OFFSET(PPF_YPF_DIN_BPF!$A$101,ROW()-10,$BT$1) -> 0 | BZ40: =BB40*OFFSET(PPF_YPF_DIN_BPF!$A$101,ROW()-10,$BT$1) -> 0 | CA40: =BC40*OFFSET(PPF_YPF_DIN_BPF!$A$101,ROW()-10,$BT$1) -> 0 | CB40: =BD40*OFFSET(PPF_YPF_DIN_BPF!$A$101,ROW()-10,$BT$1) -> 0 | CC40: =BE40*OFFSET(PPF_YPF_DIN_BPF!$A$101,ROW()-10,$BT$1) -> 0 | CD40: =BF40*OFFSET(PPF_YPF_DIN_BPF!$A$101,ROW()-10,$BT$1) -> 0 | CE40: =BG40*OFFSET(PPF_YPF_DIN_BPF!$A$101,ROW()-10,$BT$1) -> 0 | CF40: =BH40*OFFSET(PPF_YPF_DIN_BPF!$A$101,ROW()-10,$BT$1) -> 0 | CG40: =BI40*OFFSET(PPF_YPF_DIN_BPF!$A$101,ROW()-10,$BT$1) -> 0 | CH40: =BJ40*OFFSET(PPF_YPF_DIN_BPF!$A$101,ROW()-10,$BT$1) -> 0 | CI40: =BK40*OFFSET(PPF_YPF_DIN_BPF!$A$101,ROW()-10,$BT$1) -> 0 | CJ40: =BL40*OFFSET(PPF_YPF_DIN_BPF!$A$101,ROW()-10,$BT$1) -> 0 | CK40: =BM40*OFFSET(PPF_YPF_DIN_BPF!$A$101,ROW()-10,$BT$1) -> 0 | CL40: =BN40*OFFSET(PPF_YPF_DIN_BPF!$A$101,ROW()-10,$BT$1) -> 0 | CM40: =BO40*OFFSET(PPF_YPF_DIN_BPF!$A$101,ROW()-10,$BT$1) -> 0 | CN40: =BP40*OFFSET(PPF_YPF_DIN_BPF!$A$101,ROW()-10,$BT$1) -> 0 | CO40: =BQ40*OFFSET(PPF_YPF_DIN_BPF!$A$101,ROW()-10,$BT$1) -> 0 | CP40: =BR40*OFFSET(PPF_YPF_DIN_BPF!$A$101,ROW()-10,$BT$1) -> 0 | CQ40: =BS40*OFFSET(PPF_YPF_DIN_BPF!$A$101,ROW()-10,$BT$1) -> 0 | CS40: =AX40*OFFSET(PPF_YPF_DIN_BPF!$A$101,ROW()-10,1+1) -> 0.0005245446093 | CT40: =AX40*OFFSET(PPF_YPF_DIN_BPF!$A$101,ROW()-10,2+1) -> 0.0005245446093 | CU40: =AX40*OFFSET(PPF_YPF_DIN_BPF!$A$101,ROW()-10,3+1) -> 0.0003661945581 | CV40: =AX40*OFFSET(PPF_YPF_DIN_BPF!$A$101,ROW()-10,4+1) -> 0.0003819797663 | CW40: =PPF_YPF_DIN_BPF!I31*Graph_Data!CW$2 -> 0.03356975805 | CX40: =PPF_YPF_DIN_BPF!J31*Graph_Data!CX$2 -> 0.03041199672 | CY40: =PPF_YPF_DIN_BPF!K31*Graph_Data!CY$2 -> 0.009114967417 | DX40: 287 | DY40: =PPF_YPF_DIN_BPF!E9*Graph_Data!EA$2 -> 0 | DZ40: =PPF_YPF_DIN_BPF!C9*Graph_Data!DZ$2 -> 0 | EA40: =PPF_YPF_DIN_BPF!D9*Graph_Data!DY$2 -> 0.08412958924 | EB40: 0 | EC40: 0
B41: 410 | C41: =OFFSET(LM301H!H37,0,LM301H!$B$13) -> 2.728742667e-06 | D41: =OFFSET(LM301H!H37,0,LM301H!$B$31) -> 5.546061755e-06 | E41: =OFFSET(LM301H_D!H37,0,LM301H_D!$B$13) -> 2.946123414e-06 | F41: =OFFSET(LM301H_D!H37,0,LM301H_D!$B$31) -> 6.947768218e-06 | G41: =OFFSET(LM561H!$H37,0,LM561H!$B$13) -> 4.575470895e-06 | H41: =OFFSET(LM561H!$H37,0,LM561H!$B$31) -> 7.034327445e-06 | I41: =OFFSET(LH181B!$H37,0,LH181B!$B$14) -> 1.968394906e-05 | J41: =OFFSET(LH181B!$H37,0,LH181B!$B$32) -> 5.342730931e-05 | K41: =OFFSET(LH231B!$H37,0,LH231B!$B$14) -> 2.754669397e-05 | L41: =OFFSET(LH231B!$H37,0,LH231B!$B$32) -> 4.610504139e-05 | M41: =OFFSET(LH351H_B!$H37,0,LH351H_B!$B$14) -> 3.149387261e-05 | N41: =OFFSET(LH351H_B!$H37,0,LH351H_B!$B$32) -> 0.0001037723282 | O41: =OFFSET(LH351H_C!$H37,0,LH351H_C!$B$14) -> 2.484564434e-05 | P41: =OFFSET(LH351H_C!$H37,0,LH351H_C!$B$32) -> 5.496085962e-05 | Q41: =OFFSET(LH351H_D!$H37,0,LH351H_D!$B$14) -> 3.47842822e-05 | R41: =OFFSET(LH351H_D!$H37,0,LH351H_D!$B$32) -> 8.360935071e-05 | S41: =OFFSET(LH351H_450nm!H37,0,LH351H_450nm!$B$13) -> 0.0003306971402 | T41: =OFFSET(LH351H_630nm!H37,0,LH351H_630nm!$B$13) -> 1.730828597e-06 | U41: =OFFSET(LH351H_660nm!H37,0,LH351H_660nm!$B$13) -> -2.713467626e-06 | V41: =OFFSET(LH351H_660nm_V2!H37,0,LH351H_660nm_V2!$B$13) -> -5.910030191e-06 | W41: =OFFSET(LH351H_730nm!H37,0,LH351H_730nm!$B$13) -> 7.731188951e-07 | Y41: 410 | Z41: 0.0001654960884 | AA41: =MAX(C41*IF(Calculator!$D$4>=0,Calculator!$D$4,0),0) -> 5.457485334e-05 | AB41: =MAX(D41*IF(Calculator!$D$5>=0,Calculator!$D$5,0),0) -> 0.0001109212351 | AC41: =MAX(E41*IF(Calculator!$D$6>=0,Calculator!$D$6,0),0) -> 0 | AD41: =MAX(F41*IF(Calculator!$D$7>=0,Calculator!$D$7,0),0) -> 0 | AE41: =MAX(G41*IF(Calculator!$D$8>=0,Calculator!$D$8,0),0) -> 0 | AF41: =MAX(H41*IF(Calculator!$D$9>=0,Calculator!$D$9,0),0) -> 0 | AG41: =MAX(I41*IF(Calculator!$D$10>=0,Calculator!$D$10,0),0) -> 0 | AH41: =MAX(J41*IF(Calculator!$D$11>=0,Calculator!$D$11,0),0) -> 0 | AI41: =MAX(K41*IF(Calculator!$D$12>=0,Calculator!$D$12,0),0) -> 0 | AJ41: =MAX(L41*IF(Calculator!$D$13>=0,Calculator!$D$13,0),0) -> 0 | AK41: =MAX(M41*IF(Calculator!$D$14>=0,Calculator!$D$14,0),0) -> 0 | AL41: =MAX(N41*IF(Calculator!$D$15>=0,Calculator!$D$15,0),0) -> 0 | AM41: =MAX(O41*IF(Calculator!$D$16>=0,Calculator!$D$16,0),0) -> 0 | AN41: =MAX(P41*IF(Calculator!$D$17>=0,Calculator!$D$17,0),0) -> 0 | AO41: =MAX(Q41*IF(Calculator!$D$18>=0,Calculator!$D$18,0),0) -> 0 | AP41: =MAX(R41*IF(Calculator!$D$19>=0,Calculator!$D$19,0),0) -> 0 | AQ41: =MAX(S41*IF(Calculator!$D$20>=0,Calculator!$D$20,0),0) -> 0 | AR41: =MAX(T41*IF(Calculator!$D$21>=0,Calculator!$D$21,0),0) -> 0 | AS41: =MAX(U41*IF(Calculator!$D$22>=0,Calculator!$D$22,0),0) -> 0 | AT41: =MAX(V41*IF(Calculator!$D$23>=0,Calculator!$D$23,0),0) -> 0 | AU41: =MAX(W41*IF(Calculator!$D$24>=0,Calculator!$D$24,0),0) -> 0 | AW41: 410 | AX41: 0.0005678108474 | AY41: 0.0001872442667 | AZ41: 0.0003805665807 | BA41: 0 | BB41: 0 | BC41: 0 | BD41: 0 | BE41: 0 | BF41: 0 | BG41: 0 | BH41: 0 | BI41: 0 | BJ41: 0 | BK41: 0 | BL41: 0 | BM41: 0 | BN41: 0 | BO41: 0 | BP41: 0 | BQ41: 0 | BR41: 0 | BS41: 0 | BU41: 410 | BV41: =AX41*OFFSET(PPF_YPF_DIN_BPF!$A$101,ROW()-10,$BT$1) -> 0.0001654960884 | BW41: =AY41*OFFSET(PPF_YPF_DIN_BPF!$A$101,ROW()-10,$BT$1) -> 5.457485334e-05 | BX41: =AZ41*OFFSET(PPF_YPF_DIN_BPF!$A$101,ROW()-10,$BT$1) -> 0.0001109212351 | BY41: =BA41*OFFSET(PPF_YPF_DIN_BPF!$A$101,ROW()-10,$BT$1) -> 0 | BZ41: =BB41*OFFSET(PPF_YPF_DIN_BPF!$A$101,ROW()-10,$BT$1) -> 0 | CA41: =BC41*OFFSET(PPF_YPF_DIN_BPF!$A$101,ROW()-10,$BT$1) -> 0 | CB41: =BD41*OFFSET(PPF_YPF_DIN_BPF!$A$101,ROW()-10,$BT$1) -> 0 | CC41: =BE41*OFFSET(PPF_YPF_DIN_BPF!$A$101,ROW()-10,$BT$1) -> 0 | CD41: =BF41*OFFSET(PPF_YPF_DIN_BPF!$A$101,ROW()-10,$BT$1) -> 0 | CE41: =BG41*OFFSET(PPF_YPF_DIN_BPF!$A$101,ROW()-10,$BT$1) -> 0 | CF41: =BH41*OFFSET(PPF_YPF_DIN_BPF!$A$101,ROW()-10,$BT$1) -> 0 | CG41: =BI41*OFFSET(PPF_YPF_DIN_BPF!$A$101,ROW()-10,$BT$1) -> 0 | CH41: =BJ41*OFFSET(PPF_YPF_DIN_BPF!$A$101,ROW()-10,$BT$1) -> 0 | CI41: =BK41*OFFSET(PPF_YPF_DIN_BPF!$A$101,ROW()-10,$BT$1) -> 0 | CJ41: =BL41*OFFSET(PPF_YPF_DIN_BPF!$A$101,ROW()-10,$BT$1) -> 0 | CK41: =BM41*OFFSET(PPF_YPF_DIN_BPF!$A$101,ROW()-10,$BT$1) -> 0 | CL41: =BN41*OFFSET(PPF_YPF_DIN_BPF!$A$101,ROW()-10,$BT$1) -> 0 | CM41: =BO41*OFFSET(PPF_YPF_DIN_BPF!$A$101,ROW()-10,$BT$1) -> 0 | CN41: =BP41*OFFSET(PPF_YPF_DIN_BPF!$A$101,ROW()-10,$BT$1) -> 0 | CO41: =BQ41*OFFSET(PPF_YPF_DIN_BPF!$A$101,ROW()-10,$BT$1) -> 0 | CP41: =BR41*OFFSET(PPF_YPF_DIN_BPF!$A$101,ROW()-10,$BT$1) -> 0 | CQ41: =BS41*OFFSET(PPF_YPF_DIN_BPF!$A$101,ROW()-10,$BT$1) -> 0 | CS41: =AX41*OFFSET(PPF_YPF_DIN_BPF!$A$101,ROW()-10,1+1) -> 0.0005678108474 | CT41: =AX41*OFFSET(PPF_YPF_DIN_BPF!$A$101,ROW()-10,2+1) -> 0.0005678108474 | CU41: =AX41*OFFSET(PPF_YPF_DIN_BPF!$A$101,ROW()-10,3+1) -> 0.000398734947 | CV41: =AX41*OFFSET(PPF_YPF_DIN_BPF!$A$101,ROW()-10,4+1) -> 0.0004241562845 | CW41: =PPF_YPF_DIN_BPF!I32*Graph_Data!CW$2 -> 0.03518146459 | CX41: =PPF_YPF_DIN_BPF!J32*Graph_Data!CX$2 -> 0.03048635368 | CY41: =PPF_YPF_DIN_BPF!K32*Graph_Data!CY$2 -> 0.009137253401 | DX41: 288 | DY41: =PPF_YPF_DIN_BPF!E10*Graph_Data!EA$2 -> 0 | DZ41: =PPF_YPF_DIN_BPF!C10*Graph_Data!DZ$2 -> 0 | EA41: =PPF_YPF_DIN_BPF!D10*Graph_Data!DY$2 -> 0.08412958924 | EB41: 0 | EC41: 0
B42: 411 | C42: =OFFSET(LM301H!H38,0,LM301H!$B$13) -> 2.801876843e-06 | D42: =OFFSET(LM301H!H38,0,LM301H!$B$31) -> 6.732992825e-06 | E42: =OFFSET(LM301H_D!H38,0,LM301H_D!$B$13) -> 3.469910587e-06 | F42: =OFFSET(LM301H_D!H38,0,LM301H_D!$B$31) -> 7.797919342e-06 | G42: =OFFSET(LM561H!$H38,0,LM561H!$B$13) -> 4.765311749e-06 | H42: =OFFSET(LM561H!$H38,0,LM561H!$B$31) -> 8.178213423e-06 | I42: =OFFSET(LH181B!$H38,0,LH181B!$B$14) -> 2.241687675e-05 | J42: =OFFSET(LH181B!$H38,0,LH181B!$B$32) -> 6.173888145e-05 | K42: =OFFSET(LH231B!$H38,0,LH231B!$B$14) -> 3.219732633e-05 | L42: =OFFSET(LH231B!$H38,0,LH231B!$B$32) -> 5.283031694e-05 | M42: =OFFSET(LH351H_B!$H38,0,LH351H_B!$B$14) -> 3.371974989e-05 | N42: =OFFSET(LH351H_B!$H38,0,LH351H_B!$B$32) -> 0.0001138574023 | O42: =OFFSET(LH351H_C!$H38,0,LH351H_C!$B$14) -> 2.736530364e-05 | P42: =OFFSET(LH351H_C!$H38,0,LH351H_C!$B$32) -> 6.04425385e-05 | Q42: =OFFSET(LH351H_D!$H38,0,LH351H_D!$B$14) -> 3.788771547e-05 | R42: =OFFSET(LH351H_D!$H38,0,LH351H_D!$B$32) -> 8.861410548e-05 | S42: =OFFSET(LH351H_450nm!H38,0,LH351H_450nm!$B$13) -> 0.0003576263343 | T42: =OFFSET(LH351H_630nm!H38,0,LH351H_630nm!$B$13) -> 7.225321231e-07 | U42: =OFFSET(LH351H_660nm!H38,0,LH351H_660nm!$B$13) -> -1.917112839e-06 | V42: =OFFSET(LH351H_660nm_V2!H38,0,LH351H_660nm_V2!$B$13) -> 2.449180823e-06 | W42: =OFFSET(LH351H_730nm!H38,0,LH351H_730nm!$B$13) -> -1.120628745e-06 | Y42: 411 | Z42: 0.0001980449358 | AA42: =MAX(C42*IF(Calculator!$D$4>=0,Calculator!$D$4,0),0) -> 5.603753687e-05 | AB42: =MAX(D42*IF(Calculator!$D$5>=0,Calculator!$D$5,0),0) -> 0.0001346598565 | AC42: =MAX(E42*IF(Calculator!$D$6>=0,Calculator!$D$6,0),0) -> 0 | AD42: =MAX(F42*IF(Calculator!$D$7>=0,Calculator!$D$7,0),0) -> 0 | AE42: =MAX(G42*IF(Calculator!$D$8>=0,Calculator!$D$8,0),0) -> 0 | AF42: =MAX(H42*IF(Calculator!$D$9>=0,Calculator!$D$9,0),0) -> 0 | AG42: =MAX(I42*IF(Calculator!$D$10>=0,Calculator!$D$10,0),0) -> 0 | AH42: =MAX(J42*IF(Calculator!$D$11>=0,Calculator!$D$11,0),0) -> 0 | AI42: =MAX(K42*IF(Calculator!$D$12>=0,Calculator!$D$12,0),0) -> 0 | AJ42: =MAX(L42*IF(Calculator!$D$13>=0,Calculator!$D$13,0),0) -> 0 | AK42: =MAX(M42*IF(Calculator!$D$14>=0,Calculator!$D$14,0),0) -> 0 | AL42: =MAX(N42*IF(Calculator!$D$15>=0,Calculator!$D$15,0),0) -> 0 | AM42: =MAX(O42*IF(Calculator!$D$16>=0,Calculator!$D$16,0),0) -> 0 | AN42: =MAX(P42*IF(Calculator!$D$17>=0,Calculator!$D$17,0),0) -> 0 | AO42: =MAX(Q42*IF(Calculator!$D$18>=0,Calculator!$D$18,0),0) -> 0 | AP42: =MAX(R42*IF(Calculator!$D$19>=0,Calculator!$D$19,0),0) -> 0 | AQ42: =MAX(S42*IF(Calculator!$D$20>=0,Calculator!$D$20,0),0) -> 0 | AR42: =MAX(T42*IF(Calculator!$D$21>=0,Calculator!$D$21,0),0) -> 0 | AS42: =MAX(U42*IF(Calculator!$D$22>=0,Calculator!$D$22,0),0) -> 0 | AT42: =MAX(V42*IF(Calculator!$D$23>=0,Calculator!$D$23,0),0) -> 7.347542468e-06 | AU42: =MAX(W42*IF(Calculator!$D$24>=0,Calculator!$D$24,0),0) -> 0 | AW42: 411 | AX42: 0.0006811419969 | AY42: 0.0001927316122 | AZ42: 0.0004631397575 | BA42: 0 | BB42: 0 | BC42: 0 | BD42: 0 | BE42: 0 | BF42: 0 | BG42: 0 | BH42: 0 | BI42: 0 | BJ42: 0 | BK42: 0 | BL42: 0 | BM42: 0 | BN42: 0 | BO42: 0 | BP42: 0 | BQ42: 0 | BR42: 2.527062723e-05 | BS42: 0 | BU42: 411 | BV42: =AX42*OFFSET(PPF_YPF_DIN_BPF!$A$101,ROW()-10,$BT$1) -> 0.0001980449358 | BW42: =AY42*OFFSET(PPF_YPF_DIN_BPF!$A$101,ROW()-10,$BT$1) -> 5.603753687e-05 | BX42: =AZ42*OFFSET(PPF_YPF_DIN_BPF!$A$101,ROW()-10,$BT$1) -> 0.0001346598565 | BY42: =BA42*OFFSET(PPF_YPF_DIN_BPF!$A$101,ROW()-10,$BT$1) -> 0 | BZ42: =BB42*OFFSET(PPF_YPF_DIN_BPF!$A$101,ROW()-10,$BT$1) -> 0 | CA42: =BC42*OFFSET(PPF_YPF_DIN_BPF!$A$101,ROW()-10,$BT$1) -> 0 | CB42: =BD42*OFFSET(PPF_YPF_DIN_BPF!$A$101,ROW()-10,$BT$1) -> 0 | CC42: =BE42*OFFSET(PPF_YPF_DIN_BPF!$A$101,ROW()-10,$BT$1) -> 0 | CD42: =BF42*OFFSET(PPF_YPF_DIN_BPF!$A$101,ROW()-10,$BT$1) -> 0 | CE42: =BG42*OFFSET(PPF_YPF_DIN_BPF!$A$101,ROW()-10,$BT$1) -> 0 | CF42: =BH42*OFFSET(PPF_YPF_DIN_BPF!$A$101,ROW()-10,$BT$1) -> 0 | CG42: =BI42*OFFSET(PPF_YPF_DIN_BPF!$A$101,ROW()-10,$BT$1) -> 0 | CH42: =BJ42*OFFSET(PPF_YPF_DIN_BPF!$A$101,ROW()-10,$BT$1) -> 0 | CI42: =BK42*OFFSET(PPF_YPF_DIN_BPF!$A$101,ROW()-10,$BT$1) -> 0 | CJ42: =BL42*OFFSET(PPF_YPF_DIN_BPF!$A$101,ROW()-10,$BT$1) -> 0 | CK42: =BM42*OFFSET(PPF_YPF_DIN_BPF!$A$101,ROW()-10,$BT$1) -> 0 | CL42: =BN42*OFFSET(PPF_YPF_DIN_BPF!$A$101,ROW()-10,$BT$1) -> 0 | CM42: =BO42*OFFSET(PPF_YPF_DIN_BPF!$A$101,ROW()-10,$BT$1) -> 0 | CN42: =BP42*OFFSET(PPF_YPF_DIN_BPF!$A$101,ROW()-10,$BT$1) -> 0 | CO42: =BQ42*OFFSET(PPF_YPF_DIN_BPF!$A$101,ROW()-10,$BT$1) -> 0 | CP42: =BR42*OFFSET(PPF_YPF_DIN_BPF!$A$101,ROW()-10,$BT$1) -> 7.347542468e-06 | CQ42: =BS42*OFFSET(PPF_YPF_DIN_BPF!$A$101,ROW()-10,$BT$1) -> 0 | CS42: =AX42*OFFSET(PPF_YPF_DIN_BPF!$A$101,ROW()-10,1+1) -> 0.0006811419969 | CT42: =AX42*OFFSET(PPF_YPF_DIN_BPF!$A$101,ROW()-10,2+1) -> 0.0006811419969 | CU42: =AX42*OFFSET(PPF_YPF_DIN_BPF!$A$101,ROW()-10,3+1) -> 0.0004811205626 | CV42: =AX42*OFFSET(PPF_YPF_DIN_BPF!$A$101,ROW()-10,4+1) -> 0.0005216071746 | CW42: =PPF_YPF_DIN_BPF!I33*Graph_Data!CW$2 -> 0.03603395289 | CX42: =PPF_YPF_DIN_BPF!J33*Graph_Data!CX$2 -> 0.03056071064 | CY42: =PPF_YPF_DIN_BPF!K33*Graph_Data!CY$2 -> 0.009922834334 | DX42: 289 | DY42: =PPF_YPF_DIN_BPF!E11*Graph_Data!EA$2 -> 0 | DZ42: =PPF_YPF_DIN_BPF!C11*Graph_Data!DZ$2 -> 0 | EA42: =PPF_YPF_DIN_BPF!D11*Graph_Data!DY$2 -> 0.08412958924 | EB42: 0 | EC42: 0
B43: 412 | C43: =OFFSET(LM301H!H39,0,LM301H!$B$13) -> 3.317866565e-06 | D43: =OFFSET(LM301H!H39,0,LM301H!$B$31) -> 6.942731347e-06 | E43: =OFFSET(LM301H_D!H39,0,LM301H_D!$B$13) -> 3.614469625e-06 | F43: =OFFSET(LM301H_D!H39,0,LM301H_D!$B$31) -> 7.882771481e-06 | G43: =OFFSET(LM561H!$H39,0,LM561H!$B$13) -> 5.310710939e-06 | H43: =OFFSET(LM561H!$H39,0,LM561H!$B$31) -> 8.796973235e-06 | I43: =OFFSET(LH181B!$H39,0,LH181B!$B$14) -> 2.562724163e-05 | J43: =OFFSET(LH181B!$H39,0,LH181B!$B$32) -> 7.213374132e-05 | K43: =OFFSET(LH231B!$H39,0,LH231B!$B$14) -> 3.715922915e-05 | L43: =OFFSET(LH231B!$H39,0,LH231B!$B$32) -> 6.172985034e-05 | M43: =OFFSET(LH351H_B!$H39,0,LH351H_B!$B$14) -> 3.772210275e-05 | N43: =OFFSET(LH351H_B!$H39,0,LH351H_B!$B$32) -> 0.0001295399498 | O43: =OFFSET(LH351H_C!$H39,0,LH351H_C!$B$14) -> 2.972652168e-05 | P43: =OFFSET(LH351H_C!$H39,0,LH351H_C!$B$32) -> 6.624599902e-05 | Q43: =OFFSET(LH351H_D!$H39,0,LH351H_D!$B$14) -> 4.133887721e-05 | R43: =OFFSET(LH351H_D!$H39,0,LH351H_D!$B$32) -> 0.0001004919479 | S43: =OFFSET(LH351H_450nm!H39,0,LH351H_450nm!$B$13) -> 0.0003759454106 | T43: =OFFSET(LH351H_630nm!H39,0,LH351H_630nm!$B$13) -> 1.734263266e-06 | U43: =OFFSET(LH351H_660nm!H39,0,LH351H_660nm!$B$13) -> -4.319281111e-07 | V43: =OFFSET(LH351H_660nm_V2!H39,0,LH351H_660nm_V2!$B$13) -> -1.538400748e-06 | W43: =OFFSET(LH351H_730nm!H39,0,LH351H_730nm!$B$13) -> 4.76703082e-07 | Y43: 412 | Z43: 0.0002052119582 | AA43: =MAX(C43*IF(Calculator!$D$4>=0,Calculator!$D$4,0),0) -> 6.635733129e-05 | AB43: =MAX(D43*IF(Calculator!$D$5>=0,Calculator!$D$5,0),0) -> 0.0001388546269 | AC43: =MAX(E43*IF(Calculator!$D$6>=0,Calculator!$D$6,0),0) -> 0 | AD43: =MAX(F43*IF(Calculator!$D$7>=0,Calculator!$D$7,0),0) -> 0 | AE43: =MAX(G43*IF(Calculator!$D$8>=0,Calculator!$D$8,0),0) -> 0 | AF43: =MAX(H43*IF(Calculator!$D$9>=0,Calculator!$D$9,0),0) -> 0 | AG43: =MAX(I43*IF(Calculator!$D$10>=0,Calculator!$D$10,0),0) -> 0 | AH43: =MAX(J43*IF(Calculator!$D$11>=0,Calculator!$D$11,0),0) -> 0 | AI43: =MAX(K43*IF(Calculator!$D$12>=0,Calculator!$D$12,0),0) -> 0 | AJ43: =MAX(L43*IF(Calculator!$D$13>=0,Calculator!$D$13,0),0) -> 0 | AK43: =MAX(M43*IF(Calculator!$D$14>=0,Calculator!$D$14,0),0) -> 0 | AL43: =MAX(N43*IF(Calculator!$D$15>=0,Calculator!$D$15,0),0) -> 0 | AM43: =MAX(O43*IF(Calculator!$D$16>=0,Calculator!$D$16,0),0) -> 0 | AN43: =MAX(P43*IF(Calculator!$D$17>=0,Calculator!$D$17,0),0) -> 0 | AO43: =MAX(Q43*IF(Calculator!$D$18>=0,Calculator!$D$18,0),0) -> 0 | AP43: =MAX(R43*IF(Calculator!$D$19>=0,Calculator!$D$19,0),0) -> 0 | AQ43: =MAX(S43*IF(Calculator!$D$20>=0,Calculator!$D$20,0),0) -> 0 | AR43: =MAX(T43*IF(Calculator!$D$21>=0,Calculator!$D$21,0),0) -> 0 | AS43: =MAX(U43*IF(Calculator!$D$22>=0,Calculator!$D$22,0),0) -> 0 | AT43: =MAX(V43*IF(Calculator!$D$23>=0,Calculator!$D$23,0),0) -> 0 | AU43: =MAX(W43*IF(Calculator!$D$24>=0,Calculator!$D$24,0),0) -> 0 | AW43: 412 | AX43: 0.0007075090108 | AY43: 0.0002287800878 | AZ43: 0.000478728923 | BA43: 0 | BB43: 0 | BC43: 0 | BD43: 0 | BE43: 0 | BF43: 0 | BG43: 0 | BH43: 0 | BI43: 0 | BJ43: 0 | BK43: 0 | BL43: 0 | BM43: 0 | BN43: 0 | BO43: =AQ43*$Y43/119.5 -> 0 | BP43: =AR43*$Y43/119.5 -> 0 | BQ43: =AS43*$Y43/119.5 -> 0 | BR43: =AT43*$Y43/119.5 -> 0 | BS43: 0 | BU43: 412 | BV43: =AX43*OFFSET(PPF_YPF_DIN_BPF!$A$101,ROW()-10,$BT$1) -> 0.0002052119582 | BW43: =AY43*OFFSET(PPF_YPF_DIN_BPF!$A$101,ROW()-10,$BT$1) -> 6.635733129e-05 | BX43: =AZ43*OFFSET(PPF_YPF_DIN_BPF!$A$101,ROW()-10,$BT$1) -> 0.0001388546269 | BY43: =BA43*OFFSET(PPF_YPF_DIN_BPF!$A$101,ROW()-10,$BT$1) -> 0 | BZ43: =BB43*OFFSET(PPF_YPF_DIN_BPF!$A$101,ROW()-10,$BT$1) -> 0 | CA43: =BC43*OFFSET(PPF_YPF_DIN_BPF!$A$101,ROW()-10,$BT$1) -> 0 | CB43: =BD43*OFFSET(PPF_YPF_DIN_BPF!$A$101,ROW()-10,$BT$1) -> 0 | CC43: =BE43*OFFSET(PPF_YPF_DIN_BPF!$A$101,ROW()-10,$BT$1) -> 0 | CD43: =BF43*OFFSET(PPF_YPF_DIN_BPF!$A$101,ROW()-10,$BT$1) -> 0 | CE43: =BG43*OFFSET(PPF_YPF_DIN_BPF!$A$101,ROW()-10,$BT$1) -> 0 | CF43: =BH43*OFFSET(PPF_YPF_DIN_BPF!$A$101,ROW()-10,$BT$1) -> 0 | CG43: =BI43*OFFSET(PPF_YPF_DIN_BPF!$A$101,ROW()-10,$BT$1) -> 0 | CH43: =BJ43*OFFSET(PPF_YPF_DIN_BPF!$A$101,ROW()-10,$BT$1) -> 0 | CI43: =BK43*OFFSET(PPF_YPF_DIN_BPF!$A$101,ROW()-10,$BT$1) -> 0 | CJ43: =BL43*OFFSET(PPF_YPF_DIN_BPF!$A$101,ROW()-10,$BT$1) -> 0 | CK43: =BM43*OFFSET(PPF_YPF_DIN_BPF!$A$101,ROW()-10,$BT$1) -> 0 | CL43: =BN43*OFFSET(PPF_YPF_DIN_BPF!$A$101,ROW()-10,$BT$1) -> 0 | CM43: =BO43*OFFSET(PPF_YPF_DIN_BPF!$A$101,ROW()-10,$BT$1) -> 0 | CN43: =BP43*OFFSET(PPF_YPF_DIN_BPF!$A$101,ROW()-10,$BT$1) -> 0 | CO43: =BQ43*OFFSET(PPF_YPF_DIN_BPF!$A$101,ROW()-10,$BT$1) -> 0 | CP43: =BR43*OFFSET(PPF_YPF_DIN_BPF!$A$101,ROW()-10,$BT$1) -> 0 | CQ43: =BS43*OFFSET(PPF_YPF_DIN_BPF!$A$101,ROW()-10,$BT$1) -> 0 | CS43: =AX43*OFFSET(PPF_YPF_DIN_BPF!$A$101,ROW()-10,1+1) -> 0.0007075090108 | CT43: =AX43*OFFSET(PPF_YPF_DIN_BPF!$A$101,ROW()-10,2+1) -> 0.0007075090108 | CU43: =AX43*OFFSET(PPF_YPF_DIN_BPF!$A$101,ROW()-10,3+1) -> 0.0005026830297 | CV43: =AX43*OFFSET(PPF_YPF_DIN_BPF!$A$101,ROW()-10,4+1) -> 0.0005550931261 | CW43: =PPF_YPF_DIN_BPF!I34*Graph_Data!CW$2 -> 0.03689017199 | CX43: =PPF_YPF_DIN_BPF!J34*Graph_Data!CX$2 -> 0.0306350676 | CY43: =PPF_YPF_DIN_BPF!K34*Graph_Data!CY$2 -> 0.0107121296 | DX43: 290 | DY43: =PPF_YPF_DIN_BPF!E12*Graph_Data!EA$2 -> 0 | DZ43: =PPF_YPF_DIN_BPF!C12*Graph_Data!DZ$2 -> 0 | EA43: =PPF_YPF_DIN_BPF!D12*Graph_Data!DY$2 -> 0.08412958924 | EB43: 0 | EC43: 0
B44: 413 | C44: =OFFSET(LM301H!H40,0,LM301H!$B$13) -> 3.934171979e-06 | D44: =OFFSET(LM301H!H40,0,LM301H!$B$31) -> 8.848473094e-06 | E44: =OFFSET(LM301H_D!H40,0,LM301H_D!$B$13) -> 4.651062278e-06 | F44: =OFFSET(LM301H_D!H40,0,LM301H_D!$B$31) -> 9.83921047e-06 | G44: =OFFSET(LM561H!$H40,0,LM561H!$B$13) -> 5.866306143e-06 | H44: =OFFSET(LM561H!$H40,0,LM561H!$B$31) -> 1.054959795e-05 | I44: =OFFSET(LH181B!$H40,0,LH181B!$B$14) -> 2.966626071e-05 | J44: =OFFSET(LH181B!$H40,0,LH181B!$B$32) -> 8.437986161e-05 | K44: =OFFSET(LH231B!$H40,0,LH231B!$B$14) -> 4.358128794e-05 | L44: =OFFSET(LH231B!$H40,0,LH231B!$B$32) -> 7.119979338e-05 | M44: =OFFSET(LH351H_B!$H40,0,LH351H_B!$B$14) -> 4.30876002e-05 | N44: =OFFSET(LH351H_B!$H40,0,LH351H_B!$B$32) -> 0.0001486505204 | O44: =OFFSET(LH351H_C!$H40,0,LH351H_C!$B$14) -> 3.283755362e-05 | P44: =OFFSET(LH351H_C!$H40,0,LH351H_C!$B$32) -> 7.125074228e-05 | Q44: =OFFSET(LH351H_D!$H40,0,LH351H_D!$B$14) -> 4.780477045e-05 | R44: =OFFSET(LH351H_D!$H40,0,LH351H_D!$B$32) -> 0.0001122151809 | S44: =OFFSET(LH351H_450nm!H40,0,LH351H_450nm!$B$13) -> 0.0003952900946 | T44: =OFFSET(LH351H_630nm!H40,0,LH351H_630nm!$B$13) -> 7.775401312e-07 | U44: =OFFSET(LH351H_660nm!H40,0,LH351H_660nm!$B$13) -> -8.857563995e-07 | V44: =OFFSET(LH351H_660nm_V2!H40,0,LH351H_660nm_V2!$B$13) -> 1.059841647e-06 | W44: =OFFSET(LH351H_730nm!H40,0,LH351H_730nm!$B$13) -> 3.502454135e-08 | Y44: 413 | Z44: 0.0002588324264 | AA44: =MAX(C44*IF(Calculator!$D$4>=0,Calculator!$D$4,0),0) -> 7.868343959e-05 | AB44: =MAX(D44*IF(Calculator!$D$5>=0,Calculator!$D$5,0),0) -> 0.0001769694619 | AC44: =MAX(E44*IF(Calculator!$D$6>=0,Calculator!$D$6,0),0) -> 0 | AD44: =MAX(F44*IF(Calculator!$D$7>=0,Calculator!$D$7,0),0) -> 0 | AE44: =MAX(G44*IF(Calculator!$D$8>=0,Calculator!$D$8,0),0) -> 0 | AF44: =MAX(H44*IF(Calculator!$D$9>=0,Calculator!$D$9,0),0) -> 0 | AG44: =MAX(I44*IF(Calculator!$D$10>=0,Calculator!$D$10,0),0) -> 0 | AH44: =MAX(J44*IF(Calculator!$D$11>=0,Calculator!$D$11,0),0) -> 0 | AI44: =MAX(K44*IF(Calculator!$D$12>=0,Calculator!$D$12,0),0) -> 0 | AJ44: =MAX(L44*IF(Calculator!$D$13>=0,Calculator!$D$13,0),0) -> 0 | AK44: =MAX(M44*IF(Calculator!$D$14>=0,Calculator!$D$14,0),0) -> 0 | AL44: =MAX(N44*IF(Calculator!$D$15>=0,Calculator!$D$15,0),0) -> 0 | AM44: =MAX(O44*IF(Calculator!$D$16>=0,Calculator!$D$16,0),0) -> 0 | AN44: =MAX(P44*IF(Calculator!$D$17>=0,Calculator!$D$17,0),0) -> 0 | AO44: =MAX(Q44*IF(Calculator!$D$18>=0,Calculator!$D$18,0),0) -> 0 | AP44: =MAX(R44*IF(Calculator!$D$19>=0,Calculator!$D$19,0),0) -> 0 | AQ44: =MAX(S44*IF(Calculator!$D$20>=0,Calculator!$D$20,0),0) -> 0 | AR44: =MAX(T44*IF(Calculator!$D$21>=0,Calculator!$D$21,0),0) -> 0 | AS44: =MAX(U44*IF(Calculator!$D$22>=0,Calculator!$D$22,0),0) -> 0 | AT44: =MAX(V44*IF(Calculator!$D$23>=0,Calculator!$D$23,0),0) -> 3.179524942e-06 | AU44: =MAX(W44*IF(Calculator!$D$24>=0,Calculator!$D$24,0),0) -> 0 | AW44: 413 | AX44: 0.0008945421933 | AY44: 0.0002719352347 | AZ44: 0.0006116183076 | BA44: 0 | BB44: 0 | BC44: 0 | BD44: 0 | BE44: 0 | BF44: 0 | BG44: 0 | BH44: 0 | BI44: 0 | BJ44: 0 | BK44: 0 | BL44: 0 | BM44: 0 | BN44: 0 | BO44: 0 | BP44: 0 | BQ44: 0 | BR44: 1.098865106e-05 | BS44: 0 | BU44: 413 | BV44: =AX44*OFFSET(PPF_YPF_DIN_BPF!$A$101,ROW()-10,$BT$1) -> 0.0002588324264 | BW44: =AY44*OFFSET(PPF_YPF_DIN_BPF!$A$101,ROW()-10,$BT$1) -> 7.868343959e-05 | BX44: =AZ44*OFFSET(PPF_YPF_DIN_BPF!$A$101,ROW()-10,$BT$1) -> 0.0001769694619 | BY44: =BA44*OFFSET(PPF_YPF_DIN_BPF!$A$101,ROW()-10,$BT$1) -> 0 | BZ44: =BB44*OFFSET(PPF_YPF_DIN_BPF!$A$101,ROW()-10,$BT$1) -> 0 | CA44: =BC44*OFFSET(PPF_YPF_DIN_BPF!$A$101,ROW()-10,$BT$1) -> 0 | CB44: =BD44*OFFSET(PPF_YPF_DIN_BPF!$A$101,ROW()-10,$BT$1) -> 0 | CC44: =BE44*OFFSET(PPF_YPF_DIN_BPF!$A$101,ROW()-10,$BT$1) -> 0 | CD44: =BF44*OFFSET(PPF_YPF_DIN_BPF!$A$101,ROW()-10,$BT$1) -> 0 | CE44: =BG44*OFFSET(PPF_YPF_DIN_BPF!$A$101,ROW()-10,$BT$1) -> 0 | CF44: =BH44*OFFSET(PPF_YPF_DIN_BPF!$A$101,ROW()-10,$BT$1) -> 0 | CG44: =BI44*OFFSET(PPF_YPF_DIN_BPF!$A$101,ROW()-10,$BT$1) -> 0 | CH44: =BJ44*OFFSET(PPF_YPF_DIN_BPF!$A$101,ROW()-10,$BT$1) -> 0 | CI44: =BK44*OFFSET(PPF_YPF_DIN_BPF!$A$101,ROW()-10,$BT$1) -> 0 | CJ44: =BL44*OFFSET(PPF_YPF_DIN_BPF!$A$101,ROW()-10,$BT$1) -> 0 | CK44: =BM44*OFFSET(PPF_YPF_DIN_BPF!$A$101,ROW()-10,$BT$1) -> 0 | CL44: =BN44*OFFSET(PPF_YPF_DIN_BPF!$A$101,ROW()-10,$BT$1) -> 0 | CM44: =BO44*OFFSET(PPF_YPF_DIN_BPF!$A$101,ROW()-10,$BT$1) -> 0 | CN44: =BP44*OFFSET(PPF_YPF_DIN_BPF!$A$101,ROW()-10,$BT$1) -> 0 | CO44: =BQ44*OFFSET(PPF_YPF_DIN_BPF!$A$101,ROW()-10,$BT$1) -> 0 | CP44: =BR44*OFFSET(PPF_YPF_DIN_BPF!$A$101,ROW()-10,$BT$1) -> 3.179524942e-06 | CQ44: =BS44*OFFSET(PPF_YPF_DIN_BPF!$A$101,ROW()-10,$BT$1) -> 0 | CS44: =AX44*OFFSET(PPF_YPF_DIN_BPF!$A$101,ROW()-10,1+1) -> 0.0008945421933 | CT44: =AX44*OFFSET(PPF_YPF_DIN_BPF!$A$101,ROW()-10,2+1) -> 0.0008945421933 | CU44: =AX44*OFFSET(PPF_YPF_DIN_BPF!$A$101,ROW()-10,3+1) -> 0.0006392935239 | CV44: =AX44*OFFSET(PPF_YPF_DIN_BPF!$A$101,ROW()-10,4+1) -> 0.0007186525141 | CW44: =PPF_YPF_DIN_BPF!I35*Graph_Data!CW$2 -> 0.03775012189 | CX44: =PPF_YPF_DIN_BPF!J35*Graph_Data!CX$2 -> 0.0300269929 | CY44: =PPF_YPF_DIN_BPF!K35*Graph_Data!CY$2 -> 0.01150513919 | DX44: 291 | DY44: =PPF_YPF_DIN_BPF!E13*Graph_Data!EA$2 -> 0 | DZ44: =PPF_YPF_DIN_BPF!C13*Graph_Data!DZ$2 -> 0 | EA44: =PPF_YPF_DIN_BPF!D13*Graph_Data!DY$2 -> 0.08412958924 | EB44: 0 | EC44: 0
B45: 414 | C45: =OFFSET(LM301H!H41,0,LM301H!$B$13) -> 3.732924179e-06 | D45: =OFFSET(LM301H!H41,0,LM301H!$B$31) -> 8.896589091e-06 | E45: =OFFSET(LM301H_D!H41,0,LM301H_D!$B$13) -> 4.424600421e-06 | F45: =OFFSET(LM301H_D!H41,0,LM301H_D!$B$31) -> 1.068943638e-05 | G45: =OFFSET(LM561H!$H41,0,LM561H!$B$13) -> 7.405407231e-06 | H45: =OFFSET(LM561H!$H41,0,LM561H!$B$31) -> 1.240026586e-05 | I45: =OFFSET(LH181B!$H41,0,LH181B!$B$14) -> 3.485095624e-05 | J45: =OFFSET(LH181B!$H41,0,LH181B!$B$32) -> 9.969656653e-05 | K45: =OFFSET(LH231B!$H41,0,LH231B!$B$14) -> 5.145505766e-05 | L45: =OFFSET(LH231B!$H41,0,LH231B!$B$32) -> 8.472237109e-05 | M45: =OFFSET(LH351H_B!$H41,0,LH351H_B!$B$14) -> 4.799693624e-05 | N45: =OFFSET(LH351H_B!$H41,0,LH351H_B!$B$32) -> 0.0001715164534 | O45: =OFFSET(LH351H_C!$H41,0,LH351H_C!$B$14) -> 3.471353653e-05 | P45: =OFFSET(LH351H_C!$H41,0,LH351H_C!$B$32) -> 7.924727573e-05 | Q45: =OFFSET(LH351H_D!$H41,0,LH351H_D!$B$14) -> 5.351712488e-05 | R45: =OFFSET(LH351H_D!$H41,0,LH351H_D!$B$32) -> 0.0001263075605 | S45: =OFFSET(LH351H_450nm!H41,0,LH351H_450nm!$B$13) -> 0.0004338862756 | T45: =OFFSET(LH351H_630nm!H41,0,LH351H_630nm!$B$13) -> -1.662812046e-06 | U45: =OFFSET(LH351H_660nm!H41,0,LH351H_660nm!$B$13) -> -4.79048551e-06 | V45: =OFFSET(LH351H_660nm_V2!H41,0,LH351H_660nm_V2!$B$13) -> 9.333788202e-06 | W45: =OFFSET(LH351H_730nm!H41,0,LH351H_730nm!$B$13) -> -8.370126912e-07 | Y45: 414 | Z45: 0.00028059163 | AA45: =MAX(C45*IF(Calculator!$D$4>=0,Calculator!$D$4,0),0) -> 7.465848358e-05 | AB45: =MAX(D45*IF(Calculator!$D$5>=0,Calculator!$D$5,0),0) -> 0.0001779317818 | AC45: =MAX(E45*IF(Calculator!$D$6>=0,Calculator!$D$6,0),0) -> 0 | AD45: =MAX(F45*IF(Calculator!$D$7>=0,Calculator!$D$7,0),0) -> 0 | AE45: =MAX(G45*IF(Calculator!$D$8>=0,Calculator!$D$8,0),0) -> 0 | AF45: =MAX(H45*IF(Calculator!$D$9>=0,Calculator!$D$9,0),0) -> 0 | AG45: =MAX(I45*IF(Calculator!$D$10>=0,Calculator!$D$10,0),0) -> 0 | AH45: =MAX(J45*IF(Calculator!$D$11>=0,Calculator!$D$11,0),0) -> 0 | AI45: =MAX(K45*IF(Calculator!$D$12>=0,Calculator!$D$12,0),0) -> 0 | AJ45: =MAX(L45*IF(Calculator!$D$13>=0,Calculator!$D$13,0),0) -> 0 | AK45: =MAX(M45*IF(Calculator!$D$14>=0,Calculator!$D$14,0),0) -> 0 | AL45: =MAX(N45*IF(Calculator!$D$15>=0,Calculator!$D$15,0),0) -> 0 | AM45: =MAX(O45*IF(Calculator!$D$16>=0,Calculator!$D$16,0),0) -> 0 | AN45: =MAX(P45*IF(Calculator!$D$17>=0,Calculator!$D$17,0),0) -> 0 | AO45: =MAX(Q45*IF(Calculator!$D$18>=0,Calculator!$D$18,0),0) -> 0 | AP45: =MAX(R45*IF(Calculator!$D$19>=0,Calculator!$D$19,0),0) -> 0 | AQ45: =MAX(S45*IF(Calculator!$D$20>=0,Calculator!$D$20,0),0) -> 0 | AR45: =MAX(T45*IF(Calculator!$D$21>=0,Calculator!$D$21,0),0) -> 0 | AS45: =MAX(U45*IF(Calculator!$D$22>=0,Calculator!$D$22,0),0) -> 0 | AT45: =MAX(V45*IF(Calculator!$D$23>=0,Calculator!$D$23,0),0) -> 2.800136461e-05 | AU45: =MAX(W45*IF(Calculator!$D$24>=0,Calculator!$D$24,0),0) -> 0 | AW45: 414 | AX45: 0.0009720915048 | AY45: 0.0002586494745 | AZ45: 0.0006164331186 | BA45: 0 | BB45: 0 | BC45: 0 | BD45: 0 | BE45: 0 | BF45: 0 | BG45: 0 | BH45: 0 | BI45: 0 | BJ45: 0 | BK45: 0 | BL45: 0 | BM45: 0 | BN45: 0 | BO45: 0 | BP45: 0 | BQ45: 0 | BR45: 9.700891169e-05 | BS45: 0 | BU45: 414 | BV45: =AX45*OFFSET(PPF_YPF_DIN_BPF!$A$101,ROW()-10,$BT$1) -> 0.00028059163 | BW45: =AY45*OFFSET(PPF_YPF_DIN_BPF!$A$101,ROW()-10,$BT$1) -> 7.465848358e-05 | BX45: =AZ45*OFFSET(PPF_YPF_DIN_BPF!$A$101,ROW()-10,$BT$1) -> 0.0001779317818 | BY45: =BA45*OFFSET(PPF_YPF_DIN_BPF!$A$101,ROW()-10,$BT$1) -> 0 | BZ45: =BB45*OFFSET(PPF_YPF_DIN_BPF!$A$101,ROW()-10,$BT$1) -> 0 | CA45: =BC45*OFFSET(PPF_YPF_DIN_BPF!$A$101,ROW()-10,$BT$1) -> 0 | CB45: =BD45*OFFSET(PPF_YPF_DIN_BPF!$A$101,ROW()-10,$BT$1) -> 0 | CC45: =BE45*OFFSET(PPF_YPF_DIN_BPF!$A$101,ROW()-10,$BT$1) -> 0 | CD45: =BF45*OFFSET(PPF_YPF_DIN_BPF!$A$101,ROW()-10,$BT$1) -> 0 | CE45: =BG45*OFFSET(PPF_YPF_DIN_BPF!$A$101,ROW()-10,$BT$1) -> 0 | CF45: =BH45*OFFSET(PPF_YPF_DIN_BPF!$A$101,ROW()-10,$BT$1) -> 0 | CG45: =BI45*OFFSET(PPF_YPF_DIN_BPF!$A$101,ROW()-10,$BT$1) -> 0 | CH45: =BJ45*OFFSET(PPF_YPF_DIN_BPF!$A$101,ROW()-10,$BT$1) -> 0 | CI45: =BK45*OFFSET(PPF_YPF_DIN_BPF!$A$101,ROW()-10,$BT$1) -> 0 | CJ45: =BL45*OFFSET(PPF_YPF_DIN_BPF!$A$101,ROW()-10,$BT$1) -> 0 | CK45: =BM45*OFFSET(PPF_YPF_DIN_BPF!$A$101,ROW()-10,$BT$1) -> 0 | CL45: =BN45*OFFSET(PPF_YPF_DIN_BPF!$A$101,ROW()-10,$BT$1) -> 0 | CM45: =BO45*OFFSET(PPF_YPF_DIN_BPF!$A$101,ROW()-10,$BT$1) -> 0 | CN45: =BP45*OFFSET(PPF_YPF_DIN_BPF!$A$101,ROW()-10,$BT$1) -> 0 | CO45: =BQ45*OFFSET(PPF_YPF_DIN_BPF!$A$101,ROW()-10,$BT$1) -> 0 | CP45: =BR45*OFFSET(PPF_YPF_DIN_BPF!$A$101,ROW()-10,$BT$1) -> 2.800136461e-05 | CQ45: =BS45*OFFSET(PPF_YPF_DIN_BPF!$A$101,ROW()-10,$BT$1) -> 0 | CS45: =AX45*OFFSET(PPF_YPF_DIN_BPF!$A$101,ROW()-10,1+1) -> 0.0009720915048 | CT45: =AX45*OFFSET(PPF_YPF_DIN_BPF!$A$101,ROW()-10,2+1) -> 0.0009720915048 | CU45: =AX45*OFFSET(PPF_YPF_DIN_BPF!$A$101,ROW()-10,3+1) -> 0.0006987520108 | CV45: =AX45*OFFSET(PPF_YPF_DIN_BPF!$A$101,ROW()-10,4+1) -> 0.0007994258751 | CW45: =PPF_YPF_DIN_BPF!I36*Graph_Data!CW$2 -> 0.03938607865 | CX45: =PPF_YPF_DIN_BPF!J36*Graph_Data!CX$2 -> 0.03009969748 | CY45: =PPF_YPF_DIN_BPF!K36*Graph_Data!CY$2 -> 0.01230186312 | DX45: 292 | DY45: =PPF_YPF_DIN_BPF!E14*Graph_Data!EA$2 -> 0 | DZ45: =PPF_YPF_DIN_BPF!C14*Graph_Data!DZ$2 -> 0 | EA45: =PPF_YPF_DIN_BPF!D14*Graph_Data!DY$2 -> 0.08412958924 | EB45: 0 | EC45: 0
B46: 415 | C46: =OFFSET(LM301H!H42,0,LM301H!$B$13) -> 4.616433894e-06 | D46: =OFFSET(LM301H!H42,0,LM301H!$B$31) -> 1.082374258e-05 | E46: =OFFSET(LM301H_D!H42,0,LM301H_D!$B$13) -> 5.068324357e-06 | F46: =OFFSET(LM301H_D!H42,0,LM301H_D!$B$31) -> 1.246751818e-05 | G46: =OFFSET(LM561H!$H42,0,LM561H!$B$13) -> 8.057351295e-06 | H46: =OFFSET(LM561H!$H42,0,LM561H!$B$31) -> 1.349278776e-05 | I46: =OFFSET(LH181B!$H42,0,LH181B!$B$14) -> 4.021050951e-05 | J46: =OFFSET(LH181B!$H42,0,LH181B!$B$32) -> 0.0001181430323 | K46: =OFFSET(LH231B!$H42,0,LH231B!$B$14) -> 5.951807307e-05 | L46: =OFFSET(LH231B!$H42,0,LH231B!$B$32) -> 9.897610898e-05 | M46: =OFFSET(LH351H_B!$H42,0,LH351H_B!$B$14) -> 5.257286353e-05 | N46: =OFFSET(LH351H_B!$H42,0,LH351H_B!$B$32) -> 0.0001972927311 | O46: =OFFSET(LH351H_C!$H42,0,LH351H_C!$B$14) -> 3.836478083e-05 | P46: =OFFSET(LH351H_C!$H42,0,LH351H_C!$B$32) -> 8.791911753e-05 | Q46: =OFFSET(LH351H_D!$H42,0,LH351H_D!$B$14) -> 6.17296909e-05 | R46: =OFFSET(LH351H_D!$H42,0,LH351H_D!$B$32) -> 0.0001398381488 | S46: =OFFSET(LH351H_450nm!H42,0,LH351H_450nm!$B$13) -> 0.0004720470704 | T46: =OFFSET(LH351H_630nm!H42,0,LH351H_630nm!$B$13) -> 3.660033608e-07 | U46: =OFFSET(LH351H_660nm!H42,0,LH351H_660nm!$B$13) -> 5.221455666e-08 | V46: =OFFSET(LH351H_660nm_V2!H42,0,LH351H_660nm_V2!$B$13) -> -1.12946865e-06 | W46: =OFFSET(LH351H_730nm!H42,0,LH351H_730nm!$B$13) -> -4.780362492e-07 | Y46: 415 | Z46: 0.0003088035295 | AA46: =MAX(C46*IF(Calculator!$D$4>=0,Calculator!$D$4,0),0) -> 9.232867788e-05 | AB46: =MAX(D46*IF(Calculator!$D$5>=0,Calculator!$D$5,0),0) -> 0.0002164748517 | AC46: =MAX(E46*IF(Calculator!$D$6>=0,Calculator!$D$6,0),0) -> 0 | AD46: =MAX(F46*IF(Calculator!$D$7>=0,Calculator!$D$7,0),0) -> 0 | AE46: =MAX(G46*IF(Calculator!$D$8>=0,Calculator!$D$8,0),0) -> 0 | AF46: =MAX(H46*IF(Calculator!$D$9>=0,Calculator!$D$9,0),0) -> 0 | AG46: =MAX(I46*IF(Calculator!$D$10>=0,Calculator!$D$10,0),0) -> 0 | AH46: =MAX(J46*IF(Calculator!$D$11>=0,Calculator!$D$11,0),0) -> 0 | AI46: =MAX(K46*IF(Calculator!$D$12>=0,Calculator!$D$12,0),0) -> 0 | AJ46: =MAX(L46*IF(Calculator!$D$13>=0,Calculator!$D$13,0),0) -> 0 | AK46: =MAX(M46*IF(Calculator!$D$14>=0,Calculator!$D$14,0),0) -> 0 | AL46: =MAX(N46*IF(Calculator!$D$15>=0,Calculator!$D$15,0),0) -> 0 | AM46: =MAX(O46*IF(Calculator!$D$16>=0,Calculator!$D$16,0),0) -> 0 | AN46: =MAX(P46*IF(Calculator!$D$17>=0,Calculator!$D$17,0),0) -> 0 | AO46: =MAX(Q46*IF(Calculator!$D$18>=0,Calculator!$D$18,0),0) -> 0 | AP46: =MAX(R46*IF(Calculator!$D$19>=0,Calculator!$D$19,0),0) -> 0 | AQ46: =MAX(S46*IF(Calculator!$D$20>=0,Calculator!$D$20,0),0) -> 0 | AR46: =MAX(T46*IF(Calculator!$D$21>=0,Calculator!$D$21,0),0) -> 0 | AS46: =MAX(U46*IF(Calculator!$D$22>=0,Calculator!$D$22,0),0) -> 0 | AT46: =MAX(V46*IF(Calculator!$D$23>=0,Calculator!$D$23,0),0) -> 0 | AU46: =MAX(W46*IF(Calculator!$D$24>=0,Calculator!$D$24,0),0) -> 0 | AW46: 415 | AX46: 0.001072413931 | AY46: 0.0003206393416 | AZ46: 0.0007517745895 | BA46: 0 | BB46: 0 | BC46: 0 | BD46: 0 | BE46: 0 | BF46: 0 | BG46: 0 | BH46: 0 | BI46: 0 | BJ46: 0 | BK46: 0 | BL46: 0 | BM46: 0 | BN46: 0 | BO46: 0 | BP46: 0 | BQ46: 0 | BR46: 0 | BS46: 0 | BU46: 415 | BV46: =AX46*OFFSET(PPF_YPF_DIN_BPF!$A$101,ROW()-10,$BT$1) -> 0.0003088035295 | BW46: =AY46*OFFSET(PPF_YPF_DIN_BPF!$A$101,ROW()-10,$BT$1) -> 9.232867788e-05 | BX46: =AZ46*OFFSET(PPF_YPF_DIN_BPF!$A$101,ROW()-10,$BT$1) -> 0.0002164748517 | BY46: =BA46*OFFSET(PPF_YPF_DIN_BPF!$A$101,ROW()-10,$BT$1) -> 0 | BZ46: =BB46*OFFSET(PPF_YPF_DIN_BPF!$A$101,ROW()-10,$BT$1) -> 0 | CA46: =BC46*OFFSET(PPF_YPF_DIN_BPF!$A$101,ROW()-10,$BT$1) -> 0 | CB46: =BD46*OFFSET(PPF_YPF_DIN_BPF!$A$101,ROW()-10,$BT$1) -> 0 | CC46: =BE46*OFFSET(PPF_YPF_DIN_BPF!$A$101,ROW()-10,$BT$1) -> 0 | CD46: =BF46*OFFSET(PPF_YPF_DIN_BPF!$A$101,ROW()-10,$BT$1) -> 0 | CE46: =BG46*OFFSET(PPF_YPF_DIN_BPF!$A$101,ROW()-10,$BT$1) -> 0 | CF46: =BH46*OFFSET(PPF_YPF_DIN_BPF!$A$101,ROW()-10,$BT$1) -> 0 | CG46: =BI46*OFFSET(PPF_YPF_DIN_BPF!$A$101,ROW()-10,$BT$1) -> 0 | CH46: =BJ46*OFFSET(PPF_YPF_DIN_BPF!$A$101,ROW()-10,$BT$1) -> 0 | CI46: =BK46*OFFSET(PPF_YPF_DIN_BPF!$A$101,ROW()-10,$BT$1) -> 0 | CJ46: =BL46*OFFSET(PPF_YPF_DIN_BPF!$A$101,ROW()-10,$BT$1) -> 0 | CK46: =BM46*OFFSET(PPF_YPF_DIN_BPF!$A$101,ROW()-10,$BT$1) -> 0 | CL46: =BN46*OFFSET(PPF_YPF_DIN_BPF!$A$101,ROW()-10,$BT$1) -> 0 | CM46: =BO46*OFFSET(PPF_YPF_DIN_BPF!$A$101,ROW()-10,$BT$1) -> 0 | CN46: =BP46*OFFSET(PPF_YPF_DIN_BPF!$A$101,ROW()-10,$BT$1) -> 0 | CO46: =BQ46*OFFSET(PPF_YPF_DIN_BPF!$A$101,ROW()-10,$BT$1) -> 0 | CP46: =BR46*OFFSET(PPF_YPF_DIN_BPF!$A$101,ROW()-10,$BT$1) -> 0 | CQ46: =BS46*OFFSET(PPF_YPF_DIN_BPF!$A$101,ROW()-10,$BT$1) -> 0 | CS46: =AX46*OFFSET(PPF_YPF_DIN_BPF!$A$101,ROW()-10,1+1) -> 0.001072413931 | CT46: =AX46*OFFSET(PPF_YPF_DIN_BPF!$A$101,ROW()-10,2+1) -> 0.001072413931 | CU46: =AX46*OFFSET(PPF_YPF_DIN_BPF!$A$101,ROW()-10,3+1) -> 0.0007753295342 | CV46: =AX46*OFFSET(PPF_YPF_DIN_BPF!$A$101,ROW()-10,4+1) -> 0.0009022965191 | CW46: =PPF_YPF_DIN_BPF!I37*Graph_Data!CW$2 -> 0.04025535556 | CX46: =PPF_YPF_DIN_BPF!J37*Graph_Data!CX$2 -> 0.03085813848 | CY46: =PPF_YPF_DIN_BPF!K37*Graph_Data!CY$2 -> 0.01310230137 | DX46: 293 | DY46: =PPF_YPF_DIN_BPF!E15*Graph_Data!EA$2 -> 0 | DZ46: =PPF_YPF_DIN_BPF!C15*Graph_Data!DZ$2 -> 0 | EA46: =PPF_YPF_DIN_BPF!D15*Graph_Data!DY$2 -> 0.08412958924 | EB46: 0 | EC46: 0
